{"text_format":"1","workbook":"xlsx","n_sheets":4,"sheets":["Data Sheet","Enter Sheet","Instructions","Ref sheet"],"not_rendered":{"charts":0,"images":4,"macros":1,"external_links":0,"defined_names":8,"comments":0,"pivot_tables":0},"unopened":[],"bounds":{"document_bytes":16777216,"sheet_cells":100000,"rows_first":2000,"rows_last":500,"rows_between":2000,"halvings":0,"cell_chars":16384,"cell_head_chars":4096},"cells_cut":0,"cells_raw":0,"read":"whole","date_system":"1900"}

{"sheet":"Data Sheet","index":0,"n_rows":110,"n_cols":36,"rows_kept":110,"cut":false,"hidden":true,"merged":[[0,0,0,35],[2,2,2,3],[2,7,2,8],[3,2,3,3],[3,7,3,8]]}
["Enable New Zealand MOH Under $2,000 Job card record"]
[]
[null,"Company Name",{"$f":"IF(Company_Name=\"\",\"\",Company_Name)","v":""},null,null,null,"Invoice date",{"$f":"IF(Invoice_date=\"\",\"\",Invoice_date)","v":""}]
[null,"ENZ Reference Num",{"$f":"IF(ENZ_Reference_Num=\"\",\"\",ENZ_Reference_Num)","v":""},null,null,null,"Invoice Number",{"$f":"IF(Invoice_Number=\"\",\"\",Invoice_Number)","v":""}]
[null,null,"Start Date","End Date",null,null,"Total Value (excl GST)",{"$f":"+SUM(AA9:AA108)","v":0},null,{"$f":"IF(COUNTBLANK(AJ9:AJ108)=100, \"\", \"Check Column Y - line item over $1k.\")","v":""}]
[null,"Job card period",{"$f":"IF(Job_card_period=\"\",\"\",Job_card_period)","v":""},{"$f":"IF('Enter Sheet'!C6=\"\",\"\",'Enter Sheet'!C6)","v":""}]
[]
["Job Ref","Charge type","Clients First Name","Clients Surname","Clients Address Street No","Clients Address Street ","Clients Address Town/City","Clients Phone Number","Date repair/service requested","Date  repair/service completed","Asset Number","Asset Description","Manufacturers Serial No.","Test and Tag","Beyond Economic Repair (BER)","BER Comment","Repair Description","Labour Hours","Travel Hours","Travel Distance (km)","Parts Description","Parts Costs","Labour Hours Total ","Travel Hours Total","Travel KM Total ","Service Cost (Test and Tag)","TOTAL JOB COST","Company Name","ENZ Reference Num","Invoice date","Invoice Number","Cost  per unit (LH)","Cost  per unit (TH)","Cost  per unit (TD)","Cost per Unit (TT)","Total check"]
[{"$f":"IF(Table1[[#This Row],[Job Ref]]=\"\",\"\",Table1[[#This Row],[Job Ref]])","v":""},{"$f":"IF(Table1[[#This Row],[Job Ref]]=\"\",\"\",VLOOKUP(Table1[[#This Row],[Charge type]],Table3[],2,FALSE))","v":""},{"$f":"IF(Table1[[#This Row],[Job Ref]]=\"\",\"\",Table1[[#This Row],[Clients First Name]])","v":""},{"$f":"IF(Table1[[#This Row],[Job Ref]]=\"\",\"\",Table1[[#This Row],[Clients Surname]])","v":""},{"$f":"IF(Table1[[#This Row],[Job Ref]]=\"\",\"\",Table1[[#This Row],[Clients Address Street No]])","v":""},{"$f":"IF(Table1[[#This Row],[Job Ref]]=\"\",\"\",Table1[[#This Row],[Clients Address Street ]])","v":""},{"$f":"IF(Table1[[#This Row],[Job Ref]]=\"\",\"\",Table1[[#This Row],[Clients Address Town/City]])","v":""},{"$f":"IF(Table1[[#This Row],[Job Ref]]=\"\",\"\",Table1[[#This Row],[Clients Phone Number]])","v":""},{"$f":"IF(Table1[[#This Row],[Job Ref]]=\"\",\"\",Table1[[#This Row],[Date repair/service requested]])","v":""},{"$f":"IF(Table1[[#This Row],[Job Ref]]=\"\",\"\",Table1[[#This Row],[Date  repair/service completed]])","v":""},{"$f":"IF(Table1[[#This Row],[Job Ref]]=\"\",\"\",Table1[[#This Row],[Asset Number]])","v":""},{"$f":"IF(Table1[[#This Row],[Job Ref]]=\"\",\"\",Table1[[#This Row],[Asset Description]])","v":""},{"$f":"IF(Table1[[#This Row],[Job Ref]]=\"\",\"\",Table1[[#This Row],[Manufacturers Serial No.]])","v":""},{"$f":"IF(Table1[[#This Row],[Job Ref]]=\"\",\"\",Table1[[#This Row],[Test and Tag]])","v":""},{"$f":"IF(Table1[[#This Row],[Job Ref]]=\"\",\"\",Table1[[#This Row],[Beyond Economic Repair (BER)]])","v":""},{"$f":"IF(Table1[[#This Row],[Job Ref]]=\"\",\"\",Table1[[#This Row],[BER Comment]])","v":""},{"$f":"IF(Table1[[#This Row],[Job Ref]]=\"\",\"\",Table1[[#This Row],[Repair Description]])","v":""},{"$f":"IF(Table1[[#This Row],[Job Ref]]=\"\",\"\",Table1[[#This Row],[Labour Hours]])","v":""},{"$f":"IF(Table1[[#This Row],[Job Ref]]=\"\",\"\",Table1[[#This Row],[Travel Hours]])","v":""},{"$f":"IF(Table1[[#This Row],[Job Ref]]=\"\",\"\",Table1[[#This Row],[Travel Distance (km)]])","v":""},{"$f":"IF(Table1[[#This Row],[Job Ref]]=\"\",\"\",Table1[[#This Row],[Parts Description]])","v":""},{"$f":"IF(Table1[[#This Row],[Job Ref]]=\"\",\"\",Table1[[#This Row],[Parts Costs]])","v":""},{"$f":"IFERROR(Table13[[#This Row],[Labour Hours]]*Table13[[#This Row],[Cost  per unit (LH)]],0)","v":0},{"$f":"IFERROR(Table13[[#This Row],[Travel Hours]]*Table13[[#This Row],[Cost  per unit (TH)]],0)","v":0},{"$f":"IFERROR(Table13[[#This Row],[Travel Distance (km)]]*Table13[[#This Row],[Cost  per unit (TD)]],0)","v":0},{"$f":"IF(Table13[[#This Row],[Test and Tag]]=\"Yes\",Table13[[#This Row],[Cost per Unit (TT)]],0)","v":0},{"$f":"SUM(Table13[[#This Row],[Parts Costs]],Table13[[#This Row],[Travel KM Total ]],Table13[[#This Row],[Labour Hours Total ]],Table13[[#This Row],[Service Cost (Test and Tag)]],Table13[[#This Row],[Travel Hours Total]])","v":0},{"$f":"IF(Table13[[#This Row],[Charge type]]<>\"\",Company_Name,\"\")","v":""},{"$f":"IF(Table13[[#This Row],[Charge type]]<>\"\",ENZ_Reference_Num,\"\")","v":""},{"$f":"IF(Table13[[#This Row],[Charge type]]<>\"\",Invoice_date,\"\")","v":""},{"$f":"IF(Table13[[#This Row],[Charge type]]<>\"\",Invoice_Number,\"\")","v":""},85,85,0.64,15,{"$f":"IF(Table13[[#This Row],[TOTAL JOB COST]]>1999.99,\"OVER $2k - contact Enable\",\"\")","v":""}]
[{"$f":"IF(Table1[[#This Row],[Job Ref]]=\"\",\"\",Table1[[#This Row],[Job Ref]])","v":""},{"$f":"IF(Table1[[#This Row],[Job Ref]]=\"\",\"\",VLOOKUP(Table1[[#This Row],[Charge type]],Table3[],2,FALSE))","v":""},{"$f":"IF(Table1[[#This Row],[Job Ref]]=\"\",\"\",Table1[[#This Row],[Clients First Name]])","v":""},{"$f":"IF(Table1[[#This Row],[Job Ref]]=\"\",\"\",Table1[[#This Row],[Clients Surname]])","v":""},{"$f":"IF(Table1[[#This Row],[Job Ref]]=\"\",\"\",Table1[[#This Row],[Clients Address Street No]])","v":""},{"$f":"IF(Table1[[#This Row],[Job Ref]]=\"\",\"\",Table1[[#This Row],[Clients Address Street ]])","v":""},{"$f":"IF(Table1[[#This Row],[Job Ref]]=\"\",\"\",Table1[[#This Row],[Clients Address Town/City]])","v":""},{"$f":"IF(Table1[[#This Row],[Job Ref]]=\"\",\"\",Table1[[#This Row],[Clients Phone Number]])","v":""},{"$f":"IF(Table1[[#This Row],[Job Ref]]=\"\",\"\",Table1[[#This Row],[Date repair/service requested]])","v":""},{"$f":"IF(Table1[[#This Row],[Job Ref]]=\"\",\"\",Table1[[#This Row],[Date  repair/service completed]])","v":""},{"$f":"IF(Table1[[#This Row],[Job Ref]]=\"\",\"\",Table1[[#This Row],[Asset Number]])","v":""},{"$f":"IF(Table1[[#This Row],[Job Ref]]=\"\",\"\",Table1[[#This Row],[Asset Description]])","v":""},{"$f":"IF(Table1[[#This Row],[Job Ref]]=\"\",\"\",Table1[[#This Row],[Manufacturers Serial No.]])","v":""},{"$f":"IF(Table1[[#This Row],[Job Ref]]=\"\",\"\",Table1[[#This Row],[Test and Tag]])","v":""},{"$f":"IF(Table1[[#This Row],[Job Ref]]=\"\",\"\",Table1[[#This Row],[Beyond Economic Repair (BER)]])","v":""},{"$f":"IF(Table1[[#This Row],[Job Ref]]=\"\",\"\",Table1[[#This Row],[BER Comment]])","v":""},{"$f":"IF(Table1[[#This Row],[Job Ref]]=\"\",\"\",Table1[[#This Row],[Repair Description]])","v":""},{"$f":"IF(Table1[[#This Row],[Job Ref]]=\"\",\"\",Table1[[#This Row],[Labour Hours]])","v":""},{"$f":"IF(Table1[[#This Row],[Job Ref]]=\"\",\"\",Table1[[#This Row],[Travel Hours]])","v":""},{"$f":"IF(Table1[[#This Row],[Job Ref]]=\"\",\"\",Table1[[#This Row],[Travel Distance (km)]])","v":""},{"$f":"IF(Table1[[#This Row],[Job Ref]]=\"\",\"\",Table1[[#This Row],[Parts Description]])","v":""},{"$f":"IF(Table1[[#This Row],[Job Ref]]=\"\",\"\",Table1[[#This Row],[Parts Costs]])","v":""},{"$f":"IFERROR(Table13[[#This Row],[Labour Hours]]*Table13[[#This Row],[Cost  per unit (LH)]],0)","v":0},{"$f":"IFERROR(Table13[[#This Row],[Travel Hours]]*Table13[[#This Row],[Cost  per unit (TH)]],0)","v":0},{"$f":"IFERROR(Table13[[#This Row],[Travel Distance (km)]]*Table13[[#This Row],[Cost  per unit (TD)]],0)","v":0},{"$f":"IF(Table13[[#This Row],[Test and Tag]]=\"Yes\",Table13[[#This Row],[Cost per Unit (TT)]],0)","v":0},{"$f":"SUM(Table13[[#This Row],[Parts Costs]],Table13[[#This Row],[Travel KM Total ]],Table13[[#This Row],[Labour Hours Total ]],Table13[[#This Row],[Service Cost (Test and Tag)]],Table13[[#This Row],[Travel Hours Total]])","v":0},{"$f":"IF(Table13[[#This Row],[Charge type]]<>\"\",Company_Name,\"\")","v":""},{"$f":"IF(Table13[[#This Row],[Charge type]]<>\"\",ENZ_Reference_Num,\"\")","v":""},{"$f":"IF(Table13[[#This Row],[Charge type]]<>\"\",Invoice_date,\"\")","v":""},{"$f":"IF(Table13[[#This Row],[Charge type]]<>\"\",Invoice_Number,\"\")","v":""},85,85,0.64,15,{"$f":"IF(Table13[[#This Row],[TOTAL JOB COST]]>1999.99,\"OVER $2k - contact Enable\",\"\")","v":""}]
[{"$f":"IF(Table1[[#This Row],[Job Ref]]=\"\",\"\",Table1[[#This Row],[Job Ref]])","v":""},{"$f":"IF(Table1[[#This Row],[Job Ref]]=\"\",\"\",VLOOKUP(Table1[[#This Row],[Charge type]],Table3[],2,FALSE))","v":""},{"$f":"IF(Table1[[#This Row],[Job Ref]]=\"\",\"\",Table1[[#This Row],[Clients First Name]])","v":""},{"$f":"IF(Table1[[#This Row],[Job Ref]]=\"\",\"\",Table1[[#This Row],[Clients Surname]])","v":""},{"$f":"IF(Table1[[#This Row],[Job Ref]]=\"\",\"\",Table1[[#This Row],[Clients Address Street No]])","v":""},{"$f":"IF(Table1[[#This Row],[Job Ref]]=\"\",\"\",Table1[[#This Row],[Clients Address Street ]])","v":""},{"$f":"IF(Table1[[#This Row],[Job Ref]]=\"\",\"\",Table1[[#This Row],[Clients Address Town/City]])","v":""},{"$f":"IF(Table1[[#This Row],[Job Ref]]=\"\",\"\",Table1[[#This Row],[Clients Phone Number]])","v":""},{"$f":"IF(Table1[[#This Row],[Job Ref]]=\"\",\"\",Table1[[#This Row],[Date repair/service requested]])","v":""},{"$f":"IF(Table1[[#This Row],[Job Ref]]=\"\",\"\",Table1[[#This Row],[Date  repair/service completed]])","v":""},{"$f":"IF(Table1[[#This Row],[Job Ref]]=\"\",\"\",Table1[[#This Row],[Asset Number]])","v":""},{"$f":"IF(Table1[[#This Row],[Job Ref]]=\"\",\"\",Table1[[#This Row],[Asset Description]])","v":""},{"$f":"IF(Table1[[#This Row],[Job Ref]]=\"\",\"\",Table1[[#This Row],[Manufacturers Serial No.]])","v":""},{"$f":"IF(Table1[[#This Row],[Job Ref]]=\"\",\"\",Table1[[#This Row],[Test and Tag]])","v":""},{"$f":"IF(Table1[[#This Row],[Job Ref]]=\"\",\"\",Table1[[#This Row],[Beyond Economic Repair (BER)]])","v":""},{"$f":"IF(Table1[[#This Row],[Job Ref]]=\"\",\"\",Table1[[#This Row],[BER Comment]])","v":""},{"$f":"IF(Table1[[#This Row],[Job Ref]]=\"\",\"\",Table1[[#This Row],[Repair Description]])","v":""},{"$f":"IF(Table1[[#This Row],[Job Ref]]=\"\",\"\",Table1[[#This Row],[Labour Hours]])","v":""},{"$f":"IF(Table1[[#This Row],[Job Ref]]=\"\",\"\",Table1[[#This Row],[Travel Hours]])","v":""},{"$f":"IF(Table1[[#This Row],[Job Ref]]=\"\",\"\",Table1[[#This Row],[Travel Distance (km)]])","v":""},{"$f":"IF(Table1[[#This Row],[Job Ref]]=\"\",\"\",Table1[[#This Row],[Parts Description]])","v":""},{"$f":"IF(Table1[[#This Row],[Job Ref]]=\"\",\"\",Table1[[#This Row],[Parts Costs]])","v":""},{"$f":"IFERROR(Table13[[#This Row],[Labour Hours]]*Table13[[#This Row],[Cost  per unit (LH)]],0)","v":0},{"$f":"IFERROR(Table13[[#This Row],[Travel Hours]]*Table13[[#This Row],[Cost  per unit (TH)]],0)","v":0},{"$f":"IFERROR(Table13[[#This Row],[Travel Distance (km)]]*Table13[[#This Row],[Cost  per unit (TD)]],0)","v":0},{"$f":"IF(Table13[[#This Row],[Test and Tag]]=\"Yes\",Table13[[#This Row],[Cost per Unit (TT)]],0)","v":0},{"$f":"SUM(Table13[[#This Row],[Parts Costs]],Table13[[#This Row],[Travel KM Total ]],Table13[[#This Row],[Labour Hours Total ]],Table13[[#This Row],[Service Cost (Test and Tag)]],Table13[[#This Row],[Travel Hours Total]])","v":0},{"$f":"IF(Table13[[#This Row],[Charge type]]<>\"\",Company_Name,\"\")","v":""},{"$f":"IF(Table13[[#This Row],[Charge type]]<>\"\",ENZ_Reference_Num,\"\")","v":""},{"$f":"IF(Table13[[#This Row],[Charge type]]<>\"\",Invoice_date,\"\")","v":""},{"$f":"IF(Table13[[#This Row],[Charge type]]<>\"\",Invoice_Number,\"\")","v":""},85,85,0.64,15,{"$f":"IF(Table13[[#This Row],[TOTAL JOB COST]]>1999.99,\"OVER $2k - contact Enable\",\"\")","v":""}]
[{"$f":"IF(Table1[[#This Row],[Job Ref]]=\"\",\"\",Table1[[#This Row],[Job Ref]])","v":""},{"$f":"IF(Table1[[#This Row],[Job Ref]]=\"\",\"\",VLOOKUP(Table1[[#This Row],[Charge type]],Table3[],2,FALSE))","v":""},{"$f":"IF(Table1[[#This Row],[Job Ref]]=\"\",\"\",Table1[[#This Row],[Clients First Name]])","v":""},{"$f":"IF(Table1[[#This Row],[Job Ref]]=\"\",\"\",Table1[[#This Row],[Clients Surname]])","v":""},{"$f":"IF(Table1[[#This Row],[Job Ref]]=\"\",\"\",Table1[[#This Row],[Clients Address Street No]])","v":""},{"$f":"IF(Table1[[#This Row],[Job Ref]]=\"\",\"\",Table1[[#This Row],[Clients Address Street ]])","v":""},{"$f":"IF(Table1[[#This Row],[Job Ref]]=\"\",\"\",Table1[[#This Row],[Clients Address Town/City]])","v":""},{"$f":"IF(Table1[[#This Row],[Job Ref]]=\"\",\"\",Table1[[#This Row],[Clients Phone Number]])","v":""},{"$f":"IF(Table1[[#This Row],[Job Ref]]=\"\",\"\",Table1[[#This Row],[Date repair/service requested]])","v":""},{"$f":"IF(Table1[[#This Row],[Job Ref]]=\"\",\"\",Table1[[#This Row],[Date  repair/service completed]])","v":""},{"$f":"IF(Table1[[#This Row],[Job Ref]]=\"\",\"\",Table1[[#This Row],[Asset Number]])","v":""},{"$f":"IF(Table1[[#This Row],[Job Ref]]=\"\",\"\",Table1[[#This Row],[Asset Description]])","v":""},{"$f":"IF(Table1[[#This Row],[Job Ref]]=\"\",\"\",Table1[[#This Row],[Manufacturers Serial No.]])","v":""},{"$f":"IF(Table1[[#This Row],[Job Ref]]=\"\",\"\",Table1[[#This Row],[Test and Tag]])","v":""},{"$f":"IF(Table1[[#This Row],[Job Ref]]=\"\",\"\",Table1[[#This Row],[Beyond Economic Repair (BER)]])","v":""},{"$f":"IF(Table1[[#This Row],[Job Ref]]=\"\",\"\",Table1[[#This Row],[BER Comment]])","v":""},{"$f":"IF(Table1[[#This Row],[Job Ref]]=\"\",\"\",Table1[[#This Row],[Repair Description]])","v":""},{"$f":"IF(Table1[[#This Row],[Job Ref]]=\"\",\"\",Table1[[#This Row],[Labour Hours]])","v":""},{"$f":"IF(Table1[[#This Row],[Job Ref]]=\"\",\"\",Table1[[#This Row],[Travel Hours]])","v":""},{"$f":"IF(Table1[[#This Row],[Job Ref]]=\"\",\"\",Table1[[#This Row],[Travel Distance (km)]])","v":""},{"$f":"IF(Table1[[#This Row],[Job Ref]]=\"\",\"\",Table1[[#This Row],[Parts Description]])","v":""},{"$f":"IF(Table1[[#This Row],[Job Ref]]=\"\",\"\",Table1[[#This Row],[Parts Costs]])","v":""},{"$f":"IFERROR(Table13[[#This Row],[Labour Hours]]*Table13[[#This Row],[Cost  per unit (LH)]],0)","v":0},{"$f":"IFERROR(Table13[[#This Row],[Travel Hours]]*Table13[[#This Row],[Cost  per unit (TH)]],0)","v":0},{"$f":"IFERROR(Table13[[#This Row],[Travel Distance (km)]]*Table13[[#This Row],[Cost  per unit (TD)]],0)","v":0},{"$f":"IF(Table13[[#This Row],[Test and Tag]]=\"Yes\",Table13[[#This Row],[Cost per Unit (TT)]],0)","v":0},{"$f":"SUM(Table13[[#This Row],[Parts Costs]],Table13[[#This Row],[Travel KM Total ]],Table13[[#This Row],[Labour Hours Total ]],Table13[[#This Row],[Service Cost (Test and Tag)]],Table13[[#This Row],[Travel Hours Total]])","v":0},{"$f":"IF(Table13[[#This Row],[Charge type]]<>\"\",Company_Name,\"\")","v":""},{"$f":"IF(Table13[[#This Row],[Charge type]]<>\"\",ENZ_Reference_Num,\"\")","v":""},{"$f":"IF(Table13[[#This Row],[Charge type]]<>\"\",Invoice_date,\"\")","v":""},{"$f":"IF(Table13[[#This Row],[Charge type]]<>\"\",Invoice_Number,\"\")","v":""},85,85,0.64,15,{"$f":"IF(Table13[[#This Row],[TOTAL JOB COST]]>1999.99,\"OVER $2k - contact Enable\",\"\")","v":""}]
[{"$f":"IF(Table1[[#This Row],[Job Ref]]=\"\",\"\",Table1[[#This Row],[Job Ref]])","v":""},{"$f":"IF(Table1[[#This Row],[Job Ref]]=\"\",\"\",VLOOKUP(Table1[[#This Row],[Charge type]],Table3[],2,FALSE))","v":""},{"$f":"IF(Table1[[#This Row],[Job Ref]]=\"\",\"\",Table1[[#This Row],[Clients First Name]])","v":""},{"$f":"IF(Table1[[#This Row],[Job Ref]]=\"\",\"\",Table1[[#This Row],[Clients Surname]])","v":""},{"$f":"IF(Table1[[#This Row],[Job Ref]]=\"\",\"\",Table1[[#This Row],[Clients Address Street No]])","v":""},{"$f":"IF(Table1[[#This Row],[Job Ref]]=\"\",\"\",Table1[[#This Row],[Clients Address Street ]])","v":""},{"$f":"IF(Table1[[#This Row],[Job Ref]]=\"\",\"\",Table1[[#This Row],[Clients Address Town/City]])","v":""},{"$f":"IF(Table1[[#This Row],[Job Ref]]=\"\",\"\",Table1[[#This Row],[Clients Phone Number]])","v":""},{"$f":"IF(Table1[[#This Row],[Job Ref]]=\"\",\"\",Table1[[#This Row],[Date repair/service requested]])","v":""},{"$f":"IF(Table1[[#This Row],[Job Ref]]=\"\",\"\",Table1[[#This Row],[Date  repair/service completed]])","v":""},{"$f":"IF(Table1[[#This Row],[Job Ref]]=\"\",\"\",Table1[[#This Row],[Asset Number]])","v":""},{"$f":"IF(Table1[[#This Row],[Job Ref]]=\"\",\"\",Table1[[#This Row],[Asset Description]])","v":""},{"$f":"IF(Table1[[#This Row],[Job Ref]]=\"\",\"\",Table1[[#This Row],[Manufacturers Serial No.]])","v":""},{"$f":"IF(Table1[[#This Row],[Job Ref]]=\"\",\"\",Table1[[#This Row],[Test and Tag]])","v":""},{"$f":"IF(Table1[[#This Row],[Job Ref]]=\"\",\"\",Table1[[#This Row],[Beyond Economic Repair (BER)]])","v":""},{"$f":"IF(Table1[[#This Row],[Job Ref]]=\"\",\"\",Table1[[#This Row],[BER Comment]])","v":""},{"$f":"IF(Table1[[#This Row],[Job Ref]]=\"\",\"\",Table1[[#This Row],[Repair Description]])","v":""},{"$f":"IF(Table1[[#This Row],[Job Ref]]=\"\",\"\",Table1[[#This Row],[Labour Hours]])","v":""},{"$f":"IF(Table1[[#This Row],[Job Ref]]=\"\",\"\",Table1[[#This Row],[Travel Hours]])","v":""},{"$f":"IF(Table1[[#This Row],[Job Ref]]=\"\",\"\",Table1[[#This Row],[Travel Distance (km)]])","v":""},{"$f":"IF(Table1[[#This Row],[Job Ref]]=\"\",\"\",Table1[[#This Row],[Parts Description]])","v":""},{"$f":"IF(Table1[[#This Row],[Job Ref]]=\"\",\"\",Table1[[#This Row],[Parts Costs]])","v":""},{"$f":"IFERROR(Table13[[#This Row],[Labour Hours]]*Table13[[#This Row],[Cost  per unit (LH)]],0)","v":0},{"$f":"IFERROR(Table13[[#This Row],[Travel Hours]]*Table13[[#This Row],[Cost  per unit (TH)]],0)","v":0},{"$f":"IFERROR(Table13[[#This Row],[Travel Distance (km)]]*Table13[[#This Row],[Cost  per unit (TD)]],0)","v":0},{"$f":"IF(Table13[[#This Row],[Test and Tag]]=\"Yes\",Table13[[#This Row],[Cost per Unit (TT)]],0)","v":0},{"$f":"SUM(Table13[[#This Row],[Parts Costs]],Table13[[#This Row],[Travel KM Total ]],Table13[[#This Row],[Labour Hours Total ]],Table13[[#This Row],[Service Cost (Test and Tag)]],Table13[[#This Row],[Travel Hours Total]])","v":0},{"$f":"IF(Table13[[#This Row],[Charge type]]<>\"\",Company_Name,\"\")","v":""},{"$f":"IF(Table13[[#This Row],[Charge type]]<>\"\",ENZ_Reference_Num,\"\")","v":""},{"$f":"IF(Table13[[#This Row],[Charge type]]<>\"\",Invoice_date,\"\")","v":""},{"$f":"IF(Table13[[#This Row],[Charge type]]<>\"\",Invoice_Number,\"\")","v":""},85,85,0.64,15,{"$f":"IF(Table13[[#This Row],[TOTAL JOB COST]]>1999.99,\"OVER $2k - contact Enable\",\"\")","v":""}]
[{"$f":"IF(Table1[[#This Row],[Job Ref]]=\"\",\"\",Table1[[#This Row],[Job Ref]])","v":""},{"$f":"IF(Table1[[#This Row],[Job Ref]]=\"\",\"\",VLOOKUP(Table1[[#This Row],[Charge type]],Table3[],2,FALSE))","v":""},{"$f":"IF(Table1[[#This Row],[Job Ref]]=\"\",\"\",Table1[[#This Row],[Clients First Name]])","v":""},{"$f":"IF(Table1[[#This Row],[Job Ref]]=\"\",\"\",Table1[[#This Row],[Clients Surname]])","v":""},{"$f":"IF(Table1[[#This Row],[Job Ref]]=\"\",\"\",Table1[[#This Row],[Clients Address Street No]])","v":""},{"$f":"IF(Table1[[#This Row],[Job Ref]]=\"\",\"\",Table1[[#This Row],[Clients Address Street ]])","v":""},{"$f":"IF(Table1[[#This Row],[Job Ref]]=\"\",\"\",Table1[[#This Row],[Clients Address Town/City]])","v":""},{"$f":"IF(Table1[[#This Row],[Job Ref]]=\"\",\"\",Table1[[#This Row],[Clients Phone Number]])","v":""},{"$f":"IF(Table1[[#This Row],[Job Ref]]=\"\",\"\",Table1[[#This Row],[Date repair/service requested]])","v":""},{"$f":"IF(Table1[[#This Row],[Job Ref]]=\"\",\"\",Table1[[#This Row],[Date  repair/service completed]])","v":""},{"$f":"IF(Table1[[#This Row],[Job Ref]]=\"\",\"\",Table1[[#This Row],[Asset Number]])","v":""},{"$f":"IF(Table1[[#This Row],[Job Ref]]=\"\",\"\",Table1[[#This Row],[Asset Description]])","v":""},{"$f":"IF(Table1[[#This Row],[Job Ref]]=\"\",\"\",Table1[[#This Row],[Manufacturers Serial No.]])","v":""},{"$f":"IF(Table1[[#This Row],[Job Ref]]=\"\",\"\",Table1[[#This Row],[Test and Tag]])","v":""},{"$f":"IF(Table1[[#This Row],[Job Ref]]=\"\",\"\",Table1[[#This Row],[Beyond Economic Repair (BER)]])","v":""},{"$f":"IF(Table1[[#This Row],[Job Ref]]=\"\",\"\",Table1[[#This Row],[BER Comment]])","v":""},{"$f":"IF(Table1[[#This Row],[Job Ref]]=\"\",\"\",Table1[[#This Row],[Repair Description]])","v":""},{"$f":"IF(Table1[[#This Row],[Job Ref]]=\"\",\"\",Table1[[#This Row],[Labour Hours]])","v":""},{"$f":"IF(Table1[[#This Row],[Job Ref]]=\"\",\"\",Table1[[#This Row],[Travel Hours]])","v":""},{"$f":"IF(Table1[[#This Row],[Job Ref]]=\"\",\"\",Table1[[#This Row],[Travel Distance (km)]])","v":""},{"$f":"IF(Table1[[#This Row],[Job Ref]]=\"\",\"\",Table1[[#This Row],[Parts Description]])","v":""},{"$f":"IF(Table1[[#This Row],[Job Ref]]=\"\",\"\",Table1[[#This Row],[Parts Costs]])","v":""},{"$f":"IFERROR(Table13[[#This Row],[Labour Hours]]*Table13[[#This Row],[Cost  per unit (LH)]],0)","v":0},{"$f":"IFERROR(Table13[[#This Row],[Travel Hours]]*Table13[[#This Row],[Cost  per unit (TH)]],0)","v":0},{"$f":"IFERROR(Table13[[#This Row],[Travel Distance (km)]]*Table13[[#This Row],[Cost  per unit (TD)]],0)","v":0},{"$f":"IF(Table13[[#This Row],[Test and Tag]]=\"Yes\",Table13[[#This Row],[Cost per Unit (TT)]],0)","v":0},{"$f":"SUM(Table13[[#This Row],[Parts Costs]],Table13[[#This Row],[Travel KM Total ]],Table13[[#This Row],[Labour Hours Total ]],Table13[[#This Row],[Service Cost (Test and Tag)]],Table13[[#This Row],[Travel Hours Total]])","v":0},{"$f":"IF(Table13[[#This Row],[Charge type]]<>\"\",Company_Name,\"\")","v":""},{"$f":"IF(Table13[[#This Row],[Charge type]]<>\"\",ENZ_Reference_Num,\"\")","v":""},{"$f":"IF(Table13[[#This Row],[Charge type]]<>\"\",Invoice_date,\"\")","v":""},{"$f":"IF(Table13[[#This Row],[Charge type]]<>\"\",Invoice_Number,\"\")","v":""},85,85,0.64,15,{"$f":"IF(Table13[[#This Row],[TOTAL JOB COST]]>1999.99,\"OVER $2k - contact Enable\",\"\")","v":""}]
[{"$f":"IF(Table1[[#This Row],[Job Ref]]=\"\",\"\",Table1[[#This Row],[Job Ref]])","v":""},{"$f":"IF(Table1[[#This Row],[Job Ref]]=\"\",\"\",VLOOKUP(Table1[[#This Row],[Charge type]],Table3[],2,FALSE))","v":""},{"$f":"IF(Table1[[#This Row],[Job Ref]]=\"\",\"\",Table1[[#This Row],[Clients First Name]])","v":""},{"$f":"IF(Table1[[#This Row],[Job Ref]]=\"\",\"\",Table1[[#This Row],[Clients Surname]])","v":""},{"$f":"IF(Table1[[#This Row],[Job Ref]]=\"\",\"\",Table1[[#This Row],[Clients Address Street No]])","v":""},{"$f":"IF(Table1[[#This Row],[Job Ref]]=\"\",\"\",Table1[[#This Row],[Clients Address Street ]])","v":""},{"$f":"IF(Table1[[#This Row],[Job Ref]]=\"\",\"\",Table1[[#This Row],[Clients Address Town/City]])","v":""},{"$f":"IF(Table1[[#This Row],[Job Ref]]=\"\",\"\",Table1[[#This Row],[Clients Phone Number]])","v":""},{"$f":"IF(Table1[[#This Row],[Job Ref]]=\"\",\"\",Table1[[#This Row],[Date repair/service requested]])","v":""},{"$f":"IF(Table1[[#This Row],[Job Ref]]=\"\",\"\",Table1[[#This Row],[Date  repair/service completed]])","v":""},{"$f":"IF(Table1[[#This Row],[Job Ref]]=\"\",\"\",Table1[[#This Row],[Asset Number]])","v":""},{"$f":"IF(Table1[[#This Row],[Job Ref]]=\"\",\"\",Table1[[#This Row],[Asset Description]])","v":""},{"$f":"IF(Table1[[#This Row],[Job Ref]]=\"\",\"\",Table1[[#This Row],[Manufacturers Serial No.]])","v":""},{"$f":"IF(Table1[[#This Row],[Job Ref]]=\"\",\"\",Table1[[#This Row],[Test and Tag]])","v":""},{"$f":"IF(Table1[[#This Row],[Job Ref]]=\"\",\"\",Table1[[#This Row],[Beyond Economic Repair (BER)]])","v":""},{"$f":"IF(Table1[[#This Row],[Job Ref]]=\"\",\"\",Table1[[#This Row],[BER Comment]])","v":""},{"$f":"IF(Table1[[#This Row],[Job Ref]]=\"\",\"\",Table1[[#This Row],[Repair Description]])","v":""},{"$f":"IF(Table1[[#This Row],[Job Ref]]=\"\",\"\",Table1[[#This Row],[Labour Hours]])","v":""},{"$f":"IF(Table1[[#This Row],[Job Ref]]=\"\",\"\",Table1[[#This Row],[Travel Hours]])","v":""},{"$f":"IF(Table1[[#This Row],[Job Ref]]=\"\",\"\",Table1[[#This Row],[Travel Distance (km)]])","v":""},{"$f":"IF(Table1[[#This Row],[Job Ref]]=\"\",\"\",Table1[[#This Row],[Parts Description]])","v":""},{"$f":"IF(Table1[[#This Row],[Job Ref]]=\"\",\"\",Table1[[#This Row],[Parts Costs]])","v":""},{"$f":"IFERROR(Table13[[#This Row],[Labour Hours]]*Table13[[#This Row],[Cost  per unit (LH)]],0)","v":0},{"$f":"IFERROR(Table13[[#This Row],[Travel Hours]]*Table13[[#This Row],[Cost  per unit (TH)]],0)","v":0},{"$f":"IFERROR(Table13[[#This Row],[Travel Distance (km)]]*Table13[[#This Row],[Cost  per unit (TD)]],0)","v":0},{"$f":"IF(Table13[[#This Row],[Test and Tag]]=\"Yes\",Table13[[#This Row],[Cost per Unit (TT)]],0)","v":0},{"$f":"SUM(Table13[[#This Row],[Parts Costs]],Table13[[#This Row],[Travel KM Total ]],Table13[[#This Row],[Labour Hours Total ]],Table13[[#This Row],[Service Cost (Test and Tag)]],Table13[[#This Row],[Travel Hours Total]])","v":0},{"$f":"IF(Table13[[#This Row],[Charge type]]<>\"\",Company_Name,\"\")","v":""},{"$f":"IF(Table13[[#This Row],[Charge type]]<>\"\",ENZ_Reference_Num,\"\")","v":""},{"$f":"IF(Table13[[#This Row],[Charge type]]<>\"\",Invoice_date,\"\")","v":""},{"$f":"IF(Table13[[#This Row],[Charge type]]<>\"\",Invoice_Number,\"\")","v":""},85,85,0.64,15,{"$f":"IF(Table13[[#This Row],[TOTAL JOB COST]]>1999.99,\"OVER $2k - contact Enable\",\"\")","v":""}]
[{"$f":"IF(Table1[[#This Row],[Job Ref]]=\"\",\"\",Table1[[#This Row],[Job Ref]])","v":""},{"$f":"IF(Table1[[#This Row],[Job Ref]]=\"\",\"\",VLOOKUP(Table1[[#This Row],[Charge type]],Table3[],2,FALSE))","v":""},{"$f":"IF(Table1[[#This Row],[Job Ref]]=\"\",\"\",Table1[[#This Row],[Clients First Name]])","v":""},{"$f":"IF(Table1[[#This Row],[Job Ref]]=\"\",\"\",Table1[[#This Row],[Clients Surname]])","v":""},{"$f":"IF(Table1[[#This Row],[Job Ref]]=\"\",\"\",Table1[[#This Row],[Clients Address Street No]])","v":""},{"$f":"IF(Table1[[#This Row],[Job Ref]]=\"\",\"\",Table1[[#This Row],[Clients Address Street ]])","v":""},{"$f":"IF(Table1[[#This Row],[Job Ref]]=\"\",\"\",Table1[[#This Row],[Clients Address Town/City]])","v":""},{"$f":"IF(Table1[[#This Row],[Job Ref]]=\"\",\"\",Table1[[#This Row],[Clients Phone Number]])","v":""},{"$f":"IF(Table1[[#This Row],[Job Ref]]=\"\",\"\",Table1[[#This Row],[Date repair/service requested]])","v":""},{"$f":"IF(Table1[[#This Row],[Job Ref]]=\"\",\"\",Table1[[#This Row],[Date  repair/service completed]])","v":""},{"$f":"IF(Table1[[#This Row],[Job Ref]]=\"\",\"\",Table1[[#This Row],[Asset Number]])","v":""},{"$f":"IF(Table1[[#This Row],[Job Ref]]=\"\",\"\",Table1[[#This Row],[Asset Description]])","v":""},{"$f":"IF(Table1[[#This Row],[Job Ref]]=\"\",\"\",Table1[[#This Row],[Manufacturers Serial No.]])","v":""},{"$f":"IF(Table1[[#This Row],[Job Ref]]=\"\",\"\",Table1[[#This Row],[Test and Tag]])","v":""},{"$f":"IF(Table1[[#This Row],[Job Ref]]=\"\",\"\",Table1[[#This Row],[Beyond Economic Repair (BER)]])","v":""},{"$f":"IF(Table1[[#This Row],[Job Ref]]=\"\",\"\",Table1[[#This Row],[BER Comment]])","v":""},{"$f":"IF(Table1[[#This Row],[Job Ref]]=\"\",\"\",Table1[[#This Row],[Repair Description]])","v":""},{"$f":"IF(Table1[[#This Row],[Job Ref]]=\"\",\"\",Table1[[#This Row],[Labour Hours]])","v":""},{"$f":"IF(Table1[[#This Row],[Job Ref]]=\"\",\"\",Table1[[#This Row],[Travel Hours]])","v":""},{"$f":"IF(Table1[[#This Row],[Job Ref]]=\"\",\"\",Table1[[#This Row],[Travel Distance (km)]])","v":""},{"$f":"IF(Table1[[#This Row],[Job Ref]]=\"\",\"\",Table1[[#This Row],[Parts Description]])","v":""},{"$f":"IF(Table1[[#This Row],[Job Ref]]=\"\",\"\",Table1[[#This Row],[Parts Costs]])","v":""},{"$f":"IFERROR(Table13[[#This Row],[Labour Hours]]*Table13[[#This Row],[Cost  per unit (LH)]],0)","v":0},{"$f":"IFERROR(Table13[[#This Row],[Travel Hours]]*Table13[[#This Row],[Cost  per unit (TH)]],0)","v":0},{"$f":"IFERROR(Table13[[#This Row],[Travel Distance (km)]]*Table13[[#This Row],[Cost  per unit (TD)]],0)","v":0},{"$f":"IF(Table13[[#This Row],[Test and Tag]]=\"Yes\",Table13[[#This Row],[Cost per Unit (TT)]],0)","v":0},{"$f":"SUM(Table13[[#This Row],[Parts Costs]],Table13[[#This Row],[Travel KM Total ]],Table13[[#This Row],[Labour Hours Total ]],Table13[[#This Row],[Service Cost (Test and Tag)]],Table13[[#This Row],[Travel Hours Total]])","v":0},{"$f":"IF(Table13[[#This Row],[Charge type]]<>\"\",Company_Name,\"\")","v":""},{"$f":"IF(Table13[[#This Row],[Charge type]]<>\"\",ENZ_Reference_Num,\"\")","v":""},{"$f":"IF(Table13[[#This Row],[Charge type]]<>\"\",Invoice_date,\"\")","v":""},{"$f":"IF(Table13[[#This Row],[Charge type]]<>\"\",Invoice_Number,\"\")","v":""},85,85,0.64,15,{"$f":"IF(Table13[[#This Row],[TOTAL JOB COST]]>1999.99,\"OVER $2k - contact Enable\",\"\")","v":""}]
[{"$f":"IF(Table1[[#This Row],[Job Ref]]=\"\",\"\",Table1[[#This Row],[Job Ref]])","v":""},{"$f":"IF(Table1[[#This Row],[Job Ref]]=\"\",\"\",VLOOKUP(Table1[[#This Row],[Charge type]],Table3[],2,FALSE))","v":""},{"$f":"IF(Table1[[#This Row],[Job Ref]]=\"\",\"\",Table1[[#This Row],[Clients First Name]])","v":""},{"$f":"IF(Table1[[#This Row],[Job Ref]]=\"\",\"\",Table1[[#This Row],[Clients Surname]])","v":""},{"$f":"IF(Table1[[#This Row],[Job Ref]]=\"\",\"\",Table1[[#This Row],[Clients Address Street No]])","v":""},{"$f":"IF(Table1[[#This Row],[Job Ref]]=\"\",\"\",Table1[[#This Row],[Clients Address Street ]])","v":""},{"$f":"IF(Table1[[#This Row],[Job Ref]]=\"\",\"\",Table1[[#This Row],[Clients Address Town/City]])","v":""},{"$f":"IF(Table1[[#This Row],[Job Ref]]=\"\",\"\",Table1[[#This Row],[Clients Phone Number]])","v":""},{"$f":"IF(Table1[[#This Row],[Job Ref]]=\"\",\"\",Table1[[#This Row],[Date repair/service requested]])","v":""},{"$f":"IF(Table1[[#This Row],[Job Ref]]=\"\",\"\",Table1[[#This Row],[Date  repair/service completed]])","v":""},{"$f":"IF(Table1[[#This Row],[Job Ref]]=\"\",\"\",Table1[[#This Row],[Asset Number]])","v":""},{"$f":"IF(Table1[[#This Row],[Job Ref]]=\"\",\"\",Table1[[#This Row],[Asset Description]])","v":""},{"$f":"IF(Table1[[#This Row],[Job Ref]]=\"\",\"\",Table1[[#This Row],[Manufacturers Serial No.]])","v":""},{"$f":"IF(Table1[[#This Row],[Job Ref]]=\"\",\"\",Table1[[#This Row],[Test and Tag]])","v":""},{"$f":"IF(Table1[[#This Row],[Job Ref]]=\"\",\"\",Table1[[#This Row],[Beyond Economic Repair (BER)]])","v":""},{"$f":"IF(Table1[[#This Row],[Job Ref]]=\"\",\"\",Table1[[#This Row],[BER Comment]])","v":""},{"$f":"IF(Table1[[#This Row],[Job Ref]]=\"\",\"\",Table1[[#This Row],[Repair Description]])","v":""},{"$f":"IF(Table1[[#This Row],[Job Ref]]=\"\",\"\",Table1[[#This Row],[Labour Hours]])","v":""},{"$f":"IF(Table1[[#This Row],[Job Ref]]=\"\",\"\",Table1[[#This Row],[Travel Hours]])","v":""},{"$f":"IF(Table1[[#This Row],[Job Ref]]=\"\",\"\",Table1[[#This Row],[Travel Distance (km)]])","v":""},{"$f":"IF(Table1[[#This Row],[Job Ref]]=\"\",\"\",Table1[[#This Row],[Parts Description]])","v":""},{"$f":"IF(Table1[[#This Row],[Job Ref]]=\"\",\"\",Table1[[#This Row],[Parts Costs]])","v":""},{"$f":"IFERROR(Table13[[#This Row],[Labour Hours]]*Table13[[#This Row],[Cost  per unit (LH)]],0)","v":0},{"$f":"IFERROR(Table13[[#This Row],[Travel Hours]]*Table13[[#This Row],[Cost  per unit (TH)]],0)","v":0},{"$f":"IFERROR(Table13[[#This Row],[Travel Distance (km)]]*Table13[[#This Row],[Cost  per unit (TD)]],0)","v":0},{"$f":"IF(Table13[[#This Row],[Test and Tag]]=\"Yes\",Table13[[#This Row],[Cost per Unit (TT)]],0)","v":0},{"$f":"SUM(Table13[[#This Row],[Parts Costs]],Table13[[#This Row],[Travel KM Total ]],Table13[[#This Row],[Labour Hours Total ]],Table13[[#This Row],[Service Cost (Test and Tag)]],Table13[[#This Row],[Travel Hours Total]])","v":0},{"$f":"IF(Table13[[#This Row],[Charge type]]<>\"\",Company_Name,\"\")","v":""},{"$f":"IF(Table13[[#This Row],[Charge type]]<>\"\",ENZ_Reference_Num,\"\")","v":""},{"$f":"IF(Table13[[#This Row],[Charge type]]<>\"\",Invoice_date,\"\")","v":""},{"$f":"IF(Table13[[#This Row],[Charge type]]<>\"\",Invoice_Number,\"\")","v":""},85,85,0.64,15,{"$f":"IF(Table13[[#This Row],[TOTAL JOB COST]]>1999.99,\"OVER $2k - contact Enable\",\"\")","v":""}]
[{"$f":"IF(Table1[[#This Row],[Job Ref]]=\"\",\"\",Table1[[#This Row],[Job Ref]])","v":""},{"$f":"IF(Table1[[#This Row],[Job Ref]]=\"\",\"\",VLOOKUP(Table1[[#This Row],[Charge type]],Table3[],2,FALSE))","v":""},{"$f":"IF(Table1[[#This Row],[Job Ref]]=\"\",\"\",Table1[[#This Row],[Clients First Name]])","v":""},{"$f":"IF(Table1[[#This Row],[Job Ref]]=\"\",\"\",Table1[[#This Row],[Clients Surname]])","v":""},{"$f":"IF(Table1[[#This Row],[Job Ref]]=\"\",\"\",Table1[[#This Row],[Clients Address Street No]])","v":""},{"$f":"IF(Table1[[#This Row],[Job Ref]]=\"\",\"\",Table1[[#This Row],[Clients Address Street ]])","v":""},{"$f":"IF(Table1[[#This Row],[Job Ref]]=\"\",\"\",Table1[[#This Row],[Clients Address Town/City]])","v":""},{"$f":"IF(Table1[[#This Row],[Job Ref]]=\"\",\"\",Table1[[#This Row],[Clients Phone Number]])","v":""},{"$f":"IF(Table1[[#This Row],[Job Ref]]=\"\",\"\",Table1[[#This Row],[Date repair/service requested]])","v":""},{"$f":"IF(Table1[[#This Row],[Job Ref]]=\"\",\"\",Table1[[#This Row],[Date  repair/service completed]])","v":""},{"$f":"IF(Table1[[#This Row],[Job Ref]]=\"\",\"\",Table1[[#This Row],[Asset Number]])","v":""},{"$f":"IF(Table1[[#This Row],[Job Ref]]=\"\",\"\",Table1[[#This Row],[Asset Description]])","v":""},{"$f":"IF(Table1[[#This Row],[Job Ref]]=\"\",\"\",Table1[[#This Row],[Manufacturers Serial No.]])","v":""},{"$f":"IF(Table1[[#This Row],[Job Ref]]=\"\",\"\",Table1[[#This Row],[Test and Tag]])","v":""},{"$f":"IF(Table1[[#This Row],[Job Ref]]=\"\",\"\",Table1[[#This Row],[Beyond Economic Repair (BER)]])","v":""},{"$f":"IF(Table1[[#This Row],[Job Ref]]=\"\",\"\",Table1[[#This Row],[BER Comment]])","v":""},{"$f":"IF(Table1[[#This Row],[Job Ref]]=\"\",\"\",Table1[[#This Row],[Repair Description]])","v":""},{"$f":"IF(Table1[[#This Row],[Job Ref]]=\"\",\"\",Table1[[#This Row],[Labour Hours]])","v":""},{"$f":"IF(Table1[[#This Row],[Job Ref]]=\"\",\"\",Table1[[#This Row],[Travel Hours]])","v":""},{"$f":"IF(Table1[[#This Row],[Job Ref]]=\"\",\"\",Table1[[#This Row],[Travel Distance (km)]])","v":""},{"$f":"IF(Table1[[#This Row],[Job Ref]]=\"\",\"\",Table1[[#This Row],[Parts Description]])","v":""},{"$f":"IF(Table1[[#This Row],[Job Ref]]=\"\",\"\",Table1[[#This Row],[Parts Costs]])","v":""},{"$f":"IFERROR(Table13[[#This Row],[Labour Hours]]*Table13[[#This Row],[Cost  per unit (LH)]],0)","v":0},{"$f":"IFERROR(Table13[[#This Row],[Travel Hours]]*Table13[[#This Row],[Cost  per unit (TH)]],0)","v":0},{"$f":"IFERROR(Table13[[#This Row],[Travel Distance (km)]]*Table13[[#This Row],[Cost  per unit (TD)]],0)","v":0},{"$f":"IF(Table13[[#This Row],[Test and Tag]]=\"Yes\",Table13[[#This Row],[Cost per Unit (TT)]],0)","v":0},{"$f":"SUM(Table13[[#This Row],[Parts Costs]],Table13[[#This Row],[Travel KM Total ]],Table13[[#This Row],[Labour Hours Total ]],Table13[[#This Row],[Service Cost (Test and Tag)]],Table13[[#This Row],[Travel Hours Total]])","v":0},{"$f":"IF(Table13[[#This Row],[Charge type]]<>\"\",Company_Name,\"\")","v":""},{"$f":"IF(Table13[[#This Row],[Charge type]]<>\"\",ENZ_Reference_Num,\"\")","v":""},{"$f":"IF(Table13[[#This Row],[Charge type]]<>\"\",Invoice_date,\"\")","v":""},{"$f":"IF(Table13[[#This Row],[Charge type]]<>\"\",Invoice_Number,\"\")","v":""},85,85,0.64,15,{"$f":"IF(Table13[[#This Row],[TOTAL JOB COST]]>1999.99,\"OVER $2k - contact Enable\",\"\")","v":""}]
[{"$f":"IF(Table1[[#This Row],[Job Ref]]=\"\",\"\",Table1[[#This Row],[Job Ref]])","v":""},{"$f":"IF(Table1[[#This Row],[Job Ref]]=\"\",\"\",VLOOKUP(Table1[[#This Row],[Charge type]],Table3[],2,FALSE))","v":""},{"$f":"IF(Table1[[#This Row],[Job Ref]]=\"\",\"\",Table1[[#This Row],[Clients First Name]])","v":""},{"$f":"IF(Table1[[#This Row],[Job Ref]]=\"\",\"\",Table1[[#This Row],[Clients Surname]])","v":""},{"$f":"IF(Table1[[#This Row],[Job Ref]]=\"\",\"\",Table1[[#This Row],[Clients Address Street No]])","v":""},{"$f":"IF(Table1[[#This Row],[Job Ref]]=\"\",\"\",Table1[[#This Row],[Clients Address Street ]])","v":""},{"$f":"IF(Table1[[#This Row],[Job Ref]]=\"\",\"\",Table1[[#This Row],[Clients Address Town/City]])","v":""},{"$f":"IF(Table1[[#This Row],[Job Ref]]=\"\",\"\",Table1[[#This Row],[Clients Phone Number]])","v":""},{"$f":"IF(Table1[[#This Row],[Job Ref]]=\"\",\"\",Table1[[#This Row],[Date repair/service requested]])","v":""},{"$f":"IF(Table1[[#This Row],[Job Ref]]=\"\",\"\",Table1[[#This Row],[Date  repair/service completed]])","v":""},{"$f":"IF(Table1[[#This Row],[Job Ref]]=\"\",\"\",Table1[[#This Row],[Asset Number]])","v":""},{"$f":"IF(Table1[[#This Row],[Job Ref]]=\"\",\"\",Table1[[#This Row],[Asset Description]])","v":""},{"$f":"IF(Table1[[#This Row],[Job Ref]]=\"\",\"\",Table1[[#This Row],[Manufacturers Serial No.]])","v":""},{"$f":"IF(Table1[[#This Row],[Job Ref]]=\"\",\"\",Table1[[#This Row],[Test and Tag]])","v":""},{"$f":"IF(Table1[[#This Row],[Job Ref]]=\"\",\"\",Table1[[#This Row],[Beyond Economic Repair (BER)]])","v":""},{"$f":"IF(Table1[[#This Row],[Job Ref]]=\"\",\"\",Table1[[#This Row],[BER Comment]])","v":""},{"$f":"IF(Table1[[#This Row],[Job Ref]]=\"\",\"\",Table1[[#This Row],[Repair Description]])","v":""},{"$f":"IF(Table1[[#This Row],[Job Ref]]=\"\",\"\",Table1[[#This Row],[Labour Hours]])","v":""},{"$f":"IF(Table1[[#This Row],[Job Ref]]=\"\",\"\",Table1[[#This Row],[Travel Hours]])","v":""},{"$f":"IF(Table1[[#This Row],[Job Ref]]=\"\",\"\",Table1[[#This Row],[Travel Distance (km)]])","v":""},{"$f":"IF(Table1[[#This Row],[Job Ref]]=\"\",\"\",Table1[[#This Row],[Parts Description]])","v":""},{"$f":"IF(Table1[[#This Row],[Job Ref]]=\"\",\"\",Table1[[#This Row],[Parts Costs]])","v":""},{"$f":"IFERROR(Table13[[#This Row],[Labour Hours]]*Table13[[#This Row],[Cost  per unit (LH)]],0)","v":0},{"$f":"IFERROR(Table13[[#This Row],[Travel Hours]]*Table13[[#This Row],[Cost  per unit (TH)]],0)","v":0},{"$f":"IFERROR(Table13[[#This Row],[Travel Distance (km)]]*Table13[[#This Row],[Cost  per unit (TD)]],0)","v":0},{"$f":"IF(Table13[[#This Row],[Test and Tag]]=\"Yes\",Table13[[#This Row],[Cost per Unit (TT)]],0)","v":0},{"$f":"SUM(Table13[[#This Row],[Parts Costs]],Table13[[#This Row],[Travel KM Total ]],Table13[[#This Row],[Labour Hours Total ]],Table13[[#This Row],[Service Cost (Test and Tag)]],Table13[[#This Row],[Travel Hours Total]])","v":0},{"$f":"IF(Table13[[#This Row],[Charge type]]<>\"\",Company_Name,\"\")","v":""},{"$f":"IF(Table13[[#This Row],[Charge type]]<>\"\",ENZ_Reference_Num,\"\")","v":""},{"$f":"IF(Table13[[#This Row],[Charge type]]<>\"\",Invoice_date,\"\")","v":""},{"$f":"IF(Table13[[#This Row],[Charge type]]<>\"\",Invoice_Number,\"\")","v":""},85,85,0.64,15,{"$f":"IF(Table13[[#This Row],[TOTAL JOB COST]]>1999.99,\"OVER $2k - contact Enable\",\"\")","v":""}]
[{"$f":"IF(Table1[[#This Row],[Job Ref]]=\"\",\"\",Table1[[#This Row],[Job Ref]])","v":""},{"$f":"IF(Table1[[#This Row],[Job Ref]]=\"\",\"\",VLOOKUP(Table1[[#This Row],[Charge type]],Table3[],2,FALSE))","v":""},{"$f":"IF(Table1[[#This Row],[Job Ref]]=\"\",\"\",Table1[[#This Row],[Clients First Name]])","v":""},{"$f":"IF(Table1[[#This Row],[Job Ref]]=\"\",\"\",Table1[[#This Row],[Clients Surname]])","v":""},{"$f":"IF(Table1[[#This Row],[Job Ref]]=\"\",\"\",Table1[[#This Row],[Clients Address Street No]])","v":""},{"$f":"IF(Table1[[#This Row],[Job Ref]]=\"\",\"\",Table1[[#This Row],[Clients Address Street ]])","v":""},{"$f":"IF(Table1[[#This Row],[Job Ref]]=\"\",\"\",Table1[[#This Row],[Clients Address Town/City]])","v":""},{"$f":"IF(Table1[[#This Row],[Job Ref]]=\"\",\"\",Table1[[#This Row],[Clients Phone Number]])","v":""},{"$f":"IF(Table1[[#This Row],[Job Ref]]=\"\",\"\",Table1[[#This Row],[Date repair/service requested]])","v":""},{"$f":"IF(Table1[[#This Row],[Job Ref]]=\"\",\"\",Table1[[#This Row],[Date  repair/service completed]])","v":""},{"$f":"IF(Table1[[#This Row],[Job Ref]]=\"\",\"\",Table1[[#This Row],[Asset Number]])","v":""},{"$f":"IF(Table1[[#This Row],[Job Ref]]=\"\",\"\",Table1[[#This Row],[Asset Description]])","v":""},{"$f":"IF(Table1[[#This Row],[Job Ref]]=\"\",\"\",Table1[[#This Row],[Manufacturers Serial No.]])","v":""},{"$f":"IF(Table1[[#This Row],[Job Ref]]=\"\",\"\",Table1[[#This Row],[Test and Tag]])","v":""},{"$f":"IF(Table1[[#This Row],[Job Ref]]=\"\",\"\",Table1[[#This Row],[Beyond Economic Repair (BER)]])","v":""},{"$f":"IF(Table1[[#This Row],[Job Ref]]=\"\",\"\",Table1[[#This Row],[BER Comment]])","v":""},{"$f":"IF(Table1[[#This Row],[Job Ref]]=\"\",\"\",Table1[[#This Row],[Repair Description]])","v":""},{"$f":"IF(Table1[[#This Row],[Job Ref]]=\"\",\"\",Table1[[#This Row],[Labour Hours]])","v":""},{"$f":"IF(Table1[[#This Row],[Job Ref]]=\"\",\"\",Table1[[#This Row],[Travel Hours]])","v":""},{"$f":"IF(Table1[[#This Row],[Job Ref]]=\"\",\"\",Table1[[#This Row],[Travel Distance (km)]])","v":""},{"$f":"IF(Table1[[#This Row],[Job Ref]]=\"\",\"\",Table1[[#This Row],[Parts Description]])","v":""},{"$f":"IF(Table1[[#This Row],[Job Ref]]=\"\",\"\",Table1[[#This Row],[Parts Costs]])","v":""},{"$f":"IFERROR(Table13[[#This Row],[Labour Hours]]*Table13[[#This Row],[Cost  per unit (LH)]],0)","v":0},{"$f":"IFERROR(Table13[[#This Row],[Travel Hours]]*Table13[[#This Row],[Cost  per unit (TH)]],0)","v":0},{"$f":"IFERROR(Table13[[#This Row],[Travel Distance (km)]]*Table13[[#This Row],[Cost  per unit (TD)]],0)","v":0},{"$f":"IF(Table13[[#This Row],[Test and Tag]]=\"Yes\",Table13[[#This Row],[Cost per Unit (TT)]],0)","v":0},{"$f":"SUM(Table13[[#This Row],[Parts Costs]],Table13[[#This Row],[Travel KM Total ]],Table13[[#This Row],[Labour Hours Total ]],Table13[[#This Row],[Service Cost (Test and Tag)]],Table13[[#This Row],[Travel Hours Total]])","v":0},{"$f":"IF(Table13[[#This Row],[Charge type]]<>\"\",Company_Name,\"\")","v":""},{"$f":"IF(Table13[[#This Row],[Charge type]]<>\"\",ENZ_Reference_Num,\"\")","v":""},{"$f":"IF(Table13[[#This Row],[Charge type]]<>\"\",Invoice_date,\"\")","v":""},{"$f":"IF(Table13[[#This Row],[Charge type]]<>\"\",Invoice_Number,\"\")","v":""},85,85,0.64,15,{"$f":"IF(Table13[[#This Row],[TOTAL JOB COST]]>1999.99,\"OVER $2k - contact Enable\",\"\")","v":""}]
[{"$f":"IF(Table1[[#This Row],[Job Ref]]=\"\",\"\",Table1[[#This Row],[Job Ref]])","v":""},{"$f":"IF(Table1[[#This Row],[Job Ref]]=\"\",\"\",VLOOKUP(Table1[[#This Row],[Charge type]],Table3[],2,FALSE))","v":""},{"$f":"IF(Table1[[#This Row],[Job Ref]]=\"\",\"\",Table1[[#This Row],[Clients First Name]])","v":""},{"$f":"IF(Table1[[#This Row],[Job Ref]]=\"\",\"\",Table1[[#This Row],[Clients Surname]])","v":""},{"$f":"IF(Table1[[#This Row],[Job Ref]]=\"\",\"\",Table1[[#This Row],[Clients Address Street No]])","v":""},{"$f":"IF(Table1[[#This Row],[Job Ref]]=\"\",\"\",Table1[[#This Row],[Clients Address Street ]])","v":""},{"$f":"IF(Table1[[#This Row],[Job Ref]]=\"\",\"\",Table1[[#This Row],[Clients Address Town/City]])","v":""},{"$f":"IF(Table1[[#This Row],[Job Ref]]=\"\",\"\",Table1[[#This Row],[Clients Phone Number]])","v":""},{"$f":"IF(Table1[[#This Row],[Job Ref]]=\"\",\"\",Table1[[#This Row],[Date repair/service requested]])","v":""},{"$f":"IF(Table1[[#This Row],[Job Ref]]=\"\",\"\",Table1[[#This Row],[Date  repair/service completed]])","v":""},{"$f":"IF(Table1[[#This Row],[Job Ref]]=\"\",\"\",Table1[[#This Row],[Asset Number]])","v":""},{"$f":"IF(Table1[[#This Row],[Job Ref]]=\"\",\"\",Table1[[#This Row],[Asset Description]])","v":""},{"$f":"IF(Table1[[#This Row],[Job Ref]]=\"\",\"\",Table1[[#This Row],[Manufacturers Serial No.]])","v":""},{"$f":"IF(Table1[[#This Row],[Job Ref]]=\"\",\"\",Table1[[#This Row],[Test and Tag]])","v":""},{"$f":"IF(Table1[[#This Row],[Job Ref]]=\"\",\"\",Table1[[#This Row],[Beyond Economic Repair (BER)]])","v":""},{"$f":"IF(Table1[[#This Row],[Job Ref]]=\"\",\"\",Table1[[#This Row],[BER Comment]])","v":""},{"$f":"IF(Table1[[#This Row],[Job Ref]]=\"\",\"\",Table1[[#This Row],[Repair Description]])","v":""},{"$f":"IF(Table1[[#This Row],[Job Ref]]=\"\",\"\",Table1[[#This Row],[Labour Hours]])","v":""},{"$f":"IF(Table1[[#This Row],[Job Ref]]=\"\",\"\",Table1[[#This Row],[Travel Hours]])","v":""},{"$f":"IF(Table1[[#This Row],[Job Ref]]=\"\",\"\",Table1[[#This Row],[Travel Distance (km)]])","v":""},{"$f":"IF(Table1[[#This Row],[Job Ref]]=\"\",\"\",Table1[[#This Row],[Parts Description]])","v":""},{"$f":"IF(Table1[[#This Row],[Job Ref]]=\"\",\"\",Table1[[#This Row],[Parts Costs]])","v":""},{"$f":"IFERROR(Table13[[#This Row],[Labour Hours]]*Table13[[#This Row],[Cost  per unit (LH)]],0)","v":0},{"$f":"IFERROR(Table13[[#This Row],[Travel Hours]]*Table13[[#This Row],[Cost  per unit (TH)]],0)","v":0},{"$f":"IFERROR(Table13[[#This Row],[Travel Distance (km)]]*Table13[[#This Row],[Cost  per unit (TD)]],0)","v":0},{"$f":"IF(Table13[[#This Row],[Test and Tag]]=\"Yes\",Table13[[#This Row],[Cost per Unit (TT)]],0)","v":0},{"$f":"SUM(Table13[[#This Row],[Parts Costs]],Table13[[#This Row],[Travel KM Total ]],Table13[[#This Row],[Labour Hours Total ]],Table13[[#This Row],[Service Cost (Test and Tag)]],Table13[[#This Row],[Travel Hours Total]])","v":0},{"$f":"IF(Table13[[#This Row],[Charge type]]<>\"\",Company_Name,\"\")","v":""},{"$f":"IF(Table13[[#This Row],[Charge type]]<>\"\",ENZ_Reference_Num,\"\")","v":""},{"$f":"IF(Table13[[#This Row],[Charge type]]<>\"\",Invoice_date,\"\")","v":""},{"$f":"IF(Table13[[#This Row],[Charge type]]<>\"\",Invoice_Number,\"\")","v":""},85,85,0.64,15,{"$f":"IF(Table13[[#This Row],[TOTAL JOB COST]]>1999.99,\"OVER $2k - contact Enable\",\"\")","v":""}]
[{"$f":"IF(Table1[[#This Row],[Job Ref]]=\"\",\"\",Table1[[#This Row],[Job Ref]])","v":""},{"$f":"IF(Table1[[#This Row],[Job Ref]]=\"\",\"\",VLOOKUP(Table1[[#This Row],[Charge type]],Table3[],2,FALSE))","v":""},{"$f":"IF(Table1[[#This Row],[Job Ref]]=\"\",\"\",Table1[[#This Row],[Clients First Name]])","v":""},{"$f":"IF(Table1[[#This Row],[Job Ref]]=\"\",\"\",Table1[[#This Row],[Clients Surname]])","v":""},{"$f":"IF(Table1[[#This Row],[Job Ref]]=\"\",\"\",Table1[[#This Row],[Clients Address Street No]])","v":""},{"$f":"IF(Table1[[#This Row],[Job Ref]]=\"\",\"\",Table1[[#This Row],[Clients Address Street ]])","v":""},{"$f":"IF(Table1[[#This Row],[Job Ref]]=\"\",\"\",Table1[[#This Row],[Clients Address Town/City]])","v":""},{"$f":"IF(Table1[[#This Row],[Job Ref]]=\"\",\"\",Table1[[#This Row],[Clients Phone Number]])","v":""},{"$f":"IF(Table1[[#This Row],[Job Ref]]=\"\",\"\",Table1[[#This Row],[Date repair/service requested]])","v":""},{"$f":"IF(Table1[[#This Row],[Job Ref]]=\"\",\"\",Table1[[#This Row],[Date  repair/service completed]])","v":""},{"$f":"IF(Table1[[#This Row],[Job Ref]]=\"\",\"\",Table1[[#This Row],[Asset Number]])","v":""},{"$f":"IF(Table1[[#This Row],[Job Ref]]=\"\",\"\",Table1[[#This Row],[Asset Description]])","v":""},{"$f":"IF(Table1[[#This Row],[Job Ref]]=\"\",\"\",Table1[[#This Row],[Manufacturers Serial No.]])","v":""},{"$f":"IF(Table1[[#This Row],[Job Ref]]=\"\",\"\",Table1[[#This Row],[Test and Tag]])","v":""},{"$f":"IF(Table1[[#This Row],[Job Ref]]=\"\",\"\",Table1[[#This Row],[Beyond Economic Repair (BER)]])","v":""},{"$f":"IF(Table1[[#This Row],[Job Ref]]=\"\",\"\",Table1[[#This Row],[BER Comment]])","v":""},{"$f":"IF(Table1[[#This Row],[Job Ref]]=\"\",\"\",Table1[[#This Row],[Repair Description]])","v":""},{"$f":"IF(Table1[[#This Row],[Job Ref]]=\"\",\"\",Table1[[#This Row],[Labour Hours]])","v":""},{"$f":"IF(Table1[[#This Row],[Job Ref]]=\"\",\"\",Table1[[#This Row],[Travel Hours]])","v":""},{"$f":"IF(Table1[[#This Row],[Job Ref]]=\"\",\"\",Table1[[#This Row],[Travel Distance (km)]])","v":""},{"$f":"IF(Table1[[#This Row],[Job Ref]]=\"\",\"\",Table1[[#This Row],[Parts Description]])","v":""},{"$f":"IF(Table1[[#This Row],[Job Ref]]=\"\",\"\",Table1[[#This Row],[Parts Costs]])","v":""},{"$f":"IFERROR(Table13[[#This Row],[Labour Hours]]*Table13[[#This Row],[Cost  per unit (LH)]],0)","v":0},{"$f":"IFERROR(Table13[[#This Row],[Travel Hours]]*Table13[[#This Row],[Cost  per unit (TH)]],0)","v":0},{"$f":"IFERROR(Table13[[#This Row],[Travel Distance (km)]]*Table13[[#This Row],[Cost  per unit (TD)]],0)","v":0},{"$f":"IF(Table13[[#This Row],[Test and Tag]]=\"Yes\",Table13[[#This Row],[Cost per Unit (TT)]],0)","v":0},{"$f":"SUM(Table13[[#This Row],[Parts Costs]],Table13[[#This Row],[Travel KM Total ]],Table13[[#This Row],[Labour Hours Total ]],Table13[[#This Row],[Service Cost (Test and Tag)]],Table13[[#This Row],[Travel Hours Total]])","v":0},{"$f":"IF(Table13[[#This Row],[Charge type]]<>\"\",Company_Name,\"\")","v":""},{"$f":"IF(Table13[[#This Row],[Charge type]]<>\"\",ENZ_Reference_Num,\"\")","v":""},{"$f":"IF(Table13[[#This Row],[Charge type]]<>\"\",Invoice_date,\"\")","v":""},{"$f":"IF(Table13[[#This Row],[Charge type]]<>\"\",Invoice_Number,\"\")","v":""},85,85,0.64,15,{"$f":"IF(Table13[[#This Row],[TOTAL JOB COST]]>1999.99,\"OVER $2k - contact Enable\",\"\")","v":""}]
[{"$f":"IF(Table1[[#This Row],[Job Ref]]=\"\",\"\",Table1[[#This Row],[Job Ref]])","v":""},{"$f":"IF(Table1[[#This Row],[Job Ref]]=\"\",\"\",VLOOKUP(Table1[[#This Row],[Charge type]],Table3[],2,FALSE))","v":""},{"$f":"IF(Table1[[#This Row],[Job Ref]]=\"\",\"\",Table1[[#This Row],[Clients First Name]])","v":""},{"$f":"IF(Table1[[#This Row],[Job Ref]]=\"\",\"\",Table1[[#This Row],[Clients Surname]])","v":""},{"$f":"IF(Table1[[#This Row],[Job Ref]]=\"\",\"\",Table1[[#This Row],[Clients Address Street No]])","v":""},{"$f":"IF(Table1[[#This Row],[Job Ref]]=\"\",\"\",Table1[[#This Row],[Clients Address Street ]])","v":""},{"$f":"IF(Table1[[#This Row],[Job Ref]]=\"\",\"\",Table1[[#This Row],[Clients Address Town/City]])","v":""},{"$f":"IF(Table1[[#This Row],[Job Ref]]=\"\",\"\",Table1[[#This Row],[Clients Phone Number]])","v":""},{"$f":"IF(Table1[[#This Row],[Job Ref]]=\"\",\"\",Table1[[#This Row],[Date repair/service requested]])","v":""},{"$f":"IF(Table1[[#This Row],[Job Ref]]=\"\",\"\",Table1[[#This Row],[Date  repair/service completed]])","v":""},{"$f":"IF(Table1[[#This Row],[Job Ref]]=\"\",\"\",Table1[[#This Row],[Asset Number]])","v":""},{"$f":"IF(Table1[[#This Row],[Job Ref]]=\"\",\"\",Table1[[#This Row],[Asset Description]])","v":""},{"$f":"IF(Table1[[#This Row],[Job Ref]]=\"\",\"\",Table1[[#This Row],[Manufacturers Serial No.]])","v":""},{"$f":"IF(Table1[[#This Row],[Job Ref]]=\"\",\"\",Table1[[#This Row],[Test and Tag]])","v":""},{"$f":"IF(Table1[[#This Row],[Job Ref]]=\"\",\"\",Table1[[#This Row],[Beyond Economic Repair (BER)]])","v":""},{"$f":"IF(Table1[[#This Row],[Job Ref]]=\"\",\"\",Table1[[#This Row],[BER Comment]])","v":""},{"$f":"IF(Table1[[#This Row],[Job Ref]]=\"\",\"\",Table1[[#This Row],[Repair Description]])","v":""},{"$f":"IF(Table1[[#This Row],[Job Ref]]=\"\",\"\",Table1[[#This Row],[Labour Hours]])","v":""},{"$f":"IF(Table1[[#This Row],[Job Ref]]=\"\",\"\",Table1[[#This Row],[Travel Hours]])","v":""},{"$f":"IF(Table1[[#This Row],[Job Ref]]=\"\",\"\",Table1[[#This Row],[Travel Distance (km)]])","v":""},{"$f":"IF(Table1[[#This Row],[Job Ref]]=\"\",\"\",Table1[[#This Row],[Parts Description]])","v":""},{"$f":"IF(Table1[[#This Row],[Job Ref]]=\"\",\"\",Table1[[#This Row],[Parts Costs]])","v":""},{"$f":"IFERROR(Table13[[#This Row],[Labour Hours]]*Table13[[#This Row],[Cost  per unit (LH)]],0)","v":0},{"$f":"IFERROR(Table13[[#This Row],[Travel Hours]]*Table13[[#This Row],[Cost  per unit (TH)]],0)","v":0},{"$f":"IFERROR(Table13[[#This Row],[Travel Distance (km)]]*Table13[[#This Row],[Cost  per unit (TD)]],0)","v":0},{"$f":"IF(Table13[[#This Row],[Test and Tag]]=\"Yes\",Table13[[#This Row],[Cost per Unit (TT)]],0)","v":0},{"$f":"SUM(Table13[[#This Row],[Parts Costs]],Table13[[#This Row],[Travel KM Total ]],Table13[[#This Row],[Labour Hours Total ]],Table13[[#This Row],[Service Cost (Test and Tag)]],Table13[[#This Row],[Travel Hours Total]])","v":0},{"$f":"IF(Table13[[#This Row],[Charge type]]<>\"\",Company_Name,\"\")","v":""},{"$f":"IF(Table13[[#This Row],[Charge type]]<>\"\",ENZ_Reference_Num,\"\")","v":""},{"$f":"IF(Table13[[#This Row],[Charge type]]<>\"\",Invoice_date,\"\")","v":""},{"$f":"IF(Table13[[#This Row],[Charge type]]<>\"\",Invoice_Number,\"\")","v":""},85,85,0.64,15,{"$f":"IF(Table13[[#This Row],[TOTAL JOB COST]]>1999.99,\"OVER $2k - contact Enable\",\"\")","v":""}]
[{"$f":"IF(Table1[[#This Row],[Job Ref]]=\"\",\"\",Table1[[#This Row],[Job Ref]])","v":""},{"$f":"IF(Table1[[#This Row],[Job Ref]]=\"\",\"\",VLOOKUP(Table1[[#This Row],[Charge type]],Table3[],2,FALSE))","v":""},{"$f":"IF(Table1[[#This Row],[Job Ref]]=\"\",\"\",Table1[[#This Row],[Clients First Name]])","v":""},{"$f":"IF(Table1[[#This Row],[Job Ref]]=\"\",\"\",Table1[[#This Row],[Clients Surname]])","v":""},{"$f":"IF(Table1[[#This Row],[Job Ref]]=\"\",\"\",Table1[[#This Row],[Clients Address Street No]])","v":""},{"$f":"IF(Table1[[#This Row],[Job Ref]]=\"\",\"\",Table1[[#This Row],[Clients Address Street ]])","v":""},{"$f":"IF(Table1[[#This Row],[Job Ref]]=\"\",\"\",Table1[[#This Row],[Clients Address Town/City]])","v":""},{"$f":"IF(Table1[[#This Row],[Job Ref]]=\"\",\"\",Table1[[#This Row],[Clients Phone Number]])","v":""},{"$f":"IF(Table1[[#This Row],[Job Ref]]=\"\",\"\",Table1[[#This Row],[Date repair/service requested]])","v":""},{"$f":"IF(Table1[[#This Row],[Job Ref]]=\"\",\"\",Table1[[#This Row],[Date  repair/service completed]])","v":""},{"$f":"IF(Table1[[#This Row],[Job Ref]]=\"\",\"\",Table1[[#This Row],[Asset Number]])","v":""},{"$f":"IF(Table1[[#This Row],[Job Ref]]=\"\",\"\",Table1[[#This Row],[Asset Description]])","v":""},{"$f":"IF(Table1[[#This Row],[Job Ref]]=\"\",\"\",Table1[[#This Row],[Manufacturers Serial No.]])","v":""},{"$f":"IF(Table1[[#This Row],[Job Ref]]=\"\",\"\",Table1[[#This Row],[Test and Tag]])","v":""},{"$f":"IF(Table1[[#This Row],[Job Ref]]=\"\",\"\",Table1[[#This Row],[Beyond Economic Repair (BER)]])","v":""},{"$f":"IF(Table1[[#This Row],[Job Ref]]=\"\",\"\",Table1[[#This Row],[BER Comment]])","v":""},{"$f":"IF(Table1[[#This Row],[Job Ref]]=\"\",\"\",Table1[[#This Row],[Repair Description]])","v":""},{"$f":"IF(Table1[[#This Row],[Job Ref]]=\"\",\"\",Table1[[#This Row],[Labour Hours]])","v":""},{"$f":"IF(Table1[[#This Row],[Job Ref]]=\"\",\"\",Table1[[#This Row],[Travel Hours]])","v":""},{"$f":"IF(Table1[[#This Row],[Job Ref]]=\"\",\"\",Table1[[#This Row],[Travel Distance (km)]])","v":""},{"$f":"IF(Table1[[#This Row],[Job Ref]]=\"\",\"\",Table1[[#This Row],[Parts Description]])","v":""},{"$f":"IF(Table1[[#This Row],[Job Ref]]=\"\",\"\",Table1[[#This Row],[Parts Costs]])","v":""},{"$f":"IFERROR(Table13[[#This Row],[Labour Hours]]*Table13[[#This Row],[Cost  per unit (LH)]],0)","v":0},{"$f":"IFERROR(Table13[[#This Row],[Travel Hours]]*Table13[[#This Row],[Cost  per unit (TH)]],0)","v":0},{"$f":"IFERROR(Table13[[#This Row],[Travel Distance (km)]]*Table13[[#This Row],[Cost  per unit (TD)]],0)","v":0},{"$f":"IF(Table13[[#This Row],[Test and Tag]]=\"Yes\",Table13[[#This Row],[Cost per Unit (TT)]],0)","v":0},{"$f":"SUM(Table13[[#This Row],[Parts Costs]],Table13[[#This Row],[Travel KM Total ]],Table13[[#This Row],[Labour Hours Total ]],Table13[[#This Row],[Service Cost (Test and Tag)]],Table13[[#This Row],[Travel Hours Total]])","v":0},{"$f":"IF(Table13[[#This Row],[Charge type]]<>\"\",Company_Name,\"\")","v":""},{"$f":"IF(Table13[[#This Row],[Charge type]]<>\"\",ENZ_Reference_Num,\"\")","v":""},{"$f":"IF(Table13[[#This Row],[Charge type]]<>\"\",Invoice_date,\"\")","v":""},{"$f":"IF(Table13[[#This Row],[Charge type]]<>\"\",Invoice_Number,\"\")","v":""},85,85,0.64,15,{"$f":"IF(Table13[[#This Row],[TOTAL JOB COST]]>1999.99,\"OVER $2k - contact Enable\",\"\")","v":""}]
[{"$f":"IF(Table1[[#This Row],[Job Ref]]=\"\",\"\",Table1[[#This Row],[Job Ref]])","v":""},{"$f":"IF(Table1[[#This Row],[Job Ref]]=\"\",\"\",VLOOKUP(Table1[[#This Row],[Charge type]],Table3[],2,FALSE))","v":""},{"$f":"IF(Table1[[#This Row],[Job Ref]]=\"\",\"\",Table1[[#This Row],[Clients First Name]])","v":""},{"$f":"IF(Table1[[#This Row],[Job Ref]]=\"\",\"\",Table1[[#This Row],[Clients Surname]])","v":""},{"$f":"IF(Table1[[#This Row],[Job Ref]]=\"\",\"\",Table1[[#This Row],[Clients Address Street No]])","v":""},{"$f":"IF(Table1[[#This Row],[Job Ref]]=\"\",\"\",Table1[[#This Row],[Clients Address Street ]])","v":""},{"$f":"IF(Table1[[#This Row],[Job Ref]]=\"\",\"\",Table1[[#This Row],[Clients Address Town/City]])","v":""},{"$f":"IF(Table1[[#This Row],[Job Ref]]=\"\",\"\",Table1[[#This Row],[Clients Phone Number]])","v":""},{"$f":"IF(Table1[[#This Row],[Job Ref]]=\"\",\"\",Table1[[#This Row],[Date repair/service requested]])","v":""},{"$f":"IF(Table1[[#This Row],[Job Ref]]=\"\",\"\",Table1[[#This Row],[Date  repair/service completed]])","v":""},{"$f":"IF(Table1[[#This Row],[Job Ref]]=\"\",\"\",Table1[[#This Row],[Asset Number]])","v":""},{"$f":"IF(Table1[[#This Row],[Job Ref]]=\"\",\"\",Table1[[#This Row],[Asset Description]])","v":""},{"$f":"IF(Table1[[#This Row],[Job Ref]]=\"\",\"\",Table1[[#This Row],[Manufacturers Serial No.]])","v":""},{"$f":"IF(Table1[[#This Row],[Job Ref]]=\"\",\"\",Table1[[#This Row],[Test and Tag]])","v":""},{"$f":"IF(Table1[[#This Row],[Job Ref]]=\"\",\"\",Table1[[#This Row],[Beyond Economic Repair (BER)]])","v":""},{"$f":"IF(Table1[[#This Row],[Job Ref]]=\"\",\"\",Table1[[#This Row],[BER Comment]])","v":""},{"$f":"IF(Table1[[#This Row],[Job Ref]]=\"\",\"\",Table1[[#This Row],[Repair Description]])","v":""},{"$f":"IF(Table1[[#This Row],[Job Ref]]=\"\",\"\",Table1[[#This Row],[Labour Hours]])","v":""},{"$f":"IF(Table1[[#This Row],[Job Ref]]=\"\",\"\",Table1[[#This Row],[Travel Hours]])","v":""},{"$f":"IF(Table1[[#This Row],[Job Ref]]=\"\",\"\",Table1[[#This Row],[Travel Distance (km)]])","v":""},{"$f":"IF(Table1[[#This Row],[Job Ref]]=\"\",\"\",Table1[[#This Row],[Parts Description]])","v":""},{"$f":"IF(Table1[[#This Row],[Job Ref]]=\"\",\"\",Table1[[#This Row],[Parts Costs]])","v":""},{"$f":"IFERROR(Table13[[#This Row],[Labour Hours]]*Table13[[#This Row],[Cost  per unit (LH)]],0)","v":0},{"$f":"IFERROR(Table13[[#This Row],[Travel Hours]]*Table13[[#This Row],[Cost  per unit (TH)]],0)","v":0},{"$f":"IFERROR(Table13[[#This Row],[Travel Distance (km)]]*Table13[[#This Row],[Cost  per unit (TD)]],0)","v":0},{"$f":"IF(Table13[[#This Row],[Test and Tag]]=\"Yes\",Table13[[#This Row],[Cost per Unit (TT)]],0)","v":0},{"$f":"SUM(Table13[[#This Row],[Parts Costs]],Table13[[#This Row],[Travel KM Total ]],Table13[[#This Row],[Labour Hours Total ]],Table13[[#This Row],[Service Cost (Test and Tag)]],Table13[[#This Row],[Travel Hours Total]])","v":0},{"$f":"IF(Table13[[#This Row],[Charge type]]<>\"\",Company_Name,\"\")","v":""},{"$f":"IF(Table13[[#This Row],[Charge type]]<>\"\",ENZ_Reference_Num,\"\")","v":""},{"$f":"IF(Table13[[#This Row],[Charge type]]<>\"\",Invoice_date,\"\")","v":""},{"$f":"IF(Table13[[#This Row],[Charge type]]<>\"\",Invoice_Number,\"\")","v":""},85,85,0.64,15,{"$f":"IF(Table13[[#This Row],[TOTAL JOB COST]]>1999.99,\"OVER $2k - contact Enable\",\"\")","v":""}]
[{"$f":"IF(Table1[[#This Row],[Job Ref]]=\"\",\"\",Table1[[#This Row],[Job Ref]])","v":""},{"$f":"IF(Table1[[#This Row],[Job Ref]]=\"\",\"\",VLOOKUP(Table1[[#This Row],[Charge type]],Table3[],2,FALSE))","v":""},{"$f":"IF(Table1[[#This Row],[Job Ref]]=\"\",\"\",Table1[[#This Row],[Clients First Name]])","v":""},{"$f":"IF(Table1[[#This Row],[Job Ref]]=\"\",\"\",Table1[[#This Row],[Clients Surname]])","v":""},{"$f":"IF(Table1[[#This Row],[Job Ref]]=\"\",\"\",Table1[[#This Row],[Clients Address Street No]])","v":""},{"$f":"IF(Table1[[#This Row],[Job Ref]]=\"\",\"\",Table1[[#This Row],[Clients Address Street ]])","v":""},{"$f":"IF(Table1[[#This Row],[Job Ref]]=\"\",\"\",Table1[[#This Row],[Clients Address Town/City]])","v":""},{"$f":"IF(Table1[[#This Row],[Job Ref]]=\"\",\"\",Table1[[#This Row],[Clients Phone Number]])","v":""},{"$f":"IF(Table1[[#This Row],[Job Ref]]=\"\",\"\",Table1[[#This Row],[Date repair/service requested]])","v":""},{"$f":"IF(Table1[[#This Row],[Job Ref]]=\"\",\"\",Table1[[#This Row],[Date  repair/service completed]])","v":""},{"$f":"IF(Table1[[#This Row],[Job Ref]]=\"\",\"\",Table1[[#This Row],[Asset Number]])","v":""},{"$f":"IF(Table1[[#This Row],[Job Ref]]=\"\",\"\",Table1[[#This Row],[Asset Description]])","v":""},{"$f":"IF(Table1[[#This Row],[Job Ref]]=\"\",\"\",Table1[[#This Row],[Manufacturers Serial No.]])","v":""},{"$f":"IF(Table1[[#This Row],[Job Ref]]=\"\",\"\",Table1[[#This Row],[Test and Tag]])","v":""},{"$f":"IF(Table1[[#This Row],[Job Ref]]=\"\",\"\",Table1[[#This Row],[Beyond Economic Repair (BER)]])","v":""},{"$f":"IF(Table1[[#This Row],[Job Ref]]=\"\",\"\",Table1[[#This Row],[BER Comment]])","v":""},{"$f":"IF(Table1[[#This Row],[Job Ref]]=\"\",\"\",Table1[[#This Row],[Repair Description]])","v":""},{"$f":"IF(Table1[[#This Row],[Job Ref]]=\"\",\"\",Table1[[#This Row],[Labour Hours]])","v":""},{"$f":"IF(Table1[[#This Row],[Job Ref]]=\"\",\"\",Table1[[#This Row],[Travel Hours]])","v":""},{"$f":"IF(Table1[[#This Row],[Job Ref]]=\"\",\"\",Table1[[#This Row],[Travel Distance (km)]])","v":""},{"$f":"IF(Table1[[#This Row],[Job Ref]]=\"\",\"\",Table1[[#This Row],[Parts Description]])","v":""},{"$f":"IF(Table1[[#This Row],[Job Ref]]=\"\",\"\",Table1[[#This Row],[Parts Costs]])","v":""},{"$f":"IFERROR(Table13[[#This Row],[Labour Hours]]*Table13[[#This Row],[Cost  per unit (LH)]],0)","v":0},{"$f":"IFERROR(Table13[[#This Row],[Travel Hours]]*Table13[[#This Row],[Cost  per unit (TH)]],0)","v":0},{"$f":"IFERROR(Table13[[#This Row],[Travel Distance (km)]]*Table13[[#This Row],[Cost  per unit (TD)]],0)","v":0},{"$f":"IF(Table13[[#This Row],[Test and Tag]]=\"Yes\",Table13[[#This Row],[Cost per Unit (TT)]],0)","v":0},{"$f":"SUM(Table13[[#This Row],[Parts Costs]],Table13[[#This Row],[Travel KM Total ]],Table13[[#This Row],[Labour Hours Total ]],Table13[[#This Row],[Service Cost (Test and Tag)]],Table13[[#This Row],[Travel Hours Total]])","v":0},{"$f":"IF(Table13[[#This Row],[Charge type]]<>\"\",Company_Name,\"\")","v":""},{"$f":"IF(Table13[[#This Row],[Charge type]]<>\"\",ENZ_Reference_Num,\"\")","v":""},{"$f":"IF(Table13[[#This Row],[Charge type]]<>\"\",Invoice_date,\"\")","v":""},{"$f":"IF(Table13[[#This Row],[Charge type]]<>\"\",Invoice_Number,\"\")","v":""},85,85,0.64,15,{"$f":"IF(Table13[[#This Row],[TOTAL JOB COST]]>1999.99,\"OVER $2k - contact Enable\",\"\")","v":""}]
[{"$f":"IF(Table1[[#This Row],[Job Ref]]=\"\",\"\",Table1[[#This Row],[Job Ref]])","v":""},{"$f":"IF(Table1[[#This Row],[Job Ref]]=\"\",\"\",VLOOKUP(Table1[[#This Row],[Charge type]],Table3[],2,FALSE))","v":""},{"$f":"IF(Table1[[#This Row],[Job Ref]]=\"\",\"\",Table1[[#This Row],[Clients First Name]])","v":""},{"$f":"IF(Table1[[#This Row],[Job Ref]]=\"\",\"\",Table1[[#This Row],[Clients Surname]])","v":""},{"$f":"IF(Table1[[#This Row],[Job Ref]]=\"\",\"\",Table1[[#This Row],[Clients Address Street No]])","v":""},{"$f":"IF(Table1[[#This Row],[Job Ref]]=\"\",\"\",Table1[[#This Row],[Clients Address Street ]])","v":""},{"$f":"IF(Table1[[#This Row],[Job Ref]]=\"\",\"\",Table1[[#This Row],[Clients Address Town/City]])","v":""},{"$f":"IF(Table1[[#This Row],[Job Ref]]=\"\",\"\",Table1[[#This Row],[Clients Phone Number]])","v":""},{"$f":"IF(Table1[[#This Row],[Job Ref]]=\"\",\"\",Table1[[#This Row],[Date repair/service requested]])","v":""},{"$f":"IF(Table1[[#This Row],[Job Ref]]=\"\",\"\",Table1[[#This Row],[Date  repair/service completed]])","v":""},{"$f":"IF(Table1[[#This Row],[Job Ref]]=\"\",\"\",Table1[[#This Row],[Asset Number]])","v":""},{"$f":"IF(Table1[[#This Row],[Job Ref]]=\"\",\"\",Table1[[#This Row],[Asset Description]])","v":""},{"$f":"IF(Table1[[#This Row],[Job Ref]]=\"\",\"\",Table1[[#This Row],[Manufacturers Serial No.]])","v":""},{"$f":"IF(Table1[[#This Row],[Job Ref]]=\"\",\"\",Table1[[#This Row],[Test and Tag]])","v":""},{"$f":"IF(Table1[[#This Row],[Job Ref]]=\"\",\"\",Table1[[#This Row],[Beyond Economic Repair (BER)]])","v":""},{"$f":"IF(Table1[[#This Row],[Job Ref]]=\"\",\"\",Table1[[#This Row],[BER Comment]])","v":""},{"$f":"IF(Table1[[#This Row],[Job Ref]]=\"\",\"\",Table1[[#This Row],[Repair Description]])","v":""},{"$f":"IF(Table1[[#This Row],[Job Ref]]=\"\",\"\",Table1[[#This Row],[Labour Hours]])","v":""},{"$f":"IF(Table1[[#This Row],[Job Ref]]=\"\",\"\",Table1[[#This Row],[Travel Hours]])","v":""},{"$f":"IF(Table1[[#This Row],[Job Ref]]=\"\",\"\",Table1[[#This Row],[Travel Distance (km)]])","v":""},{"$f":"IF(Table1[[#This Row],[Job Ref]]=\"\",\"\",Table1[[#This Row],[Parts Description]])","v":""},{"$f":"IF(Table1[[#This Row],[Job Ref]]=\"\",\"\",Table1[[#This Row],[Parts Costs]])","v":""},{"$f":"IFERROR(Table13[[#This Row],[Labour Hours]]*Table13[[#This Row],[Cost  per unit (LH)]],0)","v":0},{"$f":"IFERROR(Table13[[#This Row],[Travel Hours]]*Table13[[#This Row],[Cost  per unit (TH)]],0)","v":0},{"$f":"IFERROR(Table13[[#This Row],[Travel Distance (km)]]*Table13[[#This Row],[Cost  per unit (TD)]],0)","v":0},{"$f":"IF(Table13[[#This Row],[Test and Tag]]=\"Yes\",Table13[[#This Row],[Cost per Unit (TT)]],0)","v":0},{"$f":"SUM(Table13[[#This Row],[Parts Costs]],Table13[[#This Row],[Travel KM Total ]],Table13[[#This Row],[Labour Hours Total ]],Table13[[#This Row],[Service Cost (Test and Tag)]],Table13[[#This Row],[Travel Hours Total]])","v":0},{"$f":"IF(Table13[[#This Row],[Charge type]]<>\"\",Company_Name,\"\")","v":""},{"$f":"IF(Table13[[#This Row],[Charge type]]<>\"\",ENZ_Reference_Num,\"\")","v":""},{"$f":"IF(Table13[[#This Row],[Charge type]]<>\"\",Invoice_date,\"\")","v":""},{"$f":"IF(Table13[[#This Row],[Charge type]]<>\"\",Invoice_Number,\"\")","v":""},85,85,0.64,15,{"$f":"IF(Table13[[#This Row],[TOTAL JOB COST]]>1999.99,\"OVER $2k - contact Enable\",\"\")","v":""}]
[{"$f":"IF(Table1[[#This Row],[Job Ref]]=\"\",\"\",Table1[[#This Row],[Job Ref]])","v":""},{"$f":"IF(Table1[[#This Row],[Job Ref]]=\"\",\"\",VLOOKUP(Table1[[#This Row],[Charge type]],Table3[],2,FALSE))","v":""},{"$f":"IF(Table1[[#This Row],[Job Ref]]=\"\",\"\",Table1[[#This Row],[Clients First Name]])","v":""},{"$f":"IF(Table1[[#This Row],[Job Ref]]=\"\",\"\",Table1[[#This Row],[Clients Surname]])","v":""},{"$f":"IF(Table1[[#This Row],[Job Ref]]=\"\",\"\",Table1[[#This Row],[Clients Address Street No]])","v":""},{"$f":"IF(Table1[[#This Row],[Job Ref]]=\"\",\"\",Table1[[#This Row],[Clients Address Street ]])","v":""},{"$f":"IF(Table1[[#This Row],[Job Ref]]=\"\",\"\",Table1[[#This Row],[Clients Address Town/City]])","v":""},{"$f":"IF(Table1[[#This Row],[Job Ref]]=\"\",\"\",Table1[[#This Row],[Clients Phone Number]])","v":""},{"$f":"IF(Table1[[#This Row],[Job Ref]]=\"\",\"\",Table1[[#This Row],[Date repair/service requested]])","v":""},{"$f":"IF(Table1[[#This Row],[Job Ref]]=\"\",\"\",Table1[[#This Row],[Date  repair/service completed]])","v":""},{"$f":"IF(Table1[[#This Row],[Job Ref]]=\"\",\"\",Table1[[#This Row],[Asset Number]])","v":""},{"$f":"IF(Table1[[#This Row],[Job Ref]]=\"\",\"\",Table1[[#This Row],[Asset Description]])","v":""},{"$f":"IF(Table1[[#This Row],[Job Ref]]=\"\",\"\",Table1[[#This Row],[Manufacturers Serial No.]])","v":""},{"$f":"IF(Table1[[#This Row],[Job Ref]]=\"\",\"\",Table1[[#This Row],[Test and Tag]])","v":""},{"$f":"IF(Table1[[#This Row],[Job Ref]]=\"\",\"\",Table1[[#This Row],[Beyond Economic Repair (BER)]])","v":""},{"$f":"IF(Table1[[#This Row],[Job Ref]]=\"\",\"\",Table1[[#This Row],[BER Comment]])","v":""},{"$f":"IF(Table1[[#This Row],[Job Ref]]=\"\",\"\",Table1[[#This Row],[Repair Description]])","v":""},{"$f":"IF(Table1[[#This Row],[Job Ref]]=\"\",\"\",Table1[[#This Row],[Labour Hours]])","v":""},{"$f":"IF(Table1[[#This Row],[Job Ref]]=\"\",\"\",Table1[[#This Row],[Travel Hours]])","v":""},{"$f":"IF(Table1[[#This Row],[Job Ref]]=\"\",\"\",Table1[[#This Row],[Travel Distance (km)]])","v":""},{"$f":"IF(Table1[[#This Row],[Job Ref]]=\"\",\"\",Table1[[#This Row],[Parts Description]])","v":""},{"$f":"IF(Table1[[#This Row],[Job Ref]]=\"\",\"\",Table1[[#This Row],[Parts Costs]])","v":""},{"$f":"IFERROR(Table13[[#This Row],[Labour Hours]]*Table13[[#This Row],[Cost  per unit (LH)]],0)","v":0},{"$f":"IFERROR(Table13[[#This Row],[Travel Hours]]*Table13[[#This Row],[Cost  per unit (TH)]],0)","v":0},{"$f":"IFERROR(Table13[[#This Row],[Travel Distance (km)]]*Table13[[#This Row],[Cost  per unit (TD)]],0)","v":0},{"$f":"IF(Table13[[#This Row],[Test and Tag]]=\"Yes\",Table13[[#This Row],[Cost per Unit (TT)]],0)","v":0},{"$f":"SUM(Table13[[#This Row],[Parts Costs]],Table13[[#This Row],[Travel KM Total ]],Table13[[#This Row],[Labour Hours Total ]],Table13[[#This Row],[Service Cost (Test and Tag)]],Table13[[#This Row],[Travel Hours Total]])","v":0},{"$f":"IF(Table13[[#This Row],[Charge type]]<>\"\",Company_Name,\"\")","v":""},{"$f":"IF(Table13[[#This Row],[Charge type]]<>\"\",ENZ_Reference_Num,\"\")","v":""},{"$f":"IF(Table13[[#This Row],[Charge type]]<>\"\",Invoice_date,\"\")","v":""},{"$f":"IF(Table13[[#This Row],[Charge type]]<>\"\",Invoice_Number,\"\")","v":""},85,85,0.64,15,{"$f":"IF(Table13[[#This Row],[TOTAL JOB COST]]>1999.99,\"OVER $2k - contact Enable\",\"\")","v":""}]
[{"$f":"IF(Table1[[#This Row],[Job Ref]]=\"\",\"\",Table1[[#This Row],[Job Ref]])","v":""},{"$f":"IF(Table1[[#This Row],[Job Ref]]=\"\",\"\",VLOOKUP(Table1[[#This Row],[Charge type]],Table3[],2,FALSE))","v":""},{"$f":"IF(Table1[[#This Row],[Job Ref]]=\"\",\"\",Table1[[#This Row],[Clients First Name]])","v":""},{"$f":"IF(Table1[[#This Row],[Job Ref]]=\"\",\"\",Table1[[#This Row],[Clients Surname]])","v":""},{"$f":"IF(Table1[[#This Row],[Job Ref]]=\"\",\"\",Table1[[#This Row],[Clients Address Street No]])","v":""},{"$f":"IF(Table1[[#This Row],[Job Ref]]=\"\",\"\",Table1[[#This Row],[Clients Address Street ]])","v":""},{"$f":"IF(Table1[[#This Row],[Job Ref]]=\"\",\"\",Table1[[#This Row],[Clients Address Town/City]])","v":""},{"$f":"IF(Table1[[#This Row],[Job Ref]]=\"\",\"\",Table1[[#This Row],[Clients Phone Number]])","v":""},{"$f":"IF(Table1[[#This Row],[Job Ref]]=\"\",\"\",Table1[[#This Row],[Date repair/service requested]])","v":""},{"$f":"IF(Table1[[#This Row],[Job Ref]]=\"\",\"\",Table1[[#This Row],[Date  repair/service completed]])","v":""},{"$f":"IF(Table1[[#This Row],[Job Ref]]=\"\",\"\",Table1[[#This Row],[Asset Number]])","v":""},{"$f":"IF(Table1[[#This Row],[Job Ref]]=\"\",\"\",Table1[[#This Row],[Asset Description]])","v":""},{"$f":"IF(Table1[[#This Row],[Job Ref]]=\"\",\"\",Table1[[#This Row],[Manufacturers Serial No.]])","v":""},{"$f":"IF(Table1[[#This Row],[Job Ref]]=\"\",\"\",Table1[[#This Row],[Test and Tag]])","v":""},{"$f":"IF(Table1[[#This Row],[Job Ref]]=\"\",\"\",Table1[[#This Row],[Beyond Economic Repair (BER)]])","v":""},{"$f":"IF(Table1[[#This Row],[Job Ref]]=\"\",\"\",Table1[[#This Row],[BER Comment]])","v":""},{"$f":"IF(Table1[[#This Row],[Job Ref]]=\"\",\"\",Table1[[#This Row],[Repair Description]])","v":""},{"$f":"IF(Table1[[#This Row],[Job Ref]]=\"\",\"\",Table1[[#This Row],[Labour Hours]])","v":""},{"$f":"IF(Table1[[#This Row],[Job Ref]]=\"\",\"\",Table1[[#This Row],[Travel Hours]])","v":""},{"$f":"IF(Table1[[#This Row],[Job Ref]]=\"\",\"\",Table1[[#This Row],[Travel Distance (km)]])","v":""},{"$f":"IF(Table1[[#This Row],[Job Ref]]=\"\",\"\",Table1[[#This Row],[Parts Description]])","v":""},{"$f":"IF(Table1[[#This Row],[Job Ref]]=\"\",\"\",Table1[[#This Row],[Parts Costs]])","v":""},{"$f":"IFERROR(Table13[[#This Row],[Labour Hours]]*Table13[[#This Row],[Cost  per unit (LH)]],0)","v":0},{"$f":"IFERROR(Table13[[#This Row],[Travel Hours]]*Table13[[#This Row],[Cost  per unit (TH)]],0)","v":0},{"$f":"IFERROR(Table13[[#This Row],[Travel Distance (km)]]*Table13[[#This Row],[Cost  per unit (TD)]],0)","v":0},{"$f":"IF(Table13[[#This Row],[Test and Tag]]=\"Yes\",Table13[[#This Row],[Cost per Unit (TT)]],0)","v":0},{"$f":"SUM(Table13[[#This Row],[Parts Costs]],Table13[[#This Row],[Travel KM Total ]],Table13[[#This Row],[Labour Hours Total ]],Table13[[#This Row],[Service Cost (Test and Tag)]],Table13[[#This Row],[Travel Hours Total]])","v":0},{"$f":"IF(Table13[[#This Row],[Charge type]]<>\"\",Company_Name,\"\")","v":""},{"$f":"IF(Table13[[#This Row],[Charge type]]<>\"\",ENZ_Reference_Num,\"\")","v":""},{"$f":"IF(Table13[[#This Row],[Charge type]]<>\"\",Invoice_date,\"\")","v":""},{"$f":"IF(Table13[[#This Row],[Charge type]]<>\"\",Invoice_Number,\"\")","v":""},85,85,0.64,15,{"$f":"IF(Table13[[#This Row],[TOTAL JOB COST]]>1999.99,\"OVER $2k - contact Enable\",\"\")","v":""}]
[{"$f":"IF(Table1[[#This Row],[Job Ref]]=\"\",\"\",Table1[[#This Row],[Job Ref]])","v":""},{"$f":"IF(Table1[[#This Row],[Job Ref]]=\"\",\"\",VLOOKUP(Table1[[#This Row],[Charge type]],Table3[],2,FALSE))","v":""},{"$f":"IF(Table1[[#This Row],[Job Ref]]=\"\",\"\",Table1[[#This Row],[Clients First Name]])","v":""},{"$f":"IF(Table1[[#This Row],[Job Ref]]=\"\",\"\",Table1[[#This Row],[Clients Surname]])","v":""},{"$f":"IF(Table1[[#This Row],[Job Ref]]=\"\",\"\",Table1[[#This Row],[Clients Address Street No]])","v":""},{"$f":"IF(Table1[[#This Row],[Job Ref]]=\"\",\"\",Table1[[#This Row],[Clients Address Street ]])","v":""},{"$f":"IF(Table1[[#This Row],[Job Ref]]=\"\",\"\",Table1[[#This Row],[Clients Address Town/City]])","v":""},{"$f":"IF(Table1[[#This Row],[Job Ref]]=\"\",\"\",Table1[[#This Row],[Clients Phone Number]])","v":""},{"$f":"IF(Table1[[#This Row],[Job Ref]]=\"\",\"\",Table1[[#This Row],[Date repair/service requested]])","v":""},{"$f":"IF(Table1[[#This Row],[Job Ref]]=\"\",\"\",Table1[[#This Row],[Date  repair/service completed]])","v":""},{"$f":"IF(Table1[[#This Row],[Job Ref]]=\"\",\"\",Table1[[#This Row],[Asset Number]])","v":""},{"$f":"IF(Table1[[#This Row],[Job Ref]]=\"\",\"\",Table1[[#This Row],[Asset Description]])","v":""},{"$f":"IF(Table1[[#This Row],[Job Ref]]=\"\",\"\",Table1[[#This Row],[Manufacturers Serial No.]])","v":""},{"$f":"IF(Table1[[#This Row],[Job Ref]]=\"\",\"\",Table1[[#This Row],[Test and Tag]])","v":""},{"$f":"IF(Table1[[#This Row],[Job Ref]]=\"\",\"\",Table1[[#This Row],[Beyond Economic Repair (BER)]])","v":""},{"$f":"IF(Table1[[#This Row],[Job Ref]]=\"\",\"\",Table1[[#This Row],[BER Comment]])","v":""},{"$f":"IF(Table1[[#This Row],[Job Ref]]=\"\",\"\",Table1[[#This Row],[Repair Description]])","v":""},{"$f":"IF(Table1[[#This Row],[Job Ref]]=\"\",\"\",Table1[[#This Row],[Labour Hours]])","v":""},{"$f":"IF(Table1[[#This Row],[Job Ref]]=\"\",\"\",Table1[[#This Row],[Travel Hours]])","v":""},{"$f":"IF(Table1[[#This Row],[Job Ref]]=\"\",\"\",Table1[[#This Row],[Travel Distance (km)]])","v":""},{"$f":"IF(Table1[[#This Row],[Job Ref]]=\"\",\"\",Table1[[#This Row],[Parts Description]])","v":""},{"$f":"IF(Table1[[#This Row],[Job Ref]]=\"\",\"\",Table1[[#This Row],[Parts Costs]])","v":""},{"$f":"IFERROR(Table13[[#This Row],[Labour Hours]]*Table13[[#This Row],[Cost  per unit (LH)]],0)","v":0},{"$f":"IFERROR(Table13[[#This Row],[Travel Hours]]*Table13[[#This Row],[Cost  per unit (TH)]],0)","v":0},{"$f":"IFERROR(Table13[[#This Row],[Travel Distance (km)]]*Table13[[#This Row],[Cost  per unit (TD)]],0)","v":0},{"$f":"IF(Table13[[#This Row],[Test and Tag]]=\"Yes\",Table13[[#This Row],[Cost per Unit (TT)]],0)","v":0},{"$f":"SUM(Table13[[#This Row],[Parts Costs]],Table13[[#This Row],[Travel KM Total ]],Table13[[#This Row],[Labour Hours Total ]],Table13[[#This Row],[Service Cost (Test and Tag)]],Table13[[#This Row],[Travel Hours Total]])","v":0},{"$f":"IF(Table13[[#This Row],[Charge type]]<>\"\",Company_Name,\"\")","v":""},{"$f":"IF(Table13[[#This Row],[Charge type]]<>\"\",ENZ_Reference_Num,\"\")","v":""},{"$f":"IF(Table13[[#This Row],[Charge type]]<>\"\",Invoice_date,\"\")","v":""},{"$f":"IF(Table13[[#This Row],[Charge type]]<>\"\",Invoice_Number,\"\")","v":""},85,85,0.64,15,{"$f":"IF(Table13[[#This Row],[TOTAL JOB COST]]>1999.99,\"OVER $2k - contact Enable\",\"\")","v":""}]
[{"$f":"IF(Table1[[#This Row],[Job Ref]]=\"\",\"\",Table1[[#This Row],[Job Ref]])","v":""},{"$f":"IF(Table1[[#This Row],[Job Ref]]=\"\",\"\",VLOOKUP(Table1[[#This Row],[Charge type]],Table3[],2,FALSE))","v":""},{"$f":"IF(Table1[[#This Row],[Job Ref]]=\"\",\"\",Table1[[#This Row],[Clients First Name]])","v":""},{"$f":"IF(Table1[[#This Row],[Job Ref]]=\"\",\"\",Table1[[#This Row],[Clients Surname]])","v":""},{"$f":"IF(Table1[[#This Row],[Job Ref]]=\"\",\"\",Table1[[#This Row],[Clients Address Street No]])","v":""},{"$f":"IF(Table1[[#This Row],[Job Ref]]=\"\",\"\",Table1[[#This Row],[Clients Address Street ]])","v":""},{"$f":"IF(Table1[[#This Row],[Job Ref]]=\"\",\"\",Table1[[#This Row],[Clients Address Town/City]])","v":""},{"$f":"IF(Table1[[#This Row],[Job Ref]]=\"\",\"\",Table1[[#This Row],[Clients Phone Number]])","v":""},{"$f":"IF(Table1[[#This Row],[Job Ref]]=\"\",\"\",Table1[[#This Row],[Date repair/service requested]])","v":""},{"$f":"IF(Table1[[#This Row],[Job Ref]]=\"\",\"\",Table1[[#This Row],[Date  repair/service completed]])","v":""},{"$f":"IF(Table1[[#This Row],[Job Ref]]=\"\",\"\",Table1[[#This Row],[Asset Number]])","v":""},{"$f":"IF(Table1[[#This Row],[Job Ref]]=\"\",\"\",Table1[[#This Row],[Asset Description]])","v":""},{"$f":"IF(Table1[[#This Row],[Job Ref]]=\"\",\"\",Table1[[#This Row],[Manufacturers Serial No.]])","v":""},{"$f":"IF(Table1[[#This Row],[Job Ref]]=\"\",\"\",Table1[[#This Row],[Test and Tag]])","v":""},{"$f":"IF(Table1[[#This Row],[Job Ref]]=\"\",\"\",Table1[[#This Row],[Beyond Economic Repair (BER)]])","v":""},{"$f":"IF(Table1[[#This Row],[Job Ref]]=\"\",\"\",Table1[[#This Row],[BER Comment]])","v":""},{"$f":"IF(Table1[[#This Row],[Job Ref]]=\"\",\"\",Table1[[#This Row],[Repair Description]])","v":""},{"$f":"IF(Table1[[#This Row],[Job Ref]]=\"\",\"\",Table1[[#This Row],[Labour Hours]])","v":""},{"$f":"IF(Table1[[#This Row],[Job Ref]]=\"\",\"\",Table1[[#This Row],[Travel Hours]])","v":""},{"$f":"IF(Table1[[#This Row],[Job Ref]]=\"\",\"\",Table1[[#This Row],[Travel Distance (km)]])","v":""},{"$f":"IF(Table1[[#This Row],[Job Ref]]=\"\",\"\",Table1[[#This Row],[Parts Description]])","v":""},{"$f":"IF(Table1[[#This Row],[Job Ref]]=\"\",\"\",Table1[[#This Row],[Parts Costs]])","v":""},{"$f":"IFERROR(Table13[[#This Row],[Labour Hours]]*Table13[[#This Row],[Cost  per unit (LH)]],0)","v":0},{"$f":"IFERROR(Table13[[#This Row],[Travel Hours]]*Table13[[#This Row],[Cost  per unit (TH)]],0)","v":0},{"$f":"IFERROR(Table13[[#This Row],[Travel Distance (km)]]*Table13[[#This Row],[Cost  per unit (TD)]],0)","v":0},{"$f":"IF(Table13[[#This Row],[Test and Tag]]=\"Yes\",Table13[[#This Row],[Cost per Unit (TT)]],0)","v":0},{"$f":"SUM(Table13[[#This Row],[Parts Costs]],Table13[[#This Row],[Travel KM Total ]],Table13[[#This Row],[Labour Hours Total ]],Table13[[#This Row],[Service Cost (Test and Tag)]],Table13[[#This Row],[Travel Hours Total]])","v":0},{"$f":"IF(Table13[[#This Row],[Charge type]]<>\"\",Company_Name,\"\")","v":""},{"$f":"IF(Table13[[#This Row],[Charge type]]<>\"\",ENZ_Reference_Num,\"\")","v":""},{"$f":"IF(Table13[[#This Row],[Charge type]]<>\"\",Invoice_date,\"\")","v":""},{"$f":"IF(Table13[[#This Row],[Charge type]]<>\"\",Invoice_Number,\"\")","v":""},85,85,0.64,15,{"$f":"IF(Table13[[#This Row],[TOTAL JOB COST]]>1999.99,\"OVER $2k - contact Enable\",\"\")","v":""}]
[{"$f":"IF(Table1[[#This Row],[Job Ref]]=\"\",\"\",Table1[[#This Row],[Job Ref]])","v":""},{"$f":"IF(Table1[[#This Row],[Job Ref]]=\"\",\"\",VLOOKUP(Table1[[#This Row],[Charge type]],Table3[],2,FALSE))","v":""},{"$f":"IF(Table1[[#This Row],[Job Ref]]=\"\",\"\",Table1[[#This Row],[Clients First Name]])","v":""},{"$f":"IF(Table1[[#This Row],[Job Ref]]=\"\",\"\",Table1[[#This Row],[Clients Surname]])","v":""},{"$f":"IF(Table1[[#This Row],[Job Ref]]=\"\",\"\",Table1[[#This Row],[Clients Address Street No]])","v":""},{"$f":"IF(Table1[[#This Row],[Job Ref]]=\"\",\"\",Table1[[#This Row],[Clients Address Street ]])","v":""},{"$f":"IF(Table1[[#This Row],[Job Ref]]=\"\",\"\",Table1[[#This Row],[Clients Address Town/City]])","v":""},{"$f":"IF(Table1[[#This Row],[Job Ref]]=\"\",\"\",Table1[[#This Row],[Clients Phone Number]])","v":""},{"$f":"IF(Table1[[#This Row],[Job Ref]]=\"\",\"\",Table1[[#This Row],[Date repair/service requested]])","v":""},{"$f":"IF(Table1[[#This Row],[Job Ref]]=\"\",\"\",Table1[[#This Row],[Date  repair/service completed]])","v":""},{"$f":"IF(Table1[[#This Row],[Job Ref]]=\"\",\"\",Table1[[#This Row],[Asset Number]])","v":""},{"$f":"IF(Table1[[#This Row],[Job Ref]]=\"\",\"\",Table1[[#This Row],[Asset Description]])","v":""},{"$f":"IF(Table1[[#This Row],[Job Ref]]=\"\",\"\",Table1[[#This Row],[Manufacturers Serial No.]])","v":""},{"$f":"IF(Table1[[#This Row],[Job Ref]]=\"\",\"\",Table1[[#This Row],[Test and Tag]])","v":""},{"$f":"IF(Table1[[#This Row],[Job Ref]]=\"\",\"\",Table1[[#This Row],[Beyond Economic Repair (BER)]])","v":""},{"$f":"IF(Table1[[#This Row],[Job Ref]]=\"\",\"\",Table1[[#This Row],[BER Comment]])","v":""},{"$f":"IF(Table1[[#This Row],[Job Ref]]=\"\",\"\",Table1[[#This Row],[Repair Description]])","v":""},{"$f":"IF(Table1[[#This Row],[Job Ref]]=\"\",\"\",Table1[[#This Row],[Labour Hours]])","v":""},{"$f":"IF(Table1[[#This Row],[Job Ref]]=\"\",\"\",Table1[[#This Row],[Travel Hours]])","v":""},{"$f":"IF(Table1[[#This Row],[Job Ref]]=\"\",\"\",Table1[[#This Row],[Travel Distance (km)]])","v":""},{"$f":"IF(Table1[[#This Row],[Job Ref]]=\"\",\"\",Table1[[#This Row],[Parts Description]])","v":""},{"$f":"IF(Table1[[#This Row],[Job Ref]]=\"\",\"\",Table1[[#This Row],[Parts Costs]])","v":""},{"$f":"IFERROR(Table13[[#This Row],[Labour Hours]]*Table13[[#This Row],[Cost  per unit (LH)]],0)","v":0},{"$f":"IFERROR(Table13[[#This Row],[Travel Hours]]*Table13[[#This Row],[Cost  per unit (TH)]],0)","v":0},{"$f":"IFERROR(Table13[[#This Row],[Travel Distance (km)]]*Table13[[#This Row],[Cost  per unit (TD)]],0)","v":0},{"$f":"IF(Table13[[#This Row],[Test and Tag]]=\"Yes\",Table13[[#This Row],[Cost per Unit (TT)]],0)","v":0},{"$f":"SUM(Table13[[#This Row],[Parts Costs]],Table13[[#This Row],[Travel KM Total ]],Table13[[#This Row],[Labour Hours Total ]],Table13[[#This Row],[Service Cost (Test and Tag)]],Table13[[#This Row],[Travel Hours Total]])","v":0},{"$f":"IF(Table13[[#This Row],[Charge type]]<>\"\",Company_Name,\"\")","v":""},{"$f":"IF(Table13[[#This Row],[Charge type]]<>\"\",ENZ_Reference_Num,\"\")","v":""},{"$f":"IF(Table13[[#This Row],[Charge type]]<>\"\",Invoice_date,\"\")","v":""},{"$f":"IF(Table13[[#This Row],[Charge type]]<>\"\",Invoice_Number,\"\")","v":""},85,85,0.64,15,{"$f":"IF(Table13[[#This Row],[TOTAL JOB COST]]>1999.99,\"OVER $2k - contact Enable\",\"\")","v":""}]
[{"$f":"IF(Table1[[#This Row],[Job Ref]]=\"\",\"\",Table1[[#This Row],[Job Ref]])","v":""},{"$f":"IF(Table1[[#This Row],[Job Ref]]=\"\",\"\",VLOOKUP(Table1[[#This Row],[Charge type]],Table3[],2,FALSE))","v":""},{"$f":"IF(Table1[[#This Row],[Job Ref]]=\"\",\"\",Table1[[#This Row],[Clients First Name]])","v":""},{"$f":"IF(Table1[[#This Row],[Job Ref]]=\"\",\"\",Table1[[#This Row],[Clients Surname]])","v":""},{"$f":"IF(Table1[[#This Row],[Job Ref]]=\"\",\"\",Table1[[#This Row],[Clients Address Street No]])","v":""},{"$f":"IF(Table1[[#This Row],[Job Ref]]=\"\",\"\",Table1[[#This Row],[Clients Address Street ]])","v":""},{"$f":"IF(Table1[[#This Row],[Job Ref]]=\"\",\"\",Table1[[#This Row],[Clients Address Town/City]])","v":""},{"$f":"IF(Table1[[#This Row],[Job Ref]]=\"\",\"\",Table1[[#This Row],[Clients Phone Number]])","v":""},{"$f":"IF(Table1[[#This Row],[Job Ref]]=\"\",\"\",Table1[[#This Row],[Date repair/service requested]])","v":""},{"$f":"IF(Table1[[#This Row],[Job Ref]]=\"\",\"\",Table1[[#This Row],[Date  repair/service completed]])","v":""},{"$f":"IF(Table1[[#This Row],[Job Ref]]=\"\",\"\",Table1[[#This Row],[Asset Number]])","v":""},{"$f":"IF(Table1[[#This Row],[Job Ref]]=\"\",\"\",Table1[[#This Row],[Asset Description]])","v":""},{"$f":"IF(Table1[[#This Row],[Job Ref]]=\"\",\"\",Table1[[#This Row],[Manufacturers Serial No.]])","v":""},{"$f":"IF(Table1[[#This Row],[Job Ref]]=\"\",\"\",Table1[[#This Row],[Test and Tag]])","v":""},{"$f":"IF(Table1[[#This Row],[Job Ref]]=\"\",\"\",Table1[[#This Row],[Beyond Economic Repair (BER)]])","v":""},{"$f":"IF(Table1[[#This Row],[Job Ref]]=\"\",\"\",Table1[[#This Row],[BER Comment]])","v":""},{"$f":"IF(Table1[[#This Row],[Job Ref]]=\"\",\"\",Table1[[#This Row],[Repair Description]])","v":""},{"$f":"IF(Table1[[#This Row],[Job Ref]]=\"\",\"\",Table1[[#This Row],[Labour Hours]])","v":""},{"$f":"IF(Table1[[#This Row],[Job Ref]]=\"\",\"\",Table1[[#This Row],[Travel Hours]])","v":""},{"$f":"IF(Table1[[#This Row],[Job Ref]]=\"\",\"\",Table1[[#This Row],[Travel Distance (km)]])","v":""},{"$f":"IF(Table1[[#This Row],[Job Ref]]=\"\",\"\",Table1[[#This Row],[Parts Description]])","v":""},{"$f":"IF(Table1[[#This Row],[Job Ref]]=\"\",\"\",Table1[[#This Row],[Parts Costs]])","v":""},{"$f":"IFERROR(Table13[[#This Row],[Labour Hours]]*Table13[[#This Row],[Cost  per unit (LH)]],0)","v":0},{"$f":"IFERROR(Table13[[#This Row],[Travel Hours]]*Table13[[#This Row],[Cost  per unit (TH)]],0)","v":0},{"$f":"IFERROR(Table13[[#This Row],[Travel Distance (km)]]*Table13[[#This Row],[Cost  per unit (TD)]],0)","v":0},{"$f":"IF(Table13[[#This Row],[Test and Tag]]=\"Yes\",Table13[[#This Row],[Cost per Unit (TT)]],0)","v":0},{"$f":"SUM(Table13[[#This Row],[Parts Costs]],Table13[[#This Row],[Travel KM Total ]],Table13[[#This Row],[Labour Hours Total ]],Table13[[#This Row],[Service Cost (Test and Tag)]],Table13[[#This Row],[Travel Hours Total]])","v":0},{"$f":"IF(Table13[[#This Row],[Charge type]]<>\"\",Company_Name,\"\")","v":""},{"$f":"IF(Table13[[#This Row],[Charge type]]<>\"\",ENZ_Reference_Num,\"\")","v":""},{"$f":"IF(Table13[[#This Row],[Charge type]]<>\"\",Invoice_date,\"\")","v":""},{"$f":"IF(Table13[[#This Row],[Charge type]]<>\"\",Invoice_Number,\"\")","v":""},85,85,0.64,15,{"$f":"IF(Table13[[#This Row],[TOTAL JOB COST]]>1999.99,\"OVER $2k - contact Enable\",\"\")","v":""}]
[{"$f":"IF(Table1[[#This Row],[Job Ref]]=\"\",\"\",Table1[[#This Row],[Job Ref]])","v":""},{"$f":"IF(Table1[[#This Row],[Job Ref]]=\"\",\"\",VLOOKUP(Table1[[#This Row],[Charge type]],Table3[],2,FALSE))","v":""},{"$f":"IF(Table1[[#This Row],[Job Ref]]=\"\",\"\",Table1[[#This Row],[Clients First Name]])","v":""},{"$f":"IF(Table1[[#This Row],[Job Ref]]=\"\",\"\",Table1[[#This Row],[Clients Surname]])","v":""},{"$f":"IF(Table1[[#This Row],[Job Ref]]=\"\",\"\",Table1[[#This Row],[Clients Address Street No]])","v":""},{"$f":"IF(Table1[[#This Row],[Job Ref]]=\"\",\"\",Table1[[#This Row],[Clients Address Street ]])","v":""},{"$f":"IF(Table1[[#This Row],[Job Ref]]=\"\",\"\",Table1[[#This Row],[Clients Address Town/City]])","v":""},{"$f":"IF(Table1[[#This Row],[Job Ref]]=\"\",\"\",Table1[[#This Row],[Clients Phone Number]])","v":""},{"$f":"IF(Table1[[#This Row],[Job Ref]]=\"\",\"\",Table1[[#This Row],[Date repair/service requested]])","v":""},{"$f":"IF(Table1[[#This Row],[Job Ref]]=\"\",\"\",Table1[[#This Row],[Date  repair/service completed]])","v":""},{"$f":"IF(Table1[[#This Row],[Job Ref]]=\"\",\"\",Table1[[#This Row],[Asset Number]])","v":""},{"$f":"IF(Table1[[#This Row],[Job Ref]]=\"\",\"\",Table1[[#This Row],[Asset Description]])","v":""},{"$f":"IF(Table1[[#This Row],[Job Ref]]=\"\",\"\",Table1[[#This Row],[Manufacturers Serial No.]])","v":""},{"$f":"IF(Table1[[#This Row],[Job Ref]]=\"\",\"\",Table1[[#This Row],[Test and Tag]])","v":""},{"$f":"IF(Table1[[#This Row],[Job Ref]]=\"\",\"\",Table1[[#This Row],[Beyond Economic Repair (BER)]])","v":""},{"$f":"IF(Table1[[#This Row],[Job Ref]]=\"\",\"\",Table1[[#This Row],[BER Comment]])","v":""},{"$f":"IF(Table1[[#This Row],[Job Ref]]=\"\",\"\",Table1[[#This Row],[Repair Description]])","v":""},{"$f":"IF(Table1[[#This Row],[Job Ref]]=\"\",\"\",Table1[[#This Row],[Labour Hours]])","v":""},{"$f":"IF(Table1[[#This Row],[Job Ref]]=\"\",\"\",Table1[[#This Row],[Travel Hours]])","v":""},{"$f":"IF(Table1[[#This Row],[Job Ref]]=\"\",\"\",Table1[[#This Row],[Travel Distance (km)]])","v":""},{"$f":"IF(Table1[[#This Row],[Job Ref]]=\"\",\"\",Table1[[#This Row],[Parts Description]])","v":""},{"$f":"IF(Table1[[#This Row],[Job Ref]]=\"\",\"\",Table1[[#This Row],[Parts Costs]])","v":""},{"$f":"IFERROR(Table13[[#This Row],[Labour Hours]]*Table13[[#This Row],[Cost  per unit (LH)]],0)","v":0},{"$f":"IFERROR(Table13[[#This Row],[Travel Hours]]*Table13[[#This Row],[Cost  per unit (TH)]],0)","v":0},{"$f":"IFERROR(Table13[[#This Row],[Travel Distance (km)]]*Table13[[#This Row],[Cost  per unit (TD)]],0)","v":0},{"$f":"IF(Table13[[#This Row],[Test and Tag]]=\"Yes\",Table13[[#This Row],[Cost per Unit (TT)]],0)","v":0},{"$f":"SUM(Table13[[#This Row],[Parts Costs]],Table13[[#This Row],[Travel KM Total ]],Table13[[#This Row],[Labour Hours Total ]],Table13[[#This Row],[Service Cost (Test and Tag)]],Table13[[#This Row],[Travel Hours Total]])","v":0},{"$f":"IF(Table13[[#This Row],[Charge type]]<>\"\",Company_Name,\"\")","v":""},{"$f":"IF(Table13[[#This Row],[Charge type]]<>\"\",ENZ_Reference_Num,\"\")","v":""},{"$f":"IF(Table13[[#This Row],[Charge type]]<>\"\",Invoice_date,\"\")","v":""},{"$f":"IF(Table13[[#This Row],[Charge type]]<>\"\",Invoice_Number,\"\")","v":""},85,85,0.64,15,{"$f":"IF(Table13[[#This Row],[TOTAL JOB COST]]>1999.99,\"OVER $2k - contact Enable\",\"\")","v":""}]
[{"$f":"IF(Table1[[#This Row],[Job Ref]]=\"\",\"\",Table1[[#This Row],[Job Ref]])","v":""},{"$f":"IF(Table1[[#This Row],[Job Ref]]=\"\",\"\",VLOOKUP(Table1[[#This Row],[Charge type]],Table3[],2,FALSE))","v":""},{"$f":"IF(Table1[[#This Row],[Job Ref]]=\"\",\"\",Table1[[#This Row],[Clients First Name]])","v":""},{"$f":"IF(Table1[[#This Row],[Job Ref]]=\"\",\"\",Table1[[#This Row],[Clients Surname]])","v":""},{"$f":"IF(Table1[[#This Row],[Job Ref]]=\"\",\"\",Table1[[#This Row],[Clients Address Street No]])","v":""},{"$f":"IF(Table1[[#This Row],[Job Ref]]=\"\",\"\",Table1[[#This Row],[Clients Address Street ]])","v":""},{"$f":"IF(Table1[[#This Row],[Job Ref]]=\"\",\"\",Table1[[#This Row],[Clients Address Town/City]])","v":""},{"$f":"IF(Table1[[#This Row],[Job Ref]]=\"\",\"\",Table1[[#This Row],[Clients Phone Number]])","v":""},{"$f":"IF(Table1[[#This Row],[Job Ref]]=\"\",\"\",Table1[[#This Row],[Date repair/service requested]])","v":""},{"$f":"IF(Table1[[#This Row],[Job Ref]]=\"\",\"\",Table1[[#This Row],[Date  repair/service completed]])","v":""},{"$f":"IF(Table1[[#This Row],[Job Ref]]=\"\",\"\",Table1[[#This Row],[Asset Number]])","v":""},{"$f":"IF(Table1[[#This Row],[Job Ref]]=\"\",\"\",Table1[[#This Row],[Asset Description]])","v":""},{"$f":"IF(Table1[[#This Row],[Job Ref]]=\"\",\"\",Table1[[#This Row],[Manufacturers Serial No.]])","v":""},{"$f":"IF(Table1[[#This Row],[Job Ref]]=\"\",\"\",Table1[[#This Row],[Test and Tag]])","v":""},{"$f":"IF(Table1[[#This Row],[Job Ref]]=\"\",\"\",Table1[[#This Row],[Beyond Economic Repair (BER)]])","v":""},{"$f":"IF(Table1[[#This Row],[Job Ref]]=\"\",\"\",Table1[[#This Row],[BER Comment]])","v":""},{"$f":"IF(Table1[[#This Row],[Job Ref]]=\"\",\"\",Table1[[#This Row],[Repair Description]])","v":""},{"$f":"IF(Table1[[#This Row],[Job Ref]]=\"\",\"\",Table1[[#This Row],[Labour Hours]])","v":""},{"$f":"IF(Table1[[#This Row],[Job Ref]]=\"\",\"\",Table1[[#This Row],[Travel Hours]])","v":""},{"$f":"IF(Table1[[#This Row],[Job Ref]]=\"\",\"\",Table1[[#This Row],[Travel Distance (km)]])","v":""},{"$f":"IF(Table1[[#This Row],[Job Ref]]=\"\",\"\",Table1[[#This Row],[Parts Description]])","v":""},{"$f":"IF(Table1[[#This Row],[Job Ref]]=\"\",\"\",Table1[[#This Row],[Parts Costs]])","v":""},{"$f":"IFERROR(Table13[[#This Row],[Labour Hours]]*Table13[[#This Row],[Cost  per unit (LH)]],0)","v":0},{"$f":"IFERROR(Table13[[#This Row],[Travel Hours]]*Table13[[#This Row],[Cost  per unit (TH)]],0)","v":0},{"$f":"IFERROR(Table13[[#This Row],[Travel Distance (km)]]*Table13[[#This Row],[Cost  per unit (TD)]],0)","v":0},{"$f":"IF(Table13[[#This Row],[Test and Tag]]=\"Yes\",Table13[[#This Row],[Cost per Unit (TT)]],0)","v":0},{"$f":"SUM(Table13[[#This Row],[Parts Costs]],Table13[[#This Row],[Travel KM Total ]],Table13[[#This Row],[Labour Hours Total ]],Table13[[#This Row],[Service Cost (Test and Tag)]],Table13[[#This Row],[Travel Hours Total]])","v":0},{"$f":"IF(Table13[[#This Row],[Charge type]]<>\"\",Company_Name,\"\")","v":""},{"$f":"IF(Table13[[#This Row],[Charge type]]<>\"\",ENZ_Reference_Num,\"\")","v":""},{"$f":"IF(Table13[[#This Row],[Charge type]]<>\"\",Invoice_date,\"\")","v":""},{"$f":"IF(Table13[[#This Row],[Charge type]]<>\"\",Invoice_Number,\"\")","v":""},85,85,0.64,15,{"$f":"IF(Table13[[#This Row],[TOTAL JOB COST]]>1999.99,\"OVER $2k - contact Enable\",\"\")","v":""}]
[{"$f":"IF(Table1[[#This Row],[Job Ref]]=\"\",\"\",Table1[[#This Row],[Job Ref]])","v":""},{"$f":"IF(Table1[[#This Row],[Job Ref]]=\"\",\"\",VLOOKUP(Table1[[#This Row],[Charge type]],Table3[],2,FALSE))","v":""},{"$f":"IF(Table1[[#This Row],[Job Ref]]=\"\",\"\",Table1[[#This Row],[Clients First Name]])","v":""},{"$f":"IF(Table1[[#This Row],[Job Ref]]=\"\",\"\",Table1[[#This Row],[Clients Surname]])","v":""},{"$f":"IF(Table1[[#This Row],[Job Ref]]=\"\",\"\",Table1[[#This Row],[Clients Address Street No]])","v":""},{"$f":"IF(Table1[[#This Row],[Job Ref]]=\"\",\"\",Table1[[#This Row],[Clients Address Street ]])","v":""},{"$f":"IF(Table1[[#This Row],[Job Ref]]=\"\",\"\",Table1[[#This Row],[Clients Address Town/City]])","v":""},{"$f":"IF(Table1[[#This Row],[Job Ref]]=\"\",\"\",Table1[[#This Row],[Clients Phone Number]])","v":""},{"$f":"IF(Table1[[#This Row],[Job Ref]]=\"\",\"\",Table1[[#This Row],[Date repair/service requested]])","v":""},{"$f":"IF(Table1[[#This Row],[Job Ref]]=\"\",\"\",Table1[[#This Row],[Date  repair/service completed]])","v":""},{"$f":"IF(Table1[[#This Row],[Job Ref]]=\"\",\"\",Table1[[#This Row],[Asset Number]])","v":""},{"$f":"IF(Table1[[#This Row],[Job Ref]]=\"\",\"\",Table1[[#This Row],[Asset Description]])","v":""},{"$f":"IF(Table1[[#This Row],[Job Ref]]=\"\",\"\",Table1[[#This Row],[Manufacturers Serial No.]])","v":""},{"$f":"IF(Table1[[#This Row],[Job Ref]]=\"\",\"\",Table1[[#This Row],[Test and Tag]])","v":""},{"$f":"IF(Table1[[#This Row],[Job Ref]]=\"\",\"\",Table1[[#This Row],[Beyond Economic Repair (BER)]])","v":""},{"$f":"IF(Table1[[#This Row],[Job Ref]]=\"\",\"\",Table1[[#This Row],[BER Comment]])","v":""},{"$f":"IF(Table1[[#This Row],[Job Ref]]=\"\",\"\",Table1[[#This Row],[Repair Description]])","v":""},{"$f":"IF(Table1[[#This Row],[Job Ref]]=\"\",\"\",Table1[[#This Row],[Labour Hours]])","v":""},{"$f":"IF(Table1[[#This Row],[Job Ref]]=\"\",\"\",Table1[[#This Row],[Travel Hours]])","v":""},{"$f":"IF(Table1[[#This Row],[Job Ref]]=\"\",\"\",Table1[[#This Row],[Travel Distance (km)]])","v":""},{"$f":"IF(Table1[[#This Row],[Job Ref]]=\"\",\"\",Table1[[#This Row],[Parts Description]])","v":""},{"$f":"IF(Table1[[#This Row],[Job Ref]]=\"\",\"\",Table1[[#This Row],[Parts Costs]])","v":""},{"$f":"IFERROR(Table13[[#This Row],[Labour Hours]]*Table13[[#This Row],[Cost  per unit (LH)]],0)","v":0},{"$f":"IFERROR(Table13[[#This Row],[Travel Hours]]*Table13[[#This Row],[Cost  per unit (TH)]],0)","v":0},{"$f":"IFERROR(Table13[[#This Row],[Travel Distance (km)]]*Table13[[#This Row],[Cost  per unit (TD)]],0)","v":0},{"$f":"IF(Table13[[#This Row],[Test and Tag]]=\"Yes\",Table13[[#This Row],[Cost per Unit (TT)]],0)","v":0},{"$f":"SUM(Table13[[#This Row],[Parts Costs]],Table13[[#This Row],[Travel KM Total ]],Table13[[#This Row],[Labour Hours Total ]],Table13[[#This Row],[Service Cost (Test and Tag)]],Table13[[#This Row],[Travel Hours Total]])","v":0},{"$f":"IF(Table13[[#This Row],[Charge type]]<>\"\",Company_Name,\"\")","v":""},{"$f":"IF(Table13[[#This Row],[Charge type]]<>\"\",ENZ_Reference_Num,\"\")","v":""},{"$f":"IF(Table13[[#This Row],[Charge type]]<>\"\",Invoice_date,\"\")","v":""},{"$f":"IF(Table13[[#This Row],[Charge type]]<>\"\",Invoice_Number,\"\")","v":""},85,85,0.64,15,{"$f":"IF(Table13[[#This Row],[TOTAL JOB COST]]>1999.99,\"OVER $2k - contact Enable\",\"\")","v":""}]
[{"$f":"IF(Table1[[#This Row],[Job Ref]]=\"\",\"\",Table1[[#This Row],[Job Ref]])","v":""},{"$f":"IF(Table1[[#This Row],[Job Ref]]=\"\",\"\",VLOOKUP(Table1[[#This Row],[Charge type]],Table3[],2,FALSE))","v":""},{"$f":"IF(Table1[[#This Row],[Job Ref]]=\"\",\"\",Table1[[#This Row],[Clients First Name]])","v":""},{"$f":"IF(Table1[[#This Row],[Job Ref]]=\"\",\"\",Table1[[#This Row],[Clients Surname]])","v":""},{"$f":"IF(Table1[[#This Row],[Job Ref]]=\"\",\"\",Table1[[#This Row],[Clients Address Street No]])","v":""},{"$f":"IF(Table1[[#This Row],[Job Ref]]=\"\",\"\",Table1[[#This Row],[Clients Address Street ]])","v":""},{"$f":"IF(Table1[[#This Row],[Job Ref]]=\"\",\"\",Table1[[#This Row],[Clients Address Town/City]])","v":""},{"$f":"IF(Table1[[#This Row],[Job Ref]]=\"\",\"\",Table1[[#This Row],[Clients Phone Number]])","v":""},{"$f":"IF(Table1[[#This Row],[Job Ref]]=\"\",\"\",Table1[[#This Row],[Date repair/service requested]])","v":""},{"$f":"IF(Table1[[#This Row],[Job Ref]]=\"\",\"\",Table1[[#This Row],[Date  repair/service completed]])","v":""},{"$f":"IF(Table1[[#This Row],[Job Ref]]=\"\",\"\",Table1[[#This Row],[Asset Number]])","v":""},{"$f":"IF(Table1[[#This Row],[Job Ref]]=\"\",\"\",Table1[[#This Row],[Asset Description]])","v":""},{"$f":"IF(Table1[[#This Row],[Job Ref]]=\"\",\"\",Table1[[#This Row],[Manufacturers Serial No.]])","v":""},{"$f":"IF(Table1[[#This Row],[Job Ref]]=\"\",\"\",Table1[[#This Row],[Test and Tag]])","v":""},{"$f":"IF(Table1[[#This Row],[Job Ref]]=\"\",\"\",Table1[[#This Row],[Beyond Economic Repair (BER)]])","v":""},{"$f":"IF(Table1[[#This Row],[Job Ref]]=\"\",\"\",Table1[[#This Row],[BER Comment]])","v":""},{"$f":"IF(Table1[[#This Row],[Job Ref]]=\"\",\"\",Table1[[#This Row],[Repair Description]])","v":""},{"$f":"IF(Table1[[#This Row],[Job Ref]]=\"\",\"\",Table1[[#This Row],[Labour Hours]])","v":""},{"$f":"IF(Table1[[#This Row],[Job Ref]]=\"\",\"\",Table1[[#This Row],[Travel Hours]])","v":""},{"$f":"IF(Table1[[#This Row],[Job Ref]]=\"\",\"\",Table1[[#This Row],[Travel Distance (km)]])","v":""},{"$f":"IF(Table1[[#This Row],[Job Ref]]=\"\",\"\",Table1[[#This Row],[Parts Description]])","v":""},{"$f":"IF(Table1[[#This Row],[Job Ref]]=\"\",\"\",Table1[[#This Row],[Parts Costs]])","v":""},{"$f":"IFERROR(Table13[[#This Row],[Labour Hours]]*Table13[[#This Row],[Cost  per unit (LH)]],0)","v":0},{"$f":"IFERROR(Table13[[#This Row],[Travel Hours]]*Table13[[#This Row],[Cost  per unit (TH)]],0)","v":0},{"$f":"IFERROR(Table13[[#This Row],[Travel Distance (km)]]*Table13[[#This Row],[Cost  per unit (TD)]],0)","v":0},{"$f":"IF(Table13[[#This Row],[Test and Tag]]=\"Yes\",Table13[[#This Row],[Cost per Unit (TT)]],0)","v":0},{"$f":"SUM(Table13[[#This Row],[Parts Costs]],Table13[[#This Row],[Travel KM Total ]],Table13[[#This Row],[Labour Hours Total ]],Table13[[#This Row],[Service Cost (Test and Tag)]],Table13[[#This Row],[Travel Hours Total]])","v":0},{"$f":"IF(Table13[[#This Row],[Charge type]]<>\"\",Company_Name,\"\")","v":""},{"$f":"IF(Table13[[#This Row],[Charge type]]<>\"\",ENZ_Reference_Num,\"\")","v":""},{"$f":"IF(Table13[[#This Row],[Charge type]]<>\"\",Invoice_date,\"\")","v":""},{"$f":"IF(Table13[[#This Row],[Charge type]]<>\"\",Invoice_Number,\"\")","v":""},85,85,0.64,15,{"$f":"IF(Table13[[#This Row],[TOTAL JOB COST]]>1999.99,\"OVER $2k - contact Enable\",\"\")","v":""}]
[{"$f":"IF(Table1[[#This Row],[Job Ref]]=\"\",\"\",Table1[[#This Row],[Job Ref]])","v":""},{"$f":"IF(Table1[[#This Row],[Job Ref]]=\"\",\"\",VLOOKUP(Table1[[#This Row],[Charge type]],Table3[],2,FALSE))","v":""},{"$f":"IF(Table1[[#This Row],[Job Ref]]=\"\",\"\",Table1[[#This Row],[Clients First Name]])","v":""},{"$f":"IF(Table1[[#This Row],[Job Ref]]=\"\",\"\",Table1[[#This Row],[Clients Surname]])","v":""},{"$f":"IF(Table1[[#This Row],[Job Ref]]=\"\",\"\",Table1[[#This Row],[Clients Address Street No]])","v":""},{"$f":"IF(Table1[[#This Row],[Job Ref]]=\"\",\"\",Table1[[#This Row],[Clients Address Street ]])","v":""},{"$f":"IF(Table1[[#This Row],[Job Ref]]=\"\",\"\",Table1[[#This Row],[Clients Address Town/City]])","v":""},{"$f":"IF(Table1[[#This Row],[Job Ref]]=\"\",\"\",Table1[[#This Row],[Clients Phone Number]])","v":""},{"$f":"IF(Table1[[#This Row],[Job Ref]]=\"\",\"\",Table1[[#This Row],[Date repair/service requested]])","v":""},{"$f":"IF(Table1[[#This Row],[Job Ref]]=\"\",\"\",Table1[[#This Row],[Date  repair/service completed]])","v":""},{"$f":"IF(Table1[[#This Row],[Job Ref]]=\"\",\"\",Table1[[#This Row],[Asset Number]])","v":""},{"$f":"IF(Table1[[#This Row],[Job Ref]]=\"\",\"\",Table1[[#This Row],[Asset Description]])","v":""},{"$f":"IF(Table1[[#This Row],[Job Ref]]=\"\",\"\",Table1[[#This Row],[Manufacturers Serial No.]])","v":""},{"$f":"IF(Table1[[#This Row],[Job Ref]]=\"\",\"\",Table1[[#This Row],[Test and Tag]])","v":""},{"$f":"IF(Table1[[#This Row],[Job Ref]]=\"\",\"\",Table1[[#This Row],[Beyond Economic Repair (BER)]])","v":""},{"$f":"IF(Table1[[#This Row],[Job Ref]]=\"\",\"\",Table1[[#This Row],[BER Comment]])","v":""},{"$f":"IF(Table1[[#This Row],[Job Ref]]=\"\",\"\",Table1[[#This Row],[Repair Description]])","v":""},{"$f":"IF(Table1[[#This Row],[Job Ref]]=\"\",\"\",Table1[[#This Row],[Labour Hours]])","v":""},{"$f":"IF(Table1[[#This Row],[Job Ref]]=\"\",\"\",Table1[[#This Row],[Travel Hours]])","v":""},{"$f":"IF(Table1[[#This Row],[Job Ref]]=\"\",\"\",Table1[[#This Row],[Travel Distance (km)]])","v":""},{"$f":"IF(Table1[[#This Row],[Job Ref]]=\"\",\"\",Table1[[#This Row],[Parts Description]])","v":""},{"$f":"IF(Table1[[#This Row],[Job Ref]]=\"\",\"\",Table1[[#This Row],[Parts Costs]])","v":""},{"$f":"IFERROR(Table13[[#This Row],[Labour Hours]]*Table13[[#This Row],[Cost  per unit (LH)]],0)","v":0},{"$f":"IFERROR(Table13[[#This Row],[Travel Hours]]*Table13[[#This Row],[Cost  per unit (TH)]],0)","v":0},{"$f":"IFERROR(Table13[[#This Row],[Travel Distance (km)]]*Table13[[#This Row],[Cost  per unit (TD)]],0)","v":0},{"$f":"IF(Table13[[#This Row],[Test and Tag]]=\"Yes\",Table13[[#This Row],[Cost per Unit (TT)]],0)","v":0},{"$f":"SUM(Table13[[#This Row],[Parts Costs]],Table13[[#This Row],[Travel KM Total ]],Table13[[#This Row],[Labour Hours Total ]],Table13[[#This Row],[Service Cost (Test and Tag)]],Table13[[#This Row],[Travel Hours Total]])","v":0},{"$f":"IF(Table13[[#This Row],[Charge type]]<>\"\",Company_Name,\"\")","v":""},{"$f":"IF(Table13[[#This Row],[Charge type]]<>\"\",ENZ_Reference_Num,\"\")","v":""},{"$f":"IF(Table13[[#This Row],[Charge type]]<>\"\",Invoice_date,\"\")","v":""},{"$f":"IF(Table13[[#This Row],[Charge type]]<>\"\",Invoice_Number,\"\")","v":""},85,85,0.64,15,{"$f":"IF(Table13[[#This Row],[TOTAL JOB COST]]>1999.99,\"OVER $2k - contact Enable\",\"\")","v":""}]
[{"$f":"IF(Table1[[#This Row],[Job Ref]]=\"\",\"\",Table1[[#This Row],[Job Ref]])","v":""},{"$f":"IF(Table1[[#This Row],[Job Ref]]=\"\",\"\",VLOOKUP(Table1[[#This Row],[Charge type]],Table3[],2,FALSE))","v":""},{"$f":"IF(Table1[[#This Row],[Job Ref]]=\"\",\"\",Table1[[#This Row],[Clients First Name]])","v":""},{"$f":"IF(Table1[[#This Row],[Job Ref]]=\"\",\"\",Table1[[#This Row],[Clients Surname]])","v":""},{"$f":"IF(Table1[[#This Row],[Job Ref]]=\"\",\"\",Table1[[#This Row],[Clients Address Street No]])","v":""},{"$f":"IF(Table1[[#This Row],[Job Ref]]=\"\",\"\",Table1[[#This Row],[Clients Address Street ]])","v":""},{"$f":"IF(Table1[[#This Row],[Job Ref]]=\"\",\"\",Table1[[#This Row],[Clients Address Town/City]])","v":""},{"$f":"IF(Table1[[#This Row],[Job Ref]]=\"\",\"\",Table1[[#This Row],[Clients Phone Number]])","v":""},{"$f":"IF(Table1[[#This Row],[Job Ref]]=\"\",\"\",Table1[[#This Row],[Date repair/service requested]])","v":""},{"$f":"IF(Table1[[#This Row],[Job Ref]]=\"\",\"\",Table1[[#This Row],[Date  repair/service completed]])","v":""},{"$f":"IF(Table1[[#This Row],[Job Ref]]=\"\",\"\",Table1[[#This Row],[Asset Number]])","v":""},{"$f":"IF(Table1[[#This Row],[Job Ref]]=\"\",\"\",Table1[[#This Row],[Asset Description]])","v":""},{"$f":"IF(Table1[[#This Row],[Job Ref]]=\"\",\"\",Table1[[#This Row],[Manufacturers Serial No.]])","v":""},{"$f":"IF(Table1[[#This Row],[Job Ref]]=\"\",\"\",Table1[[#This Row],[Test and Tag]])","v":""},{"$f":"IF(Table1[[#This Row],[Job Ref]]=\"\",\"\",Table1[[#This Row],[Beyond Economic Repair (BER)]])","v":""},{"$f":"IF(Table1[[#This Row],[Job Ref]]=\"\",\"\",Table1[[#This Row],[BER Comment]])","v":""},{"$f":"IF(Table1[[#This Row],[Job Ref]]=\"\",\"\",Table1[[#This Row],[Repair Description]])","v":""},{"$f":"IF(Table1[[#This Row],[Job Ref]]=\"\",\"\",Table1[[#This Row],[Labour Hours]])","v":""},{"$f":"IF(Table1[[#This Row],[Job Ref]]=\"\",\"\",Table1[[#This Row],[Travel Hours]])","v":""},{"$f":"IF(Table1[[#This Row],[Job Ref]]=\"\",\"\",Table1[[#This Row],[Travel Distance (km)]])","v":""},{"$f":"IF(Table1[[#This Row],[Job Ref]]=\"\",\"\",Table1[[#This Row],[Parts Description]])","v":""},{"$f":"IF(Table1[[#This Row],[Job Ref]]=\"\",\"\",Table1[[#This Row],[Parts Costs]])","v":""},{"$f":"IFERROR(Table13[[#This Row],[Labour Hours]]*Table13[[#This Row],[Cost  per unit (LH)]],0)","v":0},{"$f":"IFERROR(Table13[[#This Row],[Travel Hours]]*Table13[[#This Row],[Cost  per unit (TH)]],0)","v":0},{"$f":"IFERROR(Table13[[#This Row],[Travel Distance (km)]]*Table13[[#This Row],[Cost  per unit (TD)]],0)","v":0},{"$f":"IF(Table13[[#This Row],[Test and Tag]]=\"Yes\",Table13[[#This Row],[Cost per Unit (TT)]],0)","v":0},{"$f":"SUM(Table13[[#This Row],[Parts Costs]],Table13[[#This Row],[Travel KM Total ]],Table13[[#This Row],[Labour Hours Total ]],Table13[[#This Row],[Service Cost (Test and Tag)]],Table13[[#This Row],[Travel Hours Total]])","v":0},{"$f":"IF(Table13[[#This Row],[Charge type]]<>\"\",Company_Name,\"\")","v":""},{"$f":"IF(Table13[[#This Row],[Charge type]]<>\"\",ENZ_Reference_Num,\"\")","v":""},{"$f":"IF(Table13[[#This Row],[Charge type]]<>\"\",Invoice_date,\"\")","v":""},{"$f":"IF(Table13[[#This Row],[Charge type]]<>\"\",Invoice_Number,\"\")","v":""},85,85,0.64,15,{"$f":"IF(Table13[[#This Row],[TOTAL JOB COST]]>1999.99,\"OVER $2k - contact Enable\",\"\")","v":""}]
[{"$f":"IF(Table1[[#This Row],[Job Ref]]=\"\",\"\",Table1[[#This Row],[Job Ref]])","v":""},{"$f":"IF(Table1[[#This Row],[Job Ref]]=\"\",\"\",VLOOKUP(Table1[[#This Row],[Charge type]],Table3[],2,FALSE))","v":""},{"$f":"IF(Table1[[#This Row],[Job Ref]]=\"\",\"\",Table1[[#This Row],[Clients First Name]])","v":""},{"$f":"IF(Table1[[#This Row],[Job Ref]]=\"\",\"\",Table1[[#This Row],[Clients Surname]])","v":""},{"$f":"IF(Table1[[#This Row],[Job Ref]]=\"\",\"\",Table1[[#This Row],[Clients Address Street No]])","v":""},{"$f":"IF(Table1[[#This Row],[Job Ref]]=\"\",\"\",Table1[[#This Row],[Clients Address Street ]])","v":""},{"$f":"IF(Table1[[#This Row],[Job Ref]]=\"\",\"\",Table1[[#This Row],[Clients Address Town/City]])","v":""},{"$f":"IF(Table1[[#This Row],[Job Ref]]=\"\",\"\",Table1[[#This Row],[Clients Phone Number]])","v":""},{"$f":"IF(Table1[[#This Row],[Job Ref]]=\"\",\"\",Table1[[#This Row],[Date repair/service requested]])","v":""},{"$f":"IF(Table1[[#This Row],[Job Ref]]=\"\",\"\",Table1[[#This Row],[Date  repair/service completed]])","v":""},{"$f":"IF(Table1[[#This Row],[Job Ref]]=\"\",\"\",Table1[[#This Row],[Asset Number]])","v":""},{"$f":"IF(Table1[[#This Row],[Job Ref]]=\"\",\"\",Table1[[#This Row],[Asset Description]])","v":""},{"$f":"IF(Table1[[#This Row],[Job Ref]]=\"\",\"\",Table1[[#This Row],[Manufacturers Serial No.]])","v":""},{"$f":"IF(Table1[[#This Row],[Job Ref]]=\"\",\"\",Table1[[#This Row],[Test and Tag]])","v":""},{"$f":"IF(Table1[[#This Row],[Job Ref]]=\"\",\"\",Table1[[#This Row],[Beyond Economic Repair (BER)]])","v":""},{"$f":"IF(Table1[[#This Row],[Job Ref]]=\"\",\"\",Table1[[#This Row],[BER Comment]])","v":""},{"$f":"IF(Table1[[#This Row],[Job Ref]]=\"\",\"\",Table1[[#This Row],[Repair Description]])","v":""},{"$f":"IF(Table1[[#This Row],[Job Ref]]=\"\",\"\",Table1[[#This Row],[Labour Hours]])","v":""},{"$f":"IF(Table1[[#This Row],[Job Ref]]=\"\",\"\",Table1[[#This Row],[Travel Hours]])","v":""},{"$f":"IF(Table1[[#This Row],[Job Ref]]=\"\",\"\",Table1[[#This Row],[Travel Distance (km)]])","v":""},{"$f":"IF(Table1[[#This Row],[Job Ref]]=\"\",\"\",Table1[[#This Row],[Parts Description]])","v":""},{"$f":"IF(Table1[[#This Row],[Job Ref]]=\"\",\"\",Table1[[#This Row],[Parts Costs]])","v":""},{"$f":"IFERROR(Table13[[#This Row],[Labour Hours]]*Table13[[#This Row],[Cost  per unit (LH)]],0)","v":0},{"$f":"IFERROR(Table13[[#This Row],[Travel Hours]]*Table13[[#This Row],[Cost  per unit (TH)]],0)","v":0},{"$f":"IFERROR(Table13[[#This Row],[Travel Distance (km)]]*Table13[[#This Row],[Cost  per unit (TD)]],0)","v":0},{"$f":"IF(Table13[[#This Row],[Test and Tag]]=\"Yes\",Table13[[#This Row],[Cost per Unit (TT)]],0)","v":0},{"$f":"SUM(Table13[[#This Row],[Parts Costs]],Table13[[#This Row],[Travel KM Total ]],Table13[[#This Row],[Labour Hours Total ]],Table13[[#This Row],[Service Cost (Test and Tag)]],Table13[[#This Row],[Travel Hours Total]])","v":0},{"$f":"IF(Table13[[#This Row],[Charge type]]<>\"\",Company_Name,\"\")","v":""},{"$f":"IF(Table13[[#This Row],[Charge type]]<>\"\",ENZ_Reference_Num,\"\")","v":""},{"$f":"IF(Table13[[#This Row],[Charge type]]<>\"\",Invoice_date,\"\")","v":""},{"$f":"IF(Table13[[#This Row],[Charge type]]<>\"\",Invoice_Number,\"\")","v":""},85,85,0.64,15,{"$f":"IF(Table13[[#This Row],[TOTAL JOB COST]]>1999.99,\"OVER $2k - contact Enable\",\"\")","v":""}]
[{"$f":"IF(Table1[[#This Row],[Job Ref]]=\"\",\"\",Table1[[#This Row],[Job Ref]])","v":""},{"$f":"IF(Table1[[#This Row],[Job Ref]]=\"\",\"\",VLOOKUP(Table1[[#This Row],[Charge type]],Table3[],2,FALSE))","v":""},{"$f":"IF(Table1[[#This Row],[Job Ref]]=\"\",\"\",Table1[[#This Row],[Clients First Name]])","v":""},{"$f":"IF(Table1[[#This Row],[Job Ref]]=\"\",\"\",Table1[[#This Row],[Clients Surname]])","v":""},{"$f":"IF(Table1[[#This Row],[Job Ref]]=\"\",\"\",Table1[[#This Row],[Clients Address Street No]])","v":""},{"$f":"IF(Table1[[#This Row],[Job Ref]]=\"\",\"\",Table1[[#This Row],[Clients Address Street ]])","v":""},{"$f":"IF(Table1[[#This Row],[Job Ref]]=\"\",\"\",Table1[[#This Row],[Clients Address Town/City]])","v":""},{"$f":"IF(Table1[[#This Row],[Job Ref]]=\"\",\"\",Table1[[#This Row],[Clients Phone Number]])","v":""},{"$f":"IF(Table1[[#This Row],[Job Ref]]=\"\",\"\",Table1[[#This Row],[Date repair/service requested]])","v":""},{"$f":"IF(Table1[[#This Row],[Job Ref]]=\"\",\"\",Table1[[#This Row],[Date  repair/service completed]])","v":""},{"$f":"IF(Table1[[#This Row],[Job Ref]]=\"\",\"\",Table1[[#This Row],[Asset Number]])","v":""},{"$f":"IF(Table1[[#This Row],[Job Ref]]=\"\",\"\",Table1[[#This Row],[Asset Description]])","v":""},{"$f":"IF(Table1[[#This Row],[Job Ref]]=\"\",\"\",Table1[[#This Row],[Manufacturers Serial No.]])","v":""},{"$f":"IF(Table1[[#This Row],[Job Ref]]=\"\",\"\",Table1[[#This Row],[Test and Tag]])","v":""},{"$f":"IF(Table1[[#This Row],[Job Ref]]=\"\",\"\",Table1[[#This Row],[Beyond Economic Repair (BER)]])","v":""},{"$f":"IF(Table1[[#This Row],[Job Ref]]=\"\",\"\",Table1[[#This Row],[BER Comment]])","v":""},{"$f":"IF(Table1[[#This Row],[Job Ref]]=\"\",\"\",Table1[[#This Row],[Repair Description]])","v":""},{"$f":"IF(Table1[[#This Row],[Job Ref]]=\"\",\"\",Table1[[#This Row],[Labour Hours]])","v":""},{"$f":"IF(Table1[[#This Row],[Job Ref]]=\"\",\"\",Table1[[#This Row],[Travel Hours]])","v":""},{"$f":"IF(Table1[[#This Row],[Job Ref]]=\"\",\"\",Table1[[#This Row],[Travel Distance (km)]])","v":""},{"$f":"IF(Table1[[#This Row],[Job Ref]]=\"\",\"\",Table1[[#This Row],[Parts Description]])","v":""},{"$f":"IF(Table1[[#This Row],[Job Ref]]=\"\",\"\",Table1[[#This Row],[Parts Costs]])","v":""},{"$f":"IFERROR(Table13[[#This Row],[Labour Hours]]*Table13[[#This Row],[Cost  per unit (LH)]],0)","v":0},{"$f":"IFERROR(Table13[[#This Row],[Travel Hours]]*Table13[[#This Row],[Cost  per unit (TH)]],0)","v":0},{"$f":"IFERROR(Table13[[#This Row],[Travel Distance (km)]]*Table13[[#This Row],[Cost  per unit (TD)]],0)","v":0},{"$f":"IF(Table13[[#This Row],[Test and Tag]]=\"Yes\",Table13[[#This Row],[Cost per Unit (TT)]],0)","v":0},{"$f":"SUM(Table13[[#This Row],[Parts Costs]],Table13[[#This Row],[Travel KM Total ]],Table13[[#This Row],[Labour Hours Total ]],Table13[[#This Row],[Service Cost (Test and Tag)]],Table13[[#This Row],[Travel Hours Total]])","v":0},{"$f":"IF(Table13[[#This Row],[Charge type]]<>\"\",Company_Name,\"\")","v":""},{"$f":"IF(Table13[[#This Row],[Charge type]]<>\"\",ENZ_Reference_Num,\"\")","v":""},{"$f":"IF(Table13[[#This Row],[Charge type]]<>\"\",Invoice_date,\"\")","v":""},{"$f":"IF(Table13[[#This Row],[Charge type]]<>\"\",Invoice_Number,\"\")","v":""},85,85,0.64,15,{"$f":"IF(Table13[[#This Row],[TOTAL JOB COST]]>1999.99,\"OVER $2k - contact Enable\",\"\")","v":""}]
[{"$f":"IF(Table1[[#This Row],[Job Ref]]=\"\",\"\",Table1[[#This Row],[Job Ref]])","v":""},{"$f":"IF(Table1[[#This Row],[Job Ref]]=\"\",\"\",VLOOKUP(Table1[[#This Row],[Charge type]],Table3[],2,FALSE))","v":""},{"$f":"IF(Table1[[#This Row],[Job Ref]]=\"\",\"\",Table1[[#This Row],[Clients First Name]])","v":""},{"$f":"IF(Table1[[#This Row],[Job Ref]]=\"\",\"\",Table1[[#This Row],[Clients Surname]])","v":""},{"$f":"IF(Table1[[#This Row],[Job Ref]]=\"\",\"\",Table1[[#This Row],[Clients Address Street No]])","v":""},{"$f":"IF(Table1[[#This Row],[Job Ref]]=\"\",\"\",Table1[[#This Row],[Clients Address Street ]])","v":""},{"$f":"IF(Table1[[#This Row],[Job Ref]]=\"\",\"\",Table1[[#This Row],[Clients Address Town/City]])","v":""},{"$f":"IF(Table1[[#This Row],[Job Ref]]=\"\",\"\",Table1[[#This Row],[Clients Phone Number]])","v":""},{"$f":"IF(Table1[[#This Row],[Job Ref]]=\"\",\"\",Table1[[#This Row],[Date repair/service requested]])","v":""},{"$f":"IF(Table1[[#This Row],[Job Ref]]=\"\",\"\",Table1[[#This Row],[Date  repair/service completed]])","v":""},{"$f":"IF(Table1[[#This Row],[Job Ref]]=\"\",\"\",Table1[[#This Row],[Asset Number]])","v":""},{"$f":"IF(Table1[[#This Row],[Job Ref]]=\"\",\"\",Table1[[#This Row],[Asset Description]])","v":""},{"$f":"IF(Table1[[#This Row],[Job Ref]]=\"\",\"\",Table1[[#This Row],[Manufacturers Serial No.]])","v":""},{"$f":"IF(Table1[[#This Row],[Job Ref]]=\"\",\"\",Table1[[#This Row],[Test and Tag]])","v":""},{"$f":"IF(Table1[[#This Row],[Job Ref]]=\"\",\"\",Table1[[#This Row],[Beyond Economic Repair (BER)]])","v":""},{"$f":"IF(Table1[[#This Row],[Job Ref]]=\"\",\"\",Table1[[#This Row],[BER Comment]])","v":""},{"$f":"IF(Table1[[#This Row],[Job Ref]]=\"\",\"\",Table1[[#This Row],[Repair Description]])","v":""},{"$f":"IF(Table1[[#This Row],[Job Ref]]=\"\",\"\",Table1[[#This Row],[Labour Hours]])","v":""},{"$f":"IF(Table1[[#This Row],[Job Ref]]=\"\",\"\",Table1[[#This Row],[Travel Hours]])","v":""},{"$f":"IF(Table1[[#This Row],[Job Ref]]=\"\",\"\",Table1[[#This Row],[Travel Distance (km)]])","v":""},{"$f":"IF(Table1[[#This Row],[Job Ref]]=\"\",\"\",Table1[[#This Row],[Parts Description]])","v":""},{"$f":"IF(Table1[[#This Row],[Job Ref]]=\"\",\"\",Table1[[#This Row],[Parts Costs]])","v":""},{"$f":"IFERROR(Table13[[#This Row],[Labour Hours]]*Table13[[#This Row],[Cost  per unit (LH)]],0)","v":0},{"$f":"IFERROR(Table13[[#This Row],[Travel Hours]]*Table13[[#This Row],[Cost  per unit (TH)]],0)","v":0},{"$f":"IFERROR(Table13[[#This Row],[Travel Distance (km)]]*Table13[[#This Row],[Cost  per unit (TD)]],0)","v":0},{"$f":"IF(Table13[[#This Row],[Test and Tag]]=\"Yes\",Table13[[#This Row],[Cost per Unit (TT)]],0)","v":0},{"$f":"SUM(Table13[[#This Row],[Parts Costs]],Table13[[#This Row],[Travel KM Total ]],Table13[[#This Row],[Labour Hours Total ]],Table13[[#This Row],[Service Cost (Test and Tag)]],Table13[[#This Row],[Travel Hours Total]])","v":0},{"$f":"IF(Table13[[#This Row],[Charge type]]<>\"\",Company_Name,\"\")","v":""},{"$f":"IF(Table13[[#This Row],[Charge type]]<>\"\",ENZ_Reference_Num,\"\")","v":""},{"$f":"IF(Table13[[#This Row],[Charge type]]<>\"\",Invoice_date,\"\")","v":""},{"$f":"IF(Table13[[#This Row],[Charge type]]<>\"\",Invoice_Number,\"\")","v":""},85,85,0.64,15,{"$f":"IF(Table13[[#This Row],[TOTAL JOB COST]]>1999.99,\"OVER $2k - contact Enable\",\"\")","v":""}]
[{"$f":"IF(Table1[[#This Row],[Job Ref]]=\"\",\"\",Table1[[#This Row],[Job Ref]])","v":""},{"$f":"IF(Table1[[#This Row],[Job Ref]]=\"\",\"\",VLOOKUP(Table1[[#This Row],[Charge type]],Table3[],2,FALSE))","v":""},{"$f":"IF(Table1[[#This Row],[Job Ref]]=\"\",\"\",Table1[[#This Row],[Clients First Name]])","v":""},{"$f":"IF(Table1[[#This Row],[Job Ref]]=\"\",\"\",Table1[[#This Row],[Clients Surname]])","v":""},{"$f":"IF(Table1[[#This Row],[Job Ref]]=\"\",\"\",Table1[[#This Row],[Clients Address Street No]])","v":""},{"$f":"IF(Table1[[#This Row],[Job Ref]]=\"\",\"\",Table1[[#This Row],[Clients Address Street ]])","v":""},{"$f":"IF(Table1[[#This Row],[Job Ref]]=\"\",\"\",Table1[[#This Row],[Clients Address Town/City]])","v":""},{"$f":"IF(Table1[[#This Row],[Job Ref]]=\"\",\"\",Table1[[#This Row],[Clients Phone Number]])","v":""},{"$f":"IF(Table1[[#This Row],[Job Ref]]=\"\",\"\",Table1[[#This Row],[Date repair/service requested]])","v":""},{"$f":"IF(Table1[[#This Row],[Job Ref]]=\"\",\"\",Table1[[#This Row],[Date  repair/service completed]])","v":""},{"$f":"IF(Table1[[#This Row],[Job Ref]]=\"\",\"\",Table1[[#This Row],[Asset Number]])","v":""},{"$f":"IF(Table1[[#This Row],[Job Ref]]=\"\",\"\",Table1[[#This Row],[Asset Description]])","v":""},{"$f":"IF(Table1[[#This Row],[Job Ref]]=\"\",\"\",Table1[[#This Row],[Manufacturers Serial No.]])","v":""},{"$f":"IF(Table1[[#This Row],[Job Ref]]=\"\",\"\",Table1[[#This Row],[Test and Tag]])","v":""},{"$f":"IF(Table1[[#This Row],[Job Ref]]=\"\",\"\",Table1[[#This Row],[Beyond Economic Repair (BER)]])","v":""},{"$f":"IF(Table1[[#This Row],[Job Ref]]=\"\",\"\",Table1[[#This Row],[BER Comment]])","v":""},{"$f":"IF(Table1[[#This Row],[Job Ref]]=\"\",\"\",Table1[[#This Row],[Repair Description]])","v":""},{"$f":"IF(Table1[[#This Row],[Job Ref]]=\"\",\"\",Table1[[#This Row],[Labour Hours]])","v":""},{"$f":"IF(Table1[[#This Row],[Job Ref]]=\"\",\"\",Table1[[#This Row],[Travel Hours]])","v":""},{"$f":"IF(Table1[[#This Row],[Job Ref]]=\"\",\"\",Table1[[#This Row],[Travel Distance (km)]])","v":""},{"$f":"IF(Table1[[#This Row],[Job Ref]]=\"\",\"\",Table1[[#This Row],[Parts Description]])","v":""},{"$f":"IF(Table1[[#This Row],[Job Ref]]=\"\",\"\",Table1[[#This Row],[Parts Costs]])","v":""},{"$f":"IFERROR(Table13[[#This Row],[Labour Hours]]*Table13[[#This Row],[Cost  per unit (LH)]],0)","v":0},{"$f":"IFERROR(Table13[[#This Row],[Travel Hours]]*Table13[[#This Row],[Cost  per unit (TH)]],0)","v":0},{"$f":"IFERROR(Table13[[#This Row],[Travel Distance (km)]]*Table13[[#This Row],[Cost  per unit (TD)]],0)","v":0},{"$f":"IF(Table13[[#This Row],[Test and Tag]]=\"Yes\",Table13[[#This Row],[Cost per Unit (TT)]],0)","v":0},{"$f":"SUM(Table13[[#This Row],[Parts Costs]],Table13[[#This Row],[Travel KM Total ]],Table13[[#This Row],[Labour Hours Total ]],Table13[[#This Row],[Service Cost (Test and Tag)]],Table13[[#This Row],[Travel Hours Total]])","v":0},{"$f":"IF(Table13[[#This Row],[Charge type]]<>\"\",Company_Name,\"\")","v":""},{"$f":"IF(Table13[[#This Row],[Charge type]]<>\"\",ENZ_Reference_Num,\"\")","v":""},{"$f":"IF(Table13[[#This Row],[Charge type]]<>\"\",Invoice_date,\"\")","v":""},{"$f":"IF(Table13[[#This Row],[Charge type]]<>\"\",Invoice_Number,\"\")","v":""},85,85,0.64,15,{"$f":"IF(Table13[[#This Row],[TOTAL JOB COST]]>1999.99,\"OVER $2k - contact Enable\",\"\")","v":""}]
[{"$f":"IF(Table1[[#This Row],[Job Ref]]=\"\",\"\",Table1[[#This Row],[Job Ref]])","v":""},{"$f":"IF(Table1[[#This Row],[Job Ref]]=\"\",\"\",VLOOKUP(Table1[[#This Row],[Charge type]],Table3[],2,FALSE))","v":""},{"$f":"IF(Table1[[#This Row],[Job Ref]]=\"\",\"\",Table1[[#This Row],[Clients First Name]])","v":""},{"$f":"IF(Table1[[#This Row],[Job Ref]]=\"\",\"\",Table1[[#This Row],[Clients Surname]])","v":""},{"$f":"IF(Table1[[#This Row],[Job Ref]]=\"\",\"\",Table1[[#This Row],[Clients Address Street No]])","v":""},{"$f":"IF(Table1[[#This Row],[Job Ref]]=\"\",\"\",Table1[[#This Row],[Clients Address Street ]])","v":""},{"$f":"IF(Table1[[#This Row],[Job Ref]]=\"\",\"\",Table1[[#This Row],[Clients Address Town/City]])","v":""},{"$f":"IF(Table1[[#This Row],[Job Ref]]=\"\",\"\",Table1[[#This Row],[Clients Phone Number]])","v":""},{"$f":"IF(Table1[[#This Row],[Job Ref]]=\"\",\"\",Table1[[#This Row],[Date repair/service requested]])","v":""},{"$f":"IF(Table1[[#This Row],[Job Ref]]=\"\",\"\",Table1[[#This Row],[Date  repair/service completed]])","v":""},{"$f":"IF(Table1[[#This Row],[Job Ref]]=\"\",\"\",Table1[[#This Row],[Asset Number]])","v":""},{"$f":"IF(Table1[[#This Row],[Job Ref]]=\"\",\"\",Table1[[#This Row],[Asset Description]])","v":""},{"$f":"IF(Table1[[#This Row],[Job Ref]]=\"\",\"\",Table1[[#This Row],[Manufacturers Serial No.]])","v":""},{"$f":"IF(Table1[[#This Row],[Job Ref]]=\"\",\"\",Table1[[#This Row],[Test and Tag]])","v":""},{"$f":"IF(Table1[[#This Row],[Job Ref]]=\"\",\"\",Table1[[#This Row],[Beyond Economic Repair (BER)]])","v":""},{"$f":"IF(Table1[[#This Row],[Job Ref]]=\"\",\"\",Table1[[#This Row],[BER Comment]])","v":""},{"$f":"IF(Table1[[#This Row],[Job Ref]]=\"\",\"\",Table1[[#This Row],[Repair Description]])","v":""},{"$f":"IF(Table1[[#This Row],[Job Ref]]=\"\",\"\",Table1[[#This Row],[Labour Hours]])","v":""},{"$f":"IF(Table1[[#This Row],[Job Ref]]=\"\",\"\",Table1[[#This Row],[Travel Hours]])","v":""},{"$f":"IF(Table1[[#This Row],[Job Ref]]=\"\",\"\",Table1[[#This Row],[Travel Distance (km)]])","v":""},{"$f":"IF(Table1[[#This Row],[Job Ref]]=\"\",\"\",Table1[[#This Row],[Parts Description]])","v":""},{"$f":"IF(Table1[[#This Row],[Job Ref]]=\"\",\"\",Table1[[#This Row],[Parts Costs]])","v":""},{"$f":"IFERROR(Table13[[#This Row],[Labour Hours]]*Table13[[#This Row],[Cost  per unit (LH)]],0)","v":0},{"$f":"IFERROR(Table13[[#This Row],[Travel Hours]]*Table13[[#This Row],[Cost  per unit (TH)]],0)","v":0},{"$f":"IFERROR(Table13[[#This Row],[Travel Distance (km)]]*Table13[[#This Row],[Cost  per unit (TD)]],0)","v":0},{"$f":"IF(Table13[[#This Row],[Test and Tag]]=\"Yes\",Table13[[#This Row],[Cost per Unit (TT)]],0)","v":0},{"$f":"SUM(Table13[[#This Row],[Parts Costs]],Table13[[#This Row],[Travel KM Total ]],Table13[[#This Row],[Labour Hours Total ]],Table13[[#This Row],[Service Cost (Test and Tag)]],Table13[[#This Row],[Travel Hours Total]])","v":0},{"$f":"IF(Table13[[#This Row],[Charge type]]<>\"\",Company_Name,\"\")","v":""},{"$f":"IF(Table13[[#This Row],[Charge type]]<>\"\",ENZ_Reference_Num,\"\")","v":""},{"$f":"IF(Table13[[#This Row],[Charge type]]<>\"\",Invoice_date,\"\")","v":""},{"$f":"IF(Table13[[#This Row],[Charge type]]<>\"\",Invoice_Number,\"\")","v":""},85,85,0.64,15,{"$f":"IF(Table13[[#This Row],[TOTAL JOB COST]]>1999.99,\"OVER $2k - contact Enable\",\"\")","v":""}]
[{"$f":"IF(Table1[[#This Row],[Job Ref]]=\"\",\"\",Table1[[#This Row],[Job Ref]])","v":""},{"$f":"IF(Table1[[#This Row],[Job Ref]]=\"\",\"\",VLOOKUP(Table1[[#This Row],[Charge type]],Table3[],2,FALSE))","v":""},{"$f":"IF(Table1[[#This Row],[Job Ref]]=\"\",\"\",Table1[[#This Row],[Clients First Name]])","v":""},{"$f":"IF(Table1[[#This Row],[Job Ref]]=\"\",\"\",Table1[[#This Row],[Clients Surname]])","v":""},{"$f":"IF(Table1[[#This Row],[Job Ref]]=\"\",\"\",Table1[[#This Row],[Clients Address Street No]])","v":""},{"$f":"IF(Table1[[#This Row],[Job Ref]]=\"\",\"\",Table1[[#This Row],[Clients Address Street ]])","v":""},{"$f":"IF(Table1[[#This Row],[Job Ref]]=\"\",\"\",Table1[[#This Row],[Clients Address Town/City]])","v":""},{"$f":"IF(Table1[[#This Row],[Job Ref]]=\"\",\"\",Table1[[#This Row],[Clients Phone Number]])","v":""},{"$f":"IF(Table1[[#This Row],[Job Ref]]=\"\",\"\",Table1[[#This Row],[Date repair/service requested]])","v":""},{"$f":"IF(Table1[[#This Row],[Job Ref]]=\"\",\"\",Table1[[#This Row],[Date  repair/service completed]])","v":""},{"$f":"IF(Table1[[#This Row],[Job Ref]]=\"\",\"\",Table1[[#This Row],[Asset Number]])","v":""},{"$f":"IF(Table1[[#This Row],[Job Ref]]=\"\",\"\",Table1[[#This Row],[Asset Description]])","v":""},{"$f":"IF(Table1[[#This Row],[Job Ref]]=\"\",\"\",Table1[[#This Row],[Manufacturers Serial No.]])","v":""},{"$f":"IF(Table1[[#This Row],[Job Ref]]=\"\",\"\",Table1[[#This Row],[Test and Tag]])","v":""},{"$f":"IF(Table1[[#This Row],[Job Ref]]=\"\",\"\",Table1[[#This Row],[Beyond Economic Repair (BER)]])","v":""},{"$f":"IF(Table1[[#This Row],[Job Ref]]=\"\",\"\",Table1[[#This Row],[BER Comment]])","v":""},{"$f":"IF(Table1[[#This Row],[Job Ref]]=\"\",\"\",Table1[[#This Row],[Repair Description]])","v":""},{"$f":"IF(Table1[[#This Row],[Job Ref]]=\"\",\"\",Table1[[#This Row],[Labour Hours]])","v":""},{"$f":"IF(Table1[[#This Row],[Job Ref]]=\"\",\"\",Table1[[#This Row],[Travel Hours]])","v":""},{"$f":"IF(Table1[[#This Row],[Job Ref]]=\"\",\"\",Table1[[#This Row],[Travel Distance (km)]])","v":""},{"$f":"IF(Table1[[#This Row],[Job Ref]]=\"\",\"\",Table1[[#This Row],[Parts Description]])","v":""},{"$f":"IF(Table1[[#This Row],[Job Ref]]=\"\",\"\",Table1[[#This Row],[Parts Costs]])","v":""},{"$f":"IFERROR(Table13[[#This Row],[Labour Hours]]*Table13[[#This Row],[Cost  per unit (LH)]],0)","v":0},{"$f":"IFERROR(Table13[[#This Row],[Travel Hours]]*Table13[[#This Row],[Cost  per unit (TH)]],0)","v":0},{"$f":"IFERROR(Table13[[#This Row],[Travel Distance (km)]]*Table13[[#This Row],[Cost  per unit (TD)]],0)","v":0},{"$f":"IF(Table13[[#This Row],[Test and Tag]]=\"Yes\",Table13[[#This Row],[Cost per Unit (TT)]],0)","v":0},{"$f":"SUM(Table13[[#This Row],[Parts Costs]],Table13[[#This Row],[Travel KM Total ]],Table13[[#This Row],[Labour Hours Total ]],Table13[[#This Row],[Service Cost (Test and Tag)]],Table13[[#This Row],[Travel Hours Total]])","v":0},{"$f":"IF(Table13[[#This Row],[Charge type]]<>\"\",Company_Name,\"\")","v":""},{"$f":"IF(Table13[[#This Row],[Charge type]]<>\"\",ENZ_Reference_Num,\"\")","v":""},{"$f":"IF(Table13[[#This Row],[Charge type]]<>\"\",Invoice_date,\"\")","v":""},{"$f":"IF(Table13[[#This Row],[Charge type]]<>\"\",Invoice_Number,\"\")","v":""},85,85,0.64,15,{"$f":"IF(Table13[[#This Row],[TOTAL JOB COST]]>1999.99,\"OVER $2k - contact Enable\",\"\")","v":""}]
[{"$f":"IF(Table1[[#This Row],[Job Ref]]=\"\",\"\",Table1[[#This Row],[Job Ref]])","v":""},{"$f":"IF(Table1[[#This Row],[Job Ref]]=\"\",\"\",VLOOKUP(Table1[[#This Row],[Charge type]],Table3[],2,FALSE))","v":""},{"$f":"IF(Table1[[#This Row],[Job Ref]]=\"\",\"\",Table1[[#This Row],[Clients First Name]])","v":""},{"$f":"IF(Table1[[#This Row],[Job Ref]]=\"\",\"\",Table1[[#This Row],[Clients Surname]])","v":""},{"$f":"IF(Table1[[#This Row],[Job Ref]]=\"\",\"\",Table1[[#This Row],[Clients Address Street No]])","v":""},{"$f":"IF(Table1[[#This Row],[Job Ref]]=\"\",\"\",Table1[[#This Row],[Clients Address Street ]])","v":""},{"$f":"IF(Table1[[#This Row],[Job Ref]]=\"\",\"\",Table1[[#This Row],[Clients Address Town/City]])","v":""},{"$f":"IF(Table1[[#This Row],[Job Ref]]=\"\",\"\",Table1[[#This Row],[Clients Phone Number]])","v":""},{"$f":"IF(Table1[[#This Row],[Job Ref]]=\"\",\"\",Table1[[#This Row],[Date repair/service requested]])","v":""},{"$f":"IF(Table1[[#This Row],[Job Ref]]=\"\",\"\",Table1[[#This Row],[Date  repair/service completed]])","v":""},{"$f":"IF(Table1[[#This Row],[Job Ref]]=\"\",\"\",Table1[[#This Row],[Asset Number]])","v":""},{"$f":"IF(Table1[[#This Row],[Job Ref]]=\"\",\"\",Table1[[#This Row],[Asset Description]])","v":""},{"$f":"IF(Table1[[#This Row],[Job Ref]]=\"\",\"\",Table1[[#This Row],[Manufacturers Serial No.]])","v":""},{"$f":"IF(Table1[[#This Row],[Job Ref]]=\"\",\"\",Table1[[#This Row],[Test and Tag]])","v":""},{"$f":"IF(Table1[[#This Row],[Job Ref]]=\"\",\"\",Table1[[#This Row],[Beyond Economic Repair (BER)]])","v":""},{"$f":"IF(Table1[[#This Row],[Job Ref]]=\"\",\"\",Table1[[#This Row],[BER Comment]])","v":""},{"$f":"IF(Table1[[#This Row],[Job Ref]]=\"\",\"\",Table1[[#This Row],[Repair Description]])","v":""},{"$f":"IF(Table1[[#This Row],[Job Ref]]=\"\",\"\",Table1[[#This Row],[Labour Hours]])","v":""},{"$f":"IF(Table1[[#This Row],[Job Ref]]=\"\",\"\",Table1[[#This Row],[Travel Hours]])","v":""},{"$f":"IF(Table1[[#This Row],[Job Ref]]=\"\",\"\",Table1[[#This Row],[Travel Distance (km)]])","v":""},{"$f":"IF(Table1[[#This Row],[Job Ref]]=\"\",\"\",Table1[[#This Row],[Parts Description]])","v":""},{"$f":"IF(Table1[[#This Row],[Job Ref]]=\"\",\"\",Table1[[#This Row],[Parts Costs]])","v":""},{"$f":"IFERROR(Table13[[#This Row],[Labour Hours]]*Table13[[#This Row],[Cost  per unit (LH)]],0)","v":0},{"$f":"IFERROR(Table13[[#This Row],[Travel Hours]]*Table13[[#This Row],[Cost  per unit (TH)]],0)","v":0},{"$f":"IFERROR(Table13[[#This Row],[Travel Distance (km)]]*Table13[[#This Row],[Cost  per unit (TD)]],0)","v":0},{"$f":"IF(Table13[[#This Row],[Test and Tag]]=\"Yes\",Table13[[#This Row],[Cost per Unit (TT)]],0)","v":0},{"$f":"SUM(Table13[[#This Row],[Parts Costs]],Table13[[#This Row],[Travel KM Total ]],Table13[[#This Row],[Labour Hours Total ]],Table13[[#This Row],[Service Cost (Test and Tag)]],Table13[[#This Row],[Travel Hours Total]])","v":0},{"$f":"IF(Table13[[#This Row],[Charge type]]<>\"\",Company_Name,\"\")","v":""},{"$f":"IF(Table13[[#This Row],[Charge type]]<>\"\",ENZ_Reference_Num,\"\")","v":""},{"$f":"IF(Table13[[#This Row],[Charge type]]<>\"\",Invoice_date,\"\")","v":""},{"$f":"IF(Table13[[#This Row],[Charge type]]<>\"\",Invoice_Number,\"\")","v":""},85,85,0.64,15,{"$f":"IF(Table13[[#This Row],[TOTAL JOB COST]]>1999.99,\"OVER $2k - contact Enable\",\"\")","v":""}]
[{"$f":"IF(Table1[[#This Row],[Job Ref]]=\"\",\"\",Table1[[#This Row],[Job Ref]])","v":""},{"$f":"IF(Table1[[#This Row],[Job Ref]]=\"\",\"\",VLOOKUP(Table1[[#This Row],[Charge type]],Table3[],2,FALSE))","v":""},{"$f":"IF(Table1[[#This Row],[Job Ref]]=\"\",\"\",Table1[[#This Row],[Clients First Name]])","v":""},{"$f":"IF(Table1[[#This Row],[Job Ref]]=\"\",\"\",Table1[[#This Row],[Clients Surname]])","v":""},{"$f":"IF(Table1[[#This Row],[Job Ref]]=\"\",\"\",Table1[[#This Row],[Clients Address Street No]])","v":""},{"$f":"IF(Table1[[#This Row],[Job Ref]]=\"\",\"\",Table1[[#This Row],[Clients Address Street ]])","v":""},{"$f":"IF(Table1[[#This Row],[Job Ref]]=\"\",\"\",Table1[[#This Row],[Clients Address Town/City]])","v":""},{"$f":"IF(Table1[[#This Row],[Job Ref]]=\"\",\"\",Table1[[#This Row],[Clients Phone Number]])","v":""},{"$f":"IF(Table1[[#This Row],[Job Ref]]=\"\",\"\",Table1[[#This Row],[Date repair/service requested]])","v":""},{"$f":"IF(Table1[[#This Row],[Job Ref]]=\"\",\"\",Table1[[#This Row],[Date  repair/service completed]])","v":""},{"$f":"IF(Table1[[#This Row],[Job Ref]]=\"\",\"\",Table1[[#This Row],[Asset Number]])","v":""},{"$f":"IF(Table1[[#This Row],[Job Ref]]=\"\",\"\",Table1[[#This Row],[Asset Description]])","v":""},{"$f":"IF(Table1[[#This Row],[Job Ref]]=\"\",\"\",Table1[[#This Row],[Manufacturers Serial No.]])","v":""},{"$f":"IF(Table1[[#This Row],[Job Ref]]=\"\",\"\",Table1[[#This Row],[Test and Tag]])","v":""},{"$f":"IF(Table1[[#This Row],[Job Ref]]=\"\",\"\",Table1[[#This Row],[Beyond Economic Repair (BER)]])","v":""},{"$f":"IF(Table1[[#This Row],[Job Ref]]=\"\",\"\",Table1[[#This Row],[BER Comment]])","v":""},{"$f":"IF(Table1[[#This Row],[Job Ref]]=\"\",\"\",Table1[[#This Row],[Repair Description]])","v":""},{"$f":"IF(Table1[[#This Row],[Job Ref]]=\"\",\"\",Table1[[#This Row],[Labour Hours]])","v":""},{"$f":"IF(Table1[[#This Row],[Job Ref]]=\"\",\"\",Table1[[#This Row],[Travel Hours]])","v":""},{"$f":"IF(Table1[[#This Row],[Job Ref]]=\"\",\"\",Table1[[#This Row],[Travel Distance (km)]])","v":""},{"$f":"IF(Table1[[#This Row],[Job Ref]]=\"\",\"\",Table1[[#This Row],[Parts Description]])","v":""},{"$f":"IF(Table1[[#This Row],[Job Ref]]=\"\",\"\",Table1[[#This Row],[Parts Costs]])","v":""},{"$f":"IFERROR(Table13[[#This Row],[Labour Hours]]*Table13[[#This Row],[Cost  per unit (LH)]],0)","v":0},{"$f":"IFERROR(Table13[[#This Row],[Travel Hours]]*Table13[[#This Row],[Cost  per unit (TH)]],0)","v":0},{"$f":"IFERROR(Table13[[#This Row],[Travel Distance (km)]]*Table13[[#This Row],[Cost  per unit (TD)]],0)","v":0},{"$f":"IF(Table13[[#This Row],[Test and Tag]]=\"Yes\",Table13[[#This Row],[Cost per Unit (TT)]],0)","v":0},{"$f":"SUM(Table13[[#This Row],[Parts Costs]],Table13[[#This Row],[Travel KM Total ]],Table13[[#This Row],[Labour Hours Total ]],Table13[[#This Row],[Service Cost (Test and Tag)]],Table13[[#This Row],[Travel Hours Total]])","v":0},{"$f":"IF(Table13[[#This Row],[Charge type]]<>\"\",Company_Name,\"\")","v":""},{"$f":"IF(Table13[[#This Row],[Charge type]]<>\"\",ENZ_Reference_Num,\"\")","v":""},{"$f":"IF(Table13[[#This Row],[Charge type]]<>\"\",Invoice_date,\"\")","v":""},{"$f":"IF(Table13[[#This Row],[Charge type]]<>\"\",Invoice_Number,\"\")","v":""},85,85,0.64,15,{"$f":"IF(Table13[[#This Row],[TOTAL JOB COST]]>1999.99,\"OVER $2k - contact Enable\",\"\")","v":""}]
[{"$f":"IF(Table1[[#This Row],[Job Ref]]=\"\",\"\",Table1[[#This Row],[Job Ref]])","v":""},{"$f":"IF(Table1[[#This Row],[Job Ref]]=\"\",\"\",VLOOKUP(Table1[[#This Row],[Charge type]],Table3[],2,FALSE))","v":""},{"$f":"IF(Table1[[#This Row],[Job Ref]]=\"\",\"\",Table1[[#This Row],[Clients First Name]])","v":""},{"$f":"IF(Table1[[#This Row],[Job Ref]]=\"\",\"\",Table1[[#This Row],[Clients Surname]])","v":""},{"$f":"IF(Table1[[#This Row],[Job Ref]]=\"\",\"\",Table1[[#This Row],[Clients Address Street No]])","v":""},{"$f":"IF(Table1[[#This Row],[Job Ref]]=\"\",\"\",Table1[[#This Row],[Clients Address Street ]])","v":""},{"$f":"IF(Table1[[#This Row],[Job Ref]]=\"\",\"\",Table1[[#This Row],[Clients Address Town/City]])","v":""},{"$f":"IF(Table1[[#This Row],[Job Ref]]=\"\",\"\",Table1[[#This Row],[Clients Phone Number]])","v":""},{"$f":"IF(Table1[[#This Row],[Job Ref]]=\"\",\"\",Table1[[#This Row],[Date repair/service requested]])","v":""},{"$f":"IF(Table1[[#This Row],[Job Ref]]=\"\",\"\",Table1[[#This Row],[Date  repair/service completed]])","v":""},{"$f":"IF(Table1[[#This Row],[Job Ref]]=\"\",\"\",Table1[[#This Row],[Asset Number]])","v":""},{"$f":"IF(Table1[[#This Row],[Job Ref]]=\"\",\"\",Table1[[#This Row],[Asset Description]])","v":""},{"$f":"IF(Table1[[#This Row],[Job Ref]]=\"\",\"\",Table1[[#This Row],[Manufacturers Serial No.]])","v":""},{"$f":"IF(Table1[[#This Row],[Job Ref]]=\"\",\"\",Table1[[#This Row],[Test and Tag]])","v":""},{"$f":"IF(Table1[[#This Row],[Job Ref]]=\"\",\"\",Table1[[#This Row],[Beyond Economic Repair (BER)]])","v":""},{"$f":"IF(Table1[[#This Row],[Job Ref]]=\"\",\"\",Table1[[#This Row],[BER Comment]])","v":""},{"$f":"IF(Table1[[#This Row],[Job Ref]]=\"\",\"\",Table1[[#This Row],[Repair Description]])","v":""},{"$f":"IF(Table1[[#This Row],[Job Ref]]=\"\",\"\",Table1[[#This Row],[Labour Hours]])","v":""},{"$f":"IF(Table1[[#This Row],[Job Ref]]=\"\",\"\",Table1[[#This Row],[Travel Hours]])","v":""},{"$f":"IF(Table1[[#This Row],[Job Ref]]=\"\",\"\",Table1[[#This Row],[Travel Distance (km)]])","v":""},{"$f":"IF(Table1[[#This Row],[Job Ref]]=\"\",\"\",Table1[[#This Row],[Parts Description]])","v":""},{"$f":"IF(Table1[[#This Row],[Job Ref]]=\"\",\"\",Table1[[#This Row],[Parts Costs]])","v":""},{"$f":"IFERROR(Table13[[#This Row],[Labour Hours]]*Table13[[#This Row],[Cost  per unit (LH)]],0)","v":0},{"$f":"IFERROR(Table13[[#This Row],[Travel Hours]]*Table13[[#This Row],[Cost  per unit (TH)]],0)","v":0},{"$f":"IFERROR(Table13[[#This Row],[Travel Distance (km)]]*Table13[[#This Row],[Cost  per unit (TD)]],0)","v":0},{"$f":"IF(Table13[[#This Row],[Test and Tag]]=\"Yes\",Table13[[#This Row],[Cost per Unit (TT)]],0)","v":0},{"$f":"SUM(Table13[[#This Row],[Parts Costs]],Table13[[#This Row],[Travel KM Total ]],Table13[[#This Row],[Labour Hours Total ]],Table13[[#This Row],[Service Cost (Test and Tag)]],Table13[[#This Row],[Travel Hours Total]])","v":0},{"$f":"IF(Table13[[#This Row],[Charge type]]<>\"\",Company_Name,\"\")","v":""},{"$f":"IF(Table13[[#This Row],[Charge type]]<>\"\",ENZ_Reference_Num,\"\")","v":""},{"$f":"IF(Table13[[#This Row],[Charge type]]<>\"\",Invoice_date,\"\")","v":""},{"$f":"IF(Table13[[#This Row],[Charge type]]<>\"\",Invoice_Number,\"\")","v":""},85,85,0.64,15,{"$f":"IF(Table13[[#This Row],[TOTAL JOB COST]]>1999.99,\"OVER $2k - contact Enable\",\"\")","v":""}]
[{"$f":"IF(Table1[[#This Row],[Job Ref]]=\"\",\"\",Table1[[#This Row],[Job Ref]])","v":""},{"$f":"IF(Table1[[#This Row],[Job Ref]]=\"\",\"\",VLOOKUP(Table1[[#This Row],[Charge type]],Table3[],2,FALSE))","v":""},{"$f":"IF(Table1[[#This Row],[Job Ref]]=\"\",\"\",Table1[[#This Row],[Clients First Name]])","v":""},{"$f":"IF(Table1[[#This Row],[Job Ref]]=\"\",\"\",Table1[[#This Row],[Clients Surname]])","v":""},{"$f":"IF(Table1[[#This Row],[Job Ref]]=\"\",\"\",Table1[[#This Row],[Clients Address Street No]])","v":""},{"$f":"IF(Table1[[#This Row],[Job Ref]]=\"\",\"\",Table1[[#This Row],[Clients Address Street ]])","v":""},{"$f":"IF(Table1[[#This Row],[Job Ref]]=\"\",\"\",Table1[[#This Row],[Clients Address Town/City]])","v":""},{"$f":"IF(Table1[[#This Row],[Job Ref]]=\"\",\"\",Table1[[#This Row],[Clients Phone Number]])","v":""},{"$f":"IF(Table1[[#This Row],[Job Ref]]=\"\",\"\",Table1[[#This Row],[Date repair/service requested]])","v":""},{"$f":"IF(Table1[[#This Row],[Job Ref]]=\"\",\"\",Table1[[#This Row],[Date  repair/service completed]])","v":""},{"$f":"IF(Table1[[#This Row],[Job Ref]]=\"\",\"\",Table1[[#This Row],[Asset Number]])","v":""},{"$f":"IF(Table1[[#This Row],[Job Ref]]=\"\",\"\",Table1[[#This Row],[Asset Description]])","v":""},{"$f":"IF(Table1[[#This Row],[Job Ref]]=\"\",\"\",Table1[[#This Row],[Manufacturers Serial No.]])","v":""},{"$f":"IF(Table1[[#This Row],[Job Ref]]=\"\",\"\",Table1[[#This Row],[Test and Tag]])","v":""},{"$f":"IF(Table1[[#This Row],[Job Ref]]=\"\",\"\",Table1[[#This Row],[Beyond Economic Repair (BER)]])","v":""},{"$f":"IF(Table1[[#This Row],[Job Ref]]=\"\",\"\",Table1[[#This Row],[BER Comment]])","v":""},{"$f":"IF(Table1[[#This Row],[Job Ref]]=\"\",\"\",Table1[[#This Row],[Repair Description]])","v":""},{"$f":"IF(Table1[[#This Row],[Job Ref]]=\"\",\"\",Table1[[#This Row],[Labour Hours]])","v":""},{"$f":"IF(Table1[[#This Row],[Job Ref]]=\"\",\"\",Table1[[#This Row],[Travel Hours]])","v":""},{"$f":"IF(Table1[[#This Row],[Job Ref]]=\"\",\"\",Table1[[#This Row],[Travel Distance (km)]])","v":""},{"$f":"IF(Table1[[#This Row],[Job Ref]]=\"\",\"\",Table1[[#This Row],[Parts Description]])","v":""},{"$f":"IF(Table1[[#This Row],[Job Ref]]=\"\",\"\",Table1[[#This Row],[Parts Costs]])","v":""},{"$f":"IFERROR(Table13[[#This Row],[Labour Hours]]*Table13[[#This Row],[Cost  per unit (LH)]],0)","v":0},{"$f":"IFERROR(Table13[[#This Row],[Travel Hours]]*Table13[[#This Row],[Cost  per unit (TH)]],0)","v":0},{"$f":"IFERROR(Table13[[#This Row],[Travel Distance (km)]]*Table13[[#This Row],[Cost  per unit (TD)]],0)","v":0},{"$f":"IF(Table13[[#This Row],[Test and Tag]]=\"Yes\",Table13[[#This Row],[Cost per Unit (TT)]],0)","v":0},{"$f":"SUM(Table13[[#This Row],[Parts Costs]],Table13[[#This Row],[Travel KM Total ]],Table13[[#This Row],[Labour Hours Total ]],Table13[[#This Row],[Service Cost (Test and Tag)]],Table13[[#This Row],[Travel Hours Total]])","v":0},{"$f":"IF(Table13[[#This Row],[Charge type]]<>\"\",Company_Name,\"\")","v":""},{"$f":"IF(Table13[[#This Row],[Charge type]]<>\"\",ENZ_Reference_Num,\"\")","v":""},{"$f":"IF(Table13[[#This Row],[Charge type]]<>\"\",Invoice_date,\"\")","v":""},{"$f":"IF(Table13[[#This Row],[Charge type]]<>\"\",Invoice_Number,\"\")","v":""},85,85,0.64,15,{"$f":"IF(Table13[[#This Row],[TOTAL JOB COST]]>1999.99,\"OVER $2k - contact Enable\",\"\")","v":""}]
[{"$f":"IF(Table1[[#This Row],[Job Ref]]=\"\",\"\",Table1[[#This Row],[Job Ref]])","v":""},{"$f":"IF(Table1[[#This Row],[Job Ref]]=\"\",\"\",VLOOKUP(Table1[[#This Row],[Charge type]],Table3[],2,FALSE))","v":""},{"$f":"IF(Table1[[#This Row],[Job Ref]]=\"\",\"\",Table1[[#This Row],[Clients First Name]])","v":""},{"$f":"IF(Table1[[#This Row],[Job Ref]]=\"\",\"\",Table1[[#This Row],[Clients Surname]])","v":""},{"$f":"IF(Table1[[#This Row],[Job Ref]]=\"\",\"\",Table1[[#This Row],[Clients Address Street No]])","v":""},{"$f":"IF(Table1[[#This Row],[Job Ref]]=\"\",\"\",Table1[[#This Row],[Clients Address Street ]])","v":""},{"$f":"IF(Table1[[#This Row],[Job Ref]]=\"\",\"\",Table1[[#This Row],[Clients Address Town/City]])","v":""},{"$f":"IF(Table1[[#This Row],[Job Ref]]=\"\",\"\",Table1[[#This Row],[Clients Phone Number]])","v":""},{"$f":"IF(Table1[[#This Row],[Job Ref]]=\"\",\"\",Table1[[#This Row],[Date repair/service requested]])","v":""},{"$f":"IF(Table1[[#This Row],[Job Ref]]=\"\",\"\",Table1[[#This Row],[Date  repair/service completed]])","v":""},{"$f":"IF(Table1[[#This Row],[Job Ref]]=\"\",\"\",Table1[[#This Row],[Asset Number]])","v":""},{"$f":"IF(Table1[[#This Row],[Job Ref]]=\"\",\"\",Table1[[#This Row],[Asset Description]])","v":""},{"$f":"IF(Table1[[#This Row],[Job Ref]]=\"\",\"\",Table1[[#This Row],[Manufacturers Serial No.]])","v":""},{"$f":"IF(Table1[[#This Row],[Job Ref]]=\"\",\"\",Table1[[#This Row],[Test and Tag]])","v":""},{"$f":"IF(Table1[[#This Row],[Job Ref]]=\"\",\"\",Table1[[#This Row],[Beyond Economic Repair (BER)]])","v":""},{"$f":"IF(Table1[[#This Row],[Job Ref]]=\"\",\"\",Table1[[#This Row],[BER Comment]])","v":""},{"$f":"IF(Table1[[#This Row],[Job Ref]]=\"\",\"\",Table1[[#This Row],[Repair Description]])","v":""},{"$f":"IF(Table1[[#This Row],[Job Ref]]=\"\",\"\",Table1[[#This Row],[Labour Hours]])","v":""},{"$f":"IF(Table1[[#This Row],[Job Ref]]=\"\",\"\",Table1[[#This Row],[Travel Hours]])","v":""},{"$f":"IF(Table1[[#This Row],[Job Ref]]=\"\",\"\",Table1[[#This Row],[Travel Distance (km)]])","v":""},{"$f":"IF(Table1[[#This Row],[Job Ref]]=\"\",\"\",Table1[[#This Row],[Parts Description]])","v":""},{"$f":"IF(Table1[[#This Row],[Job Ref]]=\"\",\"\",Table1[[#This Row],[Parts Costs]])","v":""},{"$f":"IFERROR(Table13[[#This Row],[Labour Hours]]*Table13[[#This Row],[Cost  per unit (LH)]],0)","v":0},{"$f":"IFERROR(Table13[[#This Row],[Travel Hours]]*Table13[[#This Row],[Cost  per unit (TH)]],0)","v":0},{"$f":"IFERROR(Table13[[#This Row],[Travel Distance (km)]]*Table13[[#This Row],[Cost  per unit (TD)]],0)","v":0},{"$f":"IF(Table13[[#This Row],[Test and Tag]]=\"Yes\",Table13[[#This Row],[Cost per Unit (TT)]],0)","v":0},{"$f":"SUM(Table13[[#This Row],[Parts Costs]],Table13[[#This Row],[Travel KM Total ]],Table13[[#This Row],[Labour Hours Total ]],Table13[[#This Row],[Service Cost (Test and Tag)]],Table13[[#This Row],[Travel Hours Total]])","v":0},{"$f":"IF(Table13[[#This Row],[Charge type]]<>\"\",Company_Name,\"\")","v":""},{"$f":"IF(Table13[[#This Row],[Charge type]]<>\"\",ENZ_Reference_Num,\"\")","v":""},{"$f":"IF(Table13[[#This Row],[Charge type]]<>\"\",Invoice_date,\"\")","v":""},{"$f":"IF(Table13[[#This Row],[Charge type]]<>\"\",Invoice_Number,\"\")","v":""},85,85,0.64,15,{"$f":"IF(Table13[[#This Row],[TOTAL JOB COST]]>1999.99,\"OVER $2k - contact Enable\",\"\")","v":""}]
[{"$f":"IF(Table1[[#This Row],[Job Ref]]=\"\",\"\",Table1[[#This Row],[Job Ref]])","v":""},{"$f":"IF(Table1[[#This Row],[Job Ref]]=\"\",\"\",VLOOKUP(Table1[[#This Row],[Charge type]],Table3[],2,FALSE))","v":""},{"$f":"IF(Table1[[#This Row],[Job Ref]]=\"\",\"\",Table1[[#This Row],[Clients First Name]])","v":""},{"$f":"IF(Table1[[#This Row],[Job Ref]]=\"\",\"\",Table1[[#This Row],[Clients Surname]])","v":""},{"$f":"IF(Table1[[#This Row],[Job Ref]]=\"\",\"\",Table1[[#This Row],[Clients Address Street No]])","v":""},{"$f":"IF(Table1[[#This Row],[Job Ref]]=\"\",\"\",Table1[[#This Row],[Clients Address Street ]])","v":""},{"$f":"IF(Table1[[#This Row],[Job Ref]]=\"\",\"\",Table1[[#This Row],[Clients Address Town/City]])","v":""},{"$f":"IF(Table1[[#This Row],[Job Ref]]=\"\",\"\",Table1[[#This Row],[Clients Phone Number]])","v":""},{"$f":"IF(Table1[[#This Row],[Job Ref]]=\"\",\"\",Table1[[#This Row],[Date repair/service requested]])","v":""},{"$f":"IF(Table1[[#This Row],[Job Ref]]=\"\",\"\",Table1[[#This Row],[Date  repair/service completed]])","v":""},{"$f":"IF(Table1[[#This Row],[Job Ref]]=\"\",\"\",Table1[[#This Row],[Asset Number]])","v":""},{"$f":"IF(Table1[[#This Row],[Job Ref]]=\"\",\"\",Table1[[#This Row],[Asset Description]])","v":""},{"$f":"IF(Table1[[#This Row],[Job Ref]]=\"\",\"\",Table1[[#This Row],[Manufacturers Serial No.]])","v":""},{"$f":"IF(Table1[[#This Row],[Job Ref]]=\"\",\"\",Table1[[#This Row],[Test and Tag]])","v":""},{"$f":"IF(Table1[[#This Row],[Job Ref]]=\"\",\"\",Table1[[#This Row],[Beyond Economic Repair (BER)]])","v":""},{"$f":"IF(Table1[[#This Row],[Job Ref]]=\"\",\"\",Table1[[#This Row],[BER Comment]])","v":""},{"$f":"IF(Table1[[#This Row],[Job Ref]]=\"\",\"\",Table1[[#This Row],[Repair Description]])","v":""},{"$f":"IF(Table1[[#This Row],[Job Ref]]=\"\",\"\",Table1[[#This Row],[Labour Hours]])","v":""},{"$f":"IF(Table1[[#This Row],[Job Ref]]=\"\",\"\",Table1[[#This Row],[Travel Hours]])","v":""},{"$f":"IF(Table1[[#This Row],[Job Ref]]=\"\",\"\",Table1[[#This Row],[Travel Distance (km)]])","v":""},{"$f":"IF(Table1[[#This Row],[Job Ref]]=\"\",\"\",Table1[[#This Row],[Parts Description]])","v":""},{"$f":"IF(Table1[[#This Row],[Job Ref]]=\"\",\"\",Table1[[#This Row],[Parts Costs]])","v":""},{"$f":"IFERROR(Table13[[#This Row],[Labour Hours]]*Table13[[#This Row],[Cost  per unit (LH)]],0)","v":0},{"$f":"IFERROR(Table13[[#This Row],[Travel Hours]]*Table13[[#This Row],[Cost  per unit (TH)]],0)","v":0},{"$f":"IFERROR(Table13[[#This Row],[Travel Distance (km)]]*Table13[[#This Row],[Cost  per unit (TD)]],0)","v":0},{"$f":"IF(Table13[[#This Row],[Test and Tag]]=\"Yes\",Table13[[#This Row],[Cost per Unit (TT)]],0)","v":0},{"$f":"SUM(Table13[[#This Row],[Parts Costs]],Table13[[#This Row],[Travel KM Total ]],Table13[[#This Row],[Labour Hours Total ]],Table13[[#This Row],[Service Cost (Test and Tag)]],Table13[[#This Row],[Travel Hours Total]])","v":0},{"$f":"IF(Table13[[#This Row],[Charge type]]<>\"\",Company_Name,\"\")","v":""},{"$f":"IF(Table13[[#This Row],[Charge type]]<>\"\",ENZ_Reference_Num,\"\")","v":""},{"$f":"IF(Table13[[#This Row],[Charge type]]<>\"\",Invoice_date,\"\")","v":""},{"$f":"IF(Table13[[#This Row],[Charge type]]<>\"\",Invoice_Number,\"\")","v":""},85,85,0.64,15,{"$f":"IF(Table13[[#This Row],[TOTAL JOB COST]]>1999.99,\"OVER $2k - contact Enable\",\"\")","v":""}]
[{"$f":"IF(Table1[[#This Row],[Job Ref]]=\"\",\"\",Table1[[#This Row],[Job Ref]])","v":""},{"$f":"IF(Table1[[#This Row],[Job Ref]]=\"\",\"\",VLOOKUP(Table1[[#This Row],[Charge type]],Table3[],2,FALSE))","v":""},{"$f":"IF(Table1[[#This Row],[Job Ref]]=\"\",\"\",Table1[[#This Row],[Clients First Name]])","v":""},{"$f":"IF(Table1[[#This Row],[Job Ref]]=\"\",\"\",Table1[[#This Row],[Clients Surname]])","v":""},{"$f":"IF(Table1[[#This Row],[Job Ref]]=\"\",\"\",Table1[[#This Row],[Clients Address Street No]])","v":""},{"$f":"IF(Table1[[#This Row],[Job Ref]]=\"\",\"\",Table1[[#This Row],[Clients Address Street ]])","v":""},{"$f":"IF(Table1[[#This Row],[Job Ref]]=\"\",\"\",Table1[[#This Row],[Clients Address Town/City]])","v":""},{"$f":"IF(Table1[[#This Row],[Job Ref]]=\"\",\"\",Table1[[#This Row],[Clients Phone Number]])","v":""},{"$f":"IF(Table1[[#This Row],[Job Ref]]=\"\",\"\",Table1[[#This Row],[Date repair/service requested]])","v":""},{"$f":"IF(Table1[[#This Row],[Job Ref]]=\"\",\"\",Table1[[#This Row],[Date  repair/service completed]])","v":""},{"$f":"IF(Table1[[#This Row],[Job Ref]]=\"\",\"\",Table1[[#This Row],[Asset Number]])","v":""},{"$f":"IF(Table1[[#This Row],[Job Ref]]=\"\",\"\",Table1[[#This Row],[Asset Description]])","v":""},{"$f":"IF(Table1[[#This Row],[Job Ref]]=\"\",\"\",Table1[[#This Row],[Manufacturers Serial No.]])","v":""},{"$f":"IF(Table1[[#This Row],[Job Ref]]=\"\",\"\",Table1[[#This Row],[Test and Tag]])","v":""},{"$f":"IF(Table1[[#This Row],[Job Ref]]=\"\",\"\",Table1[[#This Row],[Beyond Economic Repair (BER)]])","v":""},{"$f":"IF(Table1[[#This Row],[Job Ref]]=\"\",\"\",Table1[[#This Row],[BER Comment]])","v":""},{"$f":"IF(Table1[[#This Row],[Job Ref]]=\"\",\"\",Table1[[#This Row],[Repair Description]])","v":""},{"$f":"IF(Table1[[#This Row],[Job Ref]]=\"\",\"\",Table1[[#This Row],[Labour Hours]])","v":""},{"$f":"IF(Table1[[#This Row],[Job Ref]]=\"\",\"\",Table1[[#This Row],[Travel Hours]])","v":""},{"$f":"IF(Table1[[#This Row],[Job Ref]]=\"\",\"\",Table1[[#This Row],[Travel Distance (km)]])","v":""},{"$f":"IF(Table1[[#This Row],[Job Ref]]=\"\",\"\",Table1[[#This Row],[Parts Description]])","v":""},{"$f":"IF(Table1[[#This Row],[Job Ref]]=\"\",\"\",Table1[[#This Row],[Parts Costs]])","v":""},{"$f":"IFERROR(Table13[[#This Row],[Labour Hours]]*Table13[[#This Row],[Cost  per unit (LH)]],0)","v":0},{"$f":"IFERROR(Table13[[#This Row],[Travel Hours]]*Table13[[#This Row],[Cost  per unit (TH)]],0)","v":0},{"$f":"IFERROR(Table13[[#This Row],[Travel Distance (km)]]*Table13[[#This Row],[Cost  per unit (TD)]],0)","v":0},{"$f":"IF(Table13[[#This Row],[Test and Tag]]=\"Yes\",Table13[[#This Row],[Cost per Unit (TT)]],0)","v":0},{"$f":"SUM(Table13[[#This Row],[Parts Costs]],Table13[[#This Row],[Travel KM Total ]],Table13[[#This Row],[Labour Hours Total ]],Table13[[#This Row],[Service Cost (Test and Tag)]],Table13[[#This Row],[Travel Hours Total]])","v":0},{"$f":"IF(Table13[[#This Row],[Charge type]]<>\"\",Company_Name,\"\")","v":""},{"$f":"IF(Table13[[#This Row],[Charge type]]<>\"\",ENZ_Reference_Num,\"\")","v":""},{"$f":"IF(Table13[[#This Row],[Charge type]]<>\"\",Invoice_date,\"\")","v":""},{"$f":"IF(Table13[[#This Row],[Charge type]]<>\"\",Invoice_Number,\"\")","v":""},85,85,0.64,15,{"$f":"IF(Table13[[#This Row],[TOTAL JOB COST]]>1999.99,\"OVER $2k - contact Enable\",\"\")","v":""}]
[{"$f":"IF(Table1[[#This Row],[Job Ref]]=\"\",\"\",Table1[[#This Row],[Job Ref]])","v":""},{"$f":"IF(Table1[[#This Row],[Job Ref]]=\"\",\"\",VLOOKUP(Table1[[#This Row],[Charge type]],Table3[],2,FALSE))","v":""},{"$f":"IF(Table1[[#This Row],[Job Ref]]=\"\",\"\",Table1[[#This Row],[Clients First Name]])","v":""},{"$f":"IF(Table1[[#This Row],[Job Ref]]=\"\",\"\",Table1[[#This Row],[Clients Surname]])","v":""},{"$f":"IF(Table1[[#This Row],[Job Ref]]=\"\",\"\",Table1[[#This Row],[Clients Address Street No]])","v":""},{"$f":"IF(Table1[[#This Row],[Job Ref]]=\"\",\"\",Table1[[#This Row],[Clients Address Street ]])","v":""},{"$f":"IF(Table1[[#This Row],[Job Ref]]=\"\",\"\",Table1[[#This Row],[Clients Address Town/City]])","v":""},{"$f":"IF(Table1[[#This Row],[Job Ref]]=\"\",\"\",Table1[[#This Row],[Clients Phone Number]])","v":""},{"$f":"IF(Table1[[#This Row],[Job Ref]]=\"\",\"\",Table1[[#This Row],[Date repair/service requested]])","v":""},{"$f":"IF(Table1[[#This Row],[Job Ref]]=\"\",\"\",Table1[[#This Row],[Date  repair/service completed]])","v":""},{"$f":"IF(Table1[[#This Row],[Job Ref]]=\"\",\"\",Table1[[#This Row],[Asset Number]])","v":""},{"$f":"IF(Table1[[#This Row],[Job Ref]]=\"\",\"\",Table1[[#This Row],[Asset Description]])","v":""},{"$f":"IF(Table1[[#This Row],[Job Ref]]=\"\",\"\",Table1[[#This Row],[Manufacturers Serial No.]])","v":""},{"$f":"IF(Table1[[#This Row],[Job Ref]]=\"\",\"\",Table1[[#This Row],[Test and Tag]])","v":""},{"$f":"IF(Table1[[#This Row],[Job Ref]]=\"\",\"\",Table1[[#This Row],[Beyond Economic Repair (BER)]])","v":""},{"$f":"IF(Table1[[#This Row],[Job Ref]]=\"\",\"\",Table1[[#This Row],[BER Comment]])","v":""},{"$f":"IF(Table1[[#This Row],[Job Ref]]=\"\",\"\",Table1[[#This Row],[Repair Description]])","v":""},{"$f":"IF(Table1[[#This Row],[Job Ref]]=\"\",\"\",Table1[[#This Row],[Labour Hours]])","v":""},{"$f":"IF(Table1[[#This Row],[Job Ref]]=\"\",\"\",Table1[[#This Row],[Travel Hours]])","v":""},{"$f":"IF(Table1[[#This Row],[Job Ref]]=\"\",\"\",Table1[[#This Row],[Travel Distance (km)]])","v":""},{"$f":"IF(Table1[[#This Row],[Job Ref]]=\"\",\"\",Table1[[#This Row],[Parts Description]])","v":""},{"$f":"IF(Table1[[#This Row],[Job Ref]]=\"\",\"\",Table1[[#This Row],[Parts Costs]])","v":""},{"$f":"IFERROR(Table13[[#This Row],[Labour Hours]]*Table13[[#This Row],[Cost  per unit (LH)]],0)","v":0},{"$f":"IFERROR(Table13[[#This Row],[Travel Hours]]*Table13[[#This Row],[Cost  per unit (TH)]],0)","v":0},{"$f":"IFERROR(Table13[[#This Row],[Travel Distance (km)]]*Table13[[#This Row],[Cost  per unit (TD)]],0)","v":0},{"$f":"IF(Table13[[#This Row],[Test and Tag]]=\"Yes\",Table13[[#This Row],[Cost per Unit (TT)]],0)","v":0},{"$f":"SUM(Table13[[#This Row],[Parts Costs]],Table13[[#This Row],[Travel KM Total ]],Table13[[#This Row],[Labour Hours Total ]],Table13[[#This Row],[Service Cost (Test and Tag)]],Table13[[#This Row],[Travel Hours Total]])","v":0},{"$f":"IF(Table13[[#This Row],[Charge type]]<>\"\",Company_Name,\"\")","v":""},{"$f":"IF(Table13[[#This Row],[Charge type]]<>\"\",ENZ_Reference_Num,\"\")","v":""},{"$f":"IF(Table13[[#This Row],[Charge type]]<>\"\",Invoice_date,\"\")","v":""},{"$f":"IF(Table13[[#This Row],[Charge type]]<>\"\",Invoice_Number,\"\")","v":""},85,85,0.64,15,{"$f":"IF(Table13[[#This Row],[TOTAL JOB COST]]>1999.99,\"OVER $2k - contact Enable\",\"\")","v":""}]
[{"$f":"IF(Table1[[#This Row],[Job Ref]]=\"\",\"\",Table1[[#This Row],[Job Ref]])","v":""},{"$f":"IF(Table1[[#This Row],[Job Ref]]=\"\",\"\",VLOOKUP(Table1[[#This Row],[Charge type]],Table3[],2,FALSE))","v":""},{"$f":"IF(Table1[[#This Row],[Job Ref]]=\"\",\"\",Table1[[#This Row],[Clients First Name]])","v":""},{"$f":"IF(Table1[[#This Row],[Job Ref]]=\"\",\"\",Table1[[#This Row],[Clients Surname]])","v":""},{"$f":"IF(Table1[[#This Row],[Job Ref]]=\"\",\"\",Table1[[#This Row],[Clients Address Street No]])","v":""},{"$f":"IF(Table1[[#This Row],[Job Ref]]=\"\",\"\",Table1[[#This Row],[Clients Address Street ]])","v":""},{"$f":"IF(Table1[[#This Row],[Job Ref]]=\"\",\"\",Table1[[#This Row],[Clients Address Town/City]])","v":""},{"$f":"IF(Table1[[#This Row],[Job Ref]]=\"\",\"\",Table1[[#This Row],[Clients Phone Number]])","v":""},{"$f":"IF(Table1[[#This Row],[Job Ref]]=\"\",\"\",Table1[[#This Row],[Date repair/service requested]])","v":""},{"$f":"IF(Table1[[#This Row],[Job Ref]]=\"\",\"\",Table1[[#This Row],[Date  repair/service completed]])","v":""},{"$f":"IF(Table1[[#This Row],[Job Ref]]=\"\",\"\",Table1[[#This Row],[Asset Number]])","v":""},{"$f":"IF(Table1[[#This Row],[Job Ref]]=\"\",\"\",Table1[[#This Row],[Asset Description]])","v":""},{"$f":"IF(Table1[[#This Row],[Job Ref]]=\"\",\"\",Table1[[#This Row],[Manufacturers Serial No.]])","v":""},{"$f":"IF(Table1[[#This Row],[Job Ref]]=\"\",\"\",Table1[[#This Row],[Test and Tag]])","v":""},{"$f":"IF(Table1[[#This Row],[Job Ref]]=\"\",\"\",Table1[[#This Row],[Beyond Economic Repair (BER)]])","v":""},{"$f":"IF(Table1[[#This Row],[Job Ref]]=\"\",\"\",Table1[[#This Row],[BER Comment]])","v":""},{"$f":"IF(Table1[[#This Row],[Job Ref]]=\"\",\"\",Table1[[#This Row],[Repair Description]])","v":""},{"$f":"IF(Table1[[#This Row],[Job Ref]]=\"\",\"\",Table1[[#This Row],[Labour Hours]])","v":""},{"$f":"IF(Table1[[#This Row],[Job Ref]]=\"\",\"\",Table1[[#This Row],[Travel Hours]])","v":""},{"$f":"IF(Table1[[#This Row],[Job Ref]]=\"\",\"\",Table1[[#This Row],[Travel Distance (km)]])","v":""},{"$f":"IF(Table1[[#This Row],[Job Ref]]=\"\",\"\",Table1[[#This Row],[Parts Description]])","v":""},{"$f":"IF(Table1[[#This Row],[Job Ref]]=\"\",\"\",Table1[[#This Row],[Parts Costs]])","v":""},{"$f":"IFERROR(Table13[[#This Row],[Labour Hours]]*Table13[[#This Row],[Cost  per unit (LH)]],0)","v":0},{"$f":"IFERROR(Table13[[#This Row],[Travel Hours]]*Table13[[#This Row],[Cost  per unit (TH)]],0)","v":0},{"$f":"IFERROR(Table13[[#This Row],[Travel Distance (km)]]*Table13[[#This Row],[Cost  per unit (TD)]],0)","v":0},{"$f":"IF(Table13[[#This Row],[Test and Tag]]=\"Yes\",Table13[[#This Row],[Cost per Unit (TT)]],0)","v":0},{"$f":"SUM(Table13[[#This Row],[Parts Costs]],Table13[[#This Row],[Travel KM Total ]],Table13[[#This Row],[Labour Hours Total ]],Table13[[#This Row],[Service Cost (Test and Tag)]],Table13[[#This Row],[Travel Hours Total]])","v":0},{"$f":"IF(Table13[[#This Row],[Charge type]]<>\"\",Company_Name,\"\")","v":""},{"$f":"IF(Table13[[#This Row],[Charge type]]<>\"\",ENZ_Reference_Num,\"\")","v":""},{"$f":"IF(Table13[[#This Row],[Charge type]]<>\"\",Invoice_date,\"\")","v":""},{"$f":"IF(Table13[[#This Row],[Charge type]]<>\"\",Invoice_Number,\"\")","v":""},85,85,0.64,15,{"$f":"IF(Table13[[#This Row],[TOTAL JOB COST]]>1999.99,\"OVER $2k - contact Enable\",\"\")","v":""}]
[{"$f":"IF(Table1[[#This Row],[Job Ref]]=\"\",\"\",Table1[[#This Row],[Job Ref]])","v":""},{"$f":"IF(Table1[[#This Row],[Job Ref]]=\"\",\"\",VLOOKUP(Table1[[#This Row],[Charge type]],Table3[],2,FALSE))","v":""},{"$f":"IF(Table1[[#This Row],[Job Ref]]=\"\",\"\",Table1[[#This Row],[Clients First Name]])","v":""},{"$f":"IF(Table1[[#This Row],[Job Ref]]=\"\",\"\",Table1[[#This Row],[Clients Surname]])","v":""},{"$f":"IF(Table1[[#This Row],[Job Ref]]=\"\",\"\",Table1[[#This Row],[Clients Address Street No]])","v":""},{"$f":"IF(Table1[[#This Row],[Job Ref]]=\"\",\"\",Table1[[#This Row],[Clients Address Street ]])","v":""},{"$f":"IF(Table1[[#This Row],[Job Ref]]=\"\",\"\",Table1[[#This Row],[Clients Address Town/City]])","v":""},{"$f":"IF(Table1[[#This Row],[Job Ref]]=\"\",\"\",Table1[[#This Row],[Clients Phone Number]])","v":""},{"$f":"IF(Table1[[#This Row],[Job Ref]]=\"\",\"\",Table1[[#This Row],[Date repair/service requested]])","v":""},{"$f":"IF(Table1[[#This Row],[Job Ref]]=\"\",\"\",Table1[[#This Row],[Date  repair/service completed]])","v":""},{"$f":"IF(Table1[[#This Row],[Job Ref]]=\"\",\"\",Table1[[#This Row],[Asset Number]])","v":""},{"$f":"IF(Table1[[#This Row],[Job Ref]]=\"\",\"\",Table1[[#This Row],[Asset Description]])","v":""},{"$f":"IF(Table1[[#This Row],[Job Ref]]=\"\",\"\",Table1[[#This Row],[Manufacturers Serial No.]])","v":""},{"$f":"IF(Table1[[#This Row],[Job Ref]]=\"\",\"\",Table1[[#This Row],[Test and Tag]])","v":""},{"$f":"IF(Table1[[#This Row],[Job Ref]]=\"\",\"\",Table1[[#This Row],[Beyond Economic Repair (BER)]])","v":""},{"$f":"IF(Table1[[#This Row],[Job Ref]]=\"\",\"\",Table1[[#This Row],[BER Comment]])","v":""},{"$f":"IF(Table1[[#This Row],[Job Ref]]=\"\",\"\",Table1[[#This Row],[Repair Description]])","v":""},{"$f":"IF(Table1[[#This Row],[Job Ref]]=\"\",\"\",Table1[[#This Row],[Labour Hours]])","v":""},{"$f":"IF(Table1[[#This Row],[Job Ref]]=\"\",\"\",Table1[[#This Row],[Travel Hours]])","v":""},{"$f":"IF(Table1[[#This Row],[Job Ref]]=\"\",\"\",Table1[[#This Row],[Travel Distance (km)]])","v":""},{"$f":"IF(Table1[[#This Row],[Job Ref]]=\"\",\"\",Table1[[#This Row],[Parts Description]])","v":""},{"$f":"IF(Table1[[#This Row],[Job Ref]]=\"\",\"\",Table1[[#This Row],[Parts Costs]])","v":""},{"$f":"IFERROR(Table13[[#This Row],[Labour Hours]]*Table13[[#This Row],[Cost  per unit (LH)]],0)","v":0},{"$f":"IFERROR(Table13[[#This Row],[Travel Hours]]*Table13[[#This Row],[Cost  per unit (TH)]],0)","v":0},{"$f":"IFERROR(Table13[[#This Row],[Travel Distance (km)]]*Table13[[#This Row],[Cost  per unit (TD)]],0)","v":0},{"$f":"IF(Table13[[#This Row],[Test and Tag]]=\"Yes\",Table13[[#This Row],[Cost per Unit (TT)]],0)","v":0},{"$f":"SUM(Table13[[#This Row],[Parts Costs]],Table13[[#This Row],[Travel KM Total ]],Table13[[#This Row],[Labour Hours Total ]],Table13[[#This Row],[Service Cost (Test and Tag)]],Table13[[#This Row],[Travel Hours Total]])","v":0},{"$f":"IF(Table13[[#This Row],[Charge type]]<>\"\",Company_Name,\"\")","v":""},{"$f":"IF(Table13[[#This Row],[Charge type]]<>\"\",ENZ_Reference_Num,\"\")","v":""},{"$f":"IF(Table13[[#This Row],[Charge type]]<>\"\",Invoice_date,\"\")","v":""},{"$f":"IF(Table13[[#This Row],[Charge type]]<>\"\",Invoice_Number,\"\")","v":""},85,85,0.64,15,{"$f":"IF(Table13[[#This Row],[TOTAL JOB COST]]>1999.99,\"OVER $2k - contact Enable\",\"\")","v":""}]
[{"$f":"IF(Table1[[#This Row],[Job Ref]]=\"\",\"\",Table1[[#This Row],[Job Ref]])","v":""},{"$f":"IF(Table1[[#This Row],[Job Ref]]=\"\",\"\",VLOOKUP(Table1[[#This Row],[Charge type]],Table3[],2,FALSE))","v":""},{"$f":"IF(Table1[[#This Row],[Job Ref]]=\"\",\"\",Table1[[#This Row],[Clients First Name]])","v":""},{"$f":"IF(Table1[[#This Row],[Job Ref]]=\"\",\"\",Table1[[#This Row],[Clients Surname]])","v":""},{"$f":"IF(Table1[[#This Row],[Job Ref]]=\"\",\"\",Table1[[#This Row],[Clients Address Street No]])","v":""},{"$f":"IF(Table1[[#This Row],[Job Ref]]=\"\",\"\",Table1[[#This Row],[Clients Address Street ]])","v":""},{"$f":"IF(Table1[[#This Row],[Job Ref]]=\"\",\"\",Table1[[#This Row],[Clients Address Town/City]])","v":""},{"$f":"IF(Table1[[#This Row],[Job Ref]]=\"\",\"\",Table1[[#This Row],[Clients Phone Number]])","v":""},{"$f":"IF(Table1[[#This Row],[Job Ref]]=\"\",\"\",Table1[[#This Row],[Date repair/service requested]])","v":""},{"$f":"IF(Table1[[#This Row],[Job Ref]]=\"\",\"\",Table1[[#This Row],[Date  repair/service completed]])","v":""},{"$f":"IF(Table1[[#This Row],[Job Ref]]=\"\",\"\",Table1[[#This Row],[Asset Number]])","v":""},{"$f":"IF(Table1[[#This Row],[Job Ref]]=\"\",\"\",Table1[[#This Row],[Asset Description]])","v":""},{"$f":"IF(Table1[[#This Row],[Job Ref]]=\"\",\"\",Table1[[#This Row],[Manufacturers Serial No.]])","v":""},{"$f":"IF(Table1[[#This Row],[Job Ref]]=\"\",\"\",Table1[[#This Row],[Test and Tag]])","v":""},{"$f":"IF(Table1[[#This Row],[Job Ref]]=\"\",\"\",Table1[[#This Row],[Beyond Economic Repair (BER)]])","v":""},{"$f":"IF(Table1[[#This Row],[Job Ref]]=\"\",\"\",Table1[[#This Row],[BER Comment]])","v":""},{"$f":"IF(Table1[[#This Row],[Job Ref]]=\"\",\"\",Table1[[#This Row],[Repair Description]])","v":""},{"$f":"IF(Table1[[#This Row],[Job Ref]]=\"\",\"\",Table1[[#This Row],[Labour Hours]])","v":""},{"$f":"IF(Table1[[#This Row],[Job Ref]]=\"\",\"\",Table1[[#This Row],[Travel Hours]])","v":""},{"$f":"IF(Table1[[#This Row],[Job Ref]]=\"\",\"\",Table1[[#This Row],[Travel Distance (km)]])","v":""},{"$f":"IF(Table1[[#This Row],[Job Ref]]=\"\",\"\",Table1[[#This Row],[Parts Description]])","v":""},{"$f":"IF(Table1[[#This Row],[Job Ref]]=\"\",\"\",Table1[[#This Row],[Parts Costs]])","v":""},{"$f":"IFERROR(Table13[[#This Row],[Labour Hours]]*Table13[[#This Row],[Cost  per unit (LH)]],0)","v":0},{"$f":"IFERROR(Table13[[#This Row],[Travel Hours]]*Table13[[#This Row],[Cost  per unit (TH)]],0)","v":0},{"$f":"IFERROR(Table13[[#This Row],[Travel Distance (km)]]*Table13[[#This Row],[Cost  per unit (TD)]],0)","v":0},{"$f":"IF(Table13[[#This Row],[Test and Tag]]=\"Yes\",Table13[[#This Row],[Cost per Unit (TT)]],0)","v":0},{"$f":"SUM(Table13[[#This Row],[Parts Costs]],Table13[[#This Row],[Travel KM Total ]],Table13[[#This Row],[Labour Hours Total ]],Table13[[#This Row],[Service Cost (Test and Tag)]],Table13[[#This Row],[Travel Hours Total]])","v":0},{"$f":"IF(Table13[[#This Row],[Charge type]]<>\"\",Company_Name,\"\")","v":""},{"$f":"IF(Table13[[#This Row],[Charge type]]<>\"\",ENZ_Reference_Num,\"\")","v":""},{"$f":"IF(Table13[[#This Row],[Charge type]]<>\"\",Invoice_date,\"\")","v":""},{"$f":"IF(Table13[[#This Row],[Charge type]]<>\"\",Invoice_Number,\"\")","v":""},85,85,0.64,15,{"$f":"IF(Table13[[#This Row],[TOTAL JOB COST]]>1999.99,\"OVER $2k - contact Enable\",\"\")","v":""}]
[{"$f":"IF(Table1[[#This Row],[Job Ref]]=\"\",\"\",Table1[[#This Row],[Job Ref]])","v":""},{"$f":"IF(Table1[[#This Row],[Job Ref]]=\"\",\"\",VLOOKUP(Table1[[#This Row],[Charge type]],Table3[],2,FALSE))","v":""},{"$f":"IF(Table1[[#This Row],[Job Ref]]=\"\",\"\",Table1[[#This Row],[Clients First Name]])","v":""},{"$f":"IF(Table1[[#This Row],[Job Ref]]=\"\",\"\",Table1[[#This Row],[Clients Surname]])","v":""},{"$f":"IF(Table1[[#This Row],[Job Ref]]=\"\",\"\",Table1[[#This Row],[Clients Address Street No]])","v":""},{"$f":"IF(Table1[[#This Row],[Job Ref]]=\"\",\"\",Table1[[#This Row],[Clients Address Street ]])","v":""},{"$f":"IF(Table1[[#This Row],[Job Ref]]=\"\",\"\",Table1[[#This Row],[Clients Address Town/City]])","v":""},{"$f":"IF(Table1[[#This Row],[Job Ref]]=\"\",\"\",Table1[[#This Row],[Clients Phone Number]])","v":""},{"$f":"IF(Table1[[#This Row],[Job Ref]]=\"\",\"\",Table1[[#This Row],[Date repair/service requested]])","v":""},{"$f":"IF(Table1[[#This Row],[Job Ref]]=\"\",\"\",Table1[[#This Row],[Date  repair/service completed]])","v":""},{"$f":"IF(Table1[[#This Row],[Job Ref]]=\"\",\"\",Table1[[#This Row],[Asset Number]])","v":""},{"$f":"IF(Table1[[#This Row],[Job Ref]]=\"\",\"\",Table1[[#This Row],[Asset Description]])","v":""},{"$f":"IF(Table1[[#This Row],[Job Ref]]=\"\",\"\",Table1[[#This Row],[Manufacturers Serial No.]])","v":""},{"$f":"IF(Table1[[#This Row],[Job Ref]]=\"\",\"\",Table1[[#This Row],[Test and Tag]])","v":""},{"$f":"IF(Table1[[#This Row],[Job Ref]]=\"\",\"\",Table1[[#This Row],[Beyond Economic Repair (BER)]])","v":""},{"$f":"IF(Table1[[#This Row],[Job Ref]]=\"\",\"\",Table1[[#This Row],[BER Comment]])","v":""},{"$f":"IF(Table1[[#This Row],[Job Ref]]=\"\",\"\",Table1[[#This Row],[Repair Description]])","v":""},{"$f":"IF(Table1[[#This Row],[Job Ref]]=\"\",\"\",Table1[[#This Row],[Labour Hours]])","v":""},{"$f":"IF(Table1[[#This Row],[Job Ref]]=\"\",\"\",Table1[[#This Row],[Travel Hours]])","v":""},{"$f":"IF(Table1[[#This Row],[Job Ref]]=\"\",\"\",Table1[[#This Row],[Travel Distance (km)]])","v":""},{"$f":"IF(Table1[[#This Row],[Job Ref]]=\"\",\"\",Table1[[#This Row],[Parts Description]])","v":""},{"$f":"IF(Table1[[#This Row],[Job Ref]]=\"\",\"\",Table1[[#This Row],[Parts Costs]])","v":""},{"$f":"IFERROR(Table13[[#This Row],[Labour Hours]]*Table13[[#This Row],[Cost  per unit (LH)]],0)","v":0},{"$f":"IFERROR(Table13[[#This Row],[Travel Hours]]*Table13[[#This Row],[Cost  per unit (TH)]],0)","v":0},{"$f":"IFERROR(Table13[[#This Row],[Travel Distance (km)]]*Table13[[#This Row],[Cost  per unit (TD)]],0)","v":0},{"$f":"IF(Table13[[#This Row],[Test and Tag]]=\"Yes\",Table13[[#This Row],[Cost per Unit (TT)]],0)","v":0},{"$f":"SUM(Table13[[#This Row],[Parts Costs]],Table13[[#This Row],[Travel KM Total ]],Table13[[#This Row],[Labour Hours Total ]],Table13[[#This Row],[Service Cost (Test and Tag)]],Table13[[#This Row],[Travel Hours Total]])","v":0},{"$f":"IF(Table13[[#This Row],[Charge type]]<>\"\",Company_Name,\"\")","v":""},{"$f":"IF(Table13[[#This Row],[Charge type]]<>\"\",ENZ_Reference_Num,\"\")","v":""},{"$f":"IF(Table13[[#This Row],[Charge type]]<>\"\",Invoice_date,\"\")","v":""},{"$f":"IF(Table13[[#This Row],[Charge type]]<>\"\",Invoice_Number,\"\")","v":""},85,85,0.64,15,{"$f":"IF(Table13[[#This Row],[TOTAL JOB COST]]>1999.99,\"OVER $2k - contact Enable\",\"\")","v":""}]
[{"$f":"IF(Table1[[#This Row],[Job Ref]]=\"\",\"\",Table1[[#This Row],[Job Ref]])","v":""},{"$f":"IF(Table1[[#This Row],[Job Ref]]=\"\",\"\",VLOOKUP(Table1[[#This Row],[Charge type]],Table3[],2,FALSE))","v":""},{"$f":"IF(Table1[[#This Row],[Job Ref]]=\"\",\"\",Table1[[#This Row],[Clients First Name]])","v":""},{"$f":"IF(Table1[[#This Row],[Job Ref]]=\"\",\"\",Table1[[#This Row],[Clients Surname]])","v":""},{"$f":"IF(Table1[[#This Row],[Job Ref]]=\"\",\"\",Table1[[#This Row],[Clients Address Street No]])","v":""},{"$f":"IF(Table1[[#This Row],[Job Ref]]=\"\",\"\",Table1[[#This Row],[Clients Address Street ]])","v":""},{"$f":"IF(Table1[[#This Row],[Job Ref]]=\"\",\"\",Table1[[#This Row],[Clients Address Town/City]])","v":""},{"$f":"IF(Table1[[#This Row],[Job Ref]]=\"\",\"\",Table1[[#This Row],[Clients Phone Number]])","v":""},{"$f":"IF(Table1[[#This Row],[Job Ref]]=\"\",\"\",Table1[[#This Row],[Date repair/service requested]])","v":""},{"$f":"IF(Table1[[#This Row],[Job Ref]]=\"\",\"\",Table1[[#This Row],[Date  repair/service completed]])","v":""},{"$f":"IF(Table1[[#This Row],[Job Ref]]=\"\",\"\",Table1[[#This Row],[Asset Number]])","v":""},{"$f":"IF(Table1[[#This Row],[Job Ref]]=\"\",\"\",Table1[[#This Row],[Asset Description]])","v":""},{"$f":"IF(Table1[[#This Row],[Job Ref]]=\"\",\"\",Table1[[#This Row],[Manufacturers Serial No.]])","v":""},{"$f":"IF(Table1[[#This Row],[Job Ref]]=\"\",\"\",Table1[[#This Row],[Test and Tag]])","v":""},{"$f":"IF(Table1[[#This Row],[Job Ref]]=\"\",\"\",Table1[[#This Row],[Beyond Economic Repair (BER)]])","v":""},{"$f":"IF(Table1[[#This Row],[Job Ref]]=\"\",\"\",Table1[[#This Row],[BER Comment]])","v":""},{"$f":"IF(Table1[[#This Row],[Job Ref]]=\"\",\"\",Table1[[#This Row],[Repair Description]])","v":""},{"$f":"IF(Table1[[#This Row],[Job Ref]]=\"\",\"\",Table1[[#This Row],[Labour Hours]])","v":""},{"$f":"IF(Table1[[#This Row],[Job Ref]]=\"\",\"\",Table1[[#This Row],[Travel Hours]])","v":""},{"$f":"IF(Table1[[#This Row],[Job Ref]]=\"\",\"\",Table1[[#This Row],[Travel Distance (km)]])","v":""},{"$f":"IF(Table1[[#This Row],[Job Ref]]=\"\",\"\",Table1[[#This Row],[Parts Description]])","v":""},{"$f":"IF(Table1[[#This Row],[Job Ref]]=\"\",\"\",Table1[[#This Row],[Parts Costs]])","v":""},{"$f":"IFERROR(Table13[[#This Row],[Labour Hours]]*Table13[[#This Row],[Cost  per unit (LH)]],0)","v":0},{"$f":"IFERROR(Table13[[#This Row],[Travel Hours]]*Table13[[#This Row],[Cost  per unit (TH)]],0)","v":0},{"$f":"IFERROR(Table13[[#This Row],[Travel Distance (km)]]*Table13[[#This Row],[Cost  per unit (TD)]],0)","v":0},{"$f":"IF(Table13[[#This Row],[Test and Tag]]=\"Yes\",Table13[[#This Row],[Cost per Unit (TT)]],0)","v":0},{"$f":"SUM(Table13[[#This Row],[Parts Costs]],Table13[[#This Row],[Travel KM Total ]],Table13[[#This Row],[Labour Hours Total ]],Table13[[#This Row],[Service Cost (Test and Tag)]],Table13[[#This Row],[Travel Hours Total]])","v":0},{"$f":"IF(Table13[[#This Row],[Charge type]]<>\"\",Company_Name,\"\")","v":""},{"$f":"IF(Table13[[#This Row],[Charge type]]<>\"\",ENZ_Reference_Num,\"\")","v":""},{"$f":"IF(Table13[[#This Row],[Charge type]]<>\"\",Invoice_date,\"\")","v":""},{"$f":"IF(Table13[[#This Row],[Charge type]]<>\"\",Invoice_Number,\"\")","v":""},85,85,0.64,15,{"$f":"IF(Table13[[#This Row],[TOTAL JOB COST]]>1999.99,\"OVER $2k - contact Enable\",\"\")","v":""}]
[{"$f":"IF(Table1[[#This Row],[Job Ref]]=\"\",\"\",Table1[[#This Row],[Job Ref]])","v":""},{"$f":"IF(Table1[[#This Row],[Job Ref]]=\"\",\"\",VLOOKUP(Table1[[#This Row],[Charge type]],Table3[],2,FALSE))","v":""},{"$f":"IF(Table1[[#This Row],[Job Ref]]=\"\",\"\",Table1[[#This Row],[Clients First Name]])","v":""},{"$f":"IF(Table1[[#This Row],[Job Ref]]=\"\",\"\",Table1[[#This Row],[Clients Surname]])","v":""},{"$f":"IF(Table1[[#This Row],[Job Ref]]=\"\",\"\",Table1[[#This Row],[Clients Address Street No]])","v":""},{"$f":"IF(Table1[[#This Row],[Job Ref]]=\"\",\"\",Table1[[#This Row],[Clients Address Street ]])","v":""},{"$f":"IF(Table1[[#This Row],[Job Ref]]=\"\",\"\",Table1[[#This Row],[Clients Address Town/City]])","v":""},{"$f":"IF(Table1[[#This Row],[Job Ref]]=\"\",\"\",Table1[[#This Row],[Clients Phone Number]])","v":""},{"$f":"IF(Table1[[#This Row],[Job Ref]]=\"\",\"\",Table1[[#This Row],[Date repair/service requested]])","v":""},{"$f":"IF(Table1[[#This Row],[Job Ref]]=\"\",\"\",Table1[[#This Row],[Date  repair/service completed]])","v":""},{"$f":"IF(Table1[[#This Row],[Job Ref]]=\"\",\"\",Table1[[#This Row],[Asset Number]])","v":""},{"$f":"IF(Table1[[#This Row],[Job Ref]]=\"\",\"\",Table1[[#This Row],[Asset Description]])","v":""},{"$f":"IF(Table1[[#This Row],[Job Ref]]=\"\",\"\",Table1[[#This Row],[Manufacturers Serial No.]])","v":""},{"$f":"IF(Table1[[#This Row],[Job Ref]]=\"\",\"\",Table1[[#This Row],[Test and Tag]])","v":""},{"$f":"IF(Table1[[#This Row],[Job Ref]]=\"\",\"\",Table1[[#This Row],[Beyond Economic Repair (BER)]])","v":""},{"$f":"IF(Table1[[#This Row],[Job Ref]]=\"\",\"\",Table1[[#This Row],[BER Comment]])","v":""},{"$f":"IF(Table1[[#This Row],[Job Ref]]=\"\",\"\",Table1[[#This Row],[Repair Description]])","v":""},{"$f":"IF(Table1[[#This Row],[Job Ref]]=\"\",\"\",Table1[[#This Row],[Labour Hours]])","v":""},{"$f":"IF(Table1[[#This Row],[Job Ref]]=\"\",\"\",Table1[[#This Row],[Travel Hours]])","v":""},{"$f":"IF(Table1[[#This Row],[Job Ref]]=\"\",\"\",Table1[[#This Row],[Travel Distance (km)]])","v":""},{"$f":"IF(Table1[[#This Row],[Job Ref]]=\"\",\"\",Table1[[#This Row],[Parts Description]])","v":""},{"$f":"IF(Table1[[#This Row],[Job Ref]]=\"\",\"\",Table1[[#This Row],[Parts Costs]])","v":""},{"$f":"IFERROR(Table13[[#This Row],[Labour Hours]]*Table13[[#This Row],[Cost  per unit (LH)]],0)","v":0},{"$f":"IFERROR(Table13[[#This Row],[Travel Hours]]*Table13[[#This Row],[Cost  per unit (TH)]],0)","v":0},{"$f":"IFERROR(Table13[[#This Row],[Travel Distance (km)]]*Table13[[#This Row],[Cost  per unit (TD)]],0)","v":0},{"$f":"IF(Table13[[#This Row],[Test and Tag]]=\"Yes\",Table13[[#This Row],[Cost per Unit (TT)]],0)","v":0},{"$f":"SUM(Table13[[#This Row],[Parts Costs]],Table13[[#This Row],[Travel KM Total ]],Table13[[#This Row],[Labour Hours Total ]],Table13[[#This Row],[Service Cost (Test and Tag)]],Table13[[#This Row],[Travel Hours Total]])","v":0},{"$f":"IF(Table13[[#This Row],[Charge type]]<>\"\",Company_Name,\"\")","v":""},{"$f":"IF(Table13[[#This Row],[Charge type]]<>\"\",ENZ_Reference_Num,\"\")","v":""},{"$f":"IF(Table13[[#This Row],[Charge type]]<>\"\",Invoice_date,\"\")","v":""},{"$f":"IF(Table13[[#This Row],[Charge type]]<>\"\",Invoice_Number,\"\")","v":""},85,85,0.64,15,{"$f":"IF(Table13[[#This Row],[TOTAL JOB COST]]>1999.99,\"OVER $2k - contact Enable\",\"\")","v":""}]
[{"$f":"IF(Table1[[#This Row],[Job Ref]]=\"\",\"\",Table1[[#This Row],[Job Ref]])","v":""},{"$f":"IF(Table1[[#This Row],[Job Ref]]=\"\",\"\",VLOOKUP(Table1[[#This Row],[Charge type]],Table3[],2,FALSE))","v":""},{"$f":"IF(Table1[[#This Row],[Job Ref]]=\"\",\"\",Table1[[#This Row],[Clients First Name]])","v":""},{"$f":"IF(Table1[[#This Row],[Job Ref]]=\"\",\"\",Table1[[#This Row],[Clients Surname]])","v":""},{"$f":"IF(Table1[[#This Row],[Job Ref]]=\"\",\"\",Table1[[#This Row],[Clients Address Street No]])","v":""},{"$f":"IF(Table1[[#This Row],[Job Ref]]=\"\",\"\",Table1[[#This Row],[Clients Address Street ]])","v":""},{"$f":"IF(Table1[[#This Row],[Job Ref]]=\"\",\"\",Table1[[#This Row],[Clients Address Town/City]])","v":""},{"$f":"IF(Table1[[#This Row],[Job Ref]]=\"\",\"\",Table1[[#This Row],[Clients Phone Number]])","v":""},{"$f":"IF(Table1[[#This Row],[Job Ref]]=\"\",\"\",Table1[[#This Row],[Date repair/service requested]])","v":""},{"$f":"IF(Table1[[#This Row],[Job Ref]]=\"\",\"\",Table1[[#This Row],[Date  repair/service completed]])","v":""},{"$f":"IF(Table1[[#This Row],[Job Ref]]=\"\",\"\",Table1[[#This Row],[Asset Number]])","v":""},{"$f":"IF(Table1[[#This Row],[Job Ref]]=\"\",\"\",Table1[[#This Row],[Asset Description]])","v":""},{"$f":"IF(Table1[[#This Row],[Job Ref]]=\"\",\"\",Table1[[#This Row],[Manufacturers Serial No.]])","v":""},{"$f":"IF(Table1[[#This Row],[Job Ref]]=\"\",\"\",Table1[[#This Row],[Test and Tag]])","v":""},{"$f":"IF(Table1[[#This Row],[Job Ref]]=\"\",\"\",Table1[[#This Row],[Beyond Economic Repair (BER)]])","v":""},{"$f":"IF(Table1[[#This Row],[Job Ref]]=\"\",\"\",Table1[[#This Row],[BER Comment]])","v":""},{"$f":"IF(Table1[[#This Row],[Job Ref]]=\"\",\"\",Table1[[#This Row],[Repair Description]])","v":""},{"$f":"IF(Table1[[#This Row],[Job Ref]]=\"\",\"\",Table1[[#This Row],[Labour Hours]])","v":""},{"$f":"IF(Table1[[#This Row],[Job Ref]]=\"\",\"\",Table1[[#This Row],[Travel Hours]])","v":""},{"$f":"IF(Table1[[#This Row],[Job Ref]]=\"\",\"\",Table1[[#This Row],[Travel Distance (km)]])","v":""},{"$f":"IF(Table1[[#This Row],[Job Ref]]=\"\",\"\",Table1[[#This Row],[Parts Description]])","v":""},{"$f":"IF(Table1[[#This Row],[Job Ref]]=\"\",\"\",Table1[[#This Row],[Parts Costs]])","v":""},{"$f":"IFERROR(Table13[[#This Row],[Labour Hours]]*Table13[[#This Row],[Cost  per unit (LH)]],0)","v":0},{"$f":"IFERROR(Table13[[#This Row],[Travel Hours]]*Table13[[#This Row],[Cost  per unit (TH)]],0)","v":0},{"$f":"IFERROR(Table13[[#This Row],[Travel Distance (km)]]*Table13[[#This Row],[Cost  per unit (TD)]],0)","v":0},{"$f":"IF(Table13[[#This Row],[Test and Tag]]=\"Yes\",Table13[[#This Row],[Cost per Unit (TT)]],0)","v":0},{"$f":"SUM(Table13[[#This Row],[Parts Costs]],Table13[[#This Row],[Travel KM Total ]],Table13[[#This Row],[Labour Hours Total ]],Table13[[#This Row],[Service Cost (Test and Tag)]],Table13[[#This Row],[Travel Hours Total]])","v":0},{"$f":"IF(Table13[[#This Row],[Charge type]]<>\"\",Company_Name,\"\")","v":""},{"$f":"IF(Table13[[#This Row],[Charge type]]<>\"\",ENZ_Reference_Num,\"\")","v":""},{"$f":"IF(Table13[[#This Row],[Charge type]]<>\"\",Invoice_date,\"\")","v":""},{"$f":"IF(Table13[[#This Row],[Charge type]]<>\"\",Invoice_Number,\"\")","v":""},85,85,0.64,15,{"$f":"IF(Table13[[#This Row],[TOTAL JOB COST]]>1999.99,\"OVER $2k - contact Enable\",\"\")","v":""}]
[{"$f":"IF(Table1[[#This Row],[Job Ref]]=\"\",\"\",Table1[[#This Row],[Job Ref]])","v":""},{"$f":"IF(Table1[[#This Row],[Job Ref]]=\"\",\"\",VLOOKUP(Table1[[#This Row],[Charge type]],Table3[],2,FALSE))","v":""},{"$f":"IF(Table1[[#This Row],[Job Ref]]=\"\",\"\",Table1[[#This Row],[Clients First Name]])","v":""},{"$f":"IF(Table1[[#This Row],[Job Ref]]=\"\",\"\",Table1[[#This Row],[Clients Surname]])","v":""},{"$f":"IF(Table1[[#This Row],[Job Ref]]=\"\",\"\",Table1[[#This Row],[Clients Address Street No]])","v":""},{"$f":"IF(Table1[[#This Row],[Job Ref]]=\"\",\"\",Table1[[#This Row],[Clients Address Street ]])","v":""},{"$f":"IF(Table1[[#This Row],[Job Ref]]=\"\",\"\",Table1[[#This Row],[Clients Address Town/City]])","v":""},{"$f":"IF(Table1[[#This Row],[Job Ref]]=\"\",\"\",Table1[[#This Row],[Clients Phone Number]])","v":""},{"$f":"IF(Table1[[#This Row],[Job Ref]]=\"\",\"\",Table1[[#This Row],[Date repair/service requested]])","v":""},{"$f":"IF(Table1[[#This Row],[Job Ref]]=\"\",\"\",Table1[[#This Row],[Date  repair/service completed]])","v":""},{"$f":"IF(Table1[[#This Row],[Job Ref]]=\"\",\"\",Table1[[#This Row],[Asset Number]])","v":""},{"$f":"IF(Table1[[#This Row],[Job Ref]]=\"\",\"\",Table1[[#This Row],[Asset Description]])","v":""},{"$f":"IF(Table1[[#This Row],[Job Ref]]=\"\",\"\",Table1[[#This Row],[Manufacturers Serial No.]])","v":""},{"$f":"IF(Table1[[#This Row],[Job Ref]]=\"\",\"\",Table1[[#This Row],[Test and Tag]])","v":""},{"$f":"IF(Table1[[#This Row],[Job Ref]]=\"\",\"\",Table1[[#This Row],[Beyond Economic Repair (BER)]])","v":""},{"$f":"IF(Table1[[#This Row],[Job Ref]]=\"\",\"\",Table1[[#This Row],[BER Comment]])","v":""},{"$f":"IF(Table1[[#This Row],[Job Ref]]=\"\",\"\",Table1[[#This Row],[Repair Description]])","v":""},{"$f":"IF(Table1[[#This Row],[Job Ref]]=\"\",\"\",Table1[[#This Row],[Labour Hours]])","v":""},{"$f":"IF(Table1[[#This Row],[Job Ref]]=\"\",\"\",Table1[[#This Row],[Travel Hours]])","v":""},{"$f":"IF(Table1[[#This Row],[Job Ref]]=\"\",\"\",Table1[[#This Row],[Travel Distance (km)]])","v":""},{"$f":"IF(Table1[[#This Row],[Job Ref]]=\"\",\"\",Table1[[#This Row],[Parts Description]])","v":""},{"$f":"IF(Table1[[#This Row],[Job Ref]]=\"\",\"\",Table1[[#This Row],[Parts Costs]])","v":""},{"$f":"IFERROR(Table13[[#This Row],[Labour Hours]]*Table13[[#This Row],[Cost  per unit (LH)]],0)","v":0},{"$f":"IFERROR(Table13[[#This Row],[Travel Hours]]*Table13[[#This Row],[Cost  per unit (TH)]],0)","v":0},{"$f":"IFERROR(Table13[[#This Row],[Travel Distance (km)]]*Table13[[#This Row],[Cost  per unit (TD)]],0)","v":0},{"$f":"IF(Table13[[#This Row],[Test and Tag]]=\"Yes\",Table13[[#This Row],[Cost per Unit (TT)]],0)","v":0},{"$f":"SUM(Table13[[#This Row],[Parts Costs]],Table13[[#This Row],[Travel KM Total ]],Table13[[#This Row],[Labour Hours Total ]],Table13[[#This Row],[Service Cost (Test and Tag)]],Table13[[#This Row],[Travel Hours Total]])","v":0},{"$f":"IF(Table13[[#This Row],[Charge type]]<>\"\",Company_Name,\"\")","v":""},{"$f":"IF(Table13[[#This Row],[Charge type]]<>\"\",ENZ_Reference_Num,\"\")","v":""},{"$f":"IF(Table13[[#This Row],[Charge type]]<>\"\",Invoice_date,\"\")","v":""},{"$f":"IF(Table13[[#This Row],[Charge type]]<>\"\",Invoice_Number,\"\")","v":""},85,85,0.64,15,{"$f":"IF(Table13[[#This Row],[TOTAL JOB COST]]>1999.99,\"OVER $2k - contact Enable\",\"\")","v":""}]
[{"$f":"IF(Table1[[#This Row],[Job Ref]]=\"\",\"\",Table1[[#This Row],[Job Ref]])","v":""},{"$f":"IF(Table1[[#This Row],[Job Ref]]=\"\",\"\",VLOOKUP(Table1[[#This Row],[Charge type]],Table3[],2,FALSE))","v":""},{"$f":"IF(Table1[[#This Row],[Job Ref]]=\"\",\"\",Table1[[#This Row],[Clients First Name]])","v":""},{"$f":"IF(Table1[[#This Row],[Job Ref]]=\"\",\"\",Table1[[#This Row],[Clients Surname]])","v":""},{"$f":"IF(Table1[[#This Row],[Job Ref]]=\"\",\"\",Table1[[#This Row],[Clients Address Street No]])","v":""},{"$f":"IF(Table1[[#This Row],[Job Ref]]=\"\",\"\",Table1[[#This Row],[Clients Address Street ]])","v":""},{"$f":"IF(Table1[[#This Row],[Job Ref]]=\"\",\"\",Table1[[#This Row],[Clients Address Town/City]])","v":""},{"$f":"IF(Table1[[#This Row],[Job Ref]]=\"\",\"\",Table1[[#This Row],[Clients Phone Number]])","v":""},{"$f":"IF(Table1[[#This Row],[Job Ref]]=\"\",\"\",Table1[[#This Row],[Date repair/service requested]])","v":""},{"$f":"IF(Table1[[#This Row],[Job Ref]]=\"\",\"\",Table1[[#This Row],[Date  repair/service completed]])","v":""},{"$f":"IF(Table1[[#This Row],[Job Ref]]=\"\",\"\",Table1[[#This Row],[Asset Number]])","v":""},{"$f":"IF(Table1[[#This Row],[Job Ref]]=\"\",\"\",Table1[[#This Row],[Asset Description]])","v":""},{"$f":"IF(Table1[[#This Row],[Job Ref]]=\"\",\"\",Table1[[#This Row],[Manufacturers Serial No.]])","v":""},{"$f":"IF(Table1[[#This Row],[Job Ref]]=\"\",\"\",Table1[[#This Row],[Test and Tag]])","v":""},{"$f":"IF(Table1[[#This Row],[Job Ref]]=\"\",\"\",Table1[[#This Row],[Beyond Economic Repair (BER)]])","v":""},{"$f":"IF(Table1[[#This Row],[Job Ref]]=\"\",\"\",Table1[[#This Row],[BER Comment]])","v":""},{"$f":"IF(Table1[[#This Row],[Job Ref]]=\"\",\"\",Table1[[#This Row],[Repair Description]])","v":""},{"$f":"IF(Table1[[#This Row],[Job Ref]]=\"\",\"\",Table1[[#This Row],[Labour Hours]])","v":""},{"$f":"IF(Table1[[#This Row],[Job Ref]]=\"\",\"\",Table1[[#This Row],[Travel Hours]])","v":""},{"$f":"IF(Table1[[#This Row],[Job Ref]]=\"\",\"\",Table1[[#This Row],[Travel Distance (km)]])","v":""},{"$f":"IF(Table1[[#This Row],[Job Ref]]=\"\",\"\",Table1[[#This Row],[Parts Description]])","v":""},{"$f":"IF(Table1[[#This Row],[Job Ref]]=\"\",\"\",Table1[[#This Row],[Parts Costs]])","v":""},{"$f":"IFERROR(Table13[[#This Row],[Labour Hours]]*Table13[[#This Row],[Cost  per unit (LH)]],0)","v":0},{"$f":"IFERROR(Table13[[#This Row],[Travel Hours]]*Table13[[#This Row],[Cost  per unit (TH)]],0)","v":0},{"$f":"IFERROR(Table13[[#This Row],[Travel Distance (km)]]*Table13[[#This Row],[Cost  per unit (TD)]],0)","v":0},{"$f":"IF(Table13[[#This Row],[Test and Tag]]=\"Yes\",Table13[[#This Row],[Cost per Unit (TT)]],0)","v":0},{"$f":"SUM(Table13[[#This Row],[Parts Costs]],Table13[[#This Row],[Travel KM Total ]],Table13[[#This Row],[Labour Hours Total ]],Table13[[#This Row],[Service Cost (Test and Tag)]],Table13[[#This Row],[Travel Hours Total]])","v":0},{"$f":"IF(Table13[[#This Row],[Charge type]]<>\"\",Company_Name,\"\")","v":""},{"$f":"IF(Table13[[#This Row],[Charge type]]<>\"\",ENZ_Reference_Num,\"\")","v":""},{"$f":"IF(Table13[[#This Row],[Charge type]]<>\"\",Invoice_date,\"\")","v":""},{"$f":"IF(Table13[[#This Row],[Charge type]]<>\"\",Invoice_Number,\"\")","v":""},85,85,0.64,15,{"$f":"IF(Table13[[#This Row],[TOTAL JOB COST]]>1999.99,\"OVER $2k - contact Enable\",\"\")","v":""}]
[{"$f":"IF(Table1[[#This Row],[Job Ref]]=\"\",\"\",Table1[[#This Row],[Job Ref]])","v":""},{"$f":"IF(Table1[[#This Row],[Job Ref]]=\"\",\"\",VLOOKUP(Table1[[#This Row],[Charge type]],Table3[],2,FALSE))","v":""},{"$f":"IF(Table1[[#This Row],[Job Ref]]=\"\",\"\",Table1[[#This Row],[Clients First Name]])","v":""},{"$f":"IF(Table1[[#This Row],[Job Ref]]=\"\",\"\",Table1[[#This Row],[Clients Surname]])","v":""},{"$f":"IF(Table1[[#This Row],[Job Ref]]=\"\",\"\",Table1[[#This Row],[Clients Address Street No]])","v":""},{"$f":"IF(Table1[[#This Row],[Job Ref]]=\"\",\"\",Table1[[#This Row],[Clients Address Street ]])","v":""},{"$f":"IF(Table1[[#This Row],[Job Ref]]=\"\",\"\",Table1[[#This Row],[Clients Address Town/City]])","v":""},{"$f":"IF(Table1[[#This Row],[Job Ref]]=\"\",\"\",Table1[[#This Row],[Clients Phone Number]])","v":""},{"$f":"IF(Table1[[#This Row],[Job Ref]]=\"\",\"\",Table1[[#This Row],[Date repair/service requested]])","v":""},{"$f":"IF(Table1[[#This Row],[Job Ref]]=\"\",\"\",Table1[[#This Row],[Date  repair/service completed]])","v":""},{"$f":"IF(Table1[[#This Row],[Job Ref]]=\"\",\"\",Table1[[#This Row],[Asset Number]])","v":""},{"$f":"IF(Table1[[#This Row],[Job Ref]]=\"\",\"\",Table1[[#This Row],[Asset Description]])","v":""},{"$f":"IF(Table1[[#This Row],[Job Ref]]=\"\",\"\",Table1[[#This Row],[Manufacturers Serial No.]])","v":""},{"$f":"IF(Table1[[#This Row],[Job Ref]]=\"\",\"\",Table1[[#This Row],[Test and Tag]])","v":""},{"$f":"IF(Table1[[#This Row],[Job Ref]]=\"\",\"\",Table1[[#This Row],[Beyond Economic Repair (BER)]])","v":""},{"$f":"IF(Table1[[#This Row],[Job Ref]]=\"\",\"\",Table1[[#This Row],[BER Comment]])","v":""},{"$f":"IF(Table1[[#This Row],[Job Ref]]=\"\",\"\",Table1[[#This Row],[Repair Description]])","v":""},{"$f":"IF(Table1[[#This Row],[Job Ref]]=\"\",\"\",Table1[[#This Row],[Labour Hours]])","v":""},{"$f":"IF(Table1[[#This Row],[Job Ref]]=\"\",\"\",Table1[[#This Row],[Travel Hours]])","v":""},{"$f":"IF(Table1[[#This Row],[Job Ref]]=\"\",\"\",Table1[[#This Row],[Travel Distance (km)]])","v":""},{"$f":"IF(Table1[[#This Row],[Job Ref]]=\"\",\"\",Table1[[#This Row],[Parts Description]])","v":""},{"$f":"IF(Table1[[#This Row],[Job Ref]]=\"\",\"\",Table1[[#This Row],[Parts Costs]])","v":""},{"$f":"IFERROR(Table13[[#This Row],[Labour Hours]]*Table13[[#This Row],[Cost  per unit (LH)]],0)","v":0},{"$f":"IFERROR(Table13[[#This Row],[Travel Hours]]*Table13[[#This Row],[Cost  per unit (TH)]],0)","v":0},{"$f":"IFERROR(Table13[[#This Row],[Travel Distance (km)]]*Table13[[#This Row],[Cost  per unit (TD)]],0)","v":0},{"$f":"IF(Table13[[#This Row],[Test and Tag]]=\"Yes\",Table13[[#This Row],[Cost per Unit (TT)]],0)","v":0},{"$f":"SUM(Table13[[#This Row],[Parts Costs]],Table13[[#This Row],[Travel KM Total ]],Table13[[#This Row],[Labour Hours Total ]],Table13[[#This Row],[Service Cost (Test and Tag)]],Table13[[#This Row],[Travel Hours Total]])","v":0},{"$f":"IF(Table13[[#This Row],[Charge type]]<>\"\",Company_Name,\"\")","v":""},{"$f":"IF(Table13[[#This Row],[Charge type]]<>\"\",ENZ_Reference_Num,\"\")","v":""},{"$f":"IF(Table13[[#This Row],[Charge type]]<>\"\",Invoice_date,\"\")","v":""},{"$f":"IF(Table13[[#This Row],[Charge type]]<>\"\",Invoice_Number,\"\")","v":""},85,85,0.64,15,{"$f":"IF(Table13[[#This Row],[TOTAL JOB COST]]>1999.99,\"OVER $2k - contact Enable\",\"\")","v":""}]
[{"$f":"IF(Table1[[#This Row],[Job Ref]]=\"\",\"\",Table1[[#This Row],[Job Ref]])","v":""},{"$f":"IF(Table1[[#This Row],[Job Ref]]=\"\",\"\",VLOOKUP(Table1[[#This Row],[Charge type]],Table3[],2,FALSE))","v":""},{"$f":"IF(Table1[[#This Row],[Job Ref]]=\"\",\"\",Table1[[#This Row],[Clients First Name]])","v":""},{"$f":"IF(Table1[[#This Row],[Job Ref]]=\"\",\"\",Table1[[#This Row],[Clients Surname]])","v":""},{"$f":"IF(Table1[[#This Row],[Job Ref]]=\"\",\"\",Table1[[#This Row],[Clients Address Street No]])","v":""},{"$f":"IF(Table1[[#This Row],[Job Ref]]=\"\",\"\",Table1[[#This Row],[Clients Address Street ]])","v":""},{"$f":"IF(Table1[[#This Row],[Job Ref]]=\"\",\"\",Table1[[#This Row],[Clients Address Town/City]])","v":""},{"$f":"IF(Table1[[#This Row],[Job Ref]]=\"\",\"\",Table1[[#This Row],[Clients Phone Number]])","v":""},{"$f":"IF(Table1[[#This Row],[Job Ref]]=\"\",\"\",Table1[[#This Row],[Date repair/service requested]])","v":""},{"$f":"IF(Table1[[#This Row],[Job Ref]]=\"\",\"\",Table1[[#This Row],[Date  repair/service completed]])","v":""},{"$f":"IF(Table1[[#This Row],[Job Ref]]=\"\",\"\",Table1[[#This Row],[Asset Number]])","v":""},{"$f":"IF(Table1[[#This Row],[Job Ref]]=\"\",\"\",Table1[[#This Row],[Asset Description]])","v":""},{"$f":"IF(Table1[[#This Row],[Job Ref]]=\"\",\"\",Table1[[#This Row],[Manufacturers Serial No.]])","v":""},{"$f":"IF(Table1[[#This Row],[Job Ref]]=\"\",\"\",Table1[[#This Row],[Test and Tag]])","v":""},{"$f":"IF(Table1[[#This Row],[Job Ref]]=\"\",\"\",Table1[[#This Row],[Beyond Economic Repair (BER)]])","v":""},{"$f":"IF(Table1[[#This Row],[Job Ref]]=\"\",\"\",Table1[[#This Row],[BER Comment]])","v":""},{"$f":"IF(Table1[[#This Row],[Job Ref]]=\"\",\"\",Table1[[#This Row],[Repair Description]])","v":""},{"$f":"IF(Table1[[#This Row],[Job Ref]]=\"\",\"\",Table1[[#This Row],[Labour Hours]])","v":""},{"$f":"IF(Table1[[#This Row],[Job Ref]]=\"\",\"\",Table1[[#This Row],[Travel Hours]])","v":""},{"$f":"IF(Table1[[#This Row],[Job Ref]]=\"\",\"\",Table1[[#This Row],[Travel Distance (km)]])","v":""},{"$f":"IF(Table1[[#This Row],[Job Ref]]=\"\",\"\",Table1[[#This Row],[Parts Description]])","v":""},{"$f":"IF(Table1[[#This Row],[Job Ref]]=\"\",\"\",Table1[[#This Row],[Parts Costs]])","v":""},{"$f":"IFERROR(Table13[[#This Row],[Labour Hours]]*Table13[[#This Row],[Cost  per unit (LH)]],0)","v":0},{"$f":"IFERROR(Table13[[#This Row],[Travel Hours]]*Table13[[#This Row],[Cost  per unit (TH)]],0)","v":0},{"$f":"IFERROR(Table13[[#This Row],[Travel Distance (km)]]*Table13[[#This Row],[Cost  per unit (TD)]],0)","v":0},{"$f":"IF(Table13[[#This Row],[Test and Tag]]=\"Yes\",Table13[[#This Row],[Cost per Unit (TT)]],0)","v":0},{"$f":"SUM(Table13[[#This Row],[Parts Costs]],Table13[[#This Row],[Travel KM Total ]],Table13[[#This Row],[Labour Hours Total ]],Table13[[#This Row],[Service Cost (Test and Tag)]],Table13[[#This Row],[Travel Hours Total]])","v":0},{"$f":"IF(Table13[[#This Row],[Charge type]]<>\"\",Company_Name,\"\")","v":""},{"$f":"IF(Table13[[#This Row],[Charge type]]<>\"\",ENZ_Reference_Num,\"\")","v":""},{"$f":"IF(Table13[[#This Row],[Charge type]]<>\"\",Invoice_date,\"\")","v":""},{"$f":"IF(Table13[[#This Row],[Charge type]]<>\"\",Invoice_Number,\"\")","v":""},85,85,0.64,15,{"$f":"IF(Table13[[#This Row],[TOTAL JOB COST]]>1999.99,\"OVER $2k - contact Enable\",\"\")","v":""}]
[{"$f":"IF(Table1[[#This Row],[Job Ref]]=\"\",\"\",Table1[[#This Row],[Job Ref]])","v":""},{"$f":"IF(Table1[[#This Row],[Job Ref]]=\"\",\"\",VLOOKUP(Table1[[#This Row],[Charge type]],Table3[],2,FALSE))","v":""},{"$f":"IF(Table1[[#This Row],[Job Ref]]=\"\",\"\",Table1[[#This Row],[Clients First Name]])","v":""},{"$f":"IF(Table1[[#This Row],[Job Ref]]=\"\",\"\",Table1[[#This Row],[Clients Surname]])","v":""},{"$f":"IF(Table1[[#This Row],[Job Ref]]=\"\",\"\",Table1[[#This Row],[Clients Address Street No]])","v":""},{"$f":"IF(Table1[[#This Row],[Job Ref]]=\"\",\"\",Table1[[#This Row],[Clients Address Street ]])","v":""},{"$f":"IF(Table1[[#This Row],[Job Ref]]=\"\",\"\",Table1[[#This Row],[Clients Address Town/City]])","v":""},{"$f":"IF(Table1[[#This Row],[Job Ref]]=\"\",\"\",Table1[[#This Row],[Clients Phone Number]])","v":""},{"$f":"IF(Table1[[#This Row],[Job Ref]]=\"\",\"\",Table1[[#This Row],[Date repair/service requested]])","v":""},{"$f":"IF(Table1[[#This Row],[Job Ref]]=\"\",\"\",Table1[[#This Row],[Date  repair/service completed]])","v":""},{"$f":"IF(Table1[[#This Row],[Job Ref]]=\"\",\"\",Table1[[#This Row],[Asset Number]])","v":""},{"$f":"IF(Table1[[#This Row],[Job Ref]]=\"\",\"\",Table1[[#This Row],[Asset Description]])","v":""},{"$f":"IF(Table1[[#This Row],[Job Ref]]=\"\",\"\",Table1[[#This Row],[Manufacturers Serial No.]])","v":""},{"$f":"IF(Table1[[#This Row],[Job Ref]]=\"\",\"\",Table1[[#This Row],[Test and Tag]])","v":""},{"$f":"IF(Table1[[#This Row],[Job Ref]]=\"\",\"\",Table1[[#This Row],[Beyond Economic Repair (BER)]])","v":""},{"$f":"IF(Table1[[#This Row],[Job Ref]]=\"\",\"\",Table1[[#This Row],[BER Comment]])","v":""},{"$f":"IF(Table1[[#This Row],[Job Ref]]=\"\",\"\",Table1[[#This Row],[Repair Description]])","v":""},{"$f":"IF(Table1[[#This Row],[Job Ref]]=\"\",\"\",Table1[[#This Row],[Labour Hours]])","v":""},{"$f":"IF(Table1[[#This Row],[Job Ref]]=\"\",\"\",Table1[[#This Row],[Travel Hours]])","v":""},{"$f":"IF(Table1[[#This Row],[Job Ref]]=\"\",\"\",Table1[[#This Row],[Travel Distance (km)]])","v":""},{"$f":"IF(Table1[[#This Row],[Job Ref]]=\"\",\"\",Table1[[#This Row],[Parts Description]])","v":""},{"$f":"IF(Table1[[#This Row],[Job Ref]]=\"\",\"\",Table1[[#This Row],[Parts Costs]])","v":""},{"$f":"IFERROR(Table13[[#This Row],[Labour Hours]]*Table13[[#This Row],[Cost  per unit (LH)]],0)","v":0},{"$f":"IFERROR(Table13[[#This Row],[Travel Hours]]*Table13[[#This Row],[Cost  per unit (TH)]],0)","v":0},{"$f":"IFERROR(Table13[[#This Row],[Travel Distance (km)]]*Table13[[#This Row],[Cost  per unit (TD)]],0)","v":0},{"$f":"IF(Table13[[#This Row],[Test and Tag]]=\"Yes\",Table13[[#This Row],[Cost per Unit (TT)]],0)","v":0},{"$f":"SUM(Table13[[#This Row],[Parts Costs]],Table13[[#This Row],[Travel KM Total ]],Table13[[#This Row],[Labour Hours Total ]],Table13[[#This Row],[Service Cost (Test and Tag)]],Table13[[#This Row],[Travel Hours Total]])","v":0},{"$f":"IF(Table13[[#This Row],[Charge type]]<>\"\",Company_Name,\"\")","v":""},{"$f":"IF(Table13[[#This Row],[Charge type]]<>\"\",ENZ_Reference_Num,\"\")","v":""},{"$f":"IF(Table13[[#This Row],[Charge type]]<>\"\",Invoice_date,\"\")","v":""},{"$f":"IF(Table13[[#This Row],[Charge type]]<>\"\",Invoice_Number,\"\")","v":""},85,85,0.64,15,{"$f":"IF(Table13[[#This Row],[TOTAL JOB COST]]>1999.99,\"OVER $2k - contact Enable\",\"\")","v":""}]
[{"$f":"IF(Table1[[#This Row],[Job Ref]]=\"\",\"\",Table1[[#This Row],[Job Ref]])","v":""},{"$f":"IF(Table1[[#This Row],[Job Ref]]=\"\",\"\",VLOOKUP(Table1[[#This Row],[Charge type]],Table3[],2,FALSE))","v":""},{"$f":"IF(Table1[[#This Row],[Job Ref]]=\"\",\"\",Table1[[#This Row],[Clients First Name]])","v":""},{"$f":"IF(Table1[[#This Row],[Job Ref]]=\"\",\"\",Table1[[#This Row],[Clients Surname]])","v":""},{"$f":"IF(Table1[[#This Row],[Job Ref]]=\"\",\"\",Table1[[#This Row],[Clients Address Street No]])","v":""},{"$f":"IF(Table1[[#This Row],[Job Ref]]=\"\",\"\",Table1[[#This Row],[Clients Address Street ]])","v":""},{"$f":"IF(Table1[[#This Row],[Job Ref]]=\"\",\"\",Table1[[#This Row],[Clients Address Town/City]])","v":""},{"$f":"IF(Table1[[#This Row],[Job Ref]]=\"\",\"\",Table1[[#This Row],[Clients Phone Number]])","v":""},{"$f":"IF(Table1[[#This Row],[Job Ref]]=\"\",\"\",Table1[[#This Row],[Date repair/service requested]])","v":""},{"$f":"IF(Table1[[#This Row],[Job Ref]]=\"\",\"\",Table1[[#This Row],[Date  repair/service completed]])","v":""},{"$f":"IF(Table1[[#This Row],[Job Ref]]=\"\",\"\",Table1[[#This Row],[Asset Number]])","v":""},{"$f":"IF(Table1[[#This Row],[Job Ref]]=\"\",\"\",Table1[[#This Row],[Asset Description]])","v":""},{"$f":"IF(Table1[[#This Row],[Job Ref]]=\"\",\"\",Table1[[#This Row],[Manufacturers Serial No.]])","v":""},{"$f":"IF(Table1[[#This Row],[Job Ref]]=\"\",\"\",Table1[[#This Row],[Test and Tag]])","v":""},{"$f":"IF(Table1[[#This Row],[Job Ref]]=\"\",\"\",Table1[[#This Row],[Beyond Economic Repair (BER)]])","v":""},{"$f":"IF(Table1[[#This Row],[Job Ref]]=\"\",\"\",Table1[[#This Row],[BER Comment]])","v":""},{"$f":"IF(Table1[[#This Row],[Job Ref]]=\"\",\"\",Table1[[#This Row],[Repair Description]])","v":""},{"$f":"IF(Table1[[#This Row],[Job Ref]]=\"\",\"\",Table1[[#This Row],[Labour Hours]])","v":""},{"$f":"IF(Table1[[#This Row],[Job Ref]]=\"\",\"\",Table1[[#This Row],[Travel Hours]])","v":""},{"$f":"IF(Table1[[#This Row],[Job Ref]]=\"\",\"\",Table1[[#This Row],[Travel Distance (km)]])","v":""},{"$f":"IF(Table1[[#This Row],[Job Ref]]=\"\",\"\",Table1[[#This Row],[Parts Description]])","v":""},{"$f":"IF(Table1[[#This Row],[Job Ref]]=\"\",\"\",Table1[[#This Row],[Parts Costs]])","v":""},{"$f":"IFERROR(Table13[[#This Row],[Labour Hours]]*Table13[[#This Row],[Cost  per unit (LH)]],0)","v":0},{"$f":"IFERROR(Table13[[#This Row],[Travel Hours]]*Table13[[#This Row],[Cost  per unit (TH)]],0)","v":0},{"$f":"IFERROR(Table13[[#This Row],[Travel Distance (km)]]*Table13[[#This Row],[Cost  per unit (TD)]],0)","v":0},{"$f":"IF(Table13[[#This Row],[Test and Tag]]=\"Yes\",Table13[[#This Row],[Cost per Unit (TT)]],0)","v":0},{"$f":"SUM(Table13[[#This Row],[Parts Costs]],Table13[[#This Row],[Travel KM Total ]],Table13[[#This Row],[Labour Hours Total ]],Table13[[#This Row],[Service Cost (Test and Tag)]],Table13[[#This Row],[Travel Hours Total]])","v":0},{"$f":"IF(Table13[[#This Row],[Charge type]]<>\"\",Company_Name,\"\")","v":""},{"$f":"IF(Table13[[#This Row],[Charge type]]<>\"\",ENZ_Reference_Num,\"\")","v":""},{"$f":"IF(Table13[[#This Row],[Charge type]]<>\"\",Invoice_date,\"\")","v":""},{"$f":"IF(Table13[[#This Row],[Charge type]]<>\"\",Invoice_Number,\"\")","v":""},85,85,0.64,15,{"$f":"IF(Table13[[#This Row],[TOTAL JOB COST]]>1999.99,\"OVER $2k - contact Enable\",\"\")","v":""}]
[{"$f":"IF(Table1[[#This Row],[Job Ref]]=\"\",\"\",Table1[[#This Row],[Job Ref]])","v":""},{"$f":"IF(Table1[[#This Row],[Job Ref]]=\"\",\"\",VLOOKUP(Table1[[#This Row],[Charge type]],Table3[],2,FALSE))","v":""},{"$f":"IF(Table1[[#This Row],[Job Ref]]=\"\",\"\",Table1[[#This Row],[Clients First Name]])","v":""},{"$f":"IF(Table1[[#This Row],[Job Ref]]=\"\",\"\",Table1[[#This Row],[Clients Surname]])","v":""},{"$f":"IF(Table1[[#This Row],[Job Ref]]=\"\",\"\",Table1[[#This Row],[Clients Address Street No]])","v":""},{"$f":"IF(Table1[[#This Row],[Job Ref]]=\"\",\"\",Table1[[#This Row],[Clients Address Street ]])","v":""},{"$f":"IF(Table1[[#This Row],[Job Ref]]=\"\",\"\",Table1[[#This Row],[Clients Address Town/City]])","v":""},{"$f":"IF(Table1[[#This Row],[Job Ref]]=\"\",\"\",Table1[[#This Row],[Clients Phone Number]])","v":""},{"$f":"IF(Table1[[#This Row],[Job Ref]]=\"\",\"\",Table1[[#This Row],[Date repair/service requested]])","v":""},{"$f":"IF(Table1[[#This Row],[Job Ref]]=\"\",\"\",Table1[[#This Row],[Date  repair/service completed]])","v":""},{"$f":"IF(Table1[[#This Row],[Job Ref]]=\"\",\"\",Table1[[#This Row],[Asset Number]])","v":""},{"$f":"IF(Table1[[#This Row],[Job Ref]]=\"\",\"\",Table1[[#This Row],[Asset Description]])","v":""},{"$f":"IF(Table1[[#This Row],[Job Ref]]=\"\",\"\",Table1[[#This Row],[Manufacturers Serial No.]])","v":""},{"$f":"IF(Table1[[#This Row],[Job Ref]]=\"\",\"\",Table1[[#This Row],[Test and Tag]])","v":""},{"$f":"IF(Table1[[#This Row],[Job Ref]]=\"\",\"\",Table1[[#This Row],[Beyond Economic Repair (BER)]])","v":""},{"$f":"IF(Table1[[#This Row],[Job Ref]]=\"\",\"\",Table1[[#This Row],[BER Comment]])","v":""},{"$f":"IF(Table1[[#This Row],[Job Ref]]=\"\",\"\",Table1[[#This Row],[Repair Description]])","v":""},{"$f":"IF(Table1[[#This Row],[Job Ref]]=\"\",\"\",Table1[[#This Row],[Labour Hours]])","v":""},{"$f":"IF(Table1[[#This Row],[Job Ref]]=\"\",\"\",Table1[[#This Row],[Travel Hours]])","v":""},{"$f":"IF(Table1[[#This Row],[Job Ref]]=\"\",\"\",Table1[[#This Row],[Travel Distance (km)]])","v":""},{"$f":"IF(Table1[[#This Row],[Job Ref]]=\"\",\"\",Table1[[#This Row],[Parts Description]])","v":""},{"$f":"IF(Table1[[#This Row],[Job Ref]]=\"\",\"\",Table1[[#This Row],[Parts Costs]])","v":""},{"$f":"IFERROR(Table13[[#This Row],[Labour Hours]]*Table13[[#This Row],[Cost  per unit (LH)]],0)","v":0},{"$f":"IFERROR(Table13[[#This Row],[Travel Hours]]*Table13[[#This Row],[Cost  per unit (TH)]],0)","v":0},{"$f":"IFERROR(Table13[[#This Row],[Travel Distance (km)]]*Table13[[#This Row],[Cost  per unit (TD)]],0)","v":0},{"$f":"IF(Table13[[#This Row],[Test and Tag]]=\"Yes\",Table13[[#This Row],[Cost per Unit (TT)]],0)","v":0},{"$f":"SUM(Table13[[#This Row],[Parts Costs]],Table13[[#This Row],[Travel KM Total ]],Table13[[#This Row],[Labour Hours Total ]],Table13[[#This Row],[Service Cost (Test and Tag)]],Table13[[#This Row],[Travel Hours Total]])","v":0},{"$f":"IF(Table13[[#This Row],[Charge type]]<>\"\",Company_Name,\"\")","v":""},{"$f":"IF(Table13[[#This Row],[Charge type]]<>\"\",ENZ_Reference_Num,\"\")","v":""},{"$f":"IF(Table13[[#This Row],[Charge type]]<>\"\",Invoice_date,\"\")","v":""},{"$f":"IF(Table13[[#This Row],[Charge type]]<>\"\",Invoice_Number,\"\")","v":""},85,85,0.64,15,{"$f":"IF(Table13[[#This Row],[TOTAL JOB COST]]>1999.99,\"OVER $2k - contact Enable\",\"\")","v":""}]
[{"$f":"IF(Table1[[#This Row],[Job Ref]]=\"\",\"\",Table1[[#This Row],[Job Ref]])","v":""},{"$f":"IF(Table1[[#This Row],[Job Ref]]=\"\",\"\",VLOOKUP(Table1[[#This Row],[Charge type]],Table3[],2,FALSE))","v":""},{"$f":"IF(Table1[[#This Row],[Job Ref]]=\"\",\"\",Table1[[#This Row],[Clients First Name]])","v":""},{"$f":"IF(Table1[[#This Row],[Job Ref]]=\"\",\"\",Table1[[#This Row],[Clients Surname]])","v":""},{"$f":"IF(Table1[[#This Row],[Job Ref]]=\"\",\"\",Table1[[#This Row],[Clients Address Street No]])","v":""},{"$f":"IF(Table1[[#This Row],[Job Ref]]=\"\",\"\",Table1[[#This Row],[Clients Address Street ]])","v":""},{"$f":"IF(Table1[[#This Row],[Job Ref]]=\"\",\"\",Table1[[#This Row],[Clients Address Town/City]])","v":""},{"$f":"IF(Table1[[#This Row],[Job Ref]]=\"\",\"\",Table1[[#This Row],[Clients Phone Number]])","v":""},{"$f":"IF(Table1[[#This Row],[Job Ref]]=\"\",\"\",Table1[[#This Row],[Date repair/service requested]])","v":""},{"$f":"IF(Table1[[#This Row],[Job Ref]]=\"\",\"\",Table1[[#This Row],[Date  repair/service completed]])","v":""},{"$f":"IF(Table1[[#This Row],[Job Ref]]=\"\",\"\",Table1[[#This Row],[Asset Number]])","v":""},{"$f":"IF(Table1[[#This Row],[Job Ref]]=\"\",\"\",Table1[[#This Row],[Asset Description]])","v":""},{"$f":"IF(Table1[[#This Row],[Job Ref]]=\"\",\"\",Table1[[#This Row],[Manufacturers Serial No.]])","v":""},{"$f":"IF(Table1[[#This Row],[Job Ref]]=\"\",\"\",Table1[[#This Row],[Test and Tag]])","v":""},{"$f":"IF(Table1[[#This Row],[Job Ref]]=\"\",\"\",Table1[[#This Row],[Beyond Economic Repair (BER)]])","v":""},{"$f":"IF(Table1[[#This Row],[Job Ref]]=\"\",\"\",Table1[[#This Row],[BER Comment]])","v":""},{"$f":"IF(Table1[[#This Row],[Job Ref]]=\"\",\"\",Table1[[#This Row],[Repair Description]])","v":""},{"$f":"IF(Table1[[#This Row],[Job Ref]]=\"\",\"\",Table1[[#This Row],[Labour Hours]])","v":""},{"$f":"IF(Table1[[#This Row],[Job Ref]]=\"\",\"\",Table1[[#This Row],[Travel Hours]])","v":""},{"$f":"IF(Table1[[#This Row],[Job Ref]]=\"\",\"\",Table1[[#This Row],[Travel Distance (km)]])","v":""},{"$f":"IF(Table1[[#This Row],[Job Ref]]=\"\",\"\",Table1[[#This Row],[Parts Description]])","v":""},{"$f":"IF(Table1[[#This Row],[Job Ref]]=\"\",\"\",Table1[[#This Row],[Parts Costs]])","v":""},{"$f":"IFERROR(Table13[[#This Row],[Labour Hours]]*Table13[[#This Row],[Cost  per unit (LH)]],0)","v":0},{"$f":"IFERROR(Table13[[#This Row],[Travel Hours]]*Table13[[#This Row],[Cost  per unit (TH)]],0)","v":0},{"$f":"IFERROR(Table13[[#This Row],[Travel Distance (km)]]*Table13[[#This Row],[Cost  per unit (TD)]],0)","v":0},{"$f":"IF(Table13[[#This Row],[Test and Tag]]=\"Yes\",Table13[[#This Row],[Cost per Unit (TT)]],0)","v":0},{"$f":"SUM(Table13[[#This Row],[Parts Costs]],Table13[[#This Row],[Travel KM Total ]],Table13[[#This Row],[Labour Hours Total ]],Table13[[#This Row],[Service Cost (Test and Tag)]],Table13[[#This Row],[Travel Hours Total]])","v":0},{"$f":"IF(Table13[[#This Row],[Charge type]]<>\"\",Company_Name,\"\")","v":""},{"$f":"IF(Table13[[#This Row],[Charge type]]<>\"\",ENZ_Reference_Num,\"\")","v":""},{"$f":"IF(Table13[[#This Row],[Charge type]]<>\"\",Invoice_date,\"\")","v":""},{"$f":"IF(Table13[[#This Row],[Charge type]]<>\"\",Invoice_Number,\"\")","v":""},85,85,0.64,15,{"$f":"IF(Table13[[#This Row],[TOTAL JOB COST]]>1999.99,\"OVER $2k - contact Enable\",\"\")","v":""}]
[{"$f":"IF(Table1[[#This Row],[Job Ref]]=\"\",\"\",Table1[[#This Row],[Job Ref]])","v":""},{"$f":"IF(Table1[[#This Row],[Job Ref]]=\"\",\"\",VLOOKUP(Table1[[#This Row],[Charge type]],Table3[],2,FALSE))","v":""},{"$f":"IF(Table1[[#This Row],[Job Ref]]=\"\",\"\",Table1[[#This Row],[Clients First Name]])","v":""},{"$f":"IF(Table1[[#This Row],[Job Ref]]=\"\",\"\",Table1[[#This Row],[Clients Surname]])","v":""},{"$f":"IF(Table1[[#This Row],[Job Ref]]=\"\",\"\",Table1[[#This Row],[Clients Address Street No]])","v":""},{"$f":"IF(Table1[[#This Row],[Job Ref]]=\"\",\"\",Table1[[#This Row],[Clients Address Street ]])","v":""},{"$f":"IF(Table1[[#This Row],[Job Ref]]=\"\",\"\",Table1[[#This Row],[Clients Address Town/City]])","v":""},{"$f":"IF(Table1[[#This Row],[Job Ref]]=\"\",\"\",Table1[[#This Row],[Clients Phone Number]])","v":""},{"$f":"IF(Table1[[#This Row],[Job Ref]]=\"\",\"\",Table1[[#This Row],[Date repair/service requested]])","v":""},{"$f":"IF(Table1[[#This Row],[Job Ref]]=\"\",\"\",Table1[[#This Row],[Date  repair/service completed]])","v":""},{"$f":"IF(Table1[[#This Row],[Job Ref]]=\"\",\"\",Table1[[#This Row],[Asset Number]])","v":""},{"$f":"IF(Table1[[#This Row],[Job Ref]]=\"\",\"\",Table1[[#This Row],[Asset Description]])","v":""},{"$f":"IF(Table1[[#This Row],[Job Ref]]=\"\",\"\",Table1[[#This Row],[Manufacturers Serial No.]])","v":""},{"$f":"IF(Table1[[#This Row],[Job Ref]]=\"\",\"\",Table1[[#This Row],[Test and Tag]])","v":""},{"$f":"IF(Table1[[#This Row],[Job Ref]]=\"\",\"\",Table1[[#This Row],[Beyond Economic Repair (BER)]])","v":""},{"$f":"IF(Table1[[#This Row],[Job Ref]]=\"\",\"\",Table1[[#This Row],[BER Comment]])","v":""},{"$f":"IF(Table1[[#This Row],[Job Ref]]=\"\",\"\",Table1[[#This Row],[Repair Description]])","v":""},{"$f":"IF(Table1[[#This Row],[Job Ref]]=\"\",\"\",Table1[[#This Row],[Labour Hours]])","v":""},{"$f":"IF(Table1[[#This Row],[Job Ref]]=\"\",\"\",Table1[[#This Row],[Travel Hours]])","v":""},{"$f":"IF(Table1[[#This Row],[Job Ref]]=\"\",\"\",Table1[[#This Row],[Travel Distance (km)]])","v":""},{"$f":"IF(Table1[[#This Row],[Job Ref]]=\"\",\"\",Table1[[#This Row],[Parts Description]])","v":""},{"$f":"IF(Table1[[#This Row],[Job Ref]]=\"\",\"\",Table1[[#This Row],[Parts Costs]])","v":""},{"$f":"IFERROR(Table13[[#This Row],[Labour Hours]]*Table13[[#This Row],[Cost  per unit (LH)]],0)","v":0},{"$f":"IFERROR(Table13[[#This Row],[Travel Hours]]*Table13[[#This Row],[Cost  per unit (TH)]],0)","v":0},{"$f":"IFERROR(Table13[[#This Row],[Travel Distance (km)]]*Table13[[#This Row],[Cost  per unit (TD)]],0)","v":0},{"$f":"IF(Table13[[#This Row],[Test and Tag]]=\"Yes\",Table13[[#This Row],[Cost per Unit (TT)]],0)","v":0},{"$f":"SUM(Table13[[#This Row],[Parts Costs]],Table13[[#This Row],[Travel KM Total ]],Table13[[#This Row],[Labour Hours Total ]],Table13[[#This Row],[Service Cost (Test and Tag)]],Table13[[#This Row],[Travel Hours Total]])","v":0},{"$f":"IF(Table13[[#This Row],[Charge type]]<>\"\",Company_Name,\"\")","v":""},{"$f":"IF(Table13[[#This Row],[Charge type]]<>\"\",ENZ_Reference_Num,\"\")","v":""},{"$f":"IF(Table13[[#This Row],[Charge type]]<>\"\",Invoice_date,\"\")","v":""},{"$f":"IF(Table13[[#This Row],[Charge type]]<>\"\",Invoice_Number,\"\")","v":""},85,85,0.64,15,{"$f":"IF(Table13[[#This Row],[TOTAL JOB COST]]>1999.99,\"OVER $2k - contact Enable\",\"\")","v":""}]
[{"$f":"IF(Table1[[#This Row],[Job Ref]]=\"\",\"\",Table1[[#This Row],[Job Ref]])","v":""},{"$f":"IF(Table1[[#This Row],[Job Ref]]=\"\",\"\",VLOOKUP(Table1[[#This Row],[Charge type]],Table3[],2,FALSE))","v":""},{"$f":"IF(Table1[[#This Row],[Job Ref]]=\"\",\"\",Table1[[#This Row],[Clients First Name]])","v":""},{"$f":"IF(Table1[[#This Row],[Job Ref]]=\"\",\"\",Table1[[#This Row],[Clients Surname]])","v":""},{"$f":"IF(Table1[[#This Row],[Job Ref]]=\"\",\"\",Table1[[#This Row],[Clients Address Street No]])","v":""},{"$f":"IF(Table1[[#This Row],[Job Ref]]=\"\",\"\",Table1[[#This Row],[Clients Address Street ]])","v":""},{"$f":"IF(Table1[[#This Row],[Job Ref]]=\"\",\"\",Table1[[#This Row],[Clients Address Town/City]])","v":""},{"$f":"IF(Table1[[#This Row],[Job Ref]]=\"\",\"\",Table1[[#This Row],[Clients Phone Number]])","v":""},{"$f":"IF(Table1[[#This Row],[Job Ref]]=\"\",\"\",Table1[[#This Row],[Date repair/service requested]])","v":""},{"$f":"IF(Table1[[#This Row],[Job Ref]]=\"\",\"\",Table1[[#This Row],[Date  repair/service completed]])","v":""},{"$f":"IF(Table1[[#This Row],[Job Ref]]=\"\",\"\",Table1[[#This Row],[Asset Number]])","v":""},{"$f":"IF(Table1[[#This Row],[Job Ref]]=\"\",\"\",Table1[[#This Row],[Asset Description]])","v":""},{"$f":"IF(Table1[[#This Row],[Job Ref]]=\"\",\"\",Table1[[#This Row],[Manufacturers Serial No.]])","v":""},{"$f":"IF(Table1[[#This Row],[Job Ref]]=\"\",\"\",Table1[[#This Row],[Test and Tag]])","v":""},{"$f":"IF(Table1[[#This Row],[Job Ref]]=\"\",\"\",Table1[[#This Row],[Beyond Economic Repair (BER)]])","v":""},{"$f":"IF(Table1[[#This Row],[Job Ref]]=\"\",\"\",Table1[[#This Row],[BER Comment]])","v":""},{"$f":"IF(Table1[[#This Row],[Job Ref]]=\"\",\"\",Table1[[#This Row],[Repair Description]])","v":""},{"$f":"IF(Table1[[#This Row],[Job Ref]]=\"\",\"\",Table1[[#This Row],[Labour Hours]])","v":""},{"$f":"IF(Table1[[#This Row],[Job Ref]]=\"\",\"\",Table1[[#This Row],[Travel Hours]])","v":""},{"$f":"IF(Table1[[#This Row],[Job Ref]]=\"\",\"\",Table1[[#This Row],[Travel Distance (km)]])","v":""},{"$f":"IF(Table1[[#This Row],[Job Ref]]=\"\",\"\",Table1[[#This Row],[Parts Description]])","v":""},{"$f":"IF(Table1[[#This Row],[Job Ref]]=\"\",\"\",Table1[[#This Row],[Parts Costs]])","v":""},{"$f":"IFERROR(Table13[[#This Row],[Labour Hours]]*Table13[[#This Row],[Cost  per unit (LH)]],0)","v":0},{"$f":"IFERROR(Table13[[#This Row],[Travel Hours]]*Table13[[#This Row],[Cost  per unit (TH)]],0)","v":0},{"$f":"IFERROR(Table13[[#This Row],[Travel Distance (km)]]*Table13[[#This Row],[Cost  per unit (TD)]],0)","v":0},{"$f":"IF(Table13[[#This Row],[Test and Tag]]=\"Yes\",Table13[[#This Row],[Cost per Unit (TT)]],0)","v":0},{"$f":"SUM(Table13[[#This Row],[Parts Costs]],Table13[[#This Row],[Travel KM Total ]],Table13[[#This Row],[Labour Hours Total ]],Table13[[#This Row],[Service Cost (Test and Tag)]],Table13[[#This Row],[Travel Hours Total]])","v":0},{"$f":"IF(Table13[[#This Row],[Charge type]]<>\"\",Company_Name,\"\")","v":""},{"$f":"IF(Table13[[#This Row],[Charge type]]<>\"\",ENZ_Reference_Num,\"\")","v":""},{"$f":"IF(Table13[[#This Row],[Charge type]]<>\"\",Invoice_date,\"\")","v":""},{"$f":"IF(Table13[[#This Row],[Charge type]]<>\"\",Invoice_Number,\"\")","v":""},85,85,0.64,15,{"$f":"IF(Table13[[#This Row],[TOTAL JOB COST]]>1999.99,\"OVER $2k - contact Enable\",\"\")","v":""}]
[{"$f":"IF(Table1[[#This Row],[Job Ref]]=\"\",\"\",Table1[[#This Row],[Job Ref]])","v":""},{"$f":"IF(Table1[[#This Row],[Job Ref]]=\"\",\"\",VLOOKUP(Table1[[#This Row],[Charge type]],Table3[],2,FALSE))","v":""},{"$f":"IF(Table1[[#This Row],[Job Ref]]=\"\",\"\",Table1[[#This Row],[Clients First Name]])","v":""},{"$f":"IF(Table1[[#This Row],[Job Ref]]=\"\",\"\",Table1[[#This Row],[Clients Surname]])","v":""},{"$f":"IF(Table1[[#This Row],[Job Ref]]=\"\",\"\",Table1[[#This Row],[Clients Address Street No]])","v":""},{"$f":"IF(Table1[[#This Row],[Job Ref]]=\"\",\"\",Table1[[#This Row],[Clients Address Street ]])","v":""},{"$f":"IF(Table1[[#This Row],[Job Ref]]=\"\",\"\",Table1[[#This Row],[Clients Address Town/City]])","v":""},{"$f":"IF(Table1[[#This Row],[Job Ref]]=\"\",\"\",Table1[[#This Row],[Clients Phone Number]])","v":""},{"$f":"IF(Table1[[#This Row],[Job Ref]]=\"\",\"\",Table1[[#This Row],[Date repair/service requested]])","v":""},{"$f":"IF(Table1[[#This Row],[Job Ref]]=\"\",\"\",Table1[[#This Row],[Date  repair/service completed]])","v":""},{"$f":"IF(Table1[[#This Row],[Job Ref]]=\"\",\"\",Table1[[#This Row],[Asset Number]])","v":""},{"$f":"IF(Table1[[#This Row],[Job Ref]]=\"\",\"\",Table1[[#This Row],[Asset Description]])","v":""},{"$f":"IF(Table1[[#This Row],[Job Ref]]=\"\",\"\",Table1[[#This Row],[Manufacturers Serial No.]])","v":""},{"$f":"IF(Table1[[#This Row],[Job Ref]]=\"\",\"\",Table1[[#This Row],[Test and Tag]])","v":""},{"$f":"IF(Table1[[#This Row],[Job Ref]]=\"\",\"\",Table1[[#This Row],[Beyond Economic Repair (BER)]])","v":""},{"$f":"IF(Table1[[#This Row],[Job Ref]]=\"\",\"\",Table1[[#This Row],[BER Comment]])","v":""},{"$f":"IF(Table1[[#This Row],[Job Ref]]=\"\",\"\",Table1[[#This Row],[Repair Description]])","v":""},{"$f":"IF(Table1[[#This Row],[Job Ref]]=\"\",\"\",Table1[[#This Row],[Labour Hours]])","v":""},{"$f":"IF(Table1[[#This Row],[Job Ref]]=\"\",\"\",Table1[[#This Row],[Travel Hours]])","v":""},{"$f":"IF(Table1[[#This Row],[Job Ref]]=\"\",\"\",Table1[[#This Row],[Travel Distance (km)]])","v":""},{"$f":"IF(Table1[[#This Row],[Job Ref]]=\"\",\"\",Table1[[#This Row],[Parts Description]])","v":""},{"$f":"IF(Table1[[#This Row],[Job Ref]]=\"\",\"\",Table1[[#This Row],[Parts Costs]])","v":""},{"$f":"IFERROR(Table13[[#This Row],[Labour Hours]]*Table13[[#This Row],[Cost  per unit (LH)]],0)","v":0},{"$f":"IFERROR(Table13[[#This Row],[Travel Hours]]*Table13[[#This Row],[Cost  per unit (TH)]],0)","v":0},{"$f":"IFERROR(Table13[[#This Row],[Travel Distance (km)]]*Table13[[#This Row],[Cost  per unit (TD)]],0)","v":0},{"$f":"IF(Table13[[#This Row],[Test and Tag]]=\"Yes\",Table13[[#This Row],[Cost per Unit (TT)]],0)","v":0},{"$f":"SUM(Table13[[#This Row],[Parts Costs]],Table13[[#This Row],[Travel KM Total ]],Table13[[#This Row],[Labour Hours Total ]],Table13[[#This Row],[Service Cost (Test and Tag)]],Table13[[#This Row],[Travel Hours Total]])","v":0},{"$f":"IF(Table13[[#This Row],[Charge type]]<>\"\",Company_Name,\"\")","v":""},{"$f":"IF(Table13[[#This Row],[Charge type]]<>\"\",ENZ_Reference_Num,\"\")","v":""},{"$f":"IF(Table13[[#This Row],[Charge type]]<>\"\",Invoice_date,\"\")","v":""},{"$f":"IF(Table13[[#This Row],[Charge type]]<>\"\",Invoice_Number,\"\")","v":""},85,85,0.64,15,{"$f":"IF(Table13[[#This Row],[TOTAL JOB COST]]>1999.99,\"OVER $2k - contact Enable\",\"\")","v":""}]
[{"$f":"IF(Table1[[#This Row],[Job Ref]]=\"\",\"\",Table1[[#This Row],[Job Ref]])","v":""},{"$f":"IF(Table1[[#This Row],[Job Ref]]=\"\",\"\",VLOOKUP(Table1[[#This Row],[Charge type]],Table3[],2,FALSE))","v":""},{"$f":"IF(Table1[[#This Row],[Job Ref]]=\"\",\"\",Table1[[#This Row],[Clients First Name]])","v":""},{"$f":"IF(Table1[[#This Row],[Job Ref]]=\"\",\"\",Table1[[#This Row],[Clients Surname]])","v":""},{"$f":"IF(Table1[[#This Row],[Job Ref]]=\"\",\"\",Table1[[#This Row],[Clients Address Street No]])","v":""},{"$f":"IF(Table1[[#This Row],[Job Ref]]=\"\",\"\",Table1[[#This Row],[Clients Address Street ]])","v":""},{"$f":"IF(Table1[[#This Row],[Job Ref]]=\"\",\"\",Table1[[#This Row],[Clients Address Town/City]])","v":""},{"$f":"IF(Table1[[#This Row],[Job Ref]]=\"\",\"\",Table1[[#This Row],[Clients Phone Number]])","v":""},{"$f":"IF(Table1[[#This Row],[Job Ref]]=\"\",\"\",Table1[[#This Row],[Date repair/service requested]])","v":""},{"$f":"IF(Table1[[#This Row],[Job Ref]]=\"\",\"\",Table1[[#This Row],[Date  repair/service completed]])","v":""},{"$f":"IF(Table1[[#This Row],[Job Ref]]=\"\",\"\",Table1[[#This Row],[Asset Number]])","v":""},{"$f":"IF(Table1[[#This Row],[Job Ref]]=\"\",\"\",Table1[[#This Row],[Asset Description]])","v":""},{"$f":"IF(Table1[[#This Row],[Job Ref]]=\"\",\"\",Table1[[#This Row],[Manufacturers Serial No.]])","v":""},{"$f":"IF(Table1[[#This Row],[Job Ref]]=\"\",\"\",Table1[[#This Row],[Test and Tag]])","v":""},{"$f":"IF(Table1[[#This Row],[Job Ref]]=\"\",\"\",Table1[[#This Row],[Beyond Economic Repair (BER)]])","v":""},{"$f":"IF(Table1[[#This Row],[Job Ref]]=\"\",\"\",Table1[[#This Row],[BER Comment]])","v":""},{"$f":"IF(Table1[[#This Row],[Job Ref]]=\"\",\"\",Table1[[#This Row],[Repair Description]])","v":""},{"$f":"IF(Table1[[#This Row],[Job Ref]]=\"\",\"\",Table1[[#This Row],[Labour Hours]])","v":""},{"$f":"IF(Table1[[#This Row],[Job Ref]]=\"\",\"\",Table1[[#This Row],[Travel Hours]])","v":""},{"$f":"IF(Table1[[#This Row],[Job Ref]]=\"\",\"\",Table1[[#This Row],[Travel Distance (km)]])","v":""},{"$f":"IF(Table1[[#This Row],[Job Ref]]=\"\",\"\",Table1[[#This Row],[Parts Description]])","v":""},{"$f":"IF(Table1[[#This Row],[Job Ref]]=\"\",\"\",Table1[[#This Row],[Parts Costs]])","v":""},{"$f":"IFERROR(Table13[[#This Row],[Labour Hours]]*Table13[[#This Row],[Cost  per unit (LH)]],0)","v":0},{"$f":"IFERROR(Table13[[#This Row],[Travel Hours]]*Table13[[#This Row],[Cost  per unit (TH)]],0)","v":0},{"$f":"IFERROR(Table13[[#This Row],[Travel Distance (km)]]*Table13[[#This Row],[Cost  per unit (TD)]],0)","v":0},{"$f":"IF(Table13[[#This Row],[Test and Tag]]=\"Yes\",Table13[[#This Row],[Cost per Unit (TT)]],0)","v":0},{"$f":"SUM(Table13[[#This Row],[Parts Costs]],Table13[[#This Row],[Travel KM Total ]],Table13[[#This Row],[Labour Hours Total ]],Table13[[#This Row],[Service Cost (Test and Tag)]],Table13[[#This Row],[Travel Hours Total]])","v":0},{"$f":"IF(Table13[[#This Row],[Charge type]]<>\"\",Company_Name,\"\")","v":""},{"$f":"IF(Table13[[#This Row],[Charge type]]<>\"\",ENZ_Reference_Num,\"\")","v":""},{"$f":"IF(Table13[[#This Row],[Charge type]]<>\"\",Invoice_date,\"\")","v":""},{"$f":"IF(Table13[[#This Row],[Charge type]]<>\"\",Invoice_Number,\"\")","v":""},85,85,0.64,15,{"$f":"IF(Table13[[#This Row],[TOTAL JOB COST]]>1999.99,\"OVER $2k - contact Enable\",\"\")","v":""}]
[{"$f":"IF(Table1[[#This Row],[Job Ref]]=\"\",\"\",Table1[[#This Row],[Job Ref]])","v":""},{"$f":"IF(Table1[[#This Row],[Job Ref]]=\"\",\"\",VLOOKUP(Table1[[#This Row],[Charge type]],Table3[],2,FALSE))","v":""},{"$f":"IF(Table1[[#This Row],[Job Ref]]=\"\",\"\",Table1[[#This Row],[Clients First Name]])","v":""},{"$f":"IF(Table1[[#This Row],[Job Ref]]=\"\",\"\",Table1[[#This Row],[Clients Surname]])","v":""},{"$f":"IF(Table1[[#This Row],[Job Ref]]=\"\",\"\",Table1[[#This Row],[Clients Address Street No]])","v":""},{"$f":"IF(Table1[[#This Row],[Job Ref]]=\"\",\"\",Table1[[#This Row],[Clients Address Street ]])","v":""},{"$f":"IF(Table1[[#This Row],[Job Ref]]=\"\",\"\",Table1[[#This Row],[Clients Address Town/City]])","v":""},{"$f":"IF(Table1[[#This Row],[Job Ref]]=\"\",\"\",Table1[[#This Row],[Clients Phone Number]])","v":""},{"$f":"IF(Table1[[#This Row],[Job Ref]]=\"\",\"\",Table1[[#This Row],[Date repair/service requested]])","v":""},{"$f":"IF(Table1[[#This Row],[Job Ref]]=\"\",\"\",Table1[[#This Row],[Date  repair/service completed]])","v":""},{"$f":"IF(Table1[[#This Row],[Job Ref]]=\"\",\"\",Table1[[#This Row],[Asset Number]])","v":""},{"$f":"IF(Table1[[#This Row],[Job Ref]]=\"\",\"\",Table1[[#This Row],[Asset Description]])","v":""},{"$f":"IF(Table1[[#This Row],[Job Ref]]=\"\",\"\",Table1[[#This Row],[Manufacturers Serial No.]])","v":""},{"$f":"IF(Table1[[#This Row],[Job Ref]]=\"\",\"\",Table1[[#This Row],[Test and Tag]])","v":""},{"$f":"IF(Table1[[#This Row],[Job Ref]]=\"\",\"\",Table1[[#This Row],[Beyond Economic Repair (BER)]])","v":""},{"$f":"IF(Table1[[#This Row],[Job Ref]]=\"\",\"\",Table1[[#This Row],[BER Comment]])","v":""},{"$f":"IF(Table1[[#This Row],[Job Ref]]=\"\",\"\",Table1[[#This Row],[Repair Description]])","v":""},{"$f":"IF(Table1[[#This Row],[Job Ref]]=\"\",\"\",Table1[[#This Row],[Labour Hours]])","v":""},{"$f":"IF(Table1[[#This Row],[Job Ref]]=\"\",\"\",Table1[[#This Row],[Travel Hours]])","v":""},{"$f":"IF(Table1[[#This Row],[Job Ref]]=\"\",\"\",Table1[[#This Row],[Travel Distance (km)]])","v":""},{"$f":"IF(Table1[[#This Row],[Job Ref]]=\"\",\"\",Table1[[#This Row],[Parts Description]])","v":""},{"$f":"IF(Table1[[#This Row],[Job Ref]]=\"\",\"\",Table1[[#This Row],[Parts Costs]])","v":""},{"$f":"IFERROR(Table13[[#This Row],[Labour Hours]]*Table13[[#This Row],[Cost  per unit (LH)]],0)","v":0},{"$f":"IFERROR(Table13[[#This Row],[Travel Hours]]*Table13[[#This Row],[Cost  per unit (TH)]],0)","v":0},{"$f":"IFERROR(Table13[[#This Row],[Travel Distance (km)]]*Table13[[#This Row],[Cost  per unit (TD)]],0)","v":0},{"$f":"IF(Table13[[#This Row],[Test and Tag]]=\"Yes\",Table13[[#This Row],[Cost per Unit (TT)]],0)","v":0},{"$f":"SUM(Table13[[#This Row],[Parts Costs]],Table13[[#This Row],[Travel KM Total ]],Table13[[#This Row],[Labour Hours Total ]],Table13[[#This Row],[Service Cost (Test and Tag)]],Table13[[#This Row],[Travel Hours Total]])","v":0},{"$f":"IF(Table13[[#This Row],[Charge type]]<>\"\",Company_Name,\"\")","v":""},{"$f":"IF(Table13[[#This Row],[Charge type]]<>\"\",ENZ_Reference_Num,\"\")","v":""},{"$f":"IF(Table13[[#This Row],[Charge type]]<>\"\",Invoice_date,\"\")","v":""},{"$f":"IF(Table13[[#This Row],[Charge type]]<>\"\",Invoice_Number,\"\")","v":""},85,85,0.64,15,{"$f":"IF(Table13[[#This Row],[TOTAL JOB COST]]>1999.99,\"OVER $2k - contact Enable\",\"\")","v":""}]
[{"$f":"IF(Table1[[#This Row],[Job Ref]]=\"\",\"\",Table1[[#This Row],[Job Ref]])","v":""},{"$f":"IF(Table1[[#This Row],[Job Ref]]=\"\",\"\",VLOOKUP(Table1[[#This Row],[Charge type]],Table3[],2,FALSE))","v":""},{"$f":"IF(Table1[[#This Row],[Job Ref]]=\"\",\"\",Table1[[#This Row],[Clients First Name]])","v":""},{"$f":"IF(Table1[[#This Row],[Job Ref]]=\"\",\"\",Table1[[#This Row],[Clients Surname]])","v":""},{"$f":"IF(Table1[[#This Row],[Job Ref]]=\"\",\"\",Table1[[#This Row],[Clients Address Street No]])","v":""},{"$f":"IF(Table1[[#This Row],[Job Ref]]=\"\",\"\",Table1[[#This Row],[Clients Address Street ]])","v":""},{"$f":"IF(Table1[[#This Row],[Job Ref]]=\"\",\"\",Table1[[#This Row],[Clients Address Town/City]])","v":""},{"$f":"IF(Table1[[#This Row],[Job Ref]]=\"\",\"\",Table1[[#This Row],[Clients Phone Number]])","v":""},{"$f":"IF(Table1[[#This Row],[Job Ref]]=\"\",\"\",Table1[[#This Row],[Date repair/service requested]])","v":""},{"$f":"IF(Table1[[#This Row],[Job Ref]]=\"\",\"\",Table1[[#This Row],[Date  repair/service completed]])","v":""},{"$f":"IF(Table1[[#This Row],[Job Ref]]=\"\",\"\",Table1[[#This Row],[Asset Number]])","v":""},{"$f":"IF(Table1[[#This Row],[Job Ref]]=\"\",\"\",Table1[[#This Row],[Asset Description]])","v":""},{"$f":"IF(Table1[[#This Row],[Job Ref]]=\"\",\"\",Table1[[#This Row],[Manufacturers Serial No.]])","v":""},{"$f":"IF(Table1[[#This Row],[Job Ref]]=\"\",\"\",Table1[[#This Row],[Test and Tag]])","v":""},{"$f":"IF(Table1[[#This Row],[Job Ref]]=\"\",\"\",Table1[[#This Row],[Beyond Economic Repair (BER)]])","v":""},{"$f":"IF(Table1[[#This Row],[Job Ref]]=\"\",\"\",Table1[[#This Row],[BER Comment]])","v":""},{"$f":"IF(Table1[[#This Row],[Job Ref]]=\"\",\"\",Table1[[#This Row],[Repair Description]])","v":""},{"$f":"IF(Table1[[#This Row],[Job Ref]]=\"\",\"\",Table1[[#This Row],[Labour Hours]])","v":""},{"$f":"IF(Table1[[#This Row],[Job Ref]]=\"\",\"\",Table1[[#This Row],[Travel Hours]])","v":""},{"$f":"IF(Table1[[#This Row],[Job Ref]]=\"\",\"\",Table1[[#This Row],[Travel Distance (km)]])","v":""},{"$f":"IF(Table1[[#This Row],[Job Ref]]=\"\",\"\",Table1[[#This Row],[Parts Description]])","v":""},{"$f":"IF(Table1[[#This Row],[Job Ref]]=\"\",\"\",Table1[[#This Row],[Parts Costs]])","v":""},{"$f":"IFERROR(Table13[[#This Row],[Labour Hours]]*Table13[[#This Row],[Cost  per unit (LH)]],0)","v":0},{"$f":"IFERROR(Table13[[#This Row],[Travel Hours]]*Table13[[#This Row],[Cost  per unit (TH)]],0)","v":0},{"$f":"IFERROR(Table13[[#This Row],[Travel Distance (km)]]*Table13[[#This Row],[Cost  per unit (TD)]],0)","v":0},{"$f":"IF(Table13[[#This Row],[Test and Tag]]=\"Yes\",Table13[[#This Row],[Cost per Unit (TT)]],0)","v":0},{"$f":"SUM(Table13[[#This Row],[Parts Costs]],Table13[[#This Row],[Travel KM Total ]],Table13[[#This Row],[Labour Hours Total ]],Table13[[#This Row],[Service Cost (Test and Tag)]],Table13[[#This Row],[Travel Hours Total]])","v":0},{"$f":"IF(Table13[[#This Row],[Charge type]]<>\"\",Company_Name,\"\")","v":""},{"$f":"IF(Table13[[#This Row],[Charge type]]<>\"\",ENZ_Reference_Num,\"\")","v":""},{"$f":"IF(Table13[[#This Row],[Charge type]]<>\"\",Invoice_date,\"\")","v":""},{"$f":"IF(Table13[[#This Row],[Charge type]]<>\"\",Invoice_Number,\"\")","v":""},85,85,0.64,15,{"$f":"IF(Table13[[#This Row],[TOTAL JOB COST]]>1999.99,\"OVER $2k - contact Enable\",\"\")","v":""}]
[{"$f":"IF(Table1[[#This Row],[Job Ref]]=\"\",\"\",Table1[[#This Row],[Job Ref]])","v":""},{"$f":"IF(Table1[[#This Row],[Job Ref]]=\"\",\"\",VLOOKUP(Table1[[#This Row],[Charge type]],Table3[],2,FALSE))","v":""},{"$f":"IF(Table1[[#This Row],[Job Ref]]=\"\",\"\",Table1[[#This Row],[Clients First Name]])","v":""},{"$f":"IF(Table1[[#This Row],[Job Ref]]=\"\",\"\",Table1[[#This Row],[Clients Surname]])","v":""},{"$f":"IF(Table1[[#This Row],[Job Ref]]=\"\",\"\",Table1[[#This Row],[Clients Address Street No]])","v":""},{"$f":"IF(Table1[[#This Row],[Job Ref]]=\"\",\"\",Table1[[#This Row],[Clients Address Street ]])","v":""},{"$f":"IF(Table1[[#This Row],[Job Ref]]=\"\",\"\",Table1[[#This Row],[Clients Address Town/City]])","v":""},{"$f":"IF(Table1[[#This Row],[Job Ref]]=\"\",\"\",Table1[[#This Row],[Clients Phone Number]])","v":""},{"$f":"IF(Table1[[#This Row],[Job Ref]]=\"\",\"\",Table1[[#This Row],[Date repair/service requested]])","v":""},{"$f":"IF(Table1[[#This Row],[Job Ref]]=\"\",\"\",Table1[[#This Row],[Date  repair/service completed]])","v":""},{"$f":"IF(Table1[[#This Row],[Job Ref]]=\"\",\"\",Table1[[#This Row],[Asset Number]])","v":""},{"$f":"IF(Table1[[#This Row],[Job Ref]]=\"\",\"\",Table1[[#This Row],[Asset Description]])","v":""},{"$f":"IF(Table1[[#This Row],[Job Ref]]=\"\",\"\",Table1[[#This Row],[Manufacturers Serial No.]])","v":""},{"$f":"IF(Table1[[#This Row],[Job Ref]]=\"\",\"\",Table1[[#This Row],[Test and Tag]])","v":""},{"$f":"IF(Table1[[#This Row],[Job Ref]]=\"\",\"\",Table1[[#This Row],[Beyond Economic Repair (BER)]])","v":""},{"$f":"IF(Table1[[#This Row],[Job Ref]]=\"\",\"\",Table1[[#This Row],[BER Comment]])","v":""},{"$f":"IF(Table1[[#This Row],[Job Ref]]=\"\",\"\",Table1[[#This Row],[Repair Description]])","v":""},{"$f":"IF(Table1[[#This Row],[Job Ref]]=\"\",\"\",Table1[[#This Row],[Labour Hours]])","v":""},{"$f":"IF(Table1[[#This Row],[Job Ref]]=\"\",\"\",Table1[[#This Row],[Travel Hours]])","v":""},{"$f":"IF(Table1[[#This Row],[Job Ref]]=\"\",\"\",Table1[[#This Row],[Travel Distance (km)]])","v":""},{"$f":"IF(Table1[[#This Row],[Job Ref]]=\"\",\"\",Table1[[#This Row],[Parts Description]])","v":""},{"$f":"IF(Table1[[#This Row],[Job Ref]]=\"\",\"\",Table1[[#This Row],[Parts Costs]])","v":""},{"$f":"IFERROR(Table13[[#This Row],[Labour Hours]]*Table13[[#This Row],[Cost  per unit (LH)]],0)","v":0},{"$f":"IFERROR(Table13[[#This Row],[Travel Hours]]*Table13[[#This Row],[Cost  per unit (TH)]],0)","v":0},{"$f":"IFERROR(Table13[[#This Row],[Travel Distance (km)]]*Table13[[#This Row],[Cost  per unit (TD)]],0)","v":0},{"$f":"IF(Table13[[#This Row],[Test and Tag]]=\"Yes\",Table13[[#This Row],[Cost per Unit (TT)]],0)","v":0},{"$f":"SUM(Table13[[#This Row],[Parts Costs]],Table13[[#This Row],[Travel KM Total ]],Table13[[#This Row],[Labour Hours Total ]],Table13[[#This Row],[Service Cost (Test and Tag)]],Table13[[#This Row],[Travel Hours Total]])","v":0},{"$f":"IF(Table13[[#This Row],[Charge type]]<>\"\",Company_Name,\"\")","v":""},{"$f":"IF(Table13[[#This Row],[Charge type]]<>\"\",ENZ_Reference_Num,\"\")","v":""},{"$f":"IF(Table13[[#This Row],[Charge type]]<>\"\",Invoice_date,\"\")","v":""},{"$f":"IF(Table13[[#This Row],[Charge type]]<>\"\",Invoice_Number,\"\")","v":""},85,85,0.64,15,{"$f":"IF(Table13[[#This Row],[TOTAL JOB COST]]>1999.99,\"OVER $2k - contact Enable\",\"\")","v":""}]
[{"$f":"IF(Table1[[#This Row],[Job Ref]]=\"\",\"\",Table1[[#This Row],[Job Ref]])","v":""},{"$f":"IF(Table1[[#This Row],[Job Ref]]=\"\",\"\",VLOOKUP(Table1[[#This Row],[Charge type]],Table3[],2,FALSE))","v":""},{"$f":"IF(Table1[[#This Row],[Job Ref]]=\"\",\"\",Table1[[#This Row],[Clients First Name]])","v":""},{"$f":"IF(Table1[[#This Row],[Job Ref]]=\"\",\"\",Table1[[#This Row],[Clients Surname]])","v":""},{"$f":"IF(Table1[[#This Row],[Job Ref]]=\"\",\"\",Table1[[#This Row],[Clients Address Street No]])","v":""},{"$f":"IF(Table1[[#This Row],[Job Ref]]=\"\",\"\",Table1[[#This Row],[Clients Address Street ]])","v":""},{"$f":"IF(Table1[[#This Row],[Job Ref]]=\"\",\"\",Table1[[#This Row],[Clients Address Town/City]])","v":""},{"$f":"IF(Table1[[#This Row],[Job Ref]]=\"\",\"\",Table1[[#This Row],[Clients Phone Number]])","v":""},{"$f":"IF(Table1[[#This Row],[Job Ref]]=\"\",\"\",Table1[[#This Row],[Date repair/service requested]])","v":""},{"$f":"IF(Table1[[#This Row],[Job Ref]]=\"\",\"\",Table1[[#This Row],[Date  repair/service completed]])","v":""},{"$f":"IF(Table1[[#This Row],[Job Ref]]=\"\",\"\",Table1[[#This Row],[Asset Number]])","v":""},{"$f":"IF(Table1[[#This Row],[Job Ref]]=\"\",\"\",Table1[[#This Row],[Asset Description]])","v":""},{"$f":"IF(Table1[[#This Row],[Job Ref]]=\"\",\"\",Table1[[#This Row],[Manufacturers Serial No.]])","v":""},{"$f":"IF(Table1[[#This Row],[Job Ref]]=\"\",\"\",Table1[[#This Row],[Test and Tag]])","v":""},{"$f":"IF(Table1[[#This Row],[Job Ref]]=\"\",\"\",Table1[[#This Row],[Beyond Economic Repair (BER)]])","v":""},{"$f":"IF(Table1[[#This Row],[Job Ref]]=\"\",\"\",Table1[[#This Row],[BER Comment]])","v":""},{"$f":"IF(Table1[[#This Row],[Job Ref]]=\"\",\"\",Table1[[#This Row],[Repair Description]])","v":""},{"$f":"IF(Table1[[#This Row],[Job Ref]]=\"\",\"\",Table1[[#This Row],[Labour Hours]])","v":""},{"$f":"IF(Table1[[#This Row],[Job Ref]]=\"\",\"\",Table1[[#This Row],[Travel Hours]])","v":""},{"$f":"IF(Table1[[#This Row],[Job Ref]]=\"\",\"\",Table1[[#This Row],[Travel Distance (km)]])","v":""},{"$f":"IF(Table1[[#This Row],[Job Ref]]=\"\",\"\",Table1[[#This Row],[Parts Description]])","v":""},{"$f":"IF(Table1[[#This Row],[Job Ref]]=\"\",\"\",Table1[[#This Row],[Parts Costs]])","v":""},{"$f":"IFERROR(Table13[[#This Row],[Labour Hours]]*Table13[[#This Row],[Cost  per unit (LH)]],0)","v":0},{"$f":"IFERROR(Table13[[#This Row],[Travel Hours]]*Table13[[#This Row],[Cost  per unit (TH)]],0)","v":0},{"$f":"IFERROR(Table13[[#This Row],[Travel Distance (km)]]*Table13[[#This Row],[Cost  per unit (TD)]],0)","v":0},{"$f":"IF(Table13[[#This Row],[Test and Tag]]=\"Yes\",Table13[[#This Row],[Cost per Unit (TT)]],0)","v":0},{"$f":"SUM(Table13[[#This Row],[Parts Costs]],Table13[[#This Row],[Travel KM Total ]],Table13[[#This Row],[Labour Hours Total ]],Table13[[#This Row],[Service Cost (Test and Tag)]],Table13[[#This Row],[Travel Hours Total]])","v":0},{"$f":"IF(Table13[[#This Row],[Charge type]]<>\"\",Company_Name,\"\")","v":""},{"$f":"IF(Table13[[#This Row],[Charge type]]<>\"\",ENZ_Reference_Num,\"\")","v":""},{"$f":"IF(Table13[[#This Row],[Charge type]]<>\"\",Invoice_date,\"\")","v":""},{"$f":"IF(Table13[[#This Row],[Charge type]]<>\"\",Invoice_Number,\"\")","v":""},85,85,0.64,15,{"$f":"IF(Table13[[#This Row],[TOTAL JOB COST]]>1999.99,\"OVER $2k - contact Enable\",\"\")","v":""}]
[{"$f":"IF(Table1[[#This Row],[Job Ref]]=\"\",\"\",Table1[[#This Row],[Job Ref]])","v":""},{"$f":"IF(Table1[[#This Row],[Job Ref]]=\"\",\"\",VLOOKUP(Table1[[#This Row],[Charge type]],Table3[],2,FALSE))","v":""},{"$f":"IF(Table1[[#This Row],[Job Ref]]=\"\",\"\",Table1[[#This Row],[Clients First Name]])","v":""},{"$f":"IF(Table1[[#This Row],[Job Ref]]=\"\",\"\",Table1[[#This Row],[Clients Surname]])","v":""},{"$f":"IF(Table1[[#This Row],[Job Ref]]=\"\",\"\",Table1[[#This Row],[Clients Address Street No]])","v":""},{"$f":"IF(Table1[[#This Row],[Job Ref]]=\"\",\"\",Table1[[#This Row],[Clients Address Street ]])","v":""},{"$f":"IF(Table1[[#This Row],[Job Ref]]=\"\",\"\",Table1[[#This Row],[Clients Address Town/City]])","v":""},{"$f":"IF(Table1[[#This Row],[Job Ref]]=\"\",\"\",Table1[[#This Row],[Clients Phone Number]])","v":""},{"$f":"IF(Table1[[#This Row],[Job Ref]]=\"\",\"\",Table1[[#This Row],[Date repair/service requested]])","v":""},{"$f":"IF(Table1[[#This Row],[Job Ref]]=\"\",\"\",Table1[[#This Row],[Date  repair/service completed]])","v":""},{"$f":"IF(Table1[[#This Row],[Job Ref]]=\"\",\"\",Table1[[#This Row],[Asset Number]])","v":""},{"$f":"IF(Table1[[#This Row],[Job Ref]]=\"\",\"\",Table1[[#This Row],[Asset Description]])","v":""},{"$f":"IF(Table1[[#This Row],[Job Ref]]=\"\",\"\",Table1[[#This Row],[Manufacturers Serial No.]])","v":""},{"$f":"IF(Table1[[#This Row],[Job Ref]]=\"\",\"\",Table1[[#This Row],[Test and Tag]])","v":""},{"$f":"IF(Table1[[#This Row],[Job Ref]]=\"\",\"\",Table1[[#This Row],[Beyond Economic Repair (BER)]])","v":""},{"$f":"IF(Table1[[#This Row],[Job Ref]]=\"\",\"\",Table1[[#This Row],[BER Comment]])","v":""},{"$f":"IF(Table1[[#This Row],[Job Ref]]=\"\",\"\",Table1[[#This Row],[Repair Description]])","v":""},{"$f":"IF(Table1[[#This Row],[Job Ref]]=\"\",\"\",Table1[[#This Row],[Labour Hours]])","v":""},{"$f":"IF(Table1[[#This Row],[Job Ref]]=\"\",\"\",Table1[[#This Row],[Travel Hours]])","v":""},{"$f":"IF(Table1[[#This Row],[Job Ref]]=\"\",\"\",Table1[[#This Row],[Travel Distance (km)]])","v":""},{"$f":"IF(Table1[[#This Row],[Job Ref]]=\"\",\"\",Table1[[#This Row],[Parts Description]])","v":""},{"$f":"IF(Table1[[#This Row],[Job Ref]]=\"\",\"\",Table1[[#This Row],[Parts Costs]])","v":""},{"$f":"IFERROR(Table13[[#This Row],[Labour Hours]]*Table13[[#This Row],[Cost  per unit (LH)]],0)","v":0},{"$f":"IFERROR(Table13[[#This Row],[Travel Hours]]*Table13[[#This Row],[Cost  per unit (TH)]],0)","v":0},{"$f":"IFERROR(Table13[[#This Row],[Travel Distance (km)]]*Table13[[#This Row],[Cost  per unit (TD)]],0)","v":0},{"$f":"IF(Table13[[#This Row],[Test and Tag]]=\"Yes\",Table13[[#This Row],[Cost per Unit (TT)]],0)","v":0},{"$f":"SUM(Table13[[#This Row],[Parts Costs]],Table13[[#This Row],[Travel KM Total ]],Table13[[#This Row],[Labour Hours Total ]],Table13[[#This Row],[Service Cost (Test and Tag)]],Table13[[#This Row],[Travel Hours Total]])","v":0},{"$f":"IF(Table13[[#This Row],[Charge type]]<>\"\",Company_Name,\"\")","v":""},{"$f":"IF(Table13[[#This Row],[Charge type]]<>\"\",ENZ_Reference_Num,\"\")","v":""},{"$f":"IF(Table13[[#This Row],[Charge type]]<>\"\",Invoice_date,\"\")","v":""},{"$f":"IF(Table13[[#This Row],[Charge type]]<>\"\",Invoice_Number,\"\")","v":""},85,85,0.64,15,{"$f":"IF(Table13[[#This Row],[TOTAL JOB COST]]>1999.99,\"OVER $2k - contact Enable\",\"\")","v":""}]
[{"$f":"IF(Table1[[#This Row],[Job Ref]]=\"\",\"\",Table1[[#This Row],[Job Ref]])","v":""},{"$f":"IF(Table1[[#This Row],[Job Ref]]=\"\",\"\",VLOOKUP(Table1[[#This Row],[Charge type]],Table3[],2,FALSE))","v":""},{"$f":"IF(Table1[[#This Row],[Job Ref]]=\"\",\"\",Table1[[#This Row],[Clients First Name]])","v":""},{"$f":"IF(Table1[[#This Row],[Job Ref]]=\"\",\"\",Table1[[#This Row],[Clients Surname]])","v":""},{"$f":"IF(Table1[[#This Row],[Job Ref]]=\"\",\"\",Table1[[#This Row],[Clients Address Street No]])","v":""},{"$f":"IF(Table1[[#This Row],[Job Ref]]=\"\",\"\",Table1[[#This Row],[Clients Address Street ]])","v":""},{"$f":"IF(Table1[[#This Row],[Job Ref]]=\"\",\"\",Table1[[#This Row],[Clients Address Town/City]])","v":""},{"$f":"IF(Table1[[#This Row],[Job Ref]]=\"\",\"\",Table1[[#This Row],[Clients Phone Number]])","v":""},{"$f":"IF(Table1[[#This Row],[Job Ref]]=\"\",\"\",Table1[[#This Row],[Date repair/service requested]])","v":""},{"$f":"IF(Table1[[#This Row],[Job Ref]]=\"\",\"\",Table1[[#This Row],[Date  repair/service completed]])","v":""},{"$f":"IF(Table1[[#This Row],[Job Ref]]=\"\",\"\",Table1[[#This Row],[Asset Number]])","v":""},{"$f":"IF(Table1[[#This Row],[Job Ref]]=\"\",\"\",Table1[[#This Row],[Asset Description]])","v":""},{"$f":"IF(Table1[[#This Row],[Job Ref]]=\"\",\"\",Table1[[#This Row],[Manufacturers Serial No.]])","v":""},{"$f":"IF(Table1[[#This Row],[Job Ref]]=\"\",\"\",Table1[[#This Row],[Test and Tag]])","v":""},{"$f":"IF(Table1[[#This Row],[Job Ref]]=\"\",\"\",Table1[[#This Row],[Beyond Economic Repair (BER)]])","v":""},{"$f":"IF(Table1[[#This Row],[Job Ref]]=\"\",\"\",Table1[[#This Row],[BER Comment]])","v":""},{"$f":"IF(Table1[[#This Row],[Job Ref]]=\"\",\"\",Table1[[#This Row],[Repair Description]])","v":""},{"$f":"IF(Table1[[#This Row],[Job Ref]]=\"\",\"\",Table1[[#This Row],[Labour Hours]])","v":""},{"$f":"IF(Table1[[#This Row],[Job Ref]]=\"\",\"\",Table1[[#This Row],[Travel Hours]])","v":""},{"$f":"IF(Table1[[#This Row],[Job Ref]]=\"\",\"\",Table1[[#This Row],[Travel Distance (km)]])","v":""},{"$f":"IF(Table1[[#This Row],[Job Ref]]=\"\",\"\",Table1[[#This Row],[Parts Description]])","v":""},{"$f":"IF(Table1[[#This Row],[Job Ref]]=\"\",\"\",Table1[[#This Row],[Parts Costs]])","v":""},{"$f":"IFERROR(Table13[[#This Row],[Labour Hours]]*Table13[[#This Row],[Cost  per unit (LH)]],0)","v":0},{"$f":"IFERROR(Table13[[#This Row],[Travel Hours]]*Table13[[#This Row],[Cost  per unit (TH)]],0)","v":0},{"$f":"IFERROR(Table13[[#This Row],[Travel Distance (km)]]*Table13[[#This Row],[Cost  per unit (TD)]],0)","v":0},{"$f":"IF(Table13[[#This Row],[Test and Tag]]=\"Yes\",Table13[[#This Row],[Cost per Unit (TT)]],0)","v":0},{"$f":"SUM(Table13[[#This Row],[Parts Costs]],Table13[[#This Row],[Travel KM Total ]],Table13[[#This Row],[Labour Hours Total ]],Table13[[#This Row],[Service Cost (Test and Tag)]],Table13[[#This Row],[Travel Hours Total]])","v":0},{"$f":"IF(Table13[[#This Row],[Charge type]]<>\"\",Company_Name,\"\")","v":""},{"$f":"IF(Table13[[#This Row],[Charge type]]<>\"\",ENZ_Reference_Num,\"\")","v":""},{"$f":"IF(Table13[[#This Row],[Charge type]]<>\"\",Invoice_date,\"\")","v":""},{"$f":"IF(Table13[[#This Row],[Charge type]]<>\"\",Invoice_Number,\"\")","v":""},85,85,0.64,15,{"$f":"IF(Table13[[#This Row],[TOTAL JOB COST]]>1999.99,\"OVER $2k - contact Enable\",\"\")","v":""}]
[{"$f":"IF(Table1[[#This Row],[Job Ref]]=\"\",\"\",Table1[[#This Row],[Job Ref]])","v":""},{"$f":"IF(Table1[[#This Row],[Job Ref]]=\"\",\"\",VLOOKUP(Table1[[#This Row],[Charge type]],Table3[],2,FALSE))","v":""},{"$f":"IF(Table1[[#This Row],[Job Ref]]=\"\",\"\",Table1[[#This Row],[Clients First Name]])","v":""},{"$f":"IF(Table1[[#This Row],[Job Ref]]=\"\",\"\",Table1[[#This Row],[Clients Surname]])","v":""},{"$f":"IF(Table1[[#This Row],[Job Ref]]=\"\",\"\",Table1[[#This Row],[Clients Address Street No]])","v":""},{"$f":"IF(Table1[[#This Row],[Job Ref]]=\"\",\"\",Table1[[#This Row],[Clients Address Street ]])","v":""},{"$f":"IF(Table1[[#This Row],[Job Ref]]=\"\",\"\",Table1[[#This Row],[Clients Address Town/City]])","v":""},{"$f":"IF(Table1[[#This Row],[Job Ref]]=\"\",\"\",Table1[[#This Row],[Clients Phone Number]])","v":""},{"$f":"IF(Table1[[#This Row],[Job Ref]]=\"\",\"\",Table1[[#This Row],[Date repair/service requested]])","v":""},{"$f":"IF(Table1[[#This Row],[Job Ref]]=\"\",\"\",Table1[[#This Row],[Date  repair/service completed]])","v":""},{"$f":"IF(Table1[[#This Row],[Job Ref]]=\"\",\"\",Table1[[#This Row],[Asset Number]])","v":""},{"$f":"IF(Table1[[#This Row],[Job Ref]]=\"\",\"\",Table1[[#This Row],[Asset Description]])","v":""},{"$f":"IF(Table1[[#This Row],[Job Ref]]=\"\",\"\",Table1[[#This Row],[Manufacturers Serial No.]])","v":""},{"$f":"IF(Table1[[#This Row],[Job Ref]]=\"\",\"\",Table1[[#This Row],[Test and Tag]])","v":""},{"$f":"IF(Table1[[#This Row],[Job Ref]]=\"\",\"\",Table1[[#This Row],[Beyond Economic Repair (BER)]])","v":""},{"$f":"IF(Table1[[#This Row],[Job Ref]]=\"\",\"\",Table1[[#This Row],[BER Comment]])","v":""},{"$f":"IF(Table1[[#This Row],[Job Ref]]=\"\",\"\",Table1[[#This Row],[Repair Description]])","v":""},{"$f":"IF(Table1[[#This Row],[Job Ref]]=\"\",\"\",Table1[[#This Row],[Labour Hours]])","v":""},{"$f":"IF(Table1[[#This Row],[Job Ref]]=\"\",\"\",Table1[[#This Row],[Travel Hours]])","v":""},{"$f":"IF(Table1[[#This Row],[Job Ref]]=\"\",\"\",Table1[[#This Row],[Travel Distance (km)]])","v":""},{"$f":"IF(Table1[[#This Row],[Job Ref]]=\"\",\"\",Table1[[#This Row],[Parts Description]])","v":""},{"$f":"IF(Table1[[#This Row],[Job Ref]]=\"\",\"\",Table1[[#This Row],[Parts Costs]])","v":""},{"$f":"IFERROR(Table13[[#This Row],[Labour Hours]]*Table13[[#This Row],[Cost  per unit (LH)]],0)","v":0},{"$f":"IFERROR(Table13[[#This Row],[Travel Hours]]*Table13[[#This Row],[Cost  per unit (TH)]],0)","v":0},{"$f":"IFERROR(Table13[[#This Row],[Travel Distance (km)]]*Table13[[#This Row],[Cost  per unit (TD)]],0)","v":0},{"$f":"IF(Table13[[#This Row],[Test and Tag]]=\"Yes\",Table13[[#This Row],[Cost per Unit (TT)]],0)","v":0},{"$f":"SUM(Table13[[#This Row],[Parts Costs]],Table13[[#This Row],[Travel KM Total ]],Table13[[#This Row],[Labour Hours Total ]],Table13[[#This Row],[Service Cost (Test and Tag)]],Table13[[#This Row],[Travel Hours Total]])","v":0},{"$f":"IF(Table13[[#This Row],[Charge type]]<>\"\",Company_Name,\"\")","v":""},{"$f":"IF(Table13[[#This Row],[Charge type]]<>\"\",ENZ_Reference_Num,\"\")","v":""},{"$f":"IF(Table13[[#This Row],[Charge type]]<>\"\",Invoice_date,\"\")","v":""},{"$f":"IF(Table13[[#This Row],[Charge type]]<>\"\",Invoice_Number,\"\")","v":""},85,85,0.64,15,{"$f":"IF(Table13[[#This Row],[TOTAL JOB COST]]>1999.99,\"OVER $2k - contact Enable\",\"\")","v":""}]
[{"$f":"IF(Table1[[#This Row],[Job Ref]]=\"\",\"\",Table1[[#This Row],[Job Ref]])","v":""},{"$f":"IF(Table1[[#This Row],[Job Ref]]=\"\",\"\",VLOOKUP(Table1[[#This Row],[Charge type]],Table3[],2,FALSE))","v":""},{"$f":"IF(Table1[[#This Row],[Job Ref]]=\"\",\"\",Table1[[#This Row],[Clients First Name]])","v":""},{"$f":"IF(Table1[[#This Row],[Job Ref]]=\"\",\"\",Table1[[#This Row],[Clients Surname]])","v":""},{"$f":"IF(Table1[[#This Row],[Job Ref]]=\"\",\"\",Table1[[#This Row],[Clients Address Street No]])","v":""},{"$f":"IF(Table1[[#This Row],[Job Ref]]=\"\",\"\",Table1[[#This Row],[Clients Address Street ]])","v":""},{"$f":"IF(Table1[[#This Row],[Job Ref]]=\"\",\"\",Table1[[#This Row],[Clients Address Town/City]])","v":""},{"$f":"IF(Table1[[#This Row],[Job Ref]]=\"\",\"\",Table1[[#This Row],[Clients Phone Number]])","v":""},{"$f":"IF(Table1[[#This Row],[Job Ref]]=\"\",\"\",Table1[[#This Row],[Date repair/service requested]])","v":""},{"$f":"IF(Table1[[#This Row],[Job Ref]]=\"\",\"\",Table1[[#This Row],[Date  repair/service completed]])","v":""},{"$f":"IF(Table1[[#This Row],[Job Ref]]=\"\",\"\",Table1[[#This Row],[Asset Number]])","v":""},{"$f":"IF(Table1[[#This Row],[Job Ref]]=\"\",\"\",Table1[[#This Row],[Asset Description]])","v":""},{"$f":"IF(Table1[[#This Row],[Job Ref]]=\"\",\"\",Table1[[#This Row],[Manufacturers Serial No.]])","v":""},{"$f":"IF(Table1[[#This Row],[Job Ref]]=\"\",\"\",Table1[[#This Row],[Test and Tag]])","v":""},{"$f":"IF(Table1[[#This Row],[Job Ref]]=\"\",\"\",Table1[[#This Row],[Beyond Economic Repair (BER)]])","v":""},{"$f":"IF(Table1[[#This Row],[Job Ref]]=\"\",\"\",Table1[[#This Row],[BER Comment]])","v":""},{"$f":"IF(Table1[[#This Row],[Job Ref]]=\"\",\"\",Table1[[#This Row],[Repair Description]])","v":""},{"$f":"IF(Table1[[#This Row],[Job Ref]]=\"\",\"\",Table1[[#This Row],[Labour Hours]])","v":""},{"$f":"IF(Table1[[#This Row],[Job Ref]]=\"\",\"\",Table1[[#This Row],[Travel Hours]])","v":""},{"$f":"IF(Table1[[#This Row],[Job Ref]]=\"\",\"\",Table1[[#This Row],[Travel Distance (km)]])","v":""},{"$f":"IF(Table1[[#This Row],[Job Ref]]=\"\",\"\",Table1[[#This Row],[Parts Description]])","v":""},{"$f":"IF(Table1[[#This Row],[Job Ref]]=\"\",\"\",Table1[[#This Row],[Parts Costs]])","v":""},{"$f":"IFERROR(Table13[[#This Row],[Labour Hours]]*Table13[[#This Row],[Cost  per unit (LH)]],0)","v":0},{"$f":"IFERROR(Table13[[#This Row],[Travel Hours]]*Table13[[#This Row],[Cost  per unit (TH)]],0)","v":0},{"$f":"IFERROR(Table13[[#This Row],[Travel Distance (km)]]*Table13[[#This Row],[Cost  per unit (TD)]],0)","v":0},{"$f":"IF(Table13[[#This Row],[Test and Tag]]=\"Yes\",Table13[[#This Row],[Cost per Unit (TT)]],0)","v":0},{"$f":"SUM(Table13[[#This Row],[Parts Costs]],Table13[[#This Row],[Travel KM Total ]],Table13[[#This Row],[Labour Hours Total ]],Table13[[#This Row],[Service Cost (Test and Tag)]],Table13[[#This Row],[Travel Hours Total]])","v":0},{"$f":"IF(Table13[[#This Row],[Charge type]]<>\"\",Company_Name,\"\")","v":""},{"$f":"IF(Table13[[#This Row],[Charge type]]<>\"\",ENZ_Reference_Num,\"\")","v":""},{"$f":"IF(Table13[[#This Row],[Charge type]]<>\"\",Invoice_date,\"\")","v":""},{"$f":"IF(Table13[[#This Row],[Charge type]]<>\"\",Invoice_Number,\"\")","v":""},85,85,0.64,15,{"$f":"IF(Table13[[#This Row],[TOTAL JOB COST]]>1999.99,\"OVER $2k - contact Enable\",\"\")","v":""}]
[{"$f":"IF(Table1[[#This Row],[Job Ref]]=\"\",\"\",Table1[[#This Row],[Job Ref]])","v":""},{"$f":"IF(Table1[[#This Row],[Job Ref]]=\"\",\"\",VLOOKUP(Table1[[#This Row],[Charge type]],Table3[],2,FALSE))","v":""},{"$f":"IF(Table1[[#This Row],[Job Ref]]=\"\",\"\",Table1[[#This Row],[Clients First Name]])","v":""},{"$f":"IF(Table1[[#This Row],[Job Ref]]=\"\",\"\",Table1[[#This Row],[Clients Surname]])","v":""},{"$f":"IF(Table1[[#This Row],[Job Ref]]=\"\",\"\",Table1[[#This Row],[Clients Address Street No]])","v":""},{"$f":"IF(Table1[[#This Row],[Job Ref]]=\"\",\"\",Table1[[#This Row],[Clients Address Street ]])","v":""},{"$f":"IF(Table1[[#This Row],[Job Ref]]=\"\",\"\",Table1[[#This Row],[Clients Address Town/City]])","v":""},{"$f":"IF(Table1[[#This Row],[Job Ref]]=\"\",\"\",Table1[[#This Row],[Clients Phone Number]])","v":""},{"$f":"IF(Table1[[#This Row],[Job Ref]]=\"\",\"\",Table1[[#This Row],[Date repair/service requested]])","v":""},{"$f":"IF(Table1[[#This Row],[Job Ref]]=\"\",\"\",Table1[[#This Row],[Date  repair/service completed]])","v":""},{"$f":"IF(Table1[[#This Row],[Job Ref]]=\"\",\"\",Table1[[#This Row],[Asset Number]])","v":""},{"$f":"IF(Table1[[#This Row],[Job Ref]]=\"\",\"\",Table1[[#This Row],[Asset Description]])","v":""},{"$f":"IF(Table1[[#This Row],[Job Ref]]=\"\",\"\",Table1[[#This Row],[Manufacturers Serial No.]])","v":""},{"$f":"IF(Table1[[#This Row],[Job Ref]]=\"\",\"\",Table1[[#This Row],[Test and Tag]])","v":""},{"$f":"IF(Table1[[#This Row],[Job Ref]]=\"\",\"\",Table1[[#This Row],[Beyond Economic Repair (BER)]])","v":""},{"$f":"IF(Table1[[#This Row],[Job Ref]]=\"\",\"\",Table1[[#This Row],[BER Comment]])","v":""},{"$f":"IF(Table1[[#This Row],[Job Ref]]=\"\",\"\",Table1[[#This Row],[Repair Description]])","v":""},{"$f":"IF(Table1[[#This Row],[Job Ref]]=\"\",\"\",Table1[[#This Row],[Labour Hours]])","v":""},{"$f":"IF(Table1[[#This Row],[Job Ref]]=\"\",\"\",Table1[[#This Row],[Travel Hours]])","v":""},{"$f":"IF(Table1[[#This Row],[Job Ref]]=\"\",\"\",Table1[[#This Row],[Travel Distance (km)]])","v":""},{"$f":"IF(Table1[[#This Row],[Job Ref]]=\"\",\"\",Table1[[#This Row],[Parts Description]])","v":""},{"$f":"IF(Table1[[#This Row],[Job Ref]]=\"\",\"\",Table1[[#This Row],[Parts Costs]])","v":""},{"$f":"IFERROR(Table13[[#This Row],[Labour Hours]]*Table13[[#This Row],[Cost  per unit (LH)]],0)","v":0},{"$f":"IFERROR(Table13[[#This Row],[Travel Hours]]*Table13[[#This Row],[Cost  per unit (TH)]],0)","v":0},{"$f":"IFERROR(Table13[[#This Row],[Travel Distance (km)]]*Table13[[#This Row],[Cost  per unit (TD)]],0)","v":0},{"$f":"IF(Table13[[#This Row],[Test and Tag]]=\"Yes\",Table13[[#This Row],[Cost per Unit (TT)]],0)","v":0},{"$f":"SUM(Table13[[#This Row],[Parts Costs]],Table13[[#This Row],[Travel KM Total ]],Table13[[#This Row],[Labour Hours Total ]],Table13[[#This Row],[Service Cost (Test and Tag)]],Table13[[#This Row],[Travel Hours Total]])","v":0},{"$f":"IF(Table13[[#This Row],[Charge type]]<>\"\",Company_Name,\"\")","v":""},{"$f":"IF(Table13[[#This Row],[Charge type]]<>\"\",ENZ_Reference_Num,\"\")","v":""},{"$f":"IF(Table13[[#This Row],[Charge type]]<>\"\",Invoice_date,\"\")","v":""},{"$f":"IF(Table13[[#This Row],[Charge type]]<>\"\",Invoice_Number,\"\")","v":""},85,85,0.64,15,{"$f":"IF(Table13[[#This Row],[TOTAL JOB COST]]>1999.99,\"OVER $2k - contact Enable\",\"\")","v":""}]
[{"$f":"IF(Table1[[#This Row],[Job Ref]]=\"\",\"\",Table1[[#This Row],[Job Ref]])","v":""},{"$f":"IF(Table1[[#This Row],[Job Ref]]=\"\",\"\",VLOOKUP(Table1[[#This Row],[Charge type]],Table3[],2,FALSE))","v":""},{"$f":"IF(Table1[[#This Row],[Job Ref]]=\"\",\"\",Table1[[#This Row],[Clients First Name]])","v":""},{"$f":"IF(Table1[[#This Row],[Job Ref]]=\"\",\"\",Table1[[#This Row],[Clients Surname]])","v":""},{"$f":"IF(Table1[[#This Row],[Job Ref]]=\"\",\"\",Table1[[#This Row],[Clients Address Street No]])","v":""},{"$f":"IF(Table1[[#This Row],[Job Ref]]=\"\",\"\",Table1[[#This Row],[Clients Address Street ]])","v":""},{"$f":"IF(Table1[[#This Row],[Job Ref]]=\"\",\"\",Table1[[#This Row],[Clients Address Town/City]])","v":""},{"$f":"IF(Table1[[#This Row],[Job Ref]]=\"\",\"\",Table1[[#This Row],[Clients Phone Number]])","v":""},{"$f":"IF(Table1[[#This Row],[Job Ref]]=\"\",\"\",Table1[[#This Row],[Date repair/service requested]])","v":""},{"$f":"IF(Table1[[#This Row],[Job Ref]]=\"\",\"\",Table1[[#This Row],[Date  repair/service completed]])","v":""},{"$f":"IF(Table1[[#This Row],[Job Ref]]=\"\",\"\",Table1[[#This Row],[Asset Number]])","v":""},{"$f":"IF(Table1[[#This Row],[Job Ref]]=\"\",\"\",Table1[[#This Row],[Asset Description]])","v":""},{"$f":"IF(Table1[[#This Row],[Job Ref]]=\"\",\"\",Table1[[#This Row],[Manufacturers Serial No.]])","v":""},{"$f":"IF(Table1[[#This Row],[Job Ref]]=\"\",\"\",Table1[[#This Row],[Test and Tag]])","v":""},{"$f":"IF(Table1[[#This Row],[Job Ref]]=\"\",\"\",Table1[[#This Row],[Beyond Economic Repair (BER)]])","v":""},{"$f":"IF(Table1[[#This Row],[Job Ref]]=\"\",\"\",Table1[[#This Row],[BER Comment]])","v":""},{"$f":"IF(Table1[[#This Row],[Job Ref]]=\"\",\"\",Table1[[#This Row],[Repair Description]])","v":""},{"$f":"IF(Table1[[#This Row],[Job Ref]]=\"\",\"\",Table1[[#This Row],[Labour Hours]])","v":""},{"$f":"IF(Table1[[#This Row],[Job Ref]]=\"\",\"\",Table1[[#This Row],[Travel Hours]])","v":""},{"$f":"IF(Table1[[#This Row],[Job Ref]]=\"\",\"\",Table1[[#This Row],[Travel Distance (km)]])","v":""},{"$f":"IF(Table1[[#This Row],[Job Ref]]=\"\",\"\",Table1[[#This Row],[Parts Description]])","v":""},{"$f":"IF(Table1[[#This Row],[Job Ref]]=\"\",\"\",Table1[[#This Row],[Parts Costs]])","v":""},{"$f":"IFERROR(Table13[[#This Row],[Labour Hours]]*Table13[[#This Row],[Cost  per unit (LH)]],0)","v":0},{"$f":"IFERROR(Table13[[#This Row],[Travel Hours]]*Table13[[#This Row],[Cost  per unit (TH)]],0)","v":0},{"$f":"IFERROR(Table13[[#This Row],[Travel Distance (km)]]*Table13[[#This Row],[Cost  per unit (TD)]],0)","v":0},{"$f":"IF(Table13[[#This Row],[Test and Tag]]=\"Yes\",Table13[[#This Row],[Cost per Unit (TT)]],0)","v":0},{"$f":"SUM(Table13[[#This Row],[Parts Costs]],Table13[[#This Row],[Travel KM Total ]],Table13[[#This Row],[Labour Hours Total ]],Table13[[#This Row],[Service Cost (Test and Tag)]],Table13[[#This Row],[Travel Hours Total]])","v":0},{"$f":"IF(Table13[[#This Row],[Charge type]]<>\"\",Company_Name,\"\")","v":""},{"$f":"IF(Table13[[#This Row],[Charge type]]<>\"\",ENZ_Reference_Num,\"\")","v":""},{"$f":"IF(Table13[[#This Row],[Charge type]]<>\"\",Invoice_date,\"\")","v":""},{"$f":"IF(Table13[[#This Row],[Charge type]]<>\"\",Invoice_Number,\"\")","v":""},85,85,0.64,15,{"$f":"IF(Table13[[#This Row],[TOTAL JOB COST]]>1999.99,\"OVER $2k - contact Enable\",\"\")","v":""}]
[{"$f":"IF(Table1[[#This Row],[Job Ref]]=\"\",\"\",Table1[[#This Row],[Job Ref]])","v":""},{"$f":"IF(Table1[[#This Row],[Job Ref]]=\"\",\"\",VLOOKUP(Table1[[#This Row],[Charge type]],Table3[],2,FALSE))","v":""},{"$f":"IF(Table1[[#This Row],[Job Ref]]=\"\",\"\",Table1[[#This Row],[Clients First Name]])","v":""},{"$f":"IF(Table1[[#This Row],[Job Ref]]=\"\",\"\",Table1[[#This Row],[Clients Surname]])","v":""},{"$f":"IF(Table1[[#This Row],[Job Ref]]=\"\",\"\",Table1[[#This Row],[Clients Address Street No]])","v":""},{"$f":"IF(Table1[[#This Row],[Job Ref]]=\"\",\"\",Table1[[#This Row],[Clients Address Street ]])","v":""},{"$f":"IF(Table1[[#This Row],[Job Ref]]=\"\",\"\",Table1[[#This Row],[Clients Address Town/City]])","v":""},{"$f":"IF(Table1[[#This Row],[Job Ref]]=\"\",\"\",Table1[[#This Row],[Clients Phone Number]])","v":""},{"$f":"IF(Table1[[#This Row],[Job Ref]]=\"\",\"\",Table1[[#This Row],[Date repair/service requested]])","v":""},{"$f":"IF(Table1[[#This Row],[Job Ref]]=\"\",\"\",Table1[[#This Row],[Date  repair/service completed]])","v":""},{"$f":"IF(Table1[[#This Row],[Job Ref]]=\"\",\"\",Table1[[#This Row],[Asset Number]])","v":""},{"$f":"IF(Table1[[#This Row],[Job Ref]]=\"\",\"\",Table1[[#This Row],[Asset Description]])","v":""},{"$f":"IF(Table1[[#This Row],[Job Ref]]=\"\",\"\",Table1[[#This Row],[Manufacturers Serial No.]])","v":""},{"$f":"IF(Table1[[#This Row],[Job Ref]]=\"\",\"\",Table1[[#This Row],[Test and Tag]])","v":""},{"$f":"IF(Table1[[#This Row],[Job Ref]]=\"\",\"\",Table1[[#This Row],[Beyond Economic Repair (BER)]])","v":""},{"$f":"IF(Table1[[#This Row],[Job Ref]]=\"\",\"\",Table1[[#This Row],[BER Comment]])","v":""},{"$f":"IF(Table1[[#This Row],[Job Ref]]=\"\",\"\",Table1[[#This Row],[Repair Description]])","v":""},{"$f":"IF(Table1[[#This Row],[Job Ref]]=\"\",\"\",Table1[[#This Row],[Labour Hours]])","v":""},{"$f":"IF(Table1[[#This Row],[Job Ref]]=\"\",\"\",Table1[[#This Row],[Travel Hours]])","v":""},{"$f":"IF(Table1[[#This Row],[Job Ref]]=\"\",\"\",Table1[[#This Row],[Travel Distance (km)]])","v":""},{"$f":"IF(Table1[[#This Row],[Job Ref]]=\"\",\"\",Table1[[#This Row],[Parts Description]])","v":""},{"$f":"IF(Table1[[#This Row],[Job Ref]]=\"\",\"\",Table1[[#This Row],[Parts Costs]])","v":""},{"$f":"IFERROR(Table13[[#This Row],[Labour Hours]]*Table13[[#This Row],[Cost  per unit (LH)]],0)","v":0},{"$f":"IFERROR(Table13[[#This Row],[Travel Hours]]*Table13[[#This Row],[Cost  per unit (TH)]],0)","v":0},{"$f":"IFERROR(Table13[[#This Row],[Travel Distance (km)]]*Table13[[#This Row],[Cost  per unit (TD)]],0)","v":0},{"$f":"IF(Table13[[#This Row],[Test and Tag]]=\"Yes\",Table13[[#This Row],[Cost per Unit (TT)]],0)","v":0},{"$f":"SUM(Table13[[#This Row],[Parts Costs]],Table13[[#This Row],[Travel KM Total ]],Table13[[#This Row],[Labour Hours Total ]],Table13[[#This Row],[Service Cost (Test and Tag)]],Table13[[#This Row],[Travel Hours Total]])","v":0},{"$f":"IF(Table13[[#This Row],[Charge type]]<>\"\",Company_Name,\"\")","v":""},{"$f":"IF(Table13[[#This Row],[Charge type]]<>\"\",ENZ_Reference_Num,\"\")","v":""},{"$f":"IF(Table13[[#This Row],[Charge type]]<>\"\",Invoice_date,\"\")","v":""},{"$f":"IF(Table13[[#This Row],[Charge type]]<>\"\",Invoice_Number,\"\")","v":""},85,85,0.64,15,{"$f":"IF(Table13[[#This Row],[TOTAL JOB COST]]>1999.99,\"OVER $2k - contact Enable\",\"\")","v":""}]
[{"$f":"IF(Table1[[#This Row],[Job Ref]]=\"\",\"\",Table1[[#This Row],[Job Ref]])","v":""},{"$f":"IF(Table1[[#This Row],[Job Ref]]=\"\",\"\",VLOOKUP(Table1[[#This Row],[Charge type]],Table3[],2,FALSE))","v":""},{"$f":"IF(Table1[[#This Row],[Job Ref]]=\"\",\"\",Table1[[#This Row],[Clients First Name]])","v":""},{"$f":"IF(Table1[[#This Row],[Job Ref]]=\"\",\"\",Table1[[#This Row],[Clients Surname]])","v":""},{"$f":"IF(Table1[[#This Row],[Job Ref]]=\"\",\"\",Table1[[#This Row],[Clients Address Street No]])","v":""},{"$f":"IF(Table1[[#This Row],[Job Ref]]=\"\",\"\",Table1[[#This Row],[Clients Address Street ]])","v":""},{"$f":"IF(Table1[[#This Row],[Job Ref]]=\"\",\"\",Table1[[#This Row],[Clients Address Town/City]])","v":""},{"$f":"IF(Table1[[#This Row],[Job Ref]]=\"\",\"\",Table1[[#This Row],[Clients Phone Number]])","v":""},{"$f":"IF(Table1[[#This Row],[Job Ref]]=\"\",\"\",Table1[[#This Row],[Date repair/service requested]])","v":""},{"$f":"IF(Table1[[#This Row],[Job Ref]]=\"\",\"\",Table1[[#This Row],[Date  repair/service completed]])","v":""},{"$f":"IF(Table1[[#This Row],[Job Ref]]=\"\",\"\",Table1[[#This Row],[Asset Number]])","v":""},{"$f":"IF(Table1[[#This Row],[Job Ref]]=\"\",\"\",Table1[[#This Row],[Asset Description]])","v":""},{"$f":"IF(Table1[[#This Row],[Job Ref]]=\"\",\"\",Table1[[#This Row],[Manufacturers Serial No.]])","v":""},{"$f":"IF(Table1[[#This Row],[Job Ref]]=\"\",\"\",Table1[[#This Row],[Test and Tag]])","v":""},{"$f":"IF(Table1[[#This Row],[Job Ref]]=\"\",\"\",Table1[[#This Row],[Beyond Economic Repair (BER)]])","v":""},{"$f":"IF(Table1[[#This Row],[Job Ref]]=\"\",\"\",Table1[[#This Row],[BER Comment]])","v":""},{"$f":"IF(Table1[[#This Row],[Job Ref]]=\"\",\"\",Table1[[#This Row],[Repair Description]])","v":""},{"$f":"IF(Table1[[#This Row],[Job Ref]]=\"\",\"\",Table1[[#This Row],[Labour Hours]])","v":""},{"$f":"IF(Table1[[#This Row],[Job Ref]]=\"\",\"\",Table1[[#This Row],[Travel Hours]])","v":""},{"$f":"IF(Table1[[#This Row],[Job Ref]]=\"\",\"\",Table1[[#This Row],[Travel Distance (km)]])","v":""},{"$f":"IF(Table1[[#This Row],[Job Ref]]=\"\",\"\",Table1[[#This Row],[Parts Description]])","v":""},{"$f":"IF(Table1[[#This Row],[Job Ref]]=\"\",\"\",Table1[[#This Row],[Parts Costs]])","v":""},{"$f":"IFERROR(Table13[[#This Row],[Labour Hours]]*Table13[[#This Row],[Cost  per unit (LH)]],0)","v":0},{"$f":"IFERROR(Table13[[#This Row],[Travel Hours]]*Table13[[#This Row],[Cost  per unit (TH)]],0)","v":0},{"$f":"IFERROR(Table13[[#This Row],[Travel Distance (km)]]*Table13[[#This Row],[Cost  per unit (TD)]],0)","v":0},{"$f":"IF(Table13[[#This Row],[Test and Tag]]=\"Yes\",Table13[[#This Row],[Cost per Unit (TT)]],0)","v":0},{"$f":"SUM(Table13[[#This Row],[Parts Costs]],Table13[[#This Row],[Travel KM Total ]],Table13[[#This Row],[Labour Hours Total ]],Table13[[#This Row],[Service Cost (Test and Tag)]],Table13[[#This Row],[Travel Hours Total]])","v":0},{"$f":"IF(Table13[[#This Row],[Charge type]]<>\"\",Company_Name,\"\")","v":""},{"$f":"IF(Table13[[#This Row],[Charge type]]<>\"\",ENZ_Reference_Num,\"\")","v":""},{"$f":"IF(Table13[[#This Row],[Charge type]]<>\"\",Invoice_date,\"\")","v":""},{"$f":"IF(Table13[[#This Row],[Charge type]]<>\"\",Invoice_Number,\"\")","v":""},85,85,0.64,15,{"$f":"IF(Table13[[#This Row],[TOTAL JOB COST]]>1999.99,\"OVER $2k - contact Enable\",\"\")","v":""}]
[{"$f":"IF(Table1[[#This Row],[Job Ref]]=\"\",\"\",Table1[[#This Row],[Job Ref]])","v":""},{"$f":"IF(Table1[[#This Row],[Job Ref]]=\"\",\"\",VLOOKUP(Table1[[#This Row],[Charge type]],Table3[],2,FALSE))","v":""},{"$f":"IF(Table1[[#This Row],[Job Ref]]=\"\",\"\",Table1[[#This Row],[Clients First Name]])","v":""},{"$f":"IF(Table1[[#This Row],[Job Ref]]=\"\",\"\",Table1[[#This Row],[Clients Surname]])","v":""},{"$f":"IF(Table1[[#This Row],[Job Ref]]=\"\",\"\",Table1[[#This Row],[Clients Address Street No]])","v":""},{"$f":"IF(Table1[[#This Row],[Job Ref]]=\"\",\"\",Table1[[#This Row],[Clients Address Street ]])","v":""},{"$f":"IF(Table1[[#This Row],[Job Ref]]=\"\",\"\",Table1[[#This Row],[Clients Address Town/City]])","v":""},{"$f":"IF(Table1[[#This Row],[Job Ref]]=\"\",\"\",Table1[[#This Row],[Clients Phone Number]])","v":""},{"$f":"IF(Table1[[#This Row],[Job Ref]]=\"\",\"\",Table1[[#This Row],[Date repair/service requested]])","v":""},{"$f":"IF(Table1[[#This Row],[Job Ref]]=\"\",\"\",Table1[[#This Row],[Date  repair/service completed]])","v":""},{"$f":"IF(Table1[[#This Row],[Job Ref]]=\"\",\"\",Table1[[#This Row],[Asset Number]])","v":""},{"$f":"IF(Table1[[#This Row],[Job Ref]]=\"\",\"\",Table1[[#This Row],[Asset Description]])","v":""},{"$f":"IF(Table1[[#This Row],[Job Ref]]=\"\",\"\",Table1[[#This Row],[Manufacturers Serial No.]])","v":""},{"$f":"IF(Table1[[#This Row],[Job Ref]]=\"\",\"\",Table1[[#This Row],[Test and Tag]])","v":""},{"$f":"IF(Table1[[#This Row],[Job Ref]]=\"\",\"\",Table1[[#This Row],[Beyond Economic Repair (BER)]])","v":""},{"$f":"IF(Table1[[#This Row],[Job Ref]]=\"\",\"\",Table1[[#This Row],[BER Comment]])","v":""},{"$f":"IF(Table1[[#This Row],[Job Ref]]=\"\",\"\",Table1[[#This Row],[Repair Description]])","v":""},{"$f":"IF(Table1[[#This Row],[Job Ref]]=\"\",\"\",Table1[[#This Row],[Labour Hours]])","v":""},{"$f":"IF(Table1[[#This Row],[Job Ref]]=\"\",\"\",Table1[[#This Row],[Travel Hours]])","v":""},{"$f":"IF(Table1[[#This Row],[Job Ref]]=\"\",\"\",Table1[[#This Row],[Travel Distance (km)]])","v":""},{"$f":"IF(Table1[[#This Row],[Job Ref]]=\"\",\"\",Table1[[#This Row],[Parts Description]])","v":""},{"$f":"IF(Table1[[#This Row],[Job Ref]]=\"\",\"\",Table1[[#This Row],[Parts Costs]])","v":""},{"$f":"IFERROR(Table13[[#This Row],[Labour Hours]]*Table13[[#This Row],[Cost  per unit (LH)]],0)","v":0},{"$f":"IFERROR(Table13[[#This Row],[Travel Hours]]*Table13[[#This Row],[Cost  per unit (TH)]],0)","v":0},{"$f":"IFERROR(Table13[[#This Row],[Travel Distance (km)]]*Table13[[#This Row],[Cost  per unit (TD)]],0)","v":0},{"$f":"IF(Table13[[#This Row],[Test and Tag]]=\"Yes\",Table13[[#This Row],[Cost per Unit (TT)]],0)","v":0},{"$f":"SUM(Table13[[#This Row],[Parts Costs]],Table13[[#This Row],[Travel KM Total ]],Table13[[#This Row],[Labour Hours Total ]],Table13[[#This Row],[Service Cost (Test and Tag)]],Table13[[#This Row],[Travel Hours Total]])","v":0},{"$f":"IF(Table13[[#This Row],[Charge type]]<>\"\",Company_Name,\"\")","v":""},{"$f":"IF(Table13[[#This Row],[Charge type]]<>\"\",ENZ_Reference_Num,\"\")","v":""},{"$f":"IF(Table13[[#This Row],[Charge type]]<>\"\",Invoice_date,\"\")","v":""},{"$f":"IF(Table13[[#This Row],[Charge type]]<>\"\",Invoice_Number,\"\")","v":""},85,85,0.64,15,{"$f":"IF(Table13[[#This Row],[TOTAL JOB COST]]>1999.99,\"OVER $2k - contact Enable\",\"\")","v":""}]
[{"$f":"IF(Table1[[#This Row],[Job Ref]]=\"\",\"\",Table1[[#This Row],[Job Ref]])","v":""},{"$f":"IF(Table1[[#This Row],[Job Ref]]=\"\",\"\",VLOOKUP(Table1[[#This Row],[Charge type]],Table3[],2,FALSE))","v":""},{"$f":"IF(Table1[[#This Row],[Job Ref]]=\"\",\"\",Table1[[#This Row],[Clients First Name]])","v":""},{"$f":"IF(Table1[[#This Row],[Job Ref]]=\"\",\"\",Table1[[#This Row],[Clients Surname]])","v":""},{"$f":"IF(Table1[[#This Row],[Job Ref]]=\"\",\"\",Table1[[#This Row],[Clients Address Street No]])","v":""},{"$f":"IF(Table1[[#This Row],[Job Ref]]=\"\",\"\",Table1[[#This Row],[Clients Address Street ]])","v":""},{"$f":"IF(Table1[[#This Row],[Job Ref]]=\"\",\"\",Table1[[#This Row],[Clients Address Town/City]])","v":""},{"$f":"IF(Table1[[#This Row],[Job Ref]]=\"\",\"\",Table1[[#This Row],[Clients Phone Number]])","v":""},{"$f":"IF(Table1[[#This Row],[Job Ref]]=\"\",\"\",Table1[[#This Row],[Date repair/service requested]])","v":""},{"$f":"IF(Table1[[#This Row],[Job Ref]]=\"\",\"\",Table1[[#This Row],[Date  repair/service completed]])","v":""},{"$f":"IF(Table1[[#This Row],[Job Ref]]=\"\",\"\",Table1[[#This Row],[Asset Number]])","v":""},{"$f":"IF(Table1[[#This Row],[Job Ref]]=\"\",\"\",Table1[[#This Row],[Asset Description]])","v":""},{"$f":"IF(Table1[[#This Row],[Job Ref]]=\"\",\"\",Table1[[#This Row],[Manufacturers Serial No.]])","v":""},{"$f":"IF(Table1[[#This Row],[Job Ref]]=\"\",\"\",Table1[[#This Row],[Test and Tag]])","v":""},{"$f":"IF(Table1[[#This Row],[Job Ref]]=\"\",\"\",Table1[[#This Row],[Beyond Economic Repair (BER)]])","v":""},{"$f":"IF(Table1[[#This Row],[Job Ref]]=\"\",\"\",Table1[[#This Row],[BER Comment]])","v":""},{"$f":"IF(Table1[[#This Row],[Job Ref]]=\"\",\"\",Table1[[#This Row],[Repair Description]])","v":""},{"$f":"IF(Table1[[#This Row],[Job Ref]]=\"\",\"\",Table1[[#This Row],[Labour Hours]])","v":""},{"$f":"IF(Table1[[#This Row],[Job Ref]]=\"\",\"\",Table1[[#This Row],[Travel Hours]])","v":""},{"$f":"IF(Table1[[#This Row],[Job Ref]]=\"\",\"\",Table1[[#This Row],[Travel Distance (km)]])","v":""},{"$f":"IF(Table1[[#This Row],[Job Ref]]=\"\",\"\",Table1[[#This Row],[Parts Description]])","v":""},{"$f":"IF(Table1[[#This Row],[Job Ref]]=\"\",\"\",Table1[[#This Row],[Parts Costs]])","v":""},{"$f":"IFERROR(Table13[[#This Row],[Labour Hours]]*Table13[[#This Row],[Cost  per unit (LH)]],0)","v":0},{"$f":"IFERROR(Table13[[#This Row],[Travel Hours]]*Table13[[#This Row],[Cost  per unit (TH)]],0)","v":0},{"$f":"IFERROR(Table13[[#This Row],[Travel Distance (km)]]*Table13[[#This Row],[Cost  per unit (TD)]],0)","v":0},{"$f":"IF(Table13[[#This Row],[Test and Tag]]=\"Yes\",Table13[[#This Row],[Cost per Unit (TT)]],0)","v":0},{"$f":"SUM(Table13[[#This Row],[Parts Costs]],Table13[[#This Row],[Travel KM Total ]],Table13[[#This Row],[Labour Hours Total ]],Table13[[#This Row],[Service Cost (Test and Tag)]],Table13[[#This Row],[Travel Hours Total]])","v":0},{"$f":"IF(Table13[[#This Row],[Charge type]]<>\"\",Company_Name,\"\")","v":""},{"$f":"IF(Table13[[#This Row],[Charge type]]<>\"\",ENZ_Reference_Num,\"\")","v":""},{"$f":"IF(Table13[[#This Row],[Charge type]]<>\"\",Invoice_date,\"\")","v":""},{"$f":"IF(Table13[[#This Row],[Charge type]]<>\"\",Invoice_Number,\"\")","v":""},85,85,0.64,15,{"$f":"IF(Table13[[#This Row],[TOTAL JOB COST]]>1999.99,\"OVER $2k - contact Enable\",\"\")","v":""}]
[{"$f":"IF(Table1[[#This Row],[Job Ref]]=\"\",\"\",Table1[[#This Row],[Job Ref]])","v":""},{"$f":"IF(Table1[[#This Row],[Job Ref]]=\"\",\"\",VLOOKUP(Table1[[#This Row],[Charge type]],Table3[],2,FALSE))","v":""},{"$f":"IF(Table1[[#This Row],[Job Ref]]=\"\",\"\",Table1[[#This Row],[Clients First Name]])","v":""},{"$f":"IF(Table1[[#This Row],[Job Ref]]=\"\",\"\",Table1[[#This Row],[Clients Surname]])","v":""},{"$f":"IF(Table1[[#This Row],[Job Ref]]=\"\",\"\",Table1[[#This Row],[Clients Address Street No]])","v":""},{"$f":"IF(Table1[[#This Row],[Job Ref]]=\"\",\"\",Table1[[#This Row],[Clients Address Street ]])","v":""},{"$f":"IF(Table1[[#This Row],[Job Ref]]=\"\",\"\",Table1[[#This Row],[Clients Address Town/City]])","v":""},{"$f":"IF(Table1[[#This Row],[Job Ref]]=\"\",\"\",Table1[[#This Row],[Clients Phone Number]])","v":""},{"$f":"IF(Table1[[#This Row],[Job Ref]]=\"\",\"\",Table1[[#This Row],[Date repair/service requested]])","v":""},{"$f":"IF(Table1[[#This Row],[Job Ref]]=\"\",\"\",Table1[[#This Row],[Date  repair/service completed]])","v":""},{"$f":"IF(Table1[[#This Row],[Job Ref]]=\"\",\"\",Table1[[#This Row],[Asset Number]])","v":""},{"$f":"IF(Table1[[#This Row],[Job Ref]]=\"\",\"\",Table1[[#This Row],[Asset Description]])","v":""},{"$f":"IF(Table1[[#This Row],[Job Ref]]=\"\",\"\",Table1[[#This Row],[Manufacturers Serial No.]])","v":""},{"$f":"IF(Table1[[#This Row],[Job Ref]]=\"\",\"\",Table1[[#This Row],[Test and Tag]])","v":""},{"$f":"IF(Table1[[#This Row],[Job Ref]]=\"\",\"\",Table1[[#This Row],[Beyond Economic Repair (BER)]])","v":""},{"$f":"IF(Table1[[#This Row],[Job Ref]]=\"\",\"\",Table1[[#This Row],[BER Comment]])","v":""},{"$f":"IF(Table1[[#This Row],[Job Ref]]=\"\",\"\",Table1[[#This Row],[Repair Description]])","v":""},{"$f":"IF(Table1[[#This Row],[Job Ref]]=\"\",\"\",Table1[[#This Row],[Labour Hours]])","v":""},{"$f":"IF(Table1[[#This Row],[Job Ref]]=\"\",\"\",Table1[[#This Row],[Travel Hours]])","v":""},{"$f":"IF(Table1[[#This Row],[Job Ref]]=\"\",\"\",Table1[[#This Row],[Travel Distance (km)]])","v":""},{"$f":"IF(Table1[[#This Row],[Job Ref]]=\"\",\"\",Table1[[#This Row],[Parts Description]])","v":""},{"$f":"IF(Table1[[#This Row],[Job Ref]]=\"\",\"\",Table1[[#This Row],[Parts Costs]])","v":""},{"$f":"IFERROR(Table13[[#This Row],[Labour Hours]]*Table13[[#This Row],[Cost  per unit (LH)]],0)","v":0},{"$f":"IFERROR(Table13[[#This Row],[Travel Hours]]*Table13[[#This Row],[Cost  per unit (TH)]],0)","v":0},{"$f":"IFERROR(Table13[[#This Row],[Travel Distance (km)]]*Table13[[#This Row],[Cost  per unit (TD)]],0)","v":0},{"$f":"IF(Table13[[#This Row],[Test and Tag]]=\"Yes\",Table13[[#This Row],[Cost per Unit (TT)]],0)","v":0},{"$f":"SUM(Table13[[#This Row],[Parts Costs]],Table13[[#This Row],[Travel KM Total ]],Table13[[#This Row],[Labour Hours Total ]],Table13[[#This Row],[Service Cost (Test and Tag)]],Table13[[#This Row],[Travel Hours Total]])","v":0},{"$f":"IF(Table13[[#This Row],[Charge type]]<>\"\",Company_Name,\"\")","v":""},{"$f":"IF(Table13[[#This Row],[Charge type]]<>\"\",ENZ_Reference_Num,\"\")","v":""},{"$f":"IF(Table13[[#This Row],[Charge type]]<>\"\",Invoice_date,\"\")","v":""},{"$f":"IF(Table13[[#This Row],[Charge type]]<>\"\",Invoice_Number,\"\")","v":""},85,85,0.64,15,{"$f":"IF(Table13[[#This Row],[TOTAL JOB COST]]>1999.99,\"OVER $2k - contact Enable\",\"\")","v":""}]
[{"$f":"IF(Table1[[#This Row],[Job Ref]]=\"\",\"\",Table1[[#This Row],[Job Ref]])","v":""},{"$f":"IF(Table1[[#This Row],[Job Ref]]=\"\",\"\",VLOOKUP(Table1[[#This Row],[Charge type]],Table3[],2,FALSE))","v":""},{"$f":"IF(Table1[[#This Row],[Job Ref]]=\"\",\"\",Table1[[#This Row],[Clients First Name]])","v":""},{"$f":"IF(Table1[[#This Row],[Job Ref]]=\"\",\"\",Table1[[#This Row],[Clients Surname]])","v":""},{"$f":"IF(Table1[[#This Row],[Job Ref]]=\"\",\"\",Table1[[#This Row],[Clients Address Street No]])","v":""},{"$f":"IF(Table1[[#This Row],[Job Ref]]=\"\",\"\",Table1[[#This Row],[Clients Address Street ]])","v":""},{"$f":"IF(Table1[[#This Row],[Job Ref]]=\"\",\"\",Table1[[#This Row],[Clients Address Town/City]])","v":""},{"$f":"IF(Table1[[#This Row],[Job Ref]]=\"\",\"\",Table1[[#This Row],[Clients Phone Number]])","v":""},{"$f":"IF(Table1[[#This Row],[Job Ref]]=\"\",\"\",Table1[[#This Row],[Date repair/service requested]])","v":""},{"$f":"IF(Table1[[#This Row],[Job Ref]]=\"\",\"\",Table1[[#This Row],[Date  repair/service completed]])","v":""},{"$f":"IF(Table1[[#This Row],[Job Ref]]=\"\",\"\",Table1[[#This Row],[Asset Number]])","v":""},{"$f":"IF(Table1[[#This Row],[Job Ref]]=\"\",\"\",Table1[[#This Row],[Asset Description]])","v":""},{"$f":"IF(Table1[[#This Row],[Job Ref]]=\"\",\"\",Table1[[#This Row],[Manufacturers Serial No.]])","v":""},{"$f":"IF(Table1[[#This Row],[Job Ref]]=\"\",\"\",Table1[[#This Row],[Test and Tag]])","v":""},{"$f":"IF(Table1[[#This Row],[Job Ref]]=\"\",\"\",Table1[[#This Row],[Beyond Economic Repair (BER)]])","v":""},{"$f":"IF(Table1[[#This Row],[Job Ref]]=\"\",\"\",Table1[[#This Row],[BER Comment]])","v":""},{"$f":"IF(Table1[[#This Row],[Job Ref]]=\"\",\"\",Table1[[#This Row],[Repair Description]])","v":""},{"$f":"IF(Table1[[#This Row],[Job Ref]]=\"\",\"\",Table1[[#This Row],[Labour Hours]])","v":""},{"$f":"IF(Table1[[#This Row],[Job Ref]]=\"\",\"\",Table1[[#This Row],[Travel Hours]])","v":""},{"$f":"IF(Table1[[#This Row],[Job Ref]]=\"\",\"\",Table1[[#This Row],[Travel Distance (km)]])","v":""},{"$f":"IF(Table1[[#This Row],[Job Ref]]=\"\",\"\",Table1[[#This Row],[Parts Description]])","v":""},{"$f":"IF(Table1[[#This Row],[Job Ref]]=\"\",\"\",Table1[[#This Row],[Parts Costs]])","v":""},{"$f":"IFERROR(Table13[[#This Row],[Labour Hours]]*Table13[[#This Row],[Cost  per unit (LH)]],0)","v":0},{"$f":"IFERROR(Table13[[#This Row],[Travel Hours]]*Table13[[#This Row],[Cost  per unit (TH)]],0)","v":0},{"$f":"IFERROR(Table13[[#This Row],[Travel Distance (km)]]*Table13[[#This Row],[Cost  per unit (TD)]],0)","v":0},{"$f":"IF(Table13[[#This Row],[Test and Tag]]=\"Yes\",Table13[[#This Row],[Cost per Unit (TT)]],0)","v":0},{"$f":"SUM(Table13[[#This Row],[Parts Costs]],Table13[[#This Row],[Travel KM Total ]],Table13[[#This Row],[Labour Hours Total ]],Table13[[#This Row],[Service Cost (Test and Tag)]],Table13[[#This Row],[Travel Hours Total]])","v":0},{"$f":"IF(Table13[[#This Row],[Charge type]]<>\"\",Company_Name,\"\")","v":""},{"$f":"IF(Table13[[#This Row],[Charge type]]<>\"\",ENZ_Reference_Num,\"\")","v":""},{"$f":"IF(Table13[[#This Row],[Charge type]]<>\"\",Invoice_date,\"\")","v":""},{"$f":"IF(Table13[[#This Row],[Charge type]]<>\"\",Invoice_Number,\"\")","v":""},85,85,0.64,15,{"$f":"IF(Table13[[#This Row],[TOTAL JOB COST]]>1999.99,\"OVER $2k - contact Enable\",\"\")","v":""}]
[{"$f":"IF(Table1[[#This Row],[Job Ref]]=\"\",\"\",Table1[[#This Row],[Job Ref]])","v":""},{"$f":"IF(Table1[[#This Row],[Job Ref]]=\"\",\"\",VLOOKUP(Table1[[#This Row],[Charge type]],Table3[],2,FALSE))","v":""},{"$f":"IF(Table1[[#This Row],[Job Ref]]=\"\",\"\",Table1[[#This Row],[Clients First Name]])","v":""},{"$f":"IF(Table1[[#This Row],[Job Ref]]=\"\",\"\",Table1[[#This Row],[Clients Surname]])","v":""},{"$f":"IF(Table1[[#This Row],[Job Ref]]=\"\",\"\",Table1[[#This Row],[Clients Address Street No]])","v":""},{"$f":"IF(Table1[[#This Row],[Job Ref]]=\"\",\"\",Table1[[#This Row],[Clients Address Street ]])","v":""},{"$f":"IF(Table1[[#This Row],[Job Ref]]=\"\",\"\",Table1[[#This Row],[Clients Address Town/City]])","v":""},{"$f":"IF(Table1[[#This Row],[Job Ref]]=\"\",\"\",Table1[[#This Row],[Clients Phone Number]])","v":""},{"$f":"IF(Table1[[#This Row],[Job Ref]]=\"\",\"\",Table1[[#This Row],[Date repair/service requested]])","v":""},{"$f":"IF(Table1[[#This Row],[Job Ref]]=\"\",\"\",Table1[[#This Row],[Date  repair/service completed]])","v":""},{"$f":"IF(Table1[[#This Row],[Job Ref]]=\"\",\"\",Table1[[#This Row],[Asset Number]])","v":""},{"$f":"IF(Table1[[#This Row],[Job Ref]]=\"\",\"\",Table1[[#This Row],[Asset Description]])","v":""},{"$f":"IF(Table1[[#This Row],[Job Ref]]=\"\",\"\",Table1[[#This Row],[Manufacturers Serial No.]])","v":""},{"$f":"IF(Table1[[#This Row],[Job Ref]]=\"\",\"\",Table1[[#This Row],[Test and Tag]])","v":""},{"$f":"IF(Table1[[#This Row],[Job Ref]]=\"\",\"\",Table1[[#This Row],[Beyond Economic Repair (BER)]])","v":""},{"$f":"IF(Table1[[#This Row],[Job Ref]]=\"\",\"\",Table1[[#This Row],[BER Comment]])","v":""},{"$f":"IF(Table1[[#This Row],[Job Ref]]=\"\",\"\",Table1[[#This Row],[Repair Description]])","v":""},{"$f":"IF(Table1[[#This Row],[Job Ref]]=\"\",\"\",Table1[[#This Row],[Labour Hours]])","v":""},{"$f":"IF(Table1[[#This Row],[Job Ref]]=\"\",\"\",Table1[[#This Row],[Travel Hours]])","v":""},{"$f":"IF(Table1[[#This Row],[Job Ref]]=\"\",\"\",Table1[[#This Row],[Travel Distance (km)]])","v":""},{"$f":"IF(Table1[[#This Row],[Job Ref]]=\"\",\"\",Table1[[#This Row],[Parts Description]])","v":""},{"$f":"IF(Table1[[#This Row],[Job Ref]]=\"\",\"\",Table1[[#This Row],[Parts Costs]])","v":""},{"$f":"IFERROR(Table13[[#This Row],[Labour Hours]]*Table13[[#This Row],[Cost  per unit (LH)]],0)","v":0},{"$f":"IFERROR(Table13[[#This Row],[Travel Hours]]*Table13[[#This Row],[Cost  per unit (TH)]],0)","v":0},{"$f":"IFERROR(Table13[[#This Row],[Travel Distance (km)]]*Table13[[#This Row],[Cost  per unit (TD)]],0)","v":0},{"$f":"IF(Table13[[#This Row],[Test and Tag]]=\"Yes\",Table13[[#This Row],[Cost per Unit (TT)]],0)","v":0},{"$f":"SUM(Table13[[#This Row],[Parts Costs]],Table13[[#This Row],[Travel KM Total ]],Table13[[#This Row],[Labour Hours Total ]],Table13[[#This Row],[Service Cost (Test and Tag)]],Table13[[#This Row],[Travel Hours Total]])","v":0},{"$f":"IF(Table13[[#This Row],[Charge type]]<>\"\",Company_Name,\"\")","v":""},{"$f":"IF(Table13[[#This Row],[Charge type]]<>\"\",ENZ_Reference_Num,\"\")","v":""},{"$f":"IF(Table13[[#This Row],[Charge type]]<>\"\",Invoice_date,\"\")","v":""},{"$f":"IF(Table13[[#This Row],[Charge type]]<>\"\",Invoice_Number,\"\")","v":""},85,85,0.64,15,{"$f":"IF(Table13[[#This Row],[TOTAL JOB COST]]>1999.99,\"OVER $2k - contact Enable\",\"\")","v":""}]
[{"$f":"IF(Table1[[#This Row],[Job Ref]]=\"\",\"\",Table1[[#This Row],[Job Ref]])","v":""},{"$f":"IF(Table1[[#This Row],[Job Ref]]=\"\",\"\",VLOOKUP(Table1[[#This Row],[Charge type]],Table3[],2,FALSE))","v":""},{"$f":"IF(Table1[[#This Row],[Job Ref]]=\"\",\"\",Table1[[#This Row],[Clients First Name]])","v":""},{"$f":"IF(Table1[[#This Row],[Job Ref]]=\"\",\"\",Table1[[#This Row],[Clients Surname]])","v":""},{"$f":"IF(Table1[[#This Row],[Job Ref]]=\"\",\"\",Table1[[#This Row],[Clients Address Street No]])","v":""},{"$f":"IF(Table1[[#This Row],[Job Ref]]=\"\",\"\",Table1[[#This Row],[Clients Address Street ]])","v":""},{"$f":"IF(Table1[[#This Row],[Job Ref]]=\"\",\"\",Table1[[#This Row],[Clients Address Town/City]])","v":""},{"$f":"IF(Table1[[#This Row],[Job Ref]]=\"\",\"\",Table1[[#This Row],[Clients Phone Number]])","v":""},{"$f":"IF(Table1[[#This Row],[Job Ref]]=\"\",\"\",Table1[[#This Row],[Date repair/service requested]])","v":""},{"$f":"IF(Table1[[#This Row],[Job Ref]]=\"\",\"\",Table1[[#This Row],[Date  repair/service completed]])","v":""},{"$f":"IF(Table1[[#This Row],[Job Ref]]=\"\",\"\",Table1[[#This Row],[Asset Number]])","v":""},{"$f":"IF(Table1[[#This Row],[Job Ref]]=\"\",\"\",Table1[[#This Row],[Asset Description]])","v":""},{"$f":"IF(Table1[[#This Row],[Job Ref]]=\"\",\"\",Table1[[#This Row],[Manufacturers Serial No.]])","v":""},{"$f":"IF(Table1[[#This Row],[Job Ref]]=\"\",\"\",Table1[[#This Row],[Test and Tag]])","v":""},{"$f":"IF(Table1[[#This Row],[Job Ref]]=\"\",\"\",Table1[[#This Row],[Beyond Economic Repair (BER)]])","v":""},{"$f":"IF(Table1[[#This Row],[Job Ref]]=\"\",\"\",Table1[[#This Row],[BER Comment]])","v":""},{"$f":"IF(Table1[[#This Row],[Job Ref]]=\"\",\"\",Table1[[#This Row],[Repair Description]])","v":""},{"$f":"IF(Table1[[#This Row],[Job Ref]]=\"\",\"\",Table1[[#This Row],[Labour Hours]])","v":""},{"$f":"IF(Table1[[#This Row],[Job Ref]]=\"\",\"\",Table1[[#This Row],[Travel Hours]])","v":""},{"$f":"IF(Table1[[#This Row],[Job Ref]]=\"\",\"\",Table1[[#This Row],[Travel Distance (km)]])","v":""},{"$f":"IF(Table1[[#This Row],[Job Ref]]=\"\",\"\",Table1[[#This Row],[Parts Description]])","v":""},{"$f":"IF(Table1[[#This Row],[Job Ref]]=\"\",\"\",Table1[[#This Row],[Parts Costs]])","v":""},{"$f":"IFERROR(Table13[[#This Row],[Labour Hours]]*Table13[[#This Row],[Cost  per unit (LH)]],0)","v":0},{"$f":"IFERROR(Table13[[#This Row],[Travel Hours]]*Table13[[#This Row],[Cost  per unit (TH)]],0)","v":0},{"$f":"IFERROR(Table13[[#This Row],[Travel Distance (km)]]*Table13[[#This Row],[Cost  per unit (TD)]],0)","v":0},{"$f":"IF(Table13[[#This Row],[Test and Tag]]=\"Yes\",Table13[[#This Row],[Cost per Unit (TT)]],0)","v":0},{"$f":"SUM(Table13[[#This Row],[Parts Costs]],Table13[[#This Row],[Travel KM Total ]],Table13[[#This Row],[Labour Hours Total ]],Table13[[#This Row],[Service Cost (Test and Tag)]],Table13[[#This Row],[Travel Hours Total]])","v":0},{"$f":"IF(Table13[[#This Row],[Charge type]]<>\"\",Company_Name,\"\")","v":""},{"$f":"IF(Table13[[#This Row],[Charge type]]<>\"\",ENZ_Reference_Num,\"\")","v":""},{"$f":"IF(Table13[[#This Row],[Charge type]]<>\"\",Invoice_date,\"\")","v":""},{"$f":"IF(Table13[[#This Row],[Charge type]]<>\"\",Invoice_Number,\"\")","v":""},85,85,0.64,15,{"$f":"IF(Table13[[#This Row],[TOTAL JOB COST]]>1999.99,\"OVER $2k - contact Enable\",\"\")","v":""}]
[{"$f":"IF(Table1[[#This Row],[Job Ref]]=\"\",\"\",Table1[[#This Row],[Job Ref]])","v":""},{"$f":"IF(Table1[[#This Row],[Job Ref]]=\"\",\"\",VLOOKUP(Table1[[#This Row],[Charge type]],Table3[],2,FALSE))","v":""},{"$f":"IF(Table1[[#This Row],[Job Ref]]=\"\",\"\",Table1[[#This Row],[Clients First Name]])","v":""},{"$f":"IF(Table1[[#This Row],[Job Ref]]=\"\",\"\",Table1[[#This Row],[Clients Surname]])","v":""},{"$f":"IF(Table1[[#This Row],[Job Ref]]=\"\",\"\",Table1[[#This Row],[Clients Address Street No]])","v":""},{"$f":"IF(Table1[[#This Row],[Job Ref]]=\"\",\"\",Table1[[#This Row],[Clients Address Street ]])","v":""},{"$f":"IF(Table1[[#This Row],[Job Ref]]=\"\",\"\",Table1[[#This Row],[Clients Address Town/City]])","v":""},{"$f":"IF(Table1[[#This Row],[Job Ref]]=\"\",\"\",Table1[[#This Row],[Clients Phone Number]])","v":""},{"$f":"IF(Table1[[#This Row],[Job Ref]]=\"\",\"\",Table1[[#This Row],[Date repair/service requested]])","v":""},{"$f":"IF(Table1[[#This Row],[Job Ref]]=\"\",\"\",Table1[[#This Row],[Date  repair/service completed]])","v":""},{"$f":"IF(Table1[[#This Row],[Job Ref]]=\"\",\"\",Table1[[#This Row],[Asset Number]])","v":""},{"$f":"IF(Table1[[#This Row],[Job Ref]]=\"\",\"\",Table1[[#This Row],[Asset Description]])","v":""},{"$f":"IF(Table1[[#This Row],[Job Ref]]=\"\",\"\",Table1[[#This Row],[Manufacturers Serial No.]])","v":""},{"$f":"IF(Table1[[#This Row],[Job Ref]]=\"\",\"\",Table1[[#This Row],[Test and Tag]])","v":""},{"$f":"IF(Table1[[#This Row],[Job Ref]]=\"\",\"\",Table1[[#This Row],[Beyond Economic Repair (BER)]])","v":""},{"$f":"IF(Table1[[#This Row],[Job Ref]]=\"\",\"\",Table1[[#This Row],[BER Comment]])","v":""},{"$f":"IF(Table1[[#This Row],[Job Ref]]=\"\",\"\",Table1[[#This Row],[Repair Description]])","v":""},{"$f":"IF(Table1[[#This Row],[Job Ref]]=\"\",\"\",Table1[[#This Row],[Labour Hours]])","v":""},{"$f":"IF(Table1[[#This Row],[Job Ref]]=\"\",\"\",Table1[[#This Row],[Travel Hours]])","v":""},{"$f":"IF(Table1[[#This Row],[Job Ref]]=\"\",\"\",Table1[[#This Row],[Travel Distance (km)]])","v":""},{"$f":"IF(Table1[[#This Row],[Job Ref]]=\"\",\"\",Table1[[#This Row],[Parts Description]])","v":""},{"$f":"IF(Table1[[#This Row],[Job Ref]]=\"\",\"\",Table1[[#This Row],[Parts Costs]])","v":""},{"$f":"IFERROR(Table13[[#This Row],[Labour Hours]]*Table13[[#This Row],[Cost  per unit (LH)]],0)","v":0},{"$f":"IFERROR(Table13[[#This Row],[Travel Hours]]*Table13[[#This Row],[Cost  per unit (TH)]],0)","v":0},{"$f":"IFERROR(Table13[[#This Row],[Travel Distance (km)]]*Table13[[#This Row],[Cost  per unit (TD)]],0)","v":0},{"$f":"IF(Table13[[#This Row],[Test and Tag]]=\"Yes\",Table13[[#This Row],[Cost per Unit (TT)]],0)","v":0},{"$f":"SUM(Table13[[#This Row],[Parts Costs]],Table13[[#This Row],[Travel KM Total ]],Table13[[#This Row],[Labour Hours Total ]],Table13[[#This Row],[Service Cost (Test and Tag)]],Table13[[#This Row],[Travel Hours Total]])","v":0},{"$f":"IF(Table13[[#This Row],[Charge type]]<>\"\",Company_Name,\"\")","v":""},{"$f":"IF(Table13[[#This Row],[Charge type]]<>\"\",ENZ_Reference_Num,\"\")","v":""},{"$f":"IF(Table13[[#This Row],[Charge type]]<>\"\",Invoice_date,\"\")","v":""},{"$f":"IF(Table13[[#This Row],[Charge type]]<>\"\",Invoice_Number,\"\")","v":""},85,85,0.64,15,{"$f":"IF(Table13[[#This Row],[TOTAL JOB COST]]>1999.99,\"OVER $2k - contact Enable\",\"\")","v":""}]
[{"$f":"IF(Table1[[#This Row],[Job Ref]]=\"\",\"\",Table1[[#This Row],[Job Ref]])","v":""},{"$f":"IF(Table1[[#This Row],[Job Ref]]=\"\",\"\",VLOOKUP(Table1[[#This Row],[Charge type]],Table3[],2,FALSE))","v":""},{"$f":"IF(Table1[[#This Row],[Job Ref]]=\"\",\"\",Table1[[#This Row],[Clients First Name]])","v":""},{"$f":"IF(Table1[[#This Row],[Job Ref]]=\"\",\"\",Table1[[#This Row],[Clients Surname]])","v":""},{"$f":"IF(Table1[[#This Row],[Job Ref]]=\"\",\"\",Table1[[#This Row],[Clients Address Street No]])","v":""},{"$f":"IF(Table1[[#This Row],[Job Ref]]=\"\",\"\",Table1[[#This Row],[Clients Address Street ]])","v":""},{"$f":"IF(Table1[[#This Row],[Job Ref]]=\"\",\"\",Table1[[#This Row],[Clients Address Town/City]])","v":""},{"$f":"IF(Table1[[#This Row],[Job Ref]]=\"\",\"\",Table1[[#This Row],[Clients Phone Number]])","v":""},{"$f":"IF(Table1[[#This Row],[Job Ref]]=\"\",\"\",Table1[[#This Row],[Date repair/service requested]])","v":""},{"$f":"IF(Table1[[#This Row],[Job Ref]]=\"\",\"\",Table1[[#This Row],[Date  repair/service completed]])","v":""},{"$f":"IF(Table1[[#This Row],[Job Ref]]=\"\",\"\",Table1[[#This Row],[Asset Number]])","v":""},{"$f":"IF(Table1[[#This Row],[Job Ref]]=\"\",\"\",Table1[[#This Row],[Asset Description]])","v":""},{"$f":"IF(Table1[[#This Row],[Job Ref]]=\"\",\"\",Table1[[#This Row],[Manufacturers Serial No.]])","v":""},{"$f":"IF(Table1[[#This Row],[Job Ref]]=\"\",\"\",Table1[[#This Row],[Test and Tag]])","v":""},{"$f":"IF(Table1[[#This Row],[Job Ref]]=\"\",\"\",Table1[[#This Row],[Beyond Economic Repair (BER)]])","v":""},{"$f":"IF(Table1[[#This Row],[Job Ref]]=\"\",\"\",Table1[[#This Row],[BER Comment]])","v":""},{"$f":"IF(Table1[[#This Row],[Job Ref]]=\"\",\"\",Table1[[#This Row],[Repair Description]])","v":""},{"$f":"IF(Table1[[#This Row],[Job Ref]]=\"\",\"\",Table1[[#This Row],[Labour Hours]])","v":""},{"$f":"IF(Table1[[#This Row],[Job Ref]]=\"\",\"\",Table1[[#This Row],[Travel Hours]])","v":""},{"$f":"IF(Table1[[#This Row],[Job Ref]]=\"\",\"\",Table1[[#This Row],[Travel Distance (km)]])","v":""},{"$f":"IF(Table1[[#This Row],[Job Ref]]=\"\",\"\",Table1[[#This Row],[Parts Description]])","v":""},{"$f":"IF(Table1[[#This Row],[Job Ref]]=\"\",\"\",Table1[[#This Row],[Parts Costs]])","v":""},{"$f":"IFERROR(Table13[[#This Row],[Labour Hours]]*Table13[[#This Row],[Cost  per unit (LH)]],0)","v":0},{"$f":"IFERROR(Table13[[#This Row],[Travel Hours]]*Table13[[#This Row],[Cost  per unit (TH)]],0)","v":0},{"$f":"IFERROR(Table13[[#This Row],[Travel Distance (km)]]*Table13[[#This Row],[Cost  per unit (TD)]],0)","v":0},{"$f":"IF(Table13[[#This Row],[Test and Tag]]=\"Yes\",Table13[[#This Row],[Cost per Unit (TT)]],0)","v":0},{"$f":"SUM(Table13[[#This Row],[Parts Costs]],Table13[[#This Row],[Travel KM Total ]],Table13[[#This Row],[Labour Hours Total ]],Table13[[#This Row],[Service Cost (Test and Tag)]],Table13[[#This Row],[Travel Hours Total]])","v":0},{"$f":"IF(Table13[[#This Row],[Charge type]]<>\"\",Company_Name,\"\")","v":""},{"$f":"IF(Table13[[#This Row],[Charge type]]<>\"\",ENZ_Reference_Num,\"\")","v":""},{"$f":"IF(Table13[[#This Row],[Charge type]]<>\"\",Invoice_date,\"\")","v":""},{"$f":"IF(Table13[[#This Row],[Charge type]]<>\"\",Invoice_Number,\"\")","v":""},85,85,0.64,15,{"$f":"IF(Table13[[#This Row],[TOTAL JOB COST]]>1999.99,\"OVER $2k - contact Enable\",\"\")","v":""}]
[{"$f":"IF(Table1[[#This Row],[Job Ref]]=\"\",\"\",Table1[[#This Row],[Job Ref]])","v":""},{"$f":"IF(Table1[[#This Row],[Job Ref]]=\"\",\"\",VLOOKUP(Table1[[#This Row],[Charge type]],Table3[],2,FALSE))","v":""},{"$f":"IF(Table1[[#This Row],[Job Ref]]=\"\",\"\",Table1[[#This Row],[Clients First Name]])","v":""},{"$f":"IF(Table1[[#This Row],[Job Ref]]=\"\",\"\",Table1[[#This Row],[Clients Surname]])","v":""},{"$f":"IF(Table1[[#This Row],[Job Ref]]=\"\",\"\",Table1[[#This Row],[Clients Address Street No]])","v":""},{"$f":"IF(Table1[[#This Row],[Job Ref]]=\"\",\"\",Table1[[#This Row],[Clients Address Street ]])","v":""},{"$f":"IF(Table1[[#This Row],[Job Ref]]=\"\",\"\",Table1[[#This Row],[Clients Address Town/City]])","v":""},{"$f":"IF(Table1[[#This Row],[Job Ref]]=\"\",\"\",Table1[[#This Row],[Clients Phone Number]])","v":""},{"$f":"IF(Table1[[#This Row],[Job Ref]]=\"\",\"\",Table1[[#This Row],[Date repair/service requested]])","v":""},{"$f":"IF(Table1[[#This Row],[Job Ref]]=\"\",\"\",Table1[[#This Row],[Date  repair/service completed]])","v":""},{"$f":"IF(Table1[[#This Row],[Job Ref]]=\"\",\"\",Table1[[#This Row],[Asset Number]])","v":""},{"$f":"IF(Table1[[#This Row],[Job Ref]]=\"\",\"\",Table1[[#This Row],[Asset Description]])","v":""},{"$f":"IF(Table1[[#This Row],[Job Ref]]=\"\",\"\",Table1[[#This Row],[Manufacturers Serial No.]])","v":""},{"$f":"IF(Table1[[#This Row],[Job Ref]]=\"\",\"\",Table1[[#This Row],[Test and Tag]])","v":""},{"$f":"IF(Table1[[#This Row],[Job Ref]]=\"\",\"\",Table1[[#This Row],[Beyond Economic Repair (BER)]])","v":""},{"$f":"IF(Table1[[#This Row],[Job Ref]]=\"\",\"\",Table1[[#This Row],[BER Comment]])","v":""},{"$f":"IF(Table1[[#This Row],[Job Ref]]=\"\",\"\",Table1[[#This Row],[Repair Description]])","v":""},{"$f":"IF(Table1[[#This Row],[Job Ref]]=\"\",\"\",Table1[[#This Row],[Labour Hours]])","v":""},{"$f":"IF(Table1[[#This Row],[Job Ref]]=\"\",\"\",Table1[[#This Row],[Travel Hours]])","v":""},{"$f":"IF(Table1[[#This Row],[Job Ref]]=\"\",\"\",Table1[[#This Row],[Travel Distance (km)]])","v":""},{"$f":"IF(Table1[[#This Row],[Job Ref]]=\"\",\"\",Table1[[#This Row],[Parts Description]])","v":""},{"$f":"IF(Table1[[#This Row],[Job Ref]]=\"\",\"\",Table1[[#This Row],[Parts Costs]])","v":""},{"$f":"IFERROR(Table13[[#This Row],[Labour Hours]]*Table13[[#This Row],[Cost  per unit (LH)]],0)","v":0},{"$f":"IFERROR(Table13[[#This Row],[Travel Hours]]*Table13[[#This Row],[Cost  per unit (TH)]],0)","v":0},{"$f":"IFERROR(Table13[[#This Row],[Travel Distance (km)]]*Table13[[#This Row],[Cost  per unit (TD)]],0)","v":0},{"$f":"IF(Table13[[#This Row],[Test and Tag]]=\"Yes\",Table13[[#This Row],[Cost per Unit (TT)]],0)","v":0},{"$f":"SUM(Table13[[#This Row],[Parts Costs]],Table13[[#This Row],[Travel KM Total ]],Table13[[#This Row],[Labour Hours Total ]],Table13[[#This Row],[Service Cost (Test and Tag)]],Table13[[#This Row],[Travel Hours Total]])","v":0},{"$f":"IF(Table13[[#This Row],[Charge type]]<>\"\",Company_Name,\"\")","v":""},{"$f":"IF(Table13[[#This Row],[Charge type]]<>\"\",ENZ_Reference_Num,\"\")","v":""},{"$f":"IF(Table13[[#This Row],[Charge type]]<>\"\",Invoice_date,\"\")","v":""},{"$f":"IF(Table13[[#This Row],[Charge type]]<>\"\",Invoice_Number,\"\")","v":""},85,85,0.64,15,{"$f":"IF(Table13[[#This Row],[TOTAL JOB COST]]>1999.99,\"OVER $2k - contact Enable\",\"\")","v":""}]
[{"$f":"IF(Table1[[#This Row],[Job Ref]]=\"\",\"\",Table1[[#This Row],[Job Ref]])","v":""},{"$f":"IF(Table1[[#This Row],[Job Ref]]=\"\",\"\",VLOOKUP(Table1[[#This Row],[Charge type]],Table3[],2,FALSE))","v":""},{"$f":"IF(Table1[[#This Row],[Job Ref]]=\"\",\"\",Table1[[#This Row],[Clients First Name]])","v":""},{"$f":"IF(Table1[[#This Row],[Job Ref]]=\"\",\"\",Table1[[#This Row],[Clients Surname]])","v":""},{"$f":"IF(Table1[[#This Row],[Job Ref]]=\"\",\"\",Table1[[#This Row],[Clients Address Street No]])","v":""},{"$f":"IF(Table1[[#This Row],[Job Ref]]=\"\",\"\",Table1[[#This Row],[Clients Address Street ]])","v":""},{"$f":"IF(Table1[[#This Row],[Job Ref]]=\"\",\"\",Table1[[#This Row],[Clients Address Town/City]])","v":""},{"$f":"IF(Table1[[#This Row],[Job Ref]]=\"\",\"\",Table1[[#This Row],[Clients Phone Number]])","v":""},{"$f":"IF(Table1[[#This Row],[Job Ref]]=\"\",\"\",Table1[[#This Row],[Date repair/service requested]])","v":""},{"$f":"IF(Table1[[#This Row],[Job Ref]]=\"\",\"\",Table1[[#This Row],[Date  repair/service completed]])","v":""},{"$f":"IF(Table1[[#This Row],[Job Ref]]=\"\",\"\",Table1[[#This Row],[Asset Number]])","v":""},{"$f":"IF(Table1[[#This Row],[Job Ref]]=\"\",\"\",Table1[[#This Row],[Asset Description]])","v":""},{"$f":"IF(Table1[[#This Row],[Job Ref]]=\"\",\"\",Table1[[#This Row],[Manufacturers Serial No.]])","v":""},{"$f":"IF(Table1[[#This Row],[Job Ref]]=\"\",\"\",Table1[[#This Row],[Test and Tag]])","v":""},{"$f":"IF(Table1[[#This Row],[Job Ref]]=\"\",\"\",Table1[[#This Row],[Beyond Economic Repair (BER)]])","v":""},{"$f":"IF(Table1[[#This Row],[Job Ref]]=\"\",\"\",Table1[[#This Row],[BER Comment]])","v":""},{"$f":"IF(Table1[[#This Row],[Job Ref]]=\"\",\"\",Table1[[#This Row],[Repair Description]])","v":""},{"$f":"IF(Table1[[#This Row],[Job Ref]]=\"\",\"\",Table1[[#This Row],[Labour Hours]])","v":""},{"$f":"IF(Table1[[#This Row],[Job Ref]]=\"\",\"\",Table1[[#This Row],[Travel Hours]])","v":""},{"$f":"IF(Table1[[#This Row],[Job Ref]]=\"\",\"\",Table1[[#This Row],[Travel Distance (km)]])","v":""},{"$f":"IF(Table1[[#This Row],[Job Ref]]=\"\",\"\",Table1[[#This Row],[Parts Description]])","v":""},{"$f":"IF(Table1[[#This Row],[Job Ref]]=\"\",\"\",Table1[[#This Row],[Parts Costs]])","v":""},{"$f":"IFERROR(Table13[[#This Row],[Labour Hours]]*Table13[[#This Row],[Cost  per unit (LH)]],0)","v":0},{"$f":"IFERROR(Table13[[#This Row],[Travel Hours]]*Table13[[#This Row],[Cost  per unit (TH)]],0)","v":0},{"$f":"IFERROR(Table13[[#This Row],[Travel Distance (km)]]*Table13[[#This Row],[Cost  per unit (TD)]],0)","v":0},{"$f":"IF(Table13[[#This Row],[Test and Tag]]=\"Yes\",Table13[[#This Row],[Cost per Unit (TT)]],0)","v":0},{"$f":"SUM(Table13[[#This Row],[Parts Costs]],Table13[[#This Row],[Travel KM Total ]],Table13[[#This Row],[Labour Hours Total ]],Table13[[#This Row],[Service Cost (Test and Tag)]],Table13[[#This Row],[Travel Hours Total]])","v":0},{"$f":"IF(Table13[[#This Row],[Charge type]]<>\"\",Company_Name,\"\")","v":""},{"$f":"IF(Table13[[#This Row],[Charge type]]<>\"\",ENZ_Reference_Num,\"\")","v":""},{"$f":"IF(Table13[[#This Row],[Charge type]]<>\"\",Invoice_date,\"\")","v":""},{"$f":"IF(Table13[[#This Row],[Charge type]]<>\"\",Invoice_Number,\"\")","v":""},85,85,0.64,15,{"$f":"IF(Table13[[#This Row],[TOTAL JOB COST]]>1999.99,\"OVER $2k - contact Enable\",\"\")","v":""}]
[{"$f":"IF(Table1[[#This Row],[Job Ref]]=\"\",\"\",Table1[[#This Row],[Job Ref]])","v":""},{"$f":"IF(Table1[[#This Row],[Job Ref]]=\"\",\"\",VLOOKUP(Table1[[#This Row],[Charge type]],Table3[],2,FALSE))","v":""},{"$f":"IF(Table1[[#This Row],[Job Ref]]=\"\",\"\",Table1[[#This Row],[Clients First Name]])","v":""},{"$f":"IF(Table1[[#This Row],[Job Ref]]=\"\",\"\",Table1[[#This Row],[Clients Surname]])","v":""},{"$f":"IF(Table1[[#This Row],[Job Ref]]=\"\",\"\",Table1[[#This Row],[Clients Address Street No]])","v":""},{"$f":"IF(Table1[[#This Row],[Job Ref]]=\"\",\"\",Table1[[#This Row],[Clients Address Street ]])","v":""},{"$f":"IF(Table1[[#This Row],[Job Ref]]=\"\",\"\",Table1[[#This Row],[Clients Address Town/City]])","v":""},{"$f":"IF(Table1[[#This Row],[Job Ref]]=\"\",\"\",Table1[[#This Row],[Clients Phone Number]])","v":""},{"$f":"IF(Table1[[#This Row],[Job Ref]]=\"\",\"\",Table1[[#This Row],[Date repair/service requested]])","v":""},{"$f":"IF(Table1[[#This Row],[Job Ref]]=\"\",\"\",Table1[[#This Row],[Date  repair/service completed]])","v":""},{"$f":"IF(Table1[[#This Row],[Job Ref]]=\"\",\"\",Table1[[#This Row],[Asset Number]])","v":""},{"$f":"IF(Table1[[#This Row],[Job Ref]]=\"\",\"\",Table1[[#This Row],[Asset Description]])","v":""},{"$f":"IF(Table1[[#This Row],[Job Ref]]=\"\",\"\",Table1[[#This Row],[Manufacturers Serial No.]])","v":""},{"$f":"IF(Table1[[#This Row],[Job Ref]]=\"\",\"\",Table1[[#This Row],[Test and Tag]])","v":""},{"$f":"IF(Table1[[#This Row],[Job Ref]]=\"\",\"\",Table1[[#This Row],[Beyond Economic Repair (BER)]])","v":""},{"$f":"IF(Table1[[#This Row],[Job Ref]]=\"\",\"\",Table1[[#This Row],[BER Comment]])","v":""},{"$f":"IF(Table1[[#This Row],[Job Ref]]=\"\",\"\",Table1[[#This Row],[Repair Description]])","v":""},{"$f":"IF(Table1[[#This Row],[Job Ref]]=\"\",\"\",Table1[[#This Row],[Labour Hours]])","v":""},{"$f":"IF(Table1[[#This Row],[Job Ref]]=\"\",\"\",Table1[[#This Row],[Travel Hours]])","v":""},{"$f":"IF(Table1[[#This Row],[Job Ref]]=\"\",\"\",Table1[[#This Row],[Travel Distance (km)]])","v":""},{"$f":"IF(Table1[[#This Row],[Job Ref]]=\"\",\"\",Table1[[#This Row],[Parts Description]])","v":""},{"$f":"IF(Table1[[#This Row],[Job Ref]]=\"\",\"\",Table1[[#This Row],[Parts Costs]])","v":""},{"$f":"IFERROR(Table13[[#This Row],[Labour Hours]]*Table13[[#This Row],[Cost  per unit (LH)]],0)","v":0},{"$f":"IFERROR(Table13[[#This Row],[Travel Hours]]*Table13[[#This Row],[Cost  per unit (TH)]],0)","v":0},{"$f":"IFERROR(Table13[[#This Row],[Travel Distance (km)]]*Table13[[#This Row],[Cost  per unit (TD)]],0)","v":0},{"$f":"IF(Table13[[#This Row],[Test and Tag]]=\"Yes\",Table13[[#This Row],[Cost per Unit (TT)]],0)","v":0},{"$f":"SUM(Table13[[#This Row],[Parts Costs]],Table13[[#This Row],[Travel KM Total ]],Table13[[#This Row],[Labour Hours Total ]],Table13[[#This Row],[Service Cost (Test and Tag)]],Table13[[#This Row],[Travel Hours Total]])","v":0},{"$f":"IF(Table13[[#This Row],[Charge type]]<>\"\",Company_Name,\"\")","v":""},{"$f":"IF(Table13[[#This Row],[Charge type]]<>\"\",ENZ_Reference_Num,\"\")","v":""},{"$f":"IF(Table13[[#This Row],[Charge type]]<>\"\",Invoice_date,\"\")","v":""},{"$f":"IF(Table13[[#This Row],[Charge type]]<>\"\",Invoice_Number,\"\")","v":""},85,85,0.64,15,{"$f":"IF(Table13[[#This Row],[TOTAL JOB COST]]>1999.99,\"OVER $2k - contact Enable\",\"\")","v":""}]
[{"$f":"IF(Table1[[#This Row],[Job Ref]]=\"\",\"\",Table1[[#This Row],[Job Ref]])","v":""},{"$f":"IF(Table1[[#This Row],[Job Ref]]=\"\",\"\",VLOOKUP(Table1[[#This Row],[Charge type]],Table3[],2,FALSE))","v":""},{"$f":"IF(Table1[[#This Row],[Job Ref]]=\"\",\"\",Table1[[#This Row],[Clients First Name]])","v":""},{"$f":"IF(Table1[[#This Row],[Job Ref]]=\"\",\"\",Table1[[#This Row],[Clients Surname]])","v":""},{"$f":"IF(Table1[[#This Row],[Job Ref]]=\"\",\"\",Table1[[#This Row],[Clients Address Street No]])","v":""},{"$f":"IF(Table1[[#This Row],[Job Ref]]=\"\",\"\",Table1[[#This Row],[Clients Address Street ]])","v":""},{"$f":"IF(Table1[[#This Row],[Job Ref]]=\"\",\"\",Table1[[#This Row],[Clients Address Town/City]])","v":""},{"$f":"IF(Table1[[#This Row],[Job Ref]]=\"\",\"\",Table1[[#This Row],[Clients Phone Number]])","v":""},{"$f":"IF(Table1[[#This Row],[Job Ref]]=\"\",\"\",Table1[[#This Row],[Date repair/service requested]])","v":""},{"$f":"IF(Table1[[#This Row],[Job Ref]]=\"\",\"\",Table1[[#This Row],[Date  repair/service completed]])","v":""},{"$f":"IF(Table1[[#This Row],[Job Ref]]=\"\",\"\",Table1[[#This Row],[Asset Number]])","v":""},{"$f":"IF(Table1[[#This Row],[Job Ref]]=\"\",\"\",Table1[[#This Row],[Asset Description]])","v":""},{"$f":"IF(Table1[[#This Row],[Job Ref]]=\"\",\"\",Table1[[#This Row],[Manufacturers Serial No.]])","v":""},{"$f":"IF(Table1[[#This Row],[Job Ref]]=\"\",\"\",Table1[[#This Row],[Test and Tag]])","v":""},{"$f":"IF(Table1[[#This Row],[Job Ref]]=\"\",\"\",Table1[[#This Row],[Beyond Economic Repair (BER)]])","v":""},{"$f":"IF(Table1[[#This Row],[Job Ref]]=\"\",\"\",Table1[[#This Row],[BER Comment]])","v":""},{"$f":"IF(Table1[[#This Row],[Job Ref]]=\"\",\"\",Table1[[#This Row],[Repair Description]])","v":""},{"$f":"IF(Table1[[#This Row],[Job Ref]]=\"\",\"\",Table1[[#This Row],[Labour Hours]])","v":""},{"$f":"IF(Table1[[#This Row],[Job Ref]]=\"\",\"\",Table1[[#This Row],[Travel Hours]])","v":""},{"$f":"IF(Table1[[#This Row],[Job Ref]]=\"\",\"\",Table1[[#This Row],[Travel Distance (km)]])","v":""},{"$f":"IF(Table1[[#This Row],[Job Ref]]=\"\",\"\",Table1[[#This Row],[Parts Description]])","v":""},{"$f":"IF(Table1[[#This Row],[Job Ref]]=\"\",\"\",Table1[[#This Row],[Parts Costs]])","v":""},{"$f":"IFERROR(Table13[[#This Row],[Labour Hours]]*Table13[[#This Row],[Cost  per unit (LH)]],0)","v":0},{"$f":"IFERROR(Table13[[#This Row],[Travel Hours]]*Table13[[#This Row],[Cost  per unit (TH)]],0)","v":0},{"$f":"IFERROR(Table13[[#This Row],[Travel Distance (km)]]*Table13[[#This Row],[Cost  per unit (TD)]],0)","v":0},{"$f":"IF(Table13[[#This Row],[Test and Tag]]=\"Yes\",Table13[[#This Row],[Cost per Unit (TT)]],0)","v":0},{"$f":"SUM(Table13[[#This Row],[Parts Costs]],Table13[[#This Row],[Travel KM Total ]],Table13[[#This Row],[Labour Hours Total ]],Table13[[#This Row],[Service Cost (Test and Tag)]],Table13[[#This Row],[Travel Hours Total]])","v":0},{"$f":"IF(Table13[[#This Row],[Charge type]]<>\"\",Company_Name,\"\")","v":""},{"$f":"IF(Table13[[#This Row],[Charge type]]<>\"\",ENZ_Reference_Num,\"\")","v":""},{"$f":"IF(Table13[[#This Row],[Charge type]]<>\"\",Invoice_date,\"\")","v":""},{"$f":"IF(Table13[[#This Row],[Charge type]]<>\"\",Invoice_Number,\"\")","v":""},85,85,0.64,15,{"$f":"IF(Table13[[#This Row],[TOTAL JOB COST]]>1999.99,\"OVER $2k - contact Enable\",\"\")","v":""}]
[{"$f":"IF(Table1[[#This Row],[Job Ref]]=\"\",\"\",Table1[[#This Row],[Job Ref]])","v":""},{"$f":"IF(Table1[[#This Row],[Job Ref]]=\"\",\"\",VLOOKUP(Table1[[#This Row],[Charge type]],Table3[],2,FALSE))","v":""},{"$f":"IF(Table1[[#This Row],[Job Ref]]=\"\",\"\",Table1[[#This Row],[Clients First Name]])","v":""},{"$f":"IF(Table1[[#This Row],[Job Ref]]=\"\",\"\",Table1[[#This Row],[Clients Surname]])","v":""},{"$f":"IF(Table1[[#This Row],[Job Ref]]=\"\",\"\",Table1[[#This Row],[Clients Address Street No]])","v":""},{"$f":"IF(Table1[[#This Row],[Job Ref]]=\"\",\"\",Table1[[#This Row],[Clients Address Street ]])","v":""},{"$f":"IF(Table1[[#This Row],[Job Ref]]=\"\",\"\",Table1[[#This Row],[Clients Address Town/City]])","v":""},{"$f":"IF(Table1[[#This Row],[Job Ref]]=\"\",\"\",Table1[[#This Row],[Clients Phone Number]])","v":""},{"$f":"IF(Table1[[#This Row],[Job Ref]]=\"\",\"\",Table1[[#This Row],[Date repair/service requested]])","v":""},{"$f":"IF(Table1[[#This Row],[Job Ref]]=\"\",\"\",Table1[[#This Row],[Date  repair/service completed]])","v":""},{"$f":"IF(Table1[[#This Row],[Job Ref]]=\"\",\"\",Table1[[#This Row],[Asset Number]])","v":""},{"$f":"IF(Table1[[#This Row],[Job Ref]]=\"\",\"\",Table1[[#This Row],[Asset Description]])","v":""},{"$f":"IF(Table1[[#This Row],[Job Ref]]=\"\",\"\",Table1[[#This Row],[Manufacturers Serial No.]])","v":""},{"$f":"IF(Table1[[#This Row],[Job Ref]]=\"\",\"\",Table1[[#This Row],[Test and Tag]])","v":""},{"$f":"IF(Table1[[#This Row],[Job Ref]]=\"\",\"\",Table1[[#This Row],[Beyond Economic Repair (BER)]])","v":""},{"$f":"IF(Table1[[#This Row],[Job Ref]]=\"\",\"\",Table1[[#This Row],[BER Comment]])","v":""},{"$f":"IF(Table1[[#This Row],[Job Ref]]=\"\",\"\",Table1[[#This Row],[Repair Description]])","v":""},{"$f":"IF(Table1[[#This Row],[Job Ref]]=\"\",\"\",Table1[[#This Row],[Labour Hours]])","v":""},{"$f":"IF(Table1[[#This Row],[Job Ref]]=\"\",\"\",Table1[[#This Row],[Travel Hours]])","v":""},{"$f":"IF(Table1[[#This Row],[Job Ref]]=\"\",\"\",Table1[[#This Row],[Travel Distance (km)]])","v":""},{"$f":"IF(Table1[[#This Row],[Job Ref]]=\"\",\"\",Table1[[#This Row],[Parts Description]])","v":""},{"$f":"IF(Table1[[#This Row],[Job Ref]]=\"\",\"\",Table1[[#This Row],[Parts Costs]])","v":""},{"$f":"IFERROR(Table13[[#This Row],[Labour Hours]]*Table13[[#This Row],[Cost  per unit (LH)]],0)","v":0},{"$f":"IFERROR(Table13[[#This Row],[Travel Hours]]*Table13[[#This Row],[Cost  per unit (TH)]],0)","v":0},{"$f":"IFERROR(Table13[[#This Row],[Travel Distance (km)]]*Table13[[#This Row],[Cost  per unit (TD)]],0)","v":0},{"$f":"IF(Table13[[#This Row],[Test and Tag]]=\"Yes\",Table13[[#This Row],[Cost per Unit (TT)]],0)","v":0},{"$f":"SUM(Table13[[#This Row],[Parts Costs]],Table13[[#This Row],[Travel KM Total ]],Table13[[#This Row],[Labour Hours Total ]],Table13[[#This Row],[Service Cost (Test and Tag)]],Table13[[#This Row],[Travel Hours Total]])","v":0},{"$f":"IF(Table13[[#This Row],[Charge type]]<>\"\",Company_Name,\"\")","v":""},{"$f":"IF(Table13[[#This Row],[Charge type]]<>\"\",ENZ_Reference_Num,\"\")","v":""},{"$f":"IF(Table13[[#This Row],[Charge type]]<>\"\",Invoice_date,\"\")","v":""},{"$f":"IF(Table13[[#This Row],[Charge type]]<>\"\",Invoice_Number,\"\")","v":""},85,85,0.64,15,{"$f":"IF(Table13[[#This Row],[TOTAL JOB COST]]>1999.99,\"OVER $2k - contact Enable\",\"\")","v":""}]
[{"$f":"IF(Table1[[#This Row],[Job Ref]]=\"\",\"\",Table1[[#This Row],[Job Ref]])","v":""},{"$f":"IF(Table1[[#This Row],[Job Ref]]=\"\",\"\",VLOOKUP(Table1[[#This Row],[Charge type]],Table3[],2,FALSE))","v":""},{"$f":"IF(Table1[[#This Row],[Job Ref]]=\"\",\"\",Table1[[#This Row],[Clients First Name]])","v":""},{"$f":"IF(Table1[[#This Row],[Job Ref]]=\"\",\"\",Table1[[#This Row],[Clients Surname]])","v":""},{"$f":"IF(Table1[[#This Row],[Job Ref]]=\"\",\"\",Table1[[#This Row],[Clients Address Street No]])","v":""},{"$f":"IF(Table1[[#This Row],[Job Ref]]=\"\",\"\",Table1[[#This Row],[Clients Address Street ]])","v":""},{"$f":"IF(Table1[[#This Row],[Job Ref]]=\"\",\"\",Table1[[#This Row],[Clients Address Town/City]])","v":""},{"$f":"IF(Table1[[#This Row],[Job Ref]]=\"\",\"\",Table1[[#This Row],[Clients Phone Number]])","v":""},{"$f":"IF(Table1[[#This Row],[Job Ref]]=\"\",\"\",Table1[[#This Row],[Date repair/service requested]])","v":""},{"$f":"IF(Table1[[#This Row],[Job Ref]]=\"\",\"\",Table1[[#This Row],[Date  repair/service completed]])","v":""},{"$f":"IF(Table1[[#This Row],[Job Ref]]=\"\",\"\",Table1[[#This Row],[Asset Number]])","v":""},{"$f":"IF(Table1[[#This Row],[Job Ref]]=\"\",\"\",Table1[[#This Row],[Asset Description]])","v":""},{"$f":"IF(Table1[[#This Row],[Job Ref]]=\"\",\"\",Table1[[#This Row],[Manufacturers Serial No.]])","v":""},{"$f":"IF(Table1[[#This Row],[Job Ref]]=\"\",\"\",Table1[[#This Row],[Test and Tag]])","v":""},{"$f":"IF(Table1[[#This Row],[Job Ref]]=\"\",\"\",Table1[[#This Row],[Beyond Economic Repair (BER)]])","v":""},{"$f":"IF(Table1[[#This Row],[Job Ref]]=\"\",\"\",Table1[[#This Row],[BER Comment]])","v":""},{"$f":"IF(Table1[[#This Row],[Job Ref]]=\"\",\"\",Table1[[#This Row],[Repair Description]])","v":""},{"$f":"IF(Table1[[#This Row],[Job Ref]]=\"\",\"\",Table1[[#This Row],[Labour Hours]])","v":""},{"$f":"IF(Table1[[#This Row],[Job Ref]]=\"\",\"\",Table1[[#This Row],[Travel Hours]])","v":""},{"$f":"IF(Table1[[#This Row],[Job Ref]]=\"\",\"\",Table1[[#This Row],[Travel Distance (km)]])","v":""},{"$f":"IF(Table1[[#This Row],[Job Ref]]=\"\",\"\",Table1[[#This Row],[Parts Description]])","v":""},{"$f":"IF(Table1[[#This Row],[Job Ref]]=\"\",\"\",Table1[[#This Row],[Parts Costs]])","v":""},{"$f":"IFERROR(Table13[[#This Row],[Labour Hours]]*Table13[[#This Row],[Cost  per unit (LH)]],0)","v":0},{"$f":"IFERROR(Table13[[#This Row],[Travel Hours]]*Table13[[#This Row],[Cost  per unit (TH)]],0)","v":0},{"$f":"IFERROR(Table13[[#This Row],[Travel Distance (km)]]*Table13[[#This Row],[Cost  per unit (TD)]],0)","v":0},{"$f":"IF(Table13[[#This Row],[Test and Tag]]=\"Yes\",Table13[[#This Row],[Cost per Unit (TT)]],0)","v":0},{"$f":"SUM(Table13[[#This Row],[Parts Costs]],Table13[[#This Row],[Travel KM Total ]],Table13[[#This Row],[Labour Hours Total ]],Table13[[#This Row],[Service Cost (Test and Tag)]],Table13[[#This Row],[Travel Hours Total]])","v":0},{"$f":"IF(Table13[[#This Row],[Charge type]]<>\"\",Company_Name,\"\")","v":""},{"$f":"IF(Table13[[#This Row],[Charge type]]<>\"\",ENZ_Reference_Num,\"\")","v":""},{"$f":"IF(Table13[[#This Row],[Charge type]]<>\"\",Invoice_date,\"\")","v":""},{"$f":"IF(Table13[[#This Row],[Charge type]]<>\"\",Invoice_Number,\"\")","v":""},85,85,0.64,15,{"$f":"IF(Table13[[#This Row],[TOTAL JOB COST]]>1999.99,\"OVER $2k - contact Enable\",\"\")","v":""}]
[{"$f":"IF(Table1[[#This Row],[Job Ref]]=\"\",\"\",Table1[[#This Row],[Job Ref]])","v":""},{"$f":"IF(Table1[[#This Row],[Job Ref]]=\"\",\"\",VLOOKUP(Table1[[#This Row],[Charge type]],Table3[],2,FALSE))","v":""},{"$f":"IF(Table1[[#This Row],[Job Ref]]=\"\",\"\",Table1[[#This Row],[Clients First Name]])","v":""},{"$f":"IF(Table1[[#This Row],[Job Ref]]=\"\",\"\",Table1[[#This Row],[Clients Surname]])","v":""},{"$f":"IF(Table1[[#This Row],[Job Ref]]=\"\",\"\",Table1[[#This Row],[Clients Address Street No]])","v":""},{"$f":"IF(Table1[[#This Row],[Job Ref]]=\"\",\"\",Table1[[#This Row],[Clients Address Street ]])","v":""},{"$f":"IF(Table1[[#This Row],[Job Ref]]=\"\",\"\",Table1[[#This Row],[Clients Address Town/City]])","v":""},{"$f":"IF(Table1[[#This Row],[Job Ref]]=\"\",\"\",Table1[[#This Row],[Clients Phone Number]])","v":""},{"$f":"IF(Table1[[#This Row],[Job Ref]]=\"\",\"\",Table1[[#This Row],[Date repair/service requested]])","v":""},{"$f":"IF(Table1[[#This Row],[Job Ref]]=\"\",\"\",Table1[[#This Row],[Date  repair/service completed]])","v":""},{"$f":"IF(Table1[[#This Row],[Job Ref]]=\"\",\"\",Table1[[#This Row],[Asset Number]])","v":""},{"$f":"IF(Table1[[#This Row],[Job Ref]]=\"\",\"\",Table1[[#This Row],[Asset Description]])","v":""},{"$f":"IF(Table1[[#This Row],[Job Ref]]=\"\",\"\",Table1[[#This Row],[Manufacturers Serial No.]])","v":""},{"$f":"IF(Table1[[#This Row],[Job Ref]]=\"\",\"\",Table1[[#This Row],[Test and Tag]])","v":""},{"$f":"IF(Table1[[#This Row],[Job Ref]]=\"\",\"\",Table1[[#This Row],[Beyond Economic Repair (BER)]])","v":""},{"$f":"IF(Table1[[#This Row],[Job Ref]]=\"\",\"\",Table1[[#This Row],[BER Comment]])","v":""},{"$f":"IF(Table1[[#This Row],[Job Ref]]=\"\",\"\",Table1[[#This Row],[Repair Description]])","v":""},{"$f":"IF(Table1[[#This Row],[Job Ref]]=\"\",\"\",Table1[[#This Row],[Labour Hours]])","v":""},{"$f":"IF(Table1[[#This Row],[Job Ref]]=\"\",\"\",Table1[[#This Row],[Travel Hours]])","v":""},{"$f":"IF(Table1[[#This Row],[Job Ref]]=\"\",\"\",Table1[[#This Row],[Travel Distance (km)]])","v":""},{"$f":"IF(Table1[[#This Row],[Job Ref]]=\"\",\"\",Table1[[#This Row],[Parts Description]])","v":""},{"$f":"IF(Table1[[#This Row],[Job Ref]]=\"\",\"\",Table1[[#This Row],[Parts Costs]])","v":""},{"$f":"IFERROR(Table13[[#This Row],[Labour Hours]]*Table13[[#This Row],[Cost  per unit (LH)]],0)","v":0},{"$f":"IFERROR(Table13[[#This Row],[Travel Hours]]*Table13[[#This Row],[Cost  per unit (TH)]],0)","v":0},{"$f":"IFERROR(Table13[[#This Row],[Travel Distance (km)]]*Table13[[#This Row],[Cost  per unit (TD)]],0)","v":0},{"$f":"IF(Table13[[#This Row],[Test and Tag]]=\"Yes\",Table13[[#This Row],[Cost per Unit (TT)]],0)","v":0},{"$f":"SUM(Table13[[#This Row],[Parts Costs]],Table13[[#This Row],[Travel KM Total ]],Table13[[#This Row],[Labour Hours Total ]],Table13[[#This Row],[Service Cost (Test and Tag)]],Table13[[#This Row],[Travel Hours Total]])","v":0},{"$f":"IF(Table13[[#This Row],[Charge type]]<>\"\",Company_Name,\"\")","v":""},{"$f":"IF(Table13[[#This Row],[Charge type]]<>\"\",ENZ_Reference_Num,\"\")","v":""},{"$f":"IF(Table13[[#This Row],[Charge type]]<>\"\",Invoice_date,\"\")","v":""},{"$f":"IF(Table13[[#This Row],[Charge type]]<>\"\",Invoice_Number,\"\")","v":""},85,85,0.64,15,{"$f":"IF(Table13[[#This Row],[TOTAL JOB COST]]>1999.99,\"OVER $2k - contact Enable\",\"\")","v":""}]
[{"$f":"IF(Table1[[#This Row],[Job Ref]]=\"\",\"\",Table1[[#This Row],[Job Ref]])","v":""},{"$f":"IF(Table1[[#This Row],[Job Ref]]=\"\",\"\",VLOOKUP(Table1[[#This Row],[Charge type]],Table3[],2,FALSE))","v":""},{"$f":"IF(Table1[[#This Row],[Job Ref]]=\"\",\"\",Table1[[#This Row],[Clients First Name]])","v":""},{"$f":"IF(Table1[[#This Row],[Job Ref]]=\"\",\"\",Table1[[#This Row],[Clients Surname]])","v":""},{"$f":"IF(Table1[[#This Row],[Job Ref]]=\"\",\"\",Table1[[#This Row],[Clients Address Street No]])","v":""},{"$f":"IF(Table1[[#This Row],[Job Ref]]=\"\",\"\",Table1[[#This Row],[Clients Address Street ]])","v":""},{"$f":"IF(Table1[[#This Row],[Job Ref]]=\"\",\"\",Table1[[#This Row],[Clients Address Town/City]])","v":""},{"$f":"IF(Table1[[#This Row],[Job Ref]]=\"\",\"\",Table1[[#This Row],[Clients Phone Number]])","v":""},{"$f":"IF(Table1[[#This Row],[Job Ref]]=\"\",\"\",Table1[[#This Row],[Date repair/service requested]])","v":""},{"$f":"IF(Table1[[#This Row],[Job Ref]]=\"\",\"\",Table1[[#This Row],[Date  repair/service completed]])","v":""},{"$f":"IF(Table1[[#This Row],[Job Ref]]=\"\",\"\",Table1[[#This Row],[Asset Number]])","v":""},{"$f":"IF(Table1[[#This Row],[Job Ref]]=\"\",\"\",Table1[[#This Row],[Asset Description]])","v":""},{"$f":"IF(Table1[[#This Row],[Job Ref]]=\"\",\"\",Table1[[#This Row],[Manufacturers Serial No.]])","v":""},{"$f":"IF(Table1[[#This Row],[Job Ref]]=\"\",\"\",Table1[[#This Row],[Test and Tag]])","v":""},{"$f":"IF(Table1[[#This Row],[Job Ref]]=\"\",\"\",Table1[[#This Row],[Beyond Economic Repair (BER)]])","v":""},{"$f":"IF(Table1[[#This Row],[Job Ref]]=\"\",\"\",Table1[[#This Row],[BER Comment]])","v":""},{"$f":"IF(Table1[[#This Row],[Job Ref]]=\"\",\"\",Table1[[#This Row],[Repair Description]])","v":""},{"$f":"IF(Table1[[#This Row],[Job Ref]]=\"\",\"\",Table1[[#This Row],[Labour Hours]])","v":""},{"$f":"IF(Table1[[#This Row],[Job Ref]]=\"\",\"\",Table1[[#This Row],[Travel Hours]])","v":""},{"$f":"IF(Table1[[#This Row],[Job Ref]]=\"\",\"\",Table1[[#This Row],[Travel Distance (km)]])","v":""},{"$f":"IF(Table1[[#This Row],[Job Ref]]=\"\",\"\",Table1[[#This Row],[Parts Description]])","v":""},{"$f":"IF(Table1[[#This Row],[Job Ref]]=\"\",\"\",Table1[[#This Row],[Parts Costs]])","v":""},{"$f":"IFERROR(Table13[[#This Row],[Labour Hours]]*Table13[[#This Row],[Cost  per unit (LH)]],0)","v":0},{"$f":"IFERROR(Table13[[#This Row],[Travel Hours]]*Table13[[#This Row],[Cost  per unit (TH)]],0)","v":0},{"$f":"IFERROR(Table13[[#This Row],[Travel Distance (km)]]*Table13[[#This Row],[Cost  per unit (TD)]],0)","v":0},{"$f":"IF(Table13[[#This Row],[Test and Tag]]=\"Yes\",Table13[[#This Row],[Cost per Unit (TT)]],0)","v":0},{"$f":"SUM(Table13[[#This Row],[Parts Costs]],Table13[[#This Row],[Travel KM Total ]],Table13[[#This Row],[Labour Hours Total ]],Table13[[#This Row],[Service Cost (Test and Tag)]],Table13[[#This Row],[Travel Hours Total]])","v":0},{"$f":"IF(Table13[[#This Row],[Charge type]]<>\"\",Company_Name,\"\")","v":""},{"$f":"IF(Table13[[#This Row],[Charge type]]<>\"\",ENZ_Reference_Num,\"\")","v":""},{"$f":"IF(Table13[[#This Row],[Charge type]]<>\"\",Invoice_date,\"\")","v":""},{"$f":"IF(Table13[[#This Row],[Charge type]]<>\"\",Invoice_Number,\"\")","v":""},85,85,0.64,15,{"$f":"IF(Table13[[#This Row],[TOTAL JOB COST]]>1999.99,\"OVER $2k - contact Enable\",\"\")","v":""}]
[{"$f":"IF(Table1[[#This Row],[Job Ref]]=\"\",\"\",Table1[[#This Row],[Job Ref]])","v":""},{"$f":"IF(Table1[[#This Row],[Job Ref]]=\"\",\"\",VLOOKUP(Table1[[#This Row],[Charge type]],Table3[],2,FALSE))","v":""},{"$f":"IF(Table1[[#This Row],[Job Ref]]=\"\",\"\",Table1[[#This Row],[Clients First Name]])","v":""},{"$f":"IF(Table1[[#This Row],[Job Ref]]=\"\",\"\",Table1[[#This Row],[Clients Surname]])","v":""},{"$f":"IF(Table1[[#This Row],[Job Ref]]=\"\",\"\",Table1[[#This Row],[Clients Address Street No]])","v":""},{"$f":"IF(Table1[[#This Row],[Job Ref]]=\"\",\"\",Table1[[#This Row],[Clients Address Street ]])","v":""},{"$f":"IF(Table1[[#This Row],[Job Ref]]=\"\",\"\",Table1[[#This Row],[Clients Address Town/City]])","v":""},{"$f":"IF(Table1[[#This Row],[Job Ref]]=\"\",\"\",Table1[[#This Row],[Clients Phone Number]])","v":""},{"$f":"IF(Table1[[#This Row],[Job Ref]]=\"\",\"\",Table1[[#This Row],[Date repair/service requested]])","v":""},{"$f":"IF(Table1[[#This Row],[Job Ref]]=\"\",\"\",Table1[[#This Row],[Date  repair/service completed]])","v":""},{"$f":"IF(Table1[[#This Row],[Job Ref]]=\"\",\"\",Table1[[#This Row],[Asset Number]])","v":""},{"$f":"IF(Table1[[#This Row],[Job Ref]]=\"\",\"\",Table1[[#This Row],[Asset Description]])","v":""},{"$f":"IF(Table1[[#This Row],[Job Ref]]=\"\",\"\",Table1[[#This Row],[Manufacturers Serial No.]])","v":""},{"$f":"IF(Table1[[#This Row],[Job Ref]]=\"\",\"\",Table1[[#This Row],[Test and Tag]])","v":""},{"$f":"IF(Table1[[#This Row],[Job Ref]]=\"\",\"\",Table1[[#This Row],[Beyond Economic Repair (BER)]])","v":""},{"$f":"IF(Table1[[#This Row],[Job Ref]]=\"\",\"\",Table1[[#This Row],[BER Comment]])","v":""},{"$f":"IF(Table1[[#This Row],[Job Ref]]=\"\",\"\",Table1[[#This Row],[Repair Description]])","v":""},{"$f":"IF(Table1[[#This Row],[Job Ref]]=\"\",\"\",Table1[[#This Row],[Labour Hours]])","v":""},{"$f":"IF(Table1[[#This Row],[Job Ref]]=\"\",\"\",Table1[[#This Row],[Travel Hours]])","v":""},{"$f":"IF(Table1[[#This Row],[Job Ref]]=\"\",\"\",Table1[[#This Row],[Travel Distance (km)]])","v":""},{"$f":"IF(Table1[[#This Row],[Job Ref]]=\"\",\"\",Table1[[#This Row],[Parts Description]])","v":""},{"$f":"IF(Table1[[#This Row],[Job Ref]]=\"\",\"\",Table1[[#This Row],[Parts Costs]])","v":""},{"$f":"IFERROR(Table13[[#This Row],[Labour Hours]]*Table13[[#This Row],[Cost  per unit (LH)]],0)","v":0},{"$f":"IFERROR(Table13[[#This Row],[Travel Hours]]*Table13[[#This Row],[Cost  per unit (TH)]],0)","v":0},{"$f":"IFERROR(Table13[[#This Row],[Travel Distance (km)]]*Table13[[#This Row],[Cost  per unit (TD)]],0)","v":0},{"$f":"IF(Table13[[#This Row],[Test and Tag]]=\"Yes\",Table13[[#This Row],[Cost per Unit (TT)]],0)","v":0},{"$f":"SUM(Table13[[#This Row],[Parts Costs]],Table13[[#This Row],[Travel KM Total ]],Table13[[#This Row],[Labour Hours Total ]],Table13[[#This Row],[Service Cost (Test and Tag)]],Table13[[#This Row],[Travel Hours Total]])","v":0},{"$f":"IF(Table13[[#This Row],[Charge type]]<>\"\",Company_Name,\"\")","v":""},{"$f":"IF(Table13[[#This Row],[Charge type]]<>\"\",ENZ_Reference_Num,\"\")","v":""},{"$f":"IF(Table13[[#This Row],[Charge type]]<>\"\",Invoice_date,\"\")","v":""},{"$f":"IF(Table13[[#This Row],[Charge type]]<>\"\",Invoice_Number,\"\")","v":""},85,85,0.64,15,{"$f":"IF(Table13[[#This Row],[TOTAL JOB COST]]>1999.99,\"OVER $2k - contact Enable\",\"\")","v":""}]
[{"$f":"IF(Table1[[#This Row],[Job Ref]]=\"\",\"\",Table1[[#This Row],[Job Ref]])","v":""},{"$f":"IF(Table1[[#This Row],[Job Ref]]=\"\",\"\",VLOOKUP(Table1[[#This Row],[Charge type]],Table3[],2,FALSE))","v":""},{"$f":"IF(Table1[[#This Row],[Job Ref]]=\"\",\"\",Table1[[#This Row],[Clients First Name]])","v":""},{"$f":"IF(Table1[[#This Row],[Job Ref]]=\"\",\"\",Table1[[#This Row],[Clients Surname]])","v":""},{"$f":"IF(Table1[[#This Row],[Job Ref]]=\"\",\"\",Table1[[#This Row],[Clients Address Street No]])","v":""},{"$f":"IF(Table1[[#This Row],[Job Ref]]=\"\",\"\",Table1[[#This Row],[Clients Address Street ]])","v":""},{"$f":"IF(Table1[[#This Row],[Job Ref]]=\"\",\"\",Table1[[#This Row],[Clients Address Town/City]])","v":""},{"$f":"IF(Table1[[#This Row],[Job Ref]]=\"\",\"\",Table1[[#This Row],[Clients Phone Number]])","v":""},{"$f":"IF(Table1[[#This Row],[Job Ref]]=\"\",\"\",Table1[[#This Row],[Date repair/service requested]])","v":""},{"$f":"IF(Table1[[#This Row],[Job Ref]]=\"\",\"\",Table1[[#This Row],[Date  repair/service completed]])","v":""},{"$f":"IF(Table1[[#This Row],[Job Ref]]=\"\",\"\",Table1[[#This Row],[Asset Number]])","v":""},{"$f":"IF(Table1[[#This Row],[Job Ref]]=\"\",\"\",Table1[[#This Row],[Asset Description]])","v":""},{"$f":"IF(Table1[[#This Row],[Job Ref]]=\"\",\"\",Table1[[#This Row],[Manufacturers Serial No.]])","v":""},{"$f":"IF(Table1[[#This Row],[Job Ref]]=\"\",\"\",Table1[[#This Row],[Test and Tag]])","v":""},{"$f":"IF(Table1[[#This Row],[Job Ref]]=\"\",\"\",Table1[[#This Row],[Beyond Economic Repair (BER)]])","v":""},{"$f":"IF(Table1[[#This Row],[Job Ref]]=\"\",\"\",Table1[[#This Row],[BER Comment]])","v":""},{"$f":"IF(Table1[[#This Row],[Job Ref]]=\"\",\"\",Table1[[#This Row],[Repair Description]])","v":""},{"$f":"IF(Table1[[#This Row],[Job Ref]]=\"\",\"\",Table1[[#This Row],[Labour Hours]])","v":""},{"$f":"IF(Table1[[#This Row],[Job Ref]]=\"\",\"\",Table1[[#This Row],[Travel Hours]])","v":""},{"$f":"IF(Table1[[#This Row],[Job Ref]]=\"\",\"\",Table1[[#This Row],[Travel Distance (km)]])","v":""},{"$f":"IF(Table1[[#This Row],[Job Ref]]=\"\",\"\",Table1[[#This Row],[Parts Description]])","v":""},{"$f":"IF(Table1[[#This Row],[Job Ref]]=\"\",\"\",Table1[[#This Row],[Parts Costs]])","v":""},{"$f":"IFERROR(Table13[[#This Row],[Labour Hours]]*Table13[[#This Row],[Cost  per unit (LH)]],0)","v":0},{"$f":"IFERROR(Table13[[#This Row],[Travel Hours]]*Table13[[#This Row],[Cost  per unit (TH)]],0)","v":0},{"$f":"IFERROR(Table13[[#This Row],[Travel Distance (km)]]*Table13[[#This Row],[Cost  per unit (TD)]],0)","v":0},{"$f":"IF(Table13[[#This Row],[Test and Tag]]=\"Yes\",Table13[[#This Row],[Cost per Unit (TT)]],0)","v":0},{"$f":"SUM(Table13[[#This Row],[Parts Costs]],Table13[[#This Row],[Travel KM Total ]],Table13[[#This Row],[Labour Hours Total ]],Table13[[#This Row],[Service Cost (Test and Tag)]],Table13[[#This Row],[Travel Hours Total]])","v":0},{"$f":"IF(Table13[[#This Row],[Charge type]]<>\"\",Company_Name,\"\")","v":""},{"$f":"IF(Table13[[#This Row],[Charge type]]<>\"\",ENZ_Reference_Num,\"\")","v":""},{"$f":"IF(Table13[[#This Row],[Charge type]]<>\"\",Invoice_date,\"\")","v":""},{"$f":"IF(Table13[[#This Row],[Charge type]]<>\"\",Invoice_Number,\"\")","v":""},85,85,0.64,15,{"$f":"IF(Table13[[#This Row],[TOTAL JOB COST]]>1999.99,\"OVER $2k - contact Enable\",\"\")","v":""}]
[{"$f":"IF(Table1[[#This Row],[Job Ref]]=\"\",\"\",Table1[[#This Row],[Job Ref]])","v":""},{"$f":"IF(Table1[[#This Row],[Job Ref]]=\"\",\"\",VLOOKUP(Table1[[#This Row],[Charge type]],Table3[],2,FALSE))","v":""},{"$f":"IF(Table1[[#This Row],[Job Ref]]=\"\",\"\",Table1[[#This Row],[Clients First Name]])","v":""},{"$f":"IF(Table1[[#This Row],[Job Ref]]=\"\",\"\",Table1[[#This Row],[Clients Surname]])","v":""},{"$f":"IF(Table1[[#This Row],[Job Ref]]=\"\",\"\",Table1[[#This Row],[Clients Address Street No]])","v":""},{"$f":"IF(Table1[[#This Row],[Job Ref]]=\"\",\"\",Table1[[#This Row],[Clients Address Street ]])","v":""},{"$f":"IF(Table1[[#This Row],[Job Ref]]=\"\",\"\",Table1[[#This Row],[Clients Address Town/City]])","v":""},{"$f":"IF(Table1[[#This Row],[Job Ref]]=\"\",\"\",Table1[[#This Row],[Clients Phone Number]])","v":""},{"$f":"IF(Table1[[#This Row],[Job Ref]]=\"\",\"\",Table1[[#This Row],[Date repair/service requested]])","v":""},{"$f":"IF(Table1[[#This Row],[Job Ref]]=\"\",\"\",Table1[[#This Row],[Date  repair/service completed]])","v":""},{"$f":"IF(Table1[[#This Row],[Job Ref]]=\"\",\"\",Table1[[#This Row],[Asset Number]])","v":""},{"$f":"IF(Table1[[#This Row],[Job Ref]]=\"\",\"\",Table1[[#This Row],[Asset Description]])","v":""},{"$f":"IF(Table1[[#This Row],[Job Ref]]=\"\",\"\",Table1[[#This Row],[Manufacturers Serial No.]])","v":""},{"$f":"IF(Table1[[#This Row],[Job Ref]]=\"\",\"\",Table1[[#This Row],[Test and Tag]])","v":""},{"$f":"IF(Table1[[#This Row],[Job Ref]]=\"\",\"\",Table1[[#This Row],[Beyond Economic Repair (BER)]])","v":""},{"$f":"IF(Table1[[#This Row],[Job Ref]]=\"\",\"\",Table1[[#This Row],[BER Comment]])","v":""},{"$f":"IF(Table1[[#This Row],[Job Ref]]=\"\",\"\",Table1[[#This Row],[Repair Description]])","v":""},{"$f":"IF(Table1[[#This Row],[Job Ref]]=\"\",\"\",Table1[[#This Row],[Labour Hours]])","v":""},{"$f":"IF(Table1[[#This Row],[Job Ref]]=\"\",\"\",Table1[[#This Row],[Travel Hours]])","v":""},{"$f":"IF(Table1[[#This Row],[Job Ref]]=\"\",\"\",Table1[[#This Row],[Travel Distance (km)]])","v":""},{"$f":"IF(Table1[[#This Row],[Job Ref]]=\"\",\"\",Table1[[#This Row],[Parts Description]])","v":""},{"$f":"IF(Table1[[#This Row],[Job Ref]]=\"\",\"\",Table1[[#This Row],[Parts Costs]])","v":""},{"$f":"IFERROR(Table13[[#This Row],[Labour Hours]]*Table13[[#This Row],[Cost  per unit (LH)]],0)","v":0},{"$f":"IFERROR(Table13[[#This Row],[Travel Hours]]*Table13[[#This Row],[Cost  per unit (TH)]],0)","v":0},{"$f":"IFERROR(Table13[[#This Row],[Travel Distance (km)]]*Table13[[#This Row],[Cost  per unit (TD)]],0)","v":0},{"$f":"IF(Table13[[#This Row],[Test and Tag]]=\"Yes\",Table13[[#This Row],[Cost per Unit (TT)]],0)","v":0},{"$f":"SUM(Table13[[#This Row],[Parts Costs]],Table13[[#This Row],[Travel KM Total ]],Table13[[#This Row],[Labour Hours Total ]],Table13[[#This Row],[Service Cost (Test and Tag)]],Table13[[#This Row],[Travel Hours Total]])","v":0},{"$f":"IF(Table13[[#This Row],[Charge type]]<>\"\",Company_Name,\"\")","v":""},{"$f":"IF(Table13[[#This Row],[Charge type]]<>\"\",ENZ_Reference_Num,\"\")","v":""},{"$f":"IF(Table13[[#This Row],[Charge type]]<>\"\",Invoice_date,\"\")","v":""},{"$f":"IF(Table13[[#This Row],[Charge type]]<>\"\",Invoice_Number,\"\")","v":""},85,85,0.64,15,{"$f":"IF(Table13[[#This Row],[TOTAL JOB COST]]>1999.99,\"OVER $2k - contact Enable\",\"\")","v":""}]
[{"$f":"IF(Table1[[#This Row],[Job Ref]]=\"\",\"\",Table1[[#This Row],[Job Ref]])","v":""},{"$f":"IF(Table1[[#This Row],[Job Ref]]=\"\",\"\",VLOOKUP(Table1[[#This Row],[Charge type]],Table3[],2,FALSE))","v":""},{"$f":"IF(Table1[[#This Row],[Job Ref]]=\"\",\"\",Table1[[#This Row],[Clients First Name]])","v":""},{"$f":"IF(Table1[[#This Row],[Job Ref]]=\"\",\"\",Table1[[#This Row],[Clients Surname]])","v":""},{"$f":"IF(Table1[[#This Row],[Job Ref]]=\"\",\"\",Table1[[#This Row],[Clients Address Street No]])","v":""},{"$f":"IF(Table1[[#This Row],[Job Ref]]=\"\",\"\",Table1[[#This Row],[Clients Address Street ]])","v":""},{"$f":"IF(Table1[[#This Row],[Job Ref]]=\"\",\"\",Table1[[#This Row],[Clients Address Town/City]])","v":""},{"$f":"IF(Table1[[#This Row],[Job Ref]]=\"\",\"\",Table1[[#This Row],[Clients Phone Number]])","v":""},{"$f":"IF(Table1[[#This Row],[Job Ref]]=\"\",\"\",Table1[[#This Row],[Date repair/service requested]])","v":""},{"$f":"IF(Table1[[#This Row],[Job Ref]]=\"\",\"\",Table1[[#This Row],[Date  repair/service completed]])","v":""},{"$f":"IF(Table1[[#This Row],[Job Ref]]=\"\",\"\",Table1[[#This Row],[Asset Number]])","v":""},{"$f":"IF(Table1[[#This Row],[Job Ref]]=\"\",\"\",Table1[[#This Row],[Asset Description]])","v":""},{"$f":"IF(Table1[[#This Row],[Job Ref]]=\"\",\"\",Table1[[#This Row],[Manufacturers Serial No.]])","v":""},{"$f":"IF(Table1[[#This Row],[Job Ref]]=\"\",\"\",Table1[[#This Row],[Test and Tag]])","v":""},{"$f":"IF(Table1[[#This Row],[Job Ref]]=\"\",\"\",Table1[[#This Row],[Beyond Economic Repair (BER)]])","v":""},{"$f":"IF(Table1[[#This Row],[Job Ref]]=\"\",\"\",Table1[[#This Row],[BER Comment]])","v":""},{"$f":"IF(Table1[[#This Row],[Job Ref]]=\"\",\"\",Table1[[#This Row],[Repair Description]])","v":""},{"$f":"IF(Table1[[#This Row],[Job Ref]]=\"\",\"\",Table1[[#This Row],[Labour Hours]])","v":""},{"$f":"IF(Table1[[#This Row],[Job Ref]]=\"\",\"\",Table1[[#This Row],[Travel Hours]])","v":""},{"$f":"IF(Table1[[#This Row],[Job Ref]]=\"\",\"\",Table1[[#This Row],[Travel Distance (km)]])","v":""},{"$f":"IF(Table1[[#This Row],[Job Ref]]=\"\",\"\",Table1[[#This Row],[Parts Description]])","v":""},{"$f":"IF(Table1[[#This Row],[Job Ref]]=\"\",\"\",Table1[[#This Row],[Parts Costs]])","v":""},{"$f":"IFERROR(Table13[[#This Row],[Labour Hours]]*Table13[[#This Row],[Cost  per unit (LH)]],0)","v":0},{"$f":"IFERROR(Table13[[#This Row],[Travel Hours]]*Table13[[#This Row],[Cost  per unit (TH)]],0)","v":0},{"$f":"IFERROR(Table13[[#This Row],[Travel Distance (km)]]*Table13[[#This Row],[Cost  per unit (TD)]],0)","v":0},{"$f":"IF(Table13[[#This Row],[Test and Tag]]=\"Yes\",Table13[[#This Row],[Cost per Unit (TT)]],0)","v":0},{"$f":"SUM(Table13[[#This Row],[Parts Costs]],Table13[[#This Row],[Travel KM Total ]],Table13[[#This Row],[Labour Hours Total ]],Table13[[#This Row],[Service Cost (Test and Tag)]],Table13[[#This Row],[Travel Hours Total]])","v":0},{"$f":"IF(Table13[[#This Row],[Charge type]]<>\"\",Company_Name,\"\")","v":""},{"$f":"IF(Table13[[#This Row],[Charge type]]<>\"\",ENZ_Reference_Num,\"\")","v":""},{"$f":"IF(Table13[[#This Row],[Charge type]]<>\"\",Invoice_date,\"\")","v":""},{"$f":"IF(Table13[[#This Row],[Charge type]]<>\"\",Invoice_Number,\"\")","v":""},85,85,0.64,15,{"$f":"IF(Table13[[#This Row],[TOTAL JOB COST]]>1999.99,\"OVER $2k - contact Enable\",\"\")","v":""}]
[{"$f":"IF(Table1[[#This Row],[Job Ref]]=\"\",\"\",Table1[[#This Row],[Job Ref]])","v":""},{"$f":"IF(Table1[[#This Row],[Job Ref]]=\"\",\"\",VLOOKUP(Table1[[#This Row],[Charge type]],Table3[],2,FALSE))","v":""},{"$f":"IF(Table1[[#This Row],[Job Ref]]=\"\",\"\",Table1[[#This Row],[Clients First Name]])","v":""},{"$f":"IF(Table1[[#This Row],[Job Ref]]=\"\",\"\",Table1[[#This Row],[Clients Surname]])","v":""},{"$f":"IF(Table1[[#This Row],[Job Ref]]=\"\",\"\",Table1[[#This Row],[Clients Address Street No]])","v":""},{"$f":"IF(Table1[[#This Row],[Job Ref]]=\"\",\"\",Table1[[#This Row],[Clients Address Street ]])","v":""},{"$f":"IF(Table1[[#This Row],[Job Ref]]=\"\",\"\",Table1[[#This Row],[Clients Address Town/City]])","v":""},{"$f":"IF(Table1[[#This Row],[Job Ref]]=\"\",\"\",Table1[[#This Row],[Clients Phone Number]])","v":""},{"$f":"IF(Table1[[#This Row],[Job Ref]]=\"\",\"\",Table1[[#This Row],[Date repair/service requested]])","v":""},{"$f":"IF(Table1[[#This Row],[Job Ref]]=\"\",\"\",Table1[[#This Row],[Date  repair/service completed]])","v":""},{"$f":"IF(Table1[[#This Row],[Job Ref]]=\"\",\"\",Table1[[#This Row],[Asset Number]])","v":""},{"$f":"IF(Table1[[#This Row],[Job Ref]]=\"\",\"\",Table1[[#This Row],[Asset Description]])","v":""},{"$f":"IF(Table1[[#This Row],[Job Ref]]=\"\",\"\",Table1[[#This Row],[Manufacturers Serial No.]])","v":""},{"$f":"IF(Table1[[#This Row],[Job Ref]]=\"\",\"\",Table1[[#This Row],[Test and Tag]])","v":""},{"$f":"IF(Table1[[#This Row],[Job Ref]]=\"\",\"\",Table1[[#This Row],[Beyond Economic Repair (BER)]])","v":""},{"$f":"IF(Table1[[#This Row],[Job Ref]]=\"\",\"\",Table1[[#This Row],[BER Comment]])","v":""},{"$f":"IF(Table1[[#This Row],[Job Ref]]=\"\",\"\",Table1[[#This Row],[Repair Description]])","v":""},{"$f":"IF(Table1[[#This Row],[Job Ref]]=\"\",\"\",Table1[[#This Row],[Labour Hours]])","v":""},{"$f":"IF(Table1[[#This Row],[Job Ref]]=\"\",\"\",Table1[[#This Row],[Travel Hours]])","v":""},{"$f":"IF(Table1[[#This Row],[Job Ref]]=\"\",\"\",Table1[[#This Row],[Travel Distance (km)]])","v":""},{"$f":"IF(Table1[[#This Row],[Job Ref]]=\"\",\"\",Table1[[#This Row],[Parts Description]])","v":""},{"$f":"IF(Table1[[#This Row],[Job Ref]]=\"\",\"\",Table1[[#This Row],[Parts Costs]])","v":""},{"$f":"IFERROR(Table13[[#This Row],[Labour Hours]]*Table13[[#This Row],[Cost  per unit (LH)]],0)","v":0},{"$f":"IFERROR(Table13[[#This Row],[Travel Hours]]*Table13[[#This Row],[Cost  per unit (TH)]],0)","v":0},{"$f":"IFERROR(Table13[[#This Row],[Travel Distance (km)]]*Table13[[#This Row],[Cost  per unit (TD)]],0)","v":0},{"$f":"IF(Table13[[#This Row],[Test and Tag]]=\"Yes\",Table13[[#This Row],[Cost per Unit (TT)]],0)","v":0},{"$f":"SUM(Table13[[#This Row],[Parts Costs]],Table13[[#This Row],[Travel KM Total ]],Table13[[#This Row],[Labour Hours Total ]],Table13[[#This Row],[Service Cost (Test and Tag)]],Table13[[#This Row],[Travel Hours Total]])","v":0},{"$f":"IF(Table13[[#This Row],[Charge type]]<>\"\",Company_Name,\"\")","v":""},{"$f":"IF(Table13[[#This Row],[Charge type]]<>\"\",ENZ_Reference_Num,\"\")","v":""},{"$f":"IF(Table13[[#This Row],[Charge type]]<>\"\",Invoice_date,\"\")","v":""},{"$f":"IF(Table13[[#This Row],[Charge type]]<>\"\",Invoice_Number,\"\")","v":""},85,85,0.64,15,{"$f":"IF(Table13[[#This Row],[TOTAL JOB COST]]>1999.99,\"OVER $2k - contact Enable\",\"\")","v":""}]
[{"$f":"IF(Table1[[#This Row],[Job Ref]]=\"\",\"\",Table1[[#This Row],[Job Ref]])","v":""},{"$f":"IF(Table1[[#This Row],[Job Ref]]=\"\",\"\",VLOOKUP(Table1[[#This Row],[Charge type]],Table3[],2,FALSE))","v":""},{"$f":"IF(Table1[[#This Row],[Job Ref]]=\"\",\"\",Table1[[#This Row],[Clients First Name]])","v":""},{"$f":"IF(Table1[[#This Row],[Job Ref]]=\"\",\"\",Table1[[#This Row],[Clients Surname]])","v":""},{"$f":"IF(Table1[[#This Row],[Job Ref]]=\"\",\"\",Table1[[#This Row],[Clients Address Street No]])","v":""},{"$f":"IF(Table1[[#This Row],[Job Ref]]=\"\",\"\",Table1[[#This Row],[Clients Address Street ]])","v":""},{"$f":"IF(Table1[[#This Row],[Job Ref]]=\"\",\"\",Table1[[#This Row],[Clients Address Town/City]])","v":""},{"$f":"IF(Table1[[#This Row],[Job Ref]]=\"\",\"\",Table1[[#This Row],[Clients Phone Number]])","v":""},{"$f":"IF(Table1[[#This Row],[Job Ref]]=\"\",\"\",Table1[[#This Row],[Date repair/service requested]])","v":""},{"$f":"IF(Table1[[#This Row],[Job Ref]]=\"\",\"\",Table1[[#This Row],[Date  repair/service completed]])","v":""},{"$f":"IF(Table1[[#This Row],[Job Ref]]=\"\",\"\",Table1[[#This Row],[Asset Number]])","v":""},{"$f":"IF(Table1[[#This Row],[Job Ref]]=\"\",\"\",Table1[[#This Row],[Asset Description]])","v":""},{"$f":"IF(Table1[[#This Row],[Job Ref]]=\"\",\"\",Table1[[#This Row],[Manufacturers Serial No.]])","v":""},{"$f":"IF(Table1[[#This Row],[Job Ref]]=\"\",\"\",Table1[[#This Row],[Test and Tag]])","v":""},{"$f":"IF(Table1[[#This Row],[Job Ref]]=\"\",\"\",Table1[[#This Row],[Beyond Economic Repair (BER)]])","v":""},{"$f":"IF(Table1[[#This Row],[Job Ref]]=\"\",\"\",Table1[[#This Row],[BER Comment]])","v":""},{"$f":"IF(Table1[[#This Row],[Job Ref]]=\"\",\"\",Table1[[#This Row],[Repair Description]])","v":""},{"$f":"IF(Table1[[#This Row],[Job Ref]]=\"\",\"\",Table1[[#This Row],[Labour Hours]])","v":""},{"$f":"IF(Table1[[#This Row],[Job Ref]]=\"\",\"\",Table1[[#This Row],[Travel Hours]])","v":""},{"$f":"IF(Table1[[#This Row],[Job Ref]]=\"\",\"\",Table1[[#This Row],[Travel Distance (km)]])","v":""},{"$f":"IF(Table1[[#This Row],[Job Ref]]=\"\",\"\",Table1[[#This Row],[Parts Description]])","v":""},{"$f":"IF(Table1[[#This Row],[Job Ref]]=\"\",\"\",Table1[[#This Row],[Parts Costs]])","v":""},{"$f":"IFERROR(Table13[[#This Row],[Labour Hours]]*Table13[[#This Row],[Cost  per unit (LH)]],0)","v":0},{"$f":"IFERROR(Table13[[#This Row],[Travel Hours]]*Table13[[#This Row],[Cost  per unit (TH)]],0)","v":0},{"$f":"IFERROR(Table13[[#This Row],[Travel Distance (km)]]*Table13[[#This Row],[Cost  per unit (TD)]],0)","v":0},{"$f":"IF(Table13[[#This Row],[Test and Tag]]=\"Yes\",Table13[[#This Row],[Cost per Unit (TT)]],0)","v":0},{"$f":"SUM(Table13[[#This Row],[Parts Costs]],Table13[[#This Row],[Travel KM Total ]],Table13[[#This Row],[Labour Hours Total ]],Table13[[#This Row],[Service Cost (Test and Tag)]],Table13[[#This Row],[Travel Hours Total]])","v":0},{"$f":"IF(Table13[[#This Row],[Charge type]]<>\"\",Company_Name,\"\")","v":""},{"$f":"IF(Table13[[#This Row],[Charge type]]<>\"\",ENZ_Reference_Num,\"\")","v":""},{"$f":"IF(Table13[[#This Row],[Charge type]]<>\"\",Invoice_date,\"\")","v":""},{"$f":"IF(Table13[[#This Row],[Charge type]]<>\"\",Invoice_Number,\"\")","v":""},85,85,0.64,15,{"$f":"IF(Table13[[#This Row],[TOTAL JOB COST]]>1999.99,\"OVER $2k - contact Enable\",\"\")","v":""}]
[{"$f":"IF(Table1[[#This Row],[Job Ref]]=\"\",\"\",Table1[[#This Row],[Job Ref]])","v":""},{"$f":"IF(Table1[[#This Row],[Job Ref]]=\"\",\"\",VLOOKUP(Table1[[#This Row],[Charge type]],Table3[],2,FALSE))","v":""},{"$f":"IF(Table1[[#This Row],[Job Ref]]=\"\",\"\",Table1[[#This Row],[Clients First Name]])","v":""},{"$f":"IF(Table1[[#This Row],[Job Ref]]=\"\",\"\",Table1[[#This Row],[Clients Surname]])","v":""},{"$f":"IF(Table1[[#This Row],[Job Ref]]=\"\",\"\",Table1[[#This Row],[Clients Address Street No]])","v":""},{"$f":"IF(Table1[[#This Row],[Job Ref]]=\"\",\"\",Table1[[#This Row],[Clients Address Street ]])","v":""},{"$f":"IF(Table1[[#This Row],[Job Ref]]=\"\",\"\",Table1[[#This Row],[Clients Address Town/City]])","v":""},{"$f":"IF(Table1[[#This Row],[Job Ref]]=\"\",\"\",Table1[[#This Row],[Clients Phone Number]])","v":""},{"$f":"IF(Table1[[#This Row],[Job Ref]]=\"\",\"\",Table1[[#This Row],[Date repair/service requested]])","v":""},{"$f":"IF(Table1[[#This Row],[Job Ref]]=\"\",\"\",Table1[[#This Row],[Date  repair/service completed]])","v":""},{"$f":"IF(Table1[[#This Row],[Job Ref]]=\"\",\"\",Table1[[#This Row],[Asset Number]])","v":""},{"$f":"IF(Table1[[#This Row],[Job Ref]]=\"\",\"\",Table1[[#This Row],[Asset Description]])","v":""},{"$f":"IF(Table1[[#This Row],[Job Ref]]=\"\",\"\",Table1[[#This Row],[Manufacturers Serial No.]])","v":""},{"$f":"IF(Table1[[#This Row],[Job Ref]]=\"\",\"\",Table1[[#This Row],[Test and Tag]])","v":""},{"$f":"IF(Table1[[#This Row],[Job Ref]]=\"\",\"\",Table1[[#This Row],[Beyond Economic Repair (BER)]])","v":""},{"$f":"IF(Table1[[#This Row],[Job Ref]]=\"\",\"\",Table1[[#This Row],[BER Comment]])","v":""},{"$f":"IF(Table1[[#This Row],[Job Ref]]=\"\",\"\",Table1[[#This Row],[Repair Description]])","v":""},{"$f":"IF(Table1[[#This Row],[Job Ref]]=\"\",\"\",Table1[[#This Row],[Labour Hours]])","v":""},{"$f":"IF(Table1[[#This Row],[Job Ref]]=\"\",\"\",Table1[[#This Row],[Travel Hours]])","v":""},{"$f":"IF(Table1[[#This Row],[Job Ref]]=\"\",\"\",Table1[[#This Row],[Travel Distance (km)]])","v":""},{"$f":"IF(Table1[[#This Row],[Job Ref]]=\"\",\"\",Table1[[#This Row],[Parts Description]])","v":""},{"$f":"IF(Table1[[#This Row],[Job Ref]]=\"\",\"\",Table1[[#This Row],[Parts Costs]])","v":""},{"$f":"IFERROR(Table13[[#This Row],[Labour Hours]]*Table13[[#This Row],[Cost  per unit (LH)]],0)","v":0},{"$f":"IFERROR(Table13[[#This Row],[Travel Hours]]*Table13[[#This Row],[Cost  per unit (TH)]],0)","v":0},{"$f":"IFERROR(Table13[[#This Row],[Travel Distance (km)]]*Table13[[#This Row],[Cost  per unit (TD)]],0)","v":0},{"$f":"IF(Table13[[#This Row],[Test and Tag]]=\"Yes\",Table13[[#This Row],[Cost per Unit (TT)]],0)","v":0},{"$f":"SUM(Table13[[#This Row],[Parts Costs]],Table13[[#This Row],[Travel KM Total ]],Table13[[#This Row],[Labour Hours Total ]],Table13[[#This Row],[Service Cost (Test and Tag)]],Table13[[#This Row],[Travel Hours Total]])","v":0},{"$f":"IF(Table13[[#This Row],[Charge type]]<>\"\",Company_Name,\"\")","v":""},{"$f":"IF(Table13[[#This Row],[Charge type]]<>\"\",ENZ_Reference_Num,\"\")","v":""},{"$f":"IF(Table13[[#This Row],[Charge type]]<>\"\",Invoice_date,\"\")","v":""},{"$f":"IF(Table13[[#This Row],[Charge type]]<>\"\",Invoice_Number,\"\")","v":""},85,85,0.64,15,{"$f":"IF(Table13[[#This Row],[TOTAL JOB COST]]>1999.99,\"OVER $2k - contact Enable\",\"\")","v":""}]
[{"$f":"IF(Table1[[#This Row],[Job Ref]]=\"\",\"\",Table1[[#This Row],[Job Ref]])","v":""},{"$f":"IF(Table1[[#This Row],[Job Ref]]=\"\",\"\",VLOOKUP(Table1[[#This Row],[Charge type]],Table3[],2,FALSE))","v":""},{"$f":"IF(Table1[[#This Row],[Job Ref]]=\"\",\"\",Table1[[#This Row],[Clients First Name]])","v":""},{"$f":"IF(Table1[[#This Row],[Job Ref]]=\"\",\"\",Table1[[#This Row],[Clients Surname]])","v":""},{"$f":"IF(Table1[[#This Row],[Job Ref]]=\"\",\"\",Table1[[#This Row],[Clients Address Street No]])","v":""},{"$f":"IF(Table1[[#This Row],[Job Ref]]=\"\",\"\",Table1[[#This Row],[Clients Address Street ]])","v":""},{"$f":"IF(Table1[[#This Row],[Job Ref]]=\"\",\"\",Table1[[#This Row],[Clients Address Town/City]])","v":""},{"$f":"IF(Table1[[#This Row],[Job Ref]]=\"\",\"\",Table1[[#This Row],[Clients Phone Number]])","v":""},{"$f":"IF(Table1[[#This Row],[Job Ref]]=\"\",\"\",Table1[[#This Row],[Date repair/service requested]])","v":""},{"$f":"IF(Table1[[#This Row],[Job Ref]]=\"\",\"\",Table1[[#This Row],[Date  repair/service completed]])","v":""},{"$f":"IF(Table1[[#This Row],[Job Ref]]=\"\",\"\",Table1[[#This Row],[Asset Number]])","v":""},{"$f":"IF(Table1[[#This Row],[Job Ref]]=\"\",\"\",Table1[[#This Row],[Asset Description]])","v":""},{"$f":"IF(Table1[[#This Row],[Job Ref]]=\"\",\"\",Table1[[#This Row],[Manufacturers Serial No.]])","v":""},{"$f":"IF(Table1[[#This Row],[Job Ref]]=\"\",\"\",Table1[[#This Row],[Test and Tag]])","v":""},{"$f":"IF(Table1[[#This Row],[Job Ref]]=\"\",\"\",Table1[[#This Row],[Beyond Economic Repair (BER)]])","v":""},{"$f":"IF(Table1[[#This Row],[Job Ref]]=\"\",\"\",Table1[[#This Row],[BER Comment]])","v":""},{"$f":"IF(Table1[[#This Row],[Job Ref]]=\"\",\"\",Table1[[#This Row],[Repair Description]])","v":""},{"$f":"IF(Table1[[#This Row],[Job Ref]]=\"\",\"\",Table1[[#This Row],[Labour Hours]])","v":""},{"$f":"IF(Table1[[#This Row],[Job Ref]]=\"\",\"\",Table1[[#This Row],[Travel Hours]])","v":""},{"$f":"IF(Table1[[#This Row],[Job Ref]]=\"\",\"\",Table1[[#This Row],[Travel Distance (km)]])","v":""},{"$f":"IF(Table1[[#This Row],[Job Ref]]=\"\",\"\",Table1[[#This Row],[Parts Description]])","v":""},{"$f":"IF(Table1[[#This Row],[Job Ref]]=\"\",\"\",Table1[[#This Row],[Parts Costs]])","v":""},{"$f":"IFERROR(Table13[[#This Row],[Labour Hours]]*Table13[[#This Row],[Cost  per unit (LH)]],0)","v":0},{"$f":"IFERROR(Table13[[#This Row],[Travel Hours]]*Table13[[#This Row],[Cost  per unit (TH)]],0)","v":0},{"$f":"IFERROR(Table13[[#This Row],[Travel Distance (km)]]*Table13[[#This Row],[Cost  per unit (TD)]],0)","v":0},{"$f":"IF(Table13[[#This Row],[Test and Tag]]=\"Yes\",Table13[[#This Row],[Cost per Unit (TT)]],0)","v":0},{"$f":"SUM(Table13[[#This Row],[Parts Costs]],Table13[[#This Row],[Travel KM Total ]],Table13[[#This Row],[Labour Hours Total ]],Table13[[#This Row],[Service Cost (Test and Tag)]],Table13[[#This Row],[Travel Hours Total]])","v":0},{"$f":"IF(Table13[[#This Row],[Charge type]]<>\"\",Company_Name,\"\")","v":""},{"$f":"IF(Table13[[#This Row],[Charge type]]<>\"\",ENZ_Reference_Num,\"\")","v":""},{"$f":"IF(Table13[[#This Row],[Charge type]]<>\"\",Invoice_date,\"\")","v":""},{"$f":"IF(Table13[[#This Row],[Charge type]]<>\"\",Invoice_Number,\"\")","v":""},85,85,0.64,15,{"$f":"IF(Table13[[#This Row],[TOTAL JOB COST]]>1999.99,\"OVER $2k - contact Enable\",\"\")","v":""}]
[]
[null,null,null,null,null,null,null,null,null,null,null,null,null,null,null,null,null,null,null,null,null,null,null,null,null,null,null,null,null,null,null,{"$f":"IF(AVERAGE(AF9:AF108)=85,\"OK\",\"ERROR\")","v":"OK"},{"$f":"IF(MAX(AG9:AG108)=85,\"OK\",\"ERROR\")","v":"OK"},{"$f":"IF(MAX(AH9:AH108)=0.64,\"OK\",\"ERROR\")","v":"OK"},{"$f":"IF(MAX(AI9:AI108)=15,\"OK\",\"ERROR\")","v":"OK"}]

{"sheet":"Enter Sheet","index":1,"n_rows":110,"n_cols":39,"rows_kept":110,"cut":false,"hidden":false,"merged":[[0,1,1,3],[2,1,2,2],[3,1,3,2],[2,5,2,6],[5,5,5,6],[3,5,3,6]]}
[null,"DSS Bulk Job Sheet",null,null,null,"Email job Sheet & invoice to: mohrepairs@enable.co.nz"]
[]
["COMPANY NAME",null,null,null,"INVOICE DATE"]
["VENDOR ID",null,null,null,"INVOICE NUMBER"]
[null,"START DATE","END DATE",null,"TOTAL EX GST",{"$f":"+SUM(AA9:AA108)","v":0},null,null,null,{"$f":"IF(COUNTBLANK(AJ9:AJ108)=100, \"\", \"Check Column Y - line item over $1k.\")","v":""}]
["JOB CARD PERIOD",null,null,null,"GST NUMBER"]
[{"$f":"IF(COUNTIF(Table1[Error],\"*equipment*\"),\"Please check error column at the end of the table\",\"\")","v":""}]
["Job Ref","Charge type","Clients First Name","Clients Surname","Clients Address Street No","Clients Address Street ","Clients Address Town/City","Clients Phone Number","Date repair/service requested","Date  repair/service completed","Asset Number","Asset Description","Manufacturers Serial No.","Test and Tag","Beyond Economic Repair (BER)","BER Comment","Repair Description","Labour Hours","Travel Hours","Travel Distance (km)","Parts Description","Parts Costs","Labour Hours Total ","Travel Hours Total","Travel KM Total ","Service Cost (Test and Tag)","TOTAL JOB COST","Company Name","ENZ Reference Num","Invoice date","Invoice Number","Cost  per unit (LH)","Cost  per unit (TH)","Cost  per unit (TD)","Cost per Unit (TT)","Total check","Equipment Type","Limit","Error"]
[null,null,null,null,null,null,null,null,null,null,null,null,null,null,null,null,null,null,null,null,null,null,{"$f":"IFERROR(Table1[[#This Row],[Labour Hours]]*Table1[[#This Row],[Cost  per unit (LH)]],0)","v":0},{"$f":"IFERROR(Table1[[#This Row],[Travel Hours]]*Table1[[#This Row],[Cost  per unit (TH)]],0)","v":0},{"$f":"IFERROR(Table1[[#This Row],[Travel Distance (km)]]*Table1[[#This Row],[Cost  per unit (TD)]],0)","v":0},{"$f":"IF(Table1[[#This Row],[Test and Tag]]=\"Yes\",Table1[[#This Row],[Cost per Unit (TT)]],0)","v":0},{"$f":"SUM(Table1[[#This Row],[Parts Costs]],Table1[[#This Row],[Travel KM Total ]],Table1[[#This Row],[Labour Hours Total ]],Table1[[#This Row],[Service Cost (Test and Tag)]],Table1[[#This Row],[Travel Hours Total]])","v":0},{"$f":"IF(Table1[[#This Row],[Charge type]]<>\"\",Company_Name,\"\")","v":""},{"$f":"IF(Table1[[#This Row],[Charge type]]<>\"\",ENZ_Reference_Num,\"\")","v":""},{"$f":"IF(Table1[[#This Row],[Charge type]]<>\"\",Invoice_date,\"\")","v":""},{"$f":"IF(Table1[[#This Row],[Charge type]]<>\"\",Invoice_Number,\"\")","v":""},{"$f":"85","v":85},{"$f":"85","v":85},{"$f":"0.64","v":0.64},{"$f":"15","v":15},{"$f":"IF(Table1[[#This Row],[TOTAL JOB COST]]>1999.99,\"OVER $2k - contact Enable\",\"\")","v":""},null,{"$f":"IFERROR(VLOOKUP(Table1[[#This Row],[Equipment Type]],'Ref sheet'!I$2:J$7,2,FALSE),\"\")","v":""},{"$f":"IF(AND(Table1[[#This Row],[Equipment Type]]= \"\", Table1[[#This Row],[TOTAL JOB COST]] <> 0), \"Please set equipment type\", IF(Table1[[#This Row],[Limit]]<Table1[[#This Row],[TOTAL JOB COST]],\"Over equipment type limit\",\"\"))","v":""}]
[null,null,null,null,null,null,null,null,null,null,null,null,null,null,null,null,null,null,null,null,null,null,{"$f":"IFERROR(Table1[[#This Row],[Labour Hours]]*Table1[[#This Row],[Cost  per unit (LH)]],0)","v":0},{"$f":"IFERROR(Table1[[#This Row],[Travel Hours]]*Table1[[#This Row],[Cost  per unit (TH)]],0)","v":0},{"$f":"IFERROR(Table1[[#This Row],[Travel Distance (km)]]*Table1[[#This Row],[Cost  per unit (TD)]],0)","v":0},{"$f":"IF(Table1[[#This Row],[Test and Tag]]=\"Yes\",Table1[[#This Row],[Cost per Unit (TT)]],0)","v":0},{"$f":"SUM(Table1[[#This Row],[Parts Costs]],Table1[[#This Row],[Travel KM Total ]],Table1[[#This Row],[Labour Hours Total ]],Table1[[#This Row],[Service Cost (Test and Tag)]],Table1[[#This Row],[Travel Hours Total]])","v":0},{"$f":"IF(Table1[[#This Row],[Charge type]]<>\"\",Company_Name,\"\")","v":""},{"$f":"IF(Table1[[#This Row],[Charge type]]<>\"\",ENZ_Reference_Num,\"\")","v":""},{"$f":"IF(Table1[[#This Row],[Charge type]]<>\"\",Invoice_date,\"\")","v":""},{"$f":"IF(Table1[[#This Row],[Charge type]]<>\"\",Invoice_Number,\"\")","v":""},{"$f":"85","v":85},{"$f":"85","v":85},0.64,{"$f":"15","v":15},{"$f":"IF(Table1[[#This Row],[TOTAL JOB COST]]>1999.99,\"OVER $2k - contact Enable\",\"\")","v":""},null,{"$f":"IFERROR(VLOOKUP(Table1[[#This Row],[Equipment Type]],'Ref sheet'!I$2:J$7,2,FALSE),\"\")","v":""},{"$f":"IF(AND(Table1[[#This Row],[Equipment Type]]= \"\", Table1[[#This Row],[TOTAL JOB COST]] <> 0), \"Please set equipment type\", IF(Table1[[#This Row],[Limit]]<Table1[[#This Row],[TOTAL JOB COST]],\"Over equipment type limit\",\"\"))","v":""}]
[null,null,null,null,null,null,null,null,null,null,null,null,null,null,null,null,null,null,null,null,null,null,{"$f":"IFERROR(Table1[[#This Row],[Labour Hours]]*Table1[[#This Row],[Cost  per unit (LH)]],0)","v":0},{"$f":"IFERROR(Table1[[#This Row],[Travel Hours]]*Table1[[#This Row],[Cost  per unit (TH)]],0)","v":0},{"$f":"IFERROR(Table1[[#This Row],[Travel Distance (km)]]*Table1[[#This Row],[Cost  per unit (TD)]],0)","v":0},{"$f":"IF(Table1[[#This Row],[Test and Tag]]=\"Yes\",Table1[[#This Row],[Cost per Unit (TT)]],0)","v":0},{"$f":"SUM(Table1[[#This Row],[Parts Costs]],Table1[[#This Row],[Travel KM Total ]],Table1[[#This Row],[Labour Hours Total ]],Table1[[#This Row],[Service Cost (Test and Tag)]],Table1[[#This Row],[Travel Hours Total]])","v":0},{"$f":"IF(Table1[[#This Row],[Charge type]]<>\"\",Company_Name,\"\")","v":""},{"$f":"IF(Table1[[#This Row],[Charge type]]<>\"\",ENZ_Reference_Num,\"\")","v":""},{"$f":"IF(Table1[[#This Row],[Charge type]]<>\"\",Invoice_date,\"\")","v":""},{"$f":"IF(Table1[[#This Row],[Charge type]]<>\"\",Invoice_Number,\"\")","v":""},{"$f":"85","v":85},{"$f":"85","v":85},0.64,{"$f":"15","v":15},{"$f":"IF(Table1[[#This Row],[TOTAL JOB COST]]>1999.99,\"OVER $2k - contact Enable\",\"\")","v":""},null,{"$f":"IFERROR(VLOOKUP(Table1[[#This Row],[Equipment Type]],'Ref sheet'!I$2:J$7,2,FALSE),\"\")","v":""},{"$f":"IF(AND(Table1[[#This Row],[Equipment Type]]= \"\", Table1[[#This Row],[TOTAL JOB COST]] <> 0), \"Please set equipment type\", IF(Table1[[#This Row],[Limit]]<Table1[[#This Row],[TOTAL JOB COST]],\"Over equipment type limit\",\"\"))","v":""}]
[null,null,null,null,null,null,null,null,null,null,null,null,null,null,null,null,null,null,null,null,null,null,{"$f":"IFERROR(Table1[[#This Row],[Labour Hours]]*Table1[[#This Row],[Cost  per unit (LH)]],0)","v":0},{"$f":"IFERROR(Table1[[#This Row],[Travel Hours]]*Table1[[#This Row],[Cost  per unit (TH)]],0)","v":0},{"$f":"IFERROR(Table1[[#This Row],[Travel Distance (km)]]*Table1[[#This Row],[Cost  per unit (TD)]],0)","v":0},{"$f":"IF(Table1[[#This Row],[Test and Tag]]=\"Yes\",Table1[[#This Row],[Cost per Unit (TT)]],0)","v":0},{"$f":"SUM(Table1[[#This Row],[Parts Costs]],Table1[[#This Row],[Travel KM Total ]],Table1[[#This Row],[Labour Hours Total ]],Table1[[#This Row],[Service Cost (Test and Tag)]],Table1[[#This Row],[Travel Hours Total]])","v":0},{"$f":"IF(Table1[[#This Row],[Charge type]]<>\"\",Company_Name,\"\")","v":""},{"$f":"IF(Table1[[#This Row],[Charge type]]<>\"\",ENZ_Reference_Num,\"\")","v":""},{"$f":"IF(Table1[[#This Row],[Charge type]]<>\"\",Invoice_date,\"\")","v":""},{"$f":"IF(Table1[[#This Row],[Charge type]]<>\"\",Invoice_Number,\"\")","v":""},{"$f":"85","v":85},{"$f":"85","v":85},0.64,{"$f":"15","v":15},{"$f":"IF(Table1[[#This Row],[TOTAL JOB COST]]>1999.99,\"OVER $2k - contact Enable\",\"\")","v":""},null,{"$f":"IFERROR(VLOOKUP(Table1[[#This Row],[Equipment Type]],'Ref sheet'!I$2:J$7,2,FALSE),\"\")","v":""},{"$f":"IF(AND(Table1[[#This Row],[Equipment Type]]= \"\", Table1[[#This Row],[TOTAL JOB COST]] <> 0), \"Please set equipment type\", IF(Table1[[#This Row],[Limit]]<Table1[[#This Row],[TOTAL JOB COST]],\"Over equipment type limit\",\"\"))","v":""}]
[null,null,null,null,null,null,null,null,null,null,null,null,null,null,null,null,null,null,null,null,null,null,{"$f":"IFERROR(Table1[[#This Row],[Labour Hours]]*Table1[[#This Row],[Cost  per unit (LH)]],0)","v":0},{"$f":"IFERROR(Table1[[#This Row],[Travel Hours]]*Table1[[#This Row],[Cost  per unit (TH)]],0)","v":0},{"$f":"IFERROR(Table1[[#This Row],[Travel Distance (km)]]*Table1[[#This Row],[Cost  per unit (TD)]],0)","v":0},{"$f":"IF(Table1[[#This Row],[Test and Tag]]=\"Yes\",Table1[[#This Row],[Cost per Unit (TT)]],0)","v":0},{"$f":"SUM(Table1[[#This Row],[Parts Costs]],Table1[[#This Row],[Travel KM Total ]],Table1[[#This Row],[Labour Hours Total ]],Table1[[#This Row],[Service Cost (Test and Tag)]],Table1[[#This Row],[Travel Hours Total]])","v":0},{"$f":"IF(Table1[[#This Row],[Charge type]]<>\"\",Company_Name,\"\")","v":""},{"$f":"IF(Table1[[#This Row],[Charge type]]<>\"\",ENZ_Reference_Num,\"\")","v":""},{"$f":"IF(Table1[[#This Row],[Charge type]]<>\"\",Invoice_date,\"\")","v":""},{"$f":"IF(Table1[[#This Row],[Charge type]]<>\"\",Invoice_Number,\"\")","v":""},{"$f":"85","v":85},{"$f":"85","v":85},0.64,{"$f":"15","v":15},{"$f":"IF(Table1[[#This Row],[TOTAL JOB COST]]>1999.99,\"OVER $2k - contact Enable\",\"\")","v":""},null,{"$f":"IFERROR(VLOOKUP(Table1[[#This Row],[Equipment Type]],'Ref sheet'!I$2:J$7,2,FALSE),\"\")","v":""},{"$f":"IF(AND(Table1[[#This Row],[Equipment Type]]= \"\", Table1[[#This Row],[TOTAL JOB COST]] <> 0), \"Please set equipment type\", IF(Table1[[#This Row],[Limit]]<Table1[[#This Row],[TOTAL JOB COST]],\"Over equipment type limit\",\"\"))","v":""}]
[null,null,null,null,null,null,null,null,null,null,null,null,null,null,null,null,null,null,null,null,null,null,{"$f":"IFERROR(Table1[[#This Row],[Labour Hours]]*Table1[[#This Row],[Cost  per unit (LH)]],0)","v":0},{"$f":"IFERROR(Table1[[#This Row],[Travel Hours]]*Table1[[#This Row],[Cost  per unit (TH)]],0)","v":0},{"$f":"IFERROR(Table1[[#This Row],[Travel Distance (km)]]*Table1[[#This Row],[Cost  per unit (TD)]],0)","v":0},{"$f":"IF(Table1[[#This Row],[Test and Tag]]=\"Yes\",Table1[[#This Row],[Cost per Unit (TT)]],0)","v":0},{"$f":"SUM(Table1[[#This Row],[Parts Costs]],Table1[[#This Row],[Travel KM Total ]],Table1[[#This Row],[Labour Hours Total ]],Table1[[#This Row],[Service Cost (Test and Tag)]],Table1[[#This Row],[Travel Hours Total]])","v":0},{"$f":"IF(Table1[[#This Row],[Charge type]]<>\"\",Company_Name,\"\")","v":""},{"$f":"IF(Table1[[#This Row],[Charge type]]<>\"\",ENZ_Reference_Num,\"\")","v":""},{"$f":"IF(Table1[[#This Row],[Charge type]]<>\"\",Invoice_date,\"\")","v":""},{"$f":"IF(Table1[[#This Row],[Charge type]]<>\"\",Invoice_Number,\"\")","v":""},{"$f":"85","v":85},{"$f":"85","v":85},0.64,{"$f":"15","v":15},{"$f":"IF(Table1[[#This Row],[TOTAL JOB COST]]>1999.99,\"OVER $2k - contact Enable\",\"\")","v":""},null,{"$f":"IFERROR(VLOOKUP(Table1[[#This Row],[Equipment Type]],'Ref sheet'!I$2:J$7,2,FALSE),\"\")","v":""},{"$f":"IF(AND(Table1[[#This Row],[Equipment Type]]= \"\", Table1[[#This Row],[TOTAL JOB COST]] <> 0), \"Please set equipment type\", IF(Table1[[#This Row],[Limit]]<Table1[[#This Row],[TOTAL JOB COST]],\"Over equipment type limit\",\"\"))","v":""}]
[null,null,null,null,null,null,null,null,null,null,null,null,null,null,null,null,null,null,null,null,null,null,{"$f":"IFERROR(Table1[[#This Row],[Labour Hours]]*Table1[[#This Row],[Cost  per unit (LH)]],0)","v":0},{"$f":"IFERROR(Table1[[#This Row],[Travel Hours]]*Table1[[#This Row],[Cost  per unit (TH)]],0)","v":0},{"$f":"IFERROR(Table1[[#This Row],[Travel Distance (km)]]*Table1[[#This Row],[Cost  per unit (TD)]],0)","v":0},{"$f":"IF(Table1[[#This Row],[Test and Tag]]=\"Yes\",Table1[[#This Row],[Cost per Unit (TT)]],0)","v":0},{"$f":"SUM(Table1[[#This Row],[Parts Costs]],Table1[[#This Row],[Travel KM Total ]],Table1[[#This Row],[Labour Hours Total ]],Table1[[#This Row],[Service Cost (Test and Tag)]],Table1[[#This Row],[Travel Hours Total]])","v":0},{"$f":"IF(Table1[[#This Row],[Charge type]]<>\"\",Company_Name,\"\")","v":""},{"$f":"IF(Table1[[#This Row],[Charge type]]<>\"\",ENZ_Reference_Num,\"\")","v":""},{"$f":"IF(Table1[[#This Row],[Charge type]]<>\"\",Invoice_date,\"\")","v":""},{"$f":"IF(Table1[[#This Row],[Charge type]]<>\"\",Invoice_Number,\"\")","v":""},{"$f":"85","v":85},{"$f":"85","v":85},0.64,{"$f":"15","v":15},{"$f":"IF(Table1[[#This Row],[TOTAL JOB COST]]>1999.99,\"OVER $2k - contact Enable\",\"\")","v":""},null,{"$f":"IFERROR(VLOOKUP(Table1[[#This Row],[Equipment Type]],'Ref sheet'!I$2:J$7,2,FALSE),\"\")","v":""},{"$f":"IF(AND(Table1[[#This Row],[Equipment Type]]= \"\", Table1[[#This Row],[TOTAL JOB COST]] <> 0), \"Please set equipment type\", IF(Table1[[#This Row],[Limit]]<Table1[[#This Row],[TOTAL JOB COST]],\"Over equipment type limit\",\"\"))","v":""}]
[null,null,null,null,null,null,null,null,null,null,null,null,null,null,null,null,null,null,null,null,null,null,{"$f":"IFERROR(Table1[[#This Row],[Labour Hours]]*Table1[[#This Row],[Cost  per unit (LH)]],0)","v":0},{"$f":"IFERROR(Table1[[#This Row],[Travel Hours]]*Table1[[#This Row],[Cost  per unit (TH)]],0)","v":0},{"$f":"IFERROR(Table1[[#This Row],[Travel Distance (km)]]*Table1[[#This Row],[Cost  per unit (TD)]],0)","v":0},{"$f":"IF(Table1[[#This Row],[Test and Tag]]=\"Yes\",Table1[[#This Row],[Cost per Unit (TT)]],0)","v":0},{"$f":"SUM(Table1[[#This Row],[Parts Costs]],Table1[[#This Row],[Travel KM Total ]],Table1[[#This Row],[Labour Hours Total ]],Table1[[#This Row],[Service Cost (Test and Tag)]],Table1[[#This Row],[Travel Hours Total]])","v":0},{"$f":"IF(Table1[[#This Row],[Charge type]]<>\"\",Company_Name,\"\")","v":""},{"$f":"IF(Table1[[#This Row],[Charge type]]<>\"\",ENZ_Reference_Num,\"\")","v":""},{"$f":"IF(Table1[[#This Row],[Charge type]]<>\"\",Invoice_date,\"\")","v":""},{"$f":"IF(Table1[[#This Row],[Charge type]]<>\"\",Invoice_Number,\"\")","v":""},{"$f":"85","v":85},{"$f":"85","v":85},0.64,{"$f":"15","v":15},{"$f":"IF(Table1[[#This Row],[TOTAL JOB COST]]>1999.99,\"OVER $2k - contact Enable\",\"\")","v":""},null,{"$f":"IFERROR(VLOOKUP(Table1[[#This Row],[Equipment Type]],'Ref sheet'!I$2:J$7,2,FALSE),\"\")","v":""},{"$f":"IF(AND(Table1[[#This Row],[Equipment Type]]= \"\", Table1[[#This Row],[TOTAL JOB COST]] <> 0), \"Please set equipment type\", IF(Table1[[#This Row],[Limit]]<Table1[[#This Row],[TOTAL JOB COST]],\"Over equipment type limit\",\"\"))","v":""}]
[null,null,null,null,null,null,null,null,null,null,null,null,null,null,null,null,null,null,null,null,null,null,{"$f":"IFERROR(Table1[[#This Row],[Labour Hours]]*Table1[[#This Row],[Cost  per unit (LH)]],0)","v":0},{"$f":"IFERROR(Table1[[#This Row],[Travel Hours]]*Table1[[#This Row],[Cost  per unit (TH)]],0)","v":0},{"$f":"IFERROR(Table1[[#This Row],[Travel Distance (km)]]*Table1[[#This Row],[Cost  per unit (TD)]],0)","v":0},{"$f":"IF(Table1[[#This Row],[Test and Tag]]=\"Yes\",Table1[[#This Row],[Cost per Unit (TT)]],0)","v":0},{"$f":"SUM(Table1[[#This Row],[Parts Costs]],Table1[[#This Row],[Travel KM Total ]],Table1[[#This Row],[Labour Hours Total ]],Table1[[#This Row],[Service Cost (Test and Tag)]],Table1[[#This Row],[Travel Hours Total]])","v":0},{"$f":"IF(Table1[[#This Row],[Charge type]]<>\"\",Company_Name,\"\")","v":""},{"$f":"IF(Table1[[#This Row],[Charge type]]<>\"\",ENZ_Reference_Num,\"\")","v":""},{"$f":"IF(Table1[[#This Row],[Charge type]]<>\"\",Invoice_date,\"\")","v":""},{"$f":"IF(Table1[[#This Row],[Charge type]]<>\"\",Invoice_Number,\"\")","v":""},{"$f":"85","v":85},{"$f":"85","v":85},0.64,{"$f":"15","v":15},{"$f":"IF(Table1[[#This Row],[TOTAL JOB COST]]>1999.99,\"OVER $2k - contact Enable\",\"\")","v":""},null,{"$f":"IFERROR(VLOOKUP(Table1[[#This Row],[Equipment Type]],'Ref sheet'!I$2:J$7,2,FALSE),\"\")","v":""},{"$f":"IF(AND(Table1[[#This Row],[Equipment Type]]= \"\", Table1[[#This Row],[TOTAL JOB COST]] <> 0), \"Please set equipment type\", IF(Table1[[#This Row],[Limit]]<Table1[[#This Row],[TOTAL JOB COST]],\"Over equipment type limit\",\"\"))","v":""}]
[null,null,null,null,null,null,null,null,null,null,null,null,null,null,null,null,null,null,null,null,null,null,{"$f":"IFERROR(Table1[[#This Row],[Labour Hours]]*Table1[[#This Row],[Cost  per unit (LH)]],0)","v":0},{"$f":"IFERROR(Table1[[#This Row],[Travel Hours]]*Table1[[#This Row],[Cost  per unit (TH)]],0)","v":0},{"$f":"IFERROR(Table1[[#This Row],[Travel Distance (km)]]*Table1[[#This Row],[Cost  per unit (TD)]],0)","v":0},{"$f":"IF(Table1[[#This Row],[Test and Tag]]=\"Yes\",Table1[[#This Row],[Cost per Unit (TT)]],0)","v":0},{"$f":"SUM(Table1[[#This Row],[Parts Costs]],Table1[[#This Row],[Travel KM Total ]],Table1[[#This Row],[Labour Hours Total ]],Table1[[#This Row],[Service Cost (Test and Tag)]],Table1[[#This Row],[Travel Hours Total]])","v":0},{"$f":"IF(Table1[[#This Row],[Charge type]]<>\"\",Company_Name,\"\")","v":""},{"$f":"IF(Table1[[#This Row],[Charge type]]<>\"\",ENZ_Reference_Num,\"\")","v":""},{"$f":"IF(Table1[[#This Row],[Charge type]]<>\"\",Invoice_date,\"\")","v":""},{"$f":"IF(Table1[[#This Row],[Charge type]]<>\"\",Invoice_Number,\"\")","v":""},{"$f":"85","v":85},{"$f":"85","v":85},0.64,{"$f":"15","v":15},{"$f":"IF(Table1[[#This Row],[TOTAL JOB COST]]>1999.99,\"OVER $2k - contact Enable\",\"\")","v":""},null,{"$f":"IFERROR(VLOOKUP(Table1[[#This Row],[Equipment Type]],'Ref sheet'!I$2:J$7,2,FALSE),\"\")","v":""},{"$f":"IF(AND(Table1[[#This Row],[Equipment Type]]= \"\", Table1[[#This Row],[TOTAL JOB COST]] <> 0), \"Please set equipment type\", IF(Table1[[#This Row],[Limit]]<Table1[[#This Row],[TOTAL JOB COST]],\"Over equipment type limit\",\"\"))","v":""}]
[null,null,null,null,null,null,null,null,null,null,null,null,null,null,null,null,null,null,null,null,null,null,{"$f":"IFERROR(Table1[[#This Row],[Labour Hours]]*Table1[[#This Row],[Cost  per unit (LH)]],0)","v":0},{"$f":"IFERROR(Table1[[#This Row],[Travel Hours]]*Table1[[#This Row],[Cost  per unit (TH)]],0)","v":0},{"$f":"IFERROR(Table1[[#This Row],[Travel Distance (km)]]*Table1[[#This Row],[Cost  per unit (TD)]],0)","v":0},{"$f":"IF(Table1[[#This Row],[Test and Tag]]=\"Yes\",Table1[[#This Row],[Cost per Unit (TT)]],0)","v":0},{"$f":"SUM(Table1[[#This Row],[Parts Costs]],Table1[[#This Row],[Travel KM Total ]],Table1[[#This Row],[Labour Hours Total ]],Table1[[#This Row],[Service Cost (Test and Tag)]],Table1[[#This Row],[Travel Hours Total]])","v":0},{"$f":"IF(Table1[[#This Row],[Charge type]]<>\"\",Company_Name,\"\")","v":""},{"$f":"IF(Table1[[#This Row],[Charge type]]<>\"\",ENZ_Reference_Num,\"\")","v":""},{"$f":"IF(Table1[[#This Row],[Charge type]]<>\"\",Invoice_date,\"\")","v":""},{"$f":"IF(Table1[[#This Row],[Charge type]]<>\"\",Invoice_Number,\"\")","v":""},{"$f":"85","v":85},{"$f":"85","v":85},0.64,{"$f":"15","v":15},{"$f":"IF(Table1[[#This Row],[TOTAL JOB COST]]>1999.99,\"OVER $2k - contact Enable\",\"\")","v":""},null,{"$f":"IFERROR(VLOOKUP(Table1[[#This Row],[Equipment Type]],'Ref sheet'!I$2:J$7,2,FALSE),\"\")","v":""},{"$f":"IF(AND(Table1[[#This Row],[Equipment Type]]= \"\", Table1[[#This Row],[TOTAL JOB COST]] <> 0), \"Please set equipment type\", IF(Table1[[#This Row],[Limit]]<Table1[[#This Row],[TOTAL JOB COST]],\"Over equipment type limit\",\"\"))","v":""}]
[null,null,null,null,null,null,null,null,null,null,null,null,null,null,null,null,null,null,null,null,null,null,{"$f":"IFERROR(Table1[[#This Row],[Labour Hours]]*Table1[[#This Row],[Cost  per unit (LH)]],0)","v":0},{"$f":"IFERROR(Table1[[#This Row],[Travel Hours]]*Table1[[#This Row],[Cost  per unit (TH)]],0)","v":0},{"$f":"IFERROR(Table1[[#This Row],[Travel Distance (km)]]*Table1[[#This Row],[Cost  per unit (TD)]],0)","v":0},{"$f":"IF(Table1[[#This Row],[Test and Tag]]=\"Yes\",Table1[[#This Row],[Cost per Unit (TT)]],0)","v":0},{"$f":"SUM(Table1[[#This Row],[Parts Costs]],Table1[[#This Row],[Travel KM Total ]],Table1[[#This Row],[Labour Hours Total ]],Table1[[#This Row],[Service Cost (Test and Tag)]],Table1[[#This Row],[Travel Hours Total]])","v":0},{"$f":"IF(Table1[[#This Row],[Charge type]]<>\"\",Company_Name,\"\")","v":""},{"$f":"IF(Table1[[#This Row],[Charge type]]<>\"\",ENZ_Reference_Num,\"\")","v":""},{"$f":"IF(Table1[[#This Row],[Charge type]]<>\"\",Invoice_date,\"\")","v":""},{"$f":"IF(Table1[[#This Row],[Charge type]]<>\"\",Invoice_Number,\"\")","v":""},{"$f":"85","v":85},{"$f":"85","v":85},0.64,{"$f":"15","v":15},{"$f":"IF(Table1[[#This Row],[TOTAL JOB COST]]>1999.99,\"OVER $2k - contact Enable\",\"\")","v":""},null,{"$f":"IFERROR(VLOOKUP(Table1[[#This Row],[Equipment Type]],'Ref sheet'!I$2:J$7,2,FALSE),\"\")","v":""},{"$f":"IF(AND(Table1[[#This Row],[Equipment Type]]= \"\", Table1[[#This Row],[TOTAL JOB COST]] <> 0), \"Please set equipment type\", IF(Table1[[#This Row],[Limit]]<Table1[[#This Row],[TOTAL JOB COST]],\"Over equipment type limit\",\"\"))","v":""}]
[null,null,null,null,null,null,null,null,null,null,null,null,null,null,null,null,null,null,null,null,null,null,{"$f":"IFERROR(Table1[[#This Row],[Labour Hours]]*Table1[[#This Row],[Cost  per unit (LH)]],0)","v":0},{"$f":"IFERROR(Table1[[#This Row],[Travel Hours]]*Table1[[#This Row],[Cost  per unit (TH)]],0)","v":0},{"$f":"IFERROR(Table1[[#This Row],[Travel Distance (km)]]*Table1[[#This Row],[Cost  per unit (TD)]],0)","v":0},{"$f":"IF(Table1[[#This Row],[Test and Tag]]=\"Yes\",Table1[[#This Row],[Cost per Unit (TT)]],0)","v":0},{"$f":"SUM(Table1[[#This Row],[Parts Costs]],Table1[[#This Row],[Travel KM Total ]],Table1[[#This Row],[Labour Hours Total ]],Table1[[#This Row],[Service Cost (Test and Tag)]],Table1[[#This Row],[Travel Hours Total]])","v":0},{"$f":"IF(Table1[[#This Row],[Charge type]]<>\"\",Company_Name,\"\")","v":""},{"$f":"IF(Table1[[#This Row],[Charge type]]<>\"\",ENZ_Reference_Num,\"\")","v":""},{"$f":"IF(Table1[[#This Row],[Charge type]]<>\"\",Invoice_date,\"\")","v":""},{"$f":"IF(Table1[[#This Row],[Charge type]]<>\"\",Invoice_Number,\"\")","v":""},{"$f":"85","v":85},{"$f":"85","v":85},0.64,{"$f":"15","v":15},{"$f":"IF(Table1[[#This Row],[TOTAL JOB COST]]>1999.99,\"OVER $2k - contact Enable\",\"\")","v":""},null,{"$f":"IFERROR(VLOOKUP(Table1[[#This Row],[Equipment Type]],'Ref sheet'!I$2:J$7,2,FALSE),\"\")","v":""},{"$f":"IF(AND(Table1[[#This Row],[Equipment Type]]= \"\", Table1[[#This Row],[TOTAL JOB COST]] <> 0), \"Please set equipment type\", IF(Table1[[#This Row],[Limit]]<Table1[[#This Row],[TOTAL JOB COST]],\"Over equipment type limit\",\"\"))","v":""}]
[null,null,null,null,null,null,null,null,null,null,null,null,null,null,null,null,null,null,null,null,null,null,{"$f":"IFERROR(Table1[[#This Row],[Labour Hours]]*Table1[[#This Row],[Cost  per unit (LH)]],0)","v":0},{"$f":"IFERROR(Table1[[#This Row],[Travel Hours]]*Table1[[#This Row],[Cost  per unit (TH)]],0)","v":0},{"$f":"IFERROR(Table1[[#This Row],[Travel Distance (km)]]*Table1[[#This Row],[Cost  per unit (TD)]],0)","v":0},{"$f":"IF(Table1[[#This Row],[Test and Tag]]=\"Yes\",Table1[[#This Row],[Cost per Unit (TT)]],0)","v":0},{"$f":"SUM(Table1[[#This Row],[Parts Costs]],Table1[[#This Row],[Travel KM Total ]],Table1[[#This Row],[Labour Hours Total ]],Table1[[#This Row],[Service Cost (Test and Tag)]],Table1[[#This Row],[Travel Hours Total]])","v":0},{"$f":"IF(Table1[[#This Row],[Charge type]]<>\"\",Company_Name,\"\")","v":""},{"$f":"IF(Table1[[#This Row],[Charge type]]<>\"\",ENZ_Reference_Num,\"\")","v":""},{"$f":"IF(Table1[[#This Row],[Charge type]]<>\"\",Invoice_date,\"\")","v":""},{"$f":"IF(Table1[[#This Row],[Charge type]]<>\"\",Invoice_Number,\"\")","v":""},{"$f":"85","v":85},{"$f":"85","v":85},0.64,{"$f":"15","v":15},{"$f":"IF(Table1[[#This Row],[TOTAL JOB COST]]>1999.99,\"OVER $2k - contact Enable\",\"\")","v":""},null,{"$f":"IFERROR(VLOOKUP(Table1[[#This Row],[Equipment Type]],'Ref sheet'!I$2:J$7,2,FALSE),\"\")","v":""},{"$f":"IF(AND(Table1[[#This Row],[Equipment Type]]= \"\", Table1[[#This Row],[TOTAL JOB COST]] <> 0), \"Please set equipment type\", IF(Table1[[#This Row],[Limit]]<Table1[[#This Row],[TOTAL JOB COST]],\"Over equipment type limit\",\"\"))","v":""}]
[null,null,null,null,null,null,null,null,null,null,null,null,null,null,null,null,null,null,null,null,null,null,{"$f":"IFERROR(Table1[[#This Row],[Labour Hours]]*Table1[[#This Row],[Cost  per unit (LH)]],0)","v":0},{"$f":"IFERROR(Table1[[#This Row],[Travel Hours]]*Table1[[#This Row],[Cost  per unit (TH)]],0)","v":0},{"$f":"IFERROR(Table1[[#This Row],[Travel Distance (km)]]*Table1[[#This Row],[Cost  per unit (TD)]],0)","v":0},{"$f":"IF(Table1[[#This Row],[Test and Tag]]=\"Yes\",Table1[[#This Row],[Cost per Unit (TT)]],0)","v":0},{"$f":"SUM(Table1[[#This Row],[Parts Costs]],Table1[[#This Row],[Travel KM Total ]],Table1[[#This Row],[Labour Hours Total ]],Table1[[#This Row],[Service Cost (Test and Tag)]],Table1[[#This Row],[Travel Hours Total]])","v":0},{"$f":"IF(Table1[[#This Row],[Charge type]]<>\"\",Company_Name,\"\")","v":""},{"$f":"IF(Table1[[#This Row],[Charge type]]<>\"\",ENZ_Reference_Num,\"\")","v":""},{"$f":"IF(Table1[[#This Row],[Charge type]]<>\"\",Invoice_date,\"\")","v":""},{"$f":"IF(Table1[[#This Row],[Charge type]]<>\"\",Invoice_Number,\"\")","v":""},{"$f":"85","v":85},{"$f":"85","v":85},0.64,{"$f":"15","v":15},{"$f":"IF(Table1[[#This Row],[TOTAL JOB COST]]>1999.99,\"OVER $2k - contact Enable\",\"\")","v":""},null,{"$f":"IFERROR(VLOOKUP(Table1[[#This Row],[Equipment Type]],'Ref sheet'!I$2:J$7,2,FALSE),\"\")","v":""},{"$f":"IF(AND(Table1[[#This Row],[Equipment Type]]= \"\", Table1[[#This Row],[TOTAL JOB COST]] <> 0), \"Please set equipment type\", IF(Table1[[#This Row],[Limit]]<Table1[[#This Row],[TOTAL JOB COST]],\"Over equipment type limit\",\"\"))","v":""}]
[null,null,null,null,null,null,null,null,null,null,null,null,null,null,null,null,null,null,null,null,null,null,{"$f":"IFERROR(Table1[[#This Row],[Labour Hours]]*Table1[[#This Row],[Cost  per unit (LH)]],0)","v":0},{"$f":"IFERROR(Table1[[#This Row],[Travel Hours]]*Table1[[#This Row],[Cost  per unit (TH)]],0)","v":0},{"$f":"IFERROR(Table1[[#This Row],[Travel Distance (km)]]*Table1[[#This Row],[Cost  per unit (TD)]],0)","v":0},{"$f":"IF(Table1[[#This Row],[Test and Tag]]=\"Yes\",Table1[[#This Row],[Cost per Unit (TT)]],0)","v":0},{"$f":"SUM(Table1[[#This Row],[Parts Costs]],Table1[[#This Row],[Travel KM Total ]],Table1[[#This Row],[Labour Hours Total ]],Table1[[#This Row],[Service Cost (Test and Tag)]],Table1[[#This Row],[Travel Hours Total]])","v":0},{"$f":"IF(Table1[[#This Row],[Charge type]]<>\"\",Company_Name,\"\")","v":""},{"$f":"IF(Table1[[#This Row],[Charge type]]<>\"\",ENZ_Reference_Num,\"\")","v":""},{"$f":"IF(Table1[[#This Row],[Charge type]]<>\"\",Invoice_date,\"\")","v":""},{"$f":"IF(Table1[[#This Row],[Charge type]]<>\"\",Invoice_Number,\"\")","v":""},{"$f":"85","v":85},{"$f":"85","v":85},0.64,{"$f":"15","v":15},{"$f":"IF(Table1[[#This Row],[TOTAL JOB COST]]>1999.99,\"OVER $2k - contact Enable\",\"\")","v":""},null,{"$f":"IFERROR(VLOOKUP(Table1[[#This Row],[Equipment Type]],'Ref sheet'!I$2:J$7,2,FALSE),\"\")","v":""},{"$f":"IF(AND(Table1[[#This Row],[Equipment Type]]= \"\", Table1[[#This Row],[TOTAL JOB COST]] <> 0), \"Please set equipment type\", IF(Table1[[#This Row],[Limit]]<Table1[[#This Row],[TOTAL JOB COST]],\"Over equipment type limit\",\"\"))","v":""}]
[null,null,null,null,null,null,null,null,null,null,null,null,null,null,null,null,null,null,null,null,null,null,{"$f":"IFERROR(Table1[[#This Row],[Labour Hours]]*Table1[[#This Row],[Cost  per unit (LH)]],0)","v":0},{"$f":"IFERROR(Table1[[#This Row],[Travel Hours]]*Table1[[#This Row],[Cost  per unit (TH)]],0)","v":0},{"$f":"IFERROR(Table1[[#This Row],[Travel Distance (km)]]*Table1[[#This Row],[Cost  per unit (TD)]],0)","v":0},{"$f":"IF(Table1[[#This Row],[Test and Tag]]=\"Yes\",Table1[[#This Row],[Cost per Unit (TT)]],0)","v":0},{"$f":"SUM(Table1[[#This Row],[Parts Costs]],Table1[[#This Row],[Travel KM Total ]],Table1[[#This Row],[Labour Hours Total ]],Table1[[#This Row],[Service Cost (Test and Tag)]],Table1[[#This Row],[Travel Hours Total]])","v":0},{"$f":"IF(Table1[[#This Row],[Charge type]]<>\"\",Company_Name,\"\")","v":""},{"$f":"IF(Table1[[#This Row],[Charge type]]<>\"\",ENZ_Reference_Num,\"\")","v":""},{"$f":"IF(Table1[[#This Row],[Charge type]]<>\"\",Invoice_date,\"\")","v":""},{"$f":"IF(Table1[[#This Row],[Charge type]]<>\"\",Invoice_Number,\"\")","v":""},{"$f":"85","v":85},{"$f":"85","v":85},0.64,{"$f":"15","v":15},{"$f":"IF(Table1[[#This Row],[TOTAL JOB COST]]>1999.99,\"OVER $2k - contact Enable\",\"\")","v":""},null,{"$f":"IFERROR(VLOOKUP(Table1[[#This Row],[Equipment Type]],'Ref sheet'!I$2:J$7,2,FALSE),\"\")","v":""},{"$f":"IF(AND(Table1[[#This Row],[Equipment Type]]= \"\", Table1[[#This Row],[TOTAL JOB COST]] <> 0), \"Please set equipment type\", IF(Table1[[#This Row],[Limit]]<Table1[[#This Row],[TOTAL JOB COST]],\"Over equipment type limit\",\"\"))","v":""}]
[null,null,null,null,null,null,null,null,null,null,null,null,null,null,null,null,null,null,null,null,null,null,{"$f":"IFERROR(Table1[[#This Row],[Labour Hours]]*Table1[[#This Row],[Cost  per unit (LH)]],0)","v":0},{"$f":"IFERROR(Table1[[#This Row],[Travel Hours]]*Table1[[#This Row],[Cost  per unit (TH)]],0)","v":0},{"$f":"IFERROR(Table1[[#This Row],[Travel Distance (km)]]*Table1[[#This Row],[Cost  per unit (TD)]],0)","v":0},{"$f":"IF(Table1[[#This Row],[Test and Tag]]=\"Yes\",Table1[[#This Row],[Cost per Unit (TT)]],0)","v":0},{"$f":"SUM(Table1[[#This Row],[Parts Costs]],Table1[[#This Row],[Travel KM Total ]],Table1[[#This Row],[Labour Hours Total ]],Table1[[#This Row],[Service Cost (Test and Tag)]],Table1[[#This Row],[Travel Hours Total]])","v":0},{"$f":"IF(Table1[[#This Row],[Charge type]]<>\"\",Company_Name,\"\")","v":""},{"$f":"IF(Table1[[#This Row],[Charge type]]<>\"\",ENZ_Reference_Num,\"\")","v":""},{"$f":"IF(Table1[[#This Row],[Charge type]]<>\"\",Invoice_date,\"\")","v":""},{"$f":"IF(Table1[[#This Row],[Charge type]]<>\"\",Invoice_Number,\"\")","v":""},{"$f":"85","v":85},{"$f":"85","v":85},0.64,{"$f":"15","v":15},{"$f":"IF(Table1[[#This Row],[TOTAL JOB COST]]>1999.99,\"OVER $2k - contact Enable\",\"\")","v":""},null,{"$f":"IFERROR(VLOOKUP(Table1[[#This Row],[Equipment Type]],'Ref sheet'!I$2:J$7,2,FALSE),\"\")","v":""},{"$f":"IF(AND(Table1[[#This Row],[Equipment Type]]= \"\", Table1[[#This Row],[TOTAL JOB COST]] <> 0), \"Please set equipment type\", IF(Table1[[#This Row],[Limit]]<Table1[[#This Row],[TOTAL JOB COST]],\"Over equipment type limit\",\"\"))","v":""}]
[null,null,null,null,null,null,null,null,null,null,null,null,null,null,null,null,null,null,null,null,null,null,{"$f":"IFERROR(Table1[[#This Row],[Labour Hours]]*Table1[[#This Row],[Cost  per unit (LH)]],0)","v":0},{"$f":"IFERROR(Table1[[#This Row],[Travel Hours]]*Table1[[#This Row],[Cost  per unit (TH)]],0)","v":0},{"$f":"IFERROR(Table1[[#This Row],[Travel Distance (km)]]*Table1[[#This Row],[Cost  per unit (TD)]],0)","v":0},{"$f":"IF(Table1[[#This Row],[Test and Tag]]=\"Yes\",Table1[[#This Row],[Cost per Unit (TT)]],0)","v":0},{"$f":"SUM(Table1[[#This Row],[Parts Costs]],Table1[[#This Row],[Travel KM Total ]],Table1[[#This Row],[Labour Hours Total ]],Table1[[#This Row],[Service Cost (Test and Tag)]],Table1[[#This Row],[Travel Hours Total]])","v":0},{"$f":"IF(Table1[[#This Row],[Charge type]]<>\"\",Company_Name,\"\")","v":""},{"$f":"IF(Table1[[#This Row],[Charge type]]<>\"\",ENZ_Reference_Num,\"\")","v":""},{"$f":"IF(Table1[[#This Row],[Charge type]]<>\"\",Invoice_date,\"\")","v":""},{"$f":"IF(Table1[[#This Row],[Charge type]]<>\"\",Invoice_Number,\"\")","v":""},{"$f":"85","v":85},{"$f":"85","v":85},0.64,{"$f":"15","v":15},{"$f":"IF(Table1[[#This Row],[TOTAL JOB COST]]>1999.99,\"OVER $2k - contact Enable\",\"\")","v":""},null,{"$f":"IFERROR(VLOOKUP(Table1[[#This Row],[Equipment Type]],'Ref sheet'!I$2:J$7,2,FALSE),\"\")","v":""},{"$f":"IF(AND(Table1[[#This Row],[Equipment Type]]= \"\", Table1[[#This Row],[TOTAL JOB COST]] <> 0), \"Please set equipment type\", IF(Table1[[#This Row],[Limit]]<Table1[[#This Row],[TOTAL JOB COST]],\"Over equipment type limit\",\"\"))","v":""}]
[null,null,null,null,null,null,null,null,null,null,null,null,null,null,null,null,null,null,null,null,null,null,{"$f":"IFERROR(Table1[[#This Row],[Labour Hours]]*Table1[[#This Row],[Cost  per unit (LH)]],0)","v":0},{"$f":"IFERROR(Table1[[#This Row],[Travel Hours]]*Table1[[#This Row],[Cost  per unit (TH)]],0)","v":0},{"$f":"IFERROR(Table1[[#This Row],[Travel Distance (km)]]*Table1[[#This Row],[Cost  per unit (TD)]],0)","v":0},{"$f":"IF(Table1[[#This Row],[Test and Tag]]=\"Yes\",Table1[[#This Row],[Cost per Unit (TT)]],0)","v":0},{"$f":"SUM(Table1[[#This Row],[Parts Costs]],Table1[[#This Row],[Travel KM Total ]],Table1[[#This Row],[Labour Hours Total ]],Table1[[#This Row],[Service Cost (Test and Tag)]],Table1[[#This Row],[Travel Hours Total]])","v":0},{"$f":"IF(Table1[[#This Row],[Charge type]]<>\"\",Company_Name,\"\")","v":""},{"$f":"IF(Table1[[#This Row],[Charge type]]<>\"\",ENZ_Reference_Num,\"\")","v":""},{"$f":"IF(Table1[[#This Row],[Charge type]]<>\"\",Invoice_date,\"\")","v":""},{"$f":"IF(Table1[[#This Row],[Charge type]]<>\"\",Invoice_Number,\"\")","v":""},{"$f":"85","v":85},{"$f":"85","v":85},0.64,{"$f":"15","v":15},{"$f":"IF(Table1[[#This Row],[TOTAL JOB COST]]>1999.99,\"OVER $2k - contact Enable\",\"\")","v":""},null,{"$f":"IFERROR(VLOOKUP(Table1[[#This Row],[Equipment Type]],'Ref sheet'!I$2:J$7,2,FALSE),\"\")","v":""},{"$f":"IF(AND(Table1[[#This Row],[Equipment Type]]= \"\", Table1[[#This Row],[TOTAL JOB COST]] <> 0), \"Please set equipment type\", IF(Table1[[#This Row],[Limit]]<Table1[[#This Row],[TOTAL JOB COST]],\"Over equipment type limit\",\"\"))","v":""}]
[null,null,null,null,null,null,null,null,null,null,null,null,null,null,null,null,null,null,null,null,null,null,{"$f":"IFERROR(Table1[[#This Row],[Labour Hours]]*Table1[[#This Row],[Cost  per unit (LH)]],0)","v":0},{"$f":"IFERROR(Table1[[#This Row],[Travel Hours]]*Table1[[#This Row],[Cost  per unit (TH)]],0)","v":0},{"$f":"IFERROR(Table1[[#This Row],[Travel Distance (km)]]*Table1[[#This Row],[Cost  per unit (TD)]],0)","v":0},{"$f":"IF(Table1[[#This Row],[Test and Tag]]=\"Yes\",Table1[[#This Row],[Cost per Unit (TT)]],0)","v":0},{"$f":"SUM(Table1[[#This Row],[Parts Costs]],Table1[[#This Row],[Travel KM Total ]],Table1[[#This Row],[Labour Hours Total ]],Table1[[#This Row],[Service Cost (Test and Tag)]],Table1[[#This Row],[Travel Hours Total]])","v":0},{"$f":"IF(Table1[[#This Row],[Charge type]]<>\"\",Company_Name,\"\")","v":""},{"$f":"IF(Table1[[#This Row],[Charge type]]<>\"\",ENZ_Reference_Num,\"\")","v":""},{"$f":"IF(Table1[[#This Row],[Charge type]]<>\"\",Invoice_date,\"\")","v":""},{"$f":"IF(Table1[[#This Row],[Charge type]]<>\"\",Invoice_Number,\"\")","v":""},{"$f":"85","v":85},{"$f":"85","v":85},0.64,{"$f":"15","v":15},{"$f":"IF(Table1[[#This Row],[TOTAL JOB COST]]>1999.99,\"OVER $2k - contact Enable\",\"\")","v":""},null,{"$f":"IFERROR(VLOOKUP(Table1[[#This Row],[Equipment Type]],'Ref sheet'!I$2:J$7,2,FALSE),\"\")","v":""},{"$f":"IF(AND(Table1[[#This Row],[Equipment Type]]= \"\", Table1[[#This Row],[TOTAL JOB COST]] <> 0), \"Please set equipment type\", IF(Table1[[#This Row],[Limit]]<Table1[[#This Row],[TOTAL JOB COST]],\"Over equipment type limit\",\"\"))","v":""}]
[null,null,null,null,null,null,null,null,null,null,null,null,null,null,null,null,null,null,null,null,null,null,{"$f":"IFERROR(Table1[[#This Row],[Labour Hours]]*Table1[[#This Row],[Cost  per unit (LH)]],0)","v":0},{"$f":"IFERROR(Table1[[#This Row],[Travel Hours]]*Table1[[#This Row],[Cost  per unit (TH)]],0)","v":0},{"$f":"IFERROR(Table1[[#This Row],[Travel Distance (km)]]*Table1[[#This Row],[Cost  per unit (TD)]],0)","v":0},{"$f":"IF(Table1[[#This Row],[Test and Tag]]=\"Yes\",Table1[[#This Row],[Cost per Unit (TT)]],0)","v":0},{"$f":"SUM(Table1[[#This Row],[Parts Costs]],Table1[[#This Row],[Travel KM Total ]],Table1[[#This Row],[Labour Hours Total ]],Table1[[#This Row],[Service Cost (Test and Tag)]],Table1[[#This Row],[Travel Hours Total]])","v":0},{"$f":"IF(Table1[[#This Row],[Charge type]]<>\"\",Company_Name,\"\")","v":""},{"$f":"IF(Table1[[#This Row],[Charge type]]<>\"\",ENZ_Reference_Num,\"\")","v":""},{"$f":"IF(Table1[[#This Row],[Charge type]]<>\"\",Invoice_date,\"\")","v":""},{"$f":"IF(Table1[[#This Row],[Charge type]]<>\"\",Invoice_Number,\"\")","v":""},{"$f":"85","v":85},{"$f":"85","v":85},0.64,{"$f":"15","v":15},{"$f":"IF(Table1[[#This Row],[TOTAL JOB COST]]>1999.99,\"OVER $2k - contact Enable\",\"\")","v":""},null,{"$f":"IFERROR(VLOOKUP(Table1[[#This Row],[Equipment Type]],'Ref sheet'!I$2:J$7,2,FALSE),\"\")","v":""},{"$f":"IF(AND(Table1[[#This Row],[Equipment Type]]= \"\", Table1[[#This Row],[TOTAL JOB COST]] <> 0), \"Please set equipment type\", IF(Table1[[#This Row],[Limit]]<Table1[[#This Row],[TOTAL JOB COST]],\"Over equipment type limit\",\"\"))","v":""}]
[null,null,null,null,null,null,null,null,null,null,null,null,null,null,null,null,null,null,null,null,null,null,{"$f":"IFERROR(Table1[[#This Row],[Labour Hours]]*Table1[[#This Row],[Cost  per unit (LH)]],0)","v":0},{"$f":"IFERROR(Table1[[#This Row],[Travel Hours]]*Table1[[#This Row],[Cost  per unit (TH)]],0)","v":0},{"$f":"IFERROR(Table1[[#This Row],[Travel Distance (km)]]*Table1[[#This Row],[Cost  per unit (TD)]],0)","v":0},{"$f":"IF(Table1[[#This Row],[Test and Tag]]=\"Yes\",Table1[[#This Row],[Cost per Unit (TT)]],0)","v":0},{"$f":"SUM(Table1[[#This Row],[Parts Costs]],Table1[[#This Row],[Travel KM Total ]],Table1[[#This Row],[Labour Hours Total ]],Table1[[#This Row],[Service Cost (Test and Tag)]],Table1[[#This Row],[Travel Hours Total]])","v":0},{"$f":"IF(Table1[[#This Row],[Charge type]]<>\"\",Company_Name,\"\")","v":""},{"$f":"IF(Table1[[#This Row],[Charge type]]<>\"\",ENZ_Reference_Num,\"\")","v":""},{"$f":"IF(Table1[[#This Row],[Charge type]]<>\"\",Invoice_date,\"\")","v":""},{"$f":"IF(Table1[[#This Row],[Charge type]]<>\"\",Invoice_Number,\"\")","v":""},{"$f":"85","v":85},{"$f":"85","v":85},0.64,{"$f":"15","v":15},{"$f":"IF(Table1[[#This Row],[TOTAL JOB COST]]>1999.99,\"OVER $2k - contact Enable\",\"\")","v":""},null,{"$f":"IFERROR(VLOOKUP(Table1[[#This Row],[Equipment Type]],'Ref sheet'!I$2:J$7,2,FALSE),\"\")","v":""},{"$f":"IF(AND(Table1[[#This Row],[Equipment Type]]= \"\", Table1[[#This Row],[TOTAL JOB COST]] <> 0), \"Please set equipment type\", IF(Table1[[#This Row],[Limit]]<Table1[[#This Row],[TOTAL JOB COST]],\"Over equipment type limit\",\"\"))","v":""}]
[null,null,null,null,null,null,null,null,null,null,null,null,null,null,null,null,null,null,null,null,null,null,{"$f":"IFERROR(Table1[[#This Row],[Labour Hours]]*Table1[[#This Row],[Cost  per unit (LH)]],0)","v":0},{"$f":"IFERROR(Table1[[#This Row],[Travel Hours]]*Table1[[#This Row],[Cost  per unit (TH)]],0)","v":0},{"$f":"IFERROR(Table1[[#This Row],[Travel Distance (km)]]*Table1[[#This Row],[Cost  per unit (TD)]],0)","v":0},{"$f":"IF(Table1[[#This Row],[Test and Tag]]=\"Yes\",Table1[[#This Row],[Cost per Unit (TT)]],0)","v":0},{"$f":"SUM(Table1[[#This Row],[Parts Costs]],Table1[[#This Row],[Travel KM Total ]],Table1[[#This Row],[Labour Hours Total ]],Table1[[#This Row],[Service Cost (Test and Tag)]],Table1[[#This Row],[Travel Hours Total]])","v":0},{"$f":"IF(Table1[[#This Row],[Charge type]]<>\"\",Company_Name,\"\")","v":""},{"$f":"IF(Table1[[#This Row],[Charge type]]<>\"\",ENZ_Reference_Num,\"\")","v":""},{"$f":"IF(Table1[[#This Row],[Charge type]]<>\"\",Invoice_date,\"\")","v":""},{"$f":"IF(Table1[[#This Row],[Charge type]]<>\"\",Invoice_Number,\"\")","v":""},{"$f":"85","v":85},{"$f":"85","v":85},0.64,{"$f":"15","v":15},{"$f":"IF(Table1[[#This Row],[TOTAL JOB COST]]>1999.99,\"OVER $2k - contact Enable\",\"\")","v":""},null,{"$f":"IFERROR(VLOOKUP(Table1[[#This Row],[Equipment Type]],'Ref sheet'!I$2:J$7,2,FALSE),\"\")","v":""},{"$f":"IF(AND(Table1[[#This Row],[Equipment Type]]= \"\", Table1[[#This Row],[TOTAL JOB COST]] <> 0), \"Please set equipment type\", IF(Table1[[#This Row],[Limit]]<Table1[[#This Row],[TOTAL JOB COST]],\"Over equipment type limit\",\"\"))","v":""}]
[null,null,null,null,null,null,null,null,null,null,null,null,null,null,null,null,null,null,null,null,null,null,{"$f":"IFERROR(Table1[[#This Row],[Labour Hours]]*Table1[[#This Row],[Cost  per unit (LH)]],0)","v":0},{"$f":"IFERROR(Table1[[#This Row],[Travel Hours]]*Table1[[#This Row],[Cost  per unit (TH)]],0)","v":0},{"$f":"IFERROR(Table1[[#This Row],[Travel Distance (km)]]*Table1[[#This Row],[Cost  per unit (TD)]],0)","v":0},{"$f":"IF(Table1[[#This Row],[Test and Tag]]=\"Yes\",Table1[[#This Row],[Cost per Unit (TT)]],0)","v":0},{"$f":"SUM(Table1[[#This Row],[Parts Costs]],Table1[[#This Row],[Travel KM Total ]],Table1[[#This Row],[Labour Hours Total ]],Table1[[#This Row],[Service Cost (Test and Tag)]],Table1[[#This Row],[Travel Hours Total]])","v":0},{"$f":"IF(Table1[[#This Row],[Charge type]]<>\"\",Company_Name,\"\")","v":""},{"$f":"IF(Table1[[#This Row],[Charge type]]<>\"\",ENZ_Reference_Num,\"\")","v":""},{"$f":"IF(Table1[[#This Row],[Charge type]]<>\"\",Invoice_date,\"\")","v":""},{"$f":"IF(Table1[[#This Row],[Charge type]]<>\"\",Invoice_Number,\"\")","v":""},{"$f":"85","v":85},{"$f":"85","v":85},0.64,{"$f":"15","v":15},{"$f":"IF(Table1[[#This Row],[TOTAL JOB COST]]>1999.99,\"OVER $2k - contact Enable\",\"\")","v":""},null,{"$f":"IFERROR(VLOOKUP(Table1[[#This Row],[Equipment Type]],'Ref sheet'!I$2:J$7,2,FALSE),\"\")","v":""},{"$f":"IF(AND(Table1[[#This Row],[Equipment Type]]= \"\", Table1[[#This Row],[TOTAL JOB COST]] <> 0), \"Please set equipment type\", IF(Table1[[#This Row],[Limit]]<Table1[[#This Row],[TOTAL JOB COST]],\"Over equipment type limit\",\"\"))","v":""}]
[null,null,null,null,null,null,null,null,null,null,null,null,null,null,null,null,null,null,null,null,null,null,{"$f":"IFERROR(Table1[[#This Row],[Labour Hours]]*Table1[[#This Row],[Cost  per unit (LH)]],0)","v":0},{"$f":"IFERROR(Table1[[#This Row],[Travel Hours]]*Table1[[#This Row],[Cost  per unit (TH)]],0)","v":0},{"$f":"IFERROR(Table1[[#This Row],[Travel Distance (km)]]*Table1[[#This Row],[Cost  per unit (TD)]],0)","v":0},{"$f":"IF(Table1[[#This Row],[Test and Tag]]=\"Yes\",Table1[[#This Row],[Cost per Unit (TT)]],0)","v":0},{"$f":"SUM(Table1[[#This Row],[Parts Costs]],Table1[[#This Row],[Travel KM Total ]],Table1[[#This Row],[Labour Hours Total ]],Table1[[#This Row],[Service Cost (Test and Tag)]],Table1[[#This Row],[Travel Hours Total]])","v":0},{"$f":"IF(Table1[[#This Row],[Charge type]]<>\"\",Company_Name,\"\")","v":""},{"$f":"IF(Table1[[#This Row],[Charge type]]<>\"\",ENZ_Reference_Num,\"\")","v":""},{"$f":"IF(Table1[[#This Row],[Charge type]]<>\"\",Invoice_date,\"\")","v":""},{"$f":"IF(Table1[[#This Row],[Charge type]]<>\"\",Invoice_Number,\"\")","v":""},{"$f":"85","v":85},{"$f":"85","v":85},0.64,{"$f":"15","v":15},{"$f":"IF(Table1[[#This Row],[TOTAL JOB COST]]>1999.99,\"OVER $2k - contact Enable\",\"\")","v":""},null,{"$f":"IFERROR(VLOOKUP(Table1[[#This Row],[Equipment Type]],'Ref sheet'!I$2:J$7,2,FALSE),\"\")","v":""},{"$f":"IF(AND(Table1[[#This Row],[Equipment Type]]= \"\", Table1[[#This Row],[TOTAL JOB COST]] <> 0), \"Please set equipment type\", IF(Table1[[#This Row],[Limit]]<Table1[[#This Row],[TOTAL JOB COST]],\"Over equipment type limit\",\"\"))","v":""}]
[null,null,null,null,null,null,null,null,null,null,null,null,null,null,null,null,null,null,null,null,null,null,{"$f":"IFERROR(Table1[[#This Row],[Labour Hours]]*Table1[[#This Row],[Cost  per unit (LH)]],0)","v":0},{"$f":"IFERROR(Table1[[#This Row],[Travel Hours]]*Table1[[#This Row],[Cost  per unit (TH)]],0)","v":0},{"$f":"IFERROR(Table1[[#This Row],[Travel Distance (km)]]*Table1[[#This Row],[Cost  per unit (TD)]],0)","v":0},{"$f":"IF(Table1[[#This Row],[Test and Tag]]=\"Yes\",Table1[[#This Row],[Cost per Unit (TT)]],0)","v":0},{"$f":"SUM(Table1[[#This Row],[Parts Costs]],Table1[[#This Row],[Travel KM Total ]],Table1[[#This Row],[Labour Hours Total ]],Table1[[#This Row],[Service Cost (Test and Tag)]],Table1[[#This Row],[Travel Hours Total]])","v":0},{"$f":"IF(Table1[[#This Row],[Charge type]]<>\"\",Company_Name,\"\")","v":""},{"$f":"IF(Table1[[#This Row],[Charge type]]<>\"\",ENZ_Reference_Num,\"\")","v":""},{"$f":"IF(Table1[[#This Row],[Charge type]]<>\"\",Invoice_date,\"\")","v":""},{"$f":"IF(Table1[[#This Row],[Charge type]]<>\"\",Invoice_Number,\"\")","v":""},{"$f":"85","v":85},{"$f":"85","v":85},0.64,{"$f":"15","v":15},{"$f":"IF(Table1[[#This Row],[TOTAL JOB COST]]>1999.99,\"OVER $2k - contact Enable\",\"\")","v":""},null,{"$f":"IFERROR(VLOOKUP(Table1[[#This Row],[Equipment Type]],'Ref sheet'!I$2:J$7,2,FALSE),\"\")","v":""},{"$f":"IF(AND(Table1[[#This Row],[Equipment Type]]= \"\", Table1[[#This Row],[TOTAL JOB COST]] <> 0), \"Please set equipment type\", IF(Table1[[#This Row],[Limit]]<Table1[[#This Row],[TOTAL JOB COST]],\"Over equipment type limit\",\"\"))","v":""}]
[null,null,null,null,null,null,null,null,null,null,null,null,null,null,null,null,null,null,null,null,null,null,{"$f":"IFERROR(Table1[[#This Row],[Labour Hours]]*Table1[[#This Row],[Cost  per unit (LH)]],0)","v":0},{"$f":"IFERROR(Table1[[#This Row],[Travel Hours]]*Table1[[#This Row],[Cost  per unit (TH)]],0)","v":0},{"$f":"IFERROR(Table1[[#This Row],[Travel Distance (km)]]*Table1[[#This Row],[Cost  per unit (TD)]],0)","v":0},{"$f":"IF(Table1[[#This Row],[Test and Tag]]=\"Yes\",Table1[[#This Row],[Cost per Unit (TT)]],0)","v":0},{"$f":"SUM(Table1[[#This Row],[Parts Costs]],Table1[[#This Row],[Travel KM Total ]],Table1[[#This Row],[Labour Hours Total ]],Table1[[#This Row],[Service Cost (Test and Tag)]],Table1[[#This Row],[Travel Hours Total]])","v":0},{"$f":"IF(Table1[[#This Row],[Charge type]]<>\"\",Company_Name,\"\")","v":""},{"$f":"IF(Table1[[#This Row],[Charge type]]<>\"\",ENZ_Reference_Num,\"\")","v":""},{"$f":"IF(Table1[[#This Row],[Charge type]]<>\"\",Invoice_date,\"\")","v":""},{"$f":"IF(Table1[[#This Row],[Charge type]]<>\"\",Invoice_Number,\"\")","v":""},{"$f":"85","v":85},{"$f":"85","v":85},0.64,{"$f":"15","v":15},{"$f":"IF(Table1[[#This Row],[TOTAL JOB COST]]>1999.99,\"OVER $2k - contact Enable\",\"\")","v":""},null,{"$f":"IFERROR(VLOOKUP(Table1[[#This Row],[Equipment Type]],'Ref sheet'!I$2:J$7,2,FALSE),\"\")","v":""},{"$f":"IF(AND(Table1[[#This Row],[Equipment Type]]= \"\", Table1[[#This Row],[TOTAL JOB COST]] <> 0), \"Please set equipment type\", IF(Table1[[#This Row],[Limit]]<Table1[[#This Row],[TOTAL JOB COST]],\"Over equipment type limit\",\"\"))","v":""}]
[null,null,null,null,null,null,null,null,null,null,null,null,null,null,null,null,null,null,null,null,null,null,{"$f":"IFERROR(Table1[[#This Row],[Labour Hours]]*Table1[[#This Row],[Cost  per unit (LH)]],0)","v":0},{"$f":"IFERROR(Table1[[#This Row],[Travel Hours]]*Table1[[#This Row],[Cost  per unit (TH)]],0)","v":0},{"$f":"IFERROR(Table1[[#This Row],[Travel Distance (km)]]*Table1[[#This Row],[Cost  per unit (TD)]],0)","v":0},{"$f":"IF(Table1[[#This Row],[Test and Tag]]=\"Yes\",Table1[[#This Row],[Cost per Unit (TT)]],0)","v":0},{"$f":"SUM(Table1[[#This Row],[Parts Costs]],Table1[[#This Row],[Travel KM Total ]],Table1[[#This Row],[Labour Hours Total ]],Table1[[#This Row],[Service Cost (Test and Tag)]],Table1[[#This Row],[Travel Hours Total]])","v":0},{"$f":"IF(Table1[[#This Row],[Charge type]]<>\"\",Company_Name,\"\")","v":""},{"$f":"IF(Table1[[#This Row],[Charge type]]<>\"\",ENZ_Reference_Num,\"\")","v":""},{"$f":"IF(Table1[[#This Row],[Charge type]]<>\"\",Invoice_date,\"\")","v":""},{"$f":"IF(Table1[[#This Row],[Charge type]]<>\"\",Invoice_Number,\"\")","v":""},{"$f":"85","v":85},{"$f":"85","v":85},0.64,{"$f":"15","v":15},{"$f":"IF(Table1[[#This Row],[TOTAL JOB COST]]>1999.99,\"OVER $2k - contact Enable\",\"\")","v":""},null,{"$f":"IFERROR(VLOOKUP(Table1[[#This Row],[Equipment Type]],'Ref sheet'!I$2:J$7,2,FALSE),\"\")","v":""},{"$f":"IF(AND(Table1[[#This Row],[Equipment Type]]= \"\", Table1[[#This Row],[TOTAL JOB COST]] <> 0), \"Please set equipment type\", IF(Table1[[#This Row],[Limit]]<Table1[[#This Row],[TOTAL JOB COST]],\"Over equipment type limit\",\"\"))","v":""}]
[null,null,null,null,null,null,null,null,null,null,null,null,null,null,null,null,null,null,null,null,null,null,{"$f":"IFERROR(Table1[[#This Row],[Labour Hours]]*Table1[[#This Row],[Cost  per unit (LH)]],0)","v":0},{"$f":"IFERROR(Table1[[#This Row],[Travel Hours]]*Table1[[#This Row],[Cost  per unit (TH)]],0)","v":0},{"$f":"IFERROR(Table1[[#This Row],[Travel Distance (km)]]*Table1[[#This Row],[Cost  per unit (TD)]],0)","v":0},{"$f":"IF(Table1[[#This Row],[Test and Tag]]=\"Yes\",Table1[[#This Row],[Cost per Unit (TT)]],0)","v":0},{"$f":"SUM(Table1[[#This Row],[Parts Costs]],Table1[[#This Row],[Travel KM Total ]],Table1[[#This Row],[Labour Hours Total ]],Table1[[#This Row],[Service Cost (Test and Tag)]],Table1[[#This Row],[Travel Hours Total]])","v":0},{"$f":"IF(Table1[[#This Row],[Charge type]]<>\"\",Company_Name,\"\")","v":""},{"$f":"IF(Table1[[#This Row],[Charge type]]<>\"\",ENZ_Reference_Num,\"\")","v":""},{"$f":"IF(Table1[[#This Row],[Charge type]]<>\"\",Invoice_date,\"\")","v":""},{"$f":"IF(Table1[[#This Row],[Charge type]]<>\"\",Invoice_Number,\"\")","v":""},{"$f":"85","v":85},{"$f":"85","v":85},0.64,{"$f":"15","v":15},{"$f":"IF(Table1[[#This Row],[TOTAL JOB COST]]>1999.99,\"OVER $2k - contact Enable\",\"\")","v":""},null,{"$f":"IFERROR(VLOOKUP(Table1[[#This Row],[Equipment Type]],'Ref sheet'!I$2:J$7,2,FALSE),\"\")","v":""},{"$f":"IF(AND(Table1[[#This Row],[Equipment Type]]= \"\", Table1[[#This Row],[TOTAL JOB COST]] <> 0), \"Please set equipment type\", IF(Table1[[#This Row],[Limit]]<Table1[[#This Row],[TOTAL JOB COST]],\"Over equipment type limit\",\"\"))","v":""}]
[null,null,null,null,null,null,null,null,null,null,null,null,null,null,null,null,null,null,null,null,null,null,{"$f":"IFERROR(Table1[[#This Row],[Labour Hours]]*Table1[[#This Row],[Cost  per unit (LH)]],0)","v":0},{"$f":"IFERROR(Table1[[#This Row],[Travel Hours]]*Table1[[#This Row],[Cost  per unit (TH)]],0)","v":0},{"$f":"IFERROR(Table1[[#This Row],[Travel Distance (km)]]*Table1[[#This Row],[Cost  per unit (TD)]],0)","v":0},{"$f":"IF(Table1[[#This Row],[Test and Tag]]=\"Yes\",Table1[[#This Row],[Cost per Unit (TT)]],0)","v":0},{"$f":"SUM(Table1[[#This Row],[Parts Costs]],Table1[[#This Row],[Travel KM Total ]],Table1[[#This Row],[Labour Hours Total ]],Table1[[#This Row],[Service Cost (Test and Tag)]],Table1[[#This Row],[Travel Hours Total]])","v":0},{"$f":"IF(Table1[[#This Row],[Charge type]]<>\"\",Company_Name,\"\")","v":""},{"$f":"IF(Table1[[#This Row],[Charge type]]<>\"\",ENZ_Reference_Num,\"\")","v":""},{"$f":"IF(Table1[[#This Row],[Charge type]]<>\"\",Invoice_date,\"\")","v":""},{"$f":"IF(Table1[[#This Row],[Charge type]]<>\"\",Invoice_Number,\"\")","v":""},{"$f":"85","v":85},{"$f":"85","v":85},0.64,{"$f":"15","v":15},{"$f":"IF(Table1[[#This Row],[TOTAL JOB COST]]>1999.99,\"OVER $2k - contact Enable\",\"\")","v":""},null,{"$f":"IFERROR(VLOOKUP(Table1[[#This Row],[Equipment Type]],'Ref sheet'!I$2:J$7,2,FALSE),\"\")","v":""},{"$f":"IF(AND(Table1[[#This Row],[Equipment Type]]= \"\", Table1[[#This Row],[TOTAL JOB COST]] <> 0), \"Please set equipment type\", IF(Table1[[#This Row],[Limit]]<Table1[[#This Row],[TOTAL JOB COST]],\"Over equipment type limit\",\"\"))","v":""}]
[null,null,null,null,null,null,null,null,null,null,null,null,null,null,null,null,null,null,null,null,null,null,{"$f":"IFERROR(Table1[[#This Row],[Labour Hours]]*Table1[[#This Row],[Cost  per unit (LH)]],0)","v":0},{"$f":"IFERROR(Table1[[#This Row],[Travel Hours]]*Table1[[#This Row],[Cost  per unit (TH)]],0)","v":0},{"$f":"IFERROR(Table1[[#This Row],[Travel Distance (km)]]*Table1[[#This Row],[Cost  per unit (TD)]],0)","v":0},{"$f":"IF(Table1[[#This Row],[Test and Tag]]=\"Yes\",Table1[[#This Row],[Cost per Unit (TT)]],0)","v":0},{"$f":"SUM(Table1[[#This Row],[Parts Costs]],Table1[[#This Row],[Travel KM Total ]],Table1[[#This Row],[Labour Hours Total ]],Table1[[#This Row],[Service Cost (Test and Tag)]],Table1[[#This Row],[Travel Hours Total]])","v":0},{"$f":"IF(Table1[[#This Row],[Charge type]]<>\"\",Company_Name,\"\")","v":""},{"$f":"IF(Table1[[#This Row],[Charge type]]<>\"\",ENZ_Reference_Num,\"\")","v":""},{"$f":"IF(Table1[[#This Row],[Charge type]]<>\"\",Invoice_date,\"\")","v":""},{"$f":"IF(Table1[[#This Row],[Charge type]]<>\"\",Invoice_Number,\"\")","v":""},{"$f":"85","v":85},{"$f":"85","v":85},0.64,{"$f":"15","v":15},{"$f":"IF(Table1[[#This Row],[TOTAL JOB COST]]>1999.99,\"OVER $2k - contact Enable\",\"\")","v":""},null,{"$f":"IFERROR(VLOOKUP(Table1[[#This Row],[Equipment Type]],'Ref sheet'!I$2:J$7,2,FALSE),\"\")","v":""},{"$f":"IF(AND(Table1[[#This Row],[Equipment Type]]= \"\", Table1[[#This Row],[TOTAL JOB COST]] <> 0), \"Please set equipment type\", IF(Table1[[#This Row],[Limit]]<Table1[[#This Row],[TOTAL JOB COST]],\"Over equipment type limit\",\"\"))","v":""}]
[null,null,null,null,null,null,null,null,null,null,null,null,null,null,null,null,null,null,null,null,null,null,{"$f":"IFERROR(Table1[[#This Row],[Labour Hours]]*Table1[[#This Row],[Cost  per unit (LH)]],0)","v":0},{"$f":"IFERROR(Table1[[#This Row],[Travel Hours]]*Table1[[#This Row],[Cost  per unit (TH)]],0)","v":0},{"$f":"IFERROR(Table1[[#This Row],[Travel Distance (km)]]*Table1[[#This Row],[Cost  per unit (TD)]],0)","v":0},{"$f":"IF(Table1[[#This Row],[Test and Tag]]=\"Yes\",Table1[[#This Row],[Cost per Unit (TT)]],0)","v":0},{"$f":"SUM(Table1[[#This Row],[Parts Costs]],Table1[[#This Row],[Travel KM Total ]],Table1[[#This Row],[Labour Hours Total ]],Table1[[#This Row],[Service Cost (Test and Tag)]],Table1[[#This Row],[Travel Hours Total]])","v":0},{"$f":"IF(Table1[[#This Row],[Charge type]]<>\"\",Company_Name,\"\")","v":""},{"$f":"IF(Table1[[#This Row],[Charge type]]<>\"\",ENZ_Reference_Num,\"\")","v":""},{"$f":"IF(Table1[[#This Row],[Charge type]]<>\"\",Invoice_date,\"\")","v":""},{"$f":"IF(Table1[[#This Row],[Charge type]]<>\"\",Invoice_Number,\"\")","v":""},{"$f":"85","v":85},{"$f":"85","v":85},{"$f":"0.64","v":0.64},{"$f":"15","v":15},{"$f":"IF(Table1[[#This Row],[TOTAL JOB COST]]>1999.99,\"OVER $2k - contact Enable\",\"\")","v":""},null,{"$f":"IFERROR(VLOOKUP(Table1[[#This Row],[Equipment Type]],'Ref sheet'!I$2:J$7,2,FALSE),\"\")","v":""},{"$f":"IF(AND(Table1[[#This Row],[Equipment Type]]= \"\", Table1[[#This Row],[TOTAL JOB COST]] <> 0), \"Please set equipment type\", IF(Table1[[#This Row],[Limit]]<Table1[[#This Row],[TOTAL JOB COST]],\"Over equipment type limit\",\"\"))","v":""}]
[null,null,null,null,null,null,null,null,null,null,null,null,null,null,null,null,null,null,null,null,null,null,{"$f":"IFERROR(Table1[[#This Row],[Labour Hours]]*Table1[[#This Row],[Cost  per unit (LH)]],0)","v":0},{"$f":"IFERROR(Table1[[#This Row],[Travel Hours]]*Table1[[#This Row],[Cost  per unit (TH)]],0)","v":0},{"$f":"IFERROR(Table1[[#This Row],[Travel Distance (km)]]*Table1[[#This Row],[Cost  per unit (TD)]],0)","v":0},{"$f":"IF(Table1[[#This Row],[Test and Tag]]=\"Yes\",Table1[[#This Row],[Cost per Unit (TT)]],0)","v":0},{"$f":"SUM(Table1[[#This Row],[Parts Costs]],Table1[[#This Row],[Travel KM Total ]],Table1[[#This Row],[Labour Hours Total ]],Table1[[#This Row],[Service Cost (Test and Tag)]],Table1[[#This Row],[Travel Hours Total]])","v":0},{"$f":"IF(Table1[[#This Row],[Charge type]]<>\"\",Company_Name,\"\")","v":""},{"$f":"IF(Table1[[#This Row],[Charge type]]<>\"\",ENZ_Reference_Num,\"\")","v":""},{"$f":"IF(Table1[[#This Row],[Charge type]]<>\"\",Invoice_date,\"\")","v":""},{"$f":"IF(Table1[[#This Row],[Charge type]]<>\"\",Invoice_Number,\"\")","v":""},{"$f":"85","v":85},{"$f":"85","v":85},0.64,{"$f":"15","v":15},{"$f":"IF(Table1[[#This Row],[TOTAL JOB COST]]>1999.99,\"OVER $2k - contact Enable\",\"\")","v":""},null,{"$f":"IFERROR(VLOOKUP(Table1[[#This Row],[Equipment Type]],'Ref sheet'!I$2:J$7,2,FALSE),\"\")","v":""},{"$f":"IF(AND(Table1[[#This Row],[Equipment Type]]= \"\", Table1[[#This Row],[TOTAL JOB COST]] <> 0), \"Please set equipment type\", IF(Table1[[#This Row],[Limit]]<Table1[[#This Row],[TOTAL JOB COST]],\"Over equipment type limit\",\"\"))","v":""}]
[null,null,null,null,null,null,null,null,null,null,null,null,null,null,null,null,null,null,null,null,null,null,{"$f":"IFERROR(Table1[[#This Row],[Labour Hours]]*Table1[[#This Row],[Cost  per unit (LH)]],0)","v":0},{"$f":"IFERROR(Table1[[#This Row],[Travel Hours]]*Table1[[#This Row],[Cost  per unit (TH)]],0)","v":0},{"$f":"IFERROR(Table1[[#This Row],[Travel Distance (km)]]*Table1[[#This Row],[Cost  per unit (TD)]],0)","v":0},{"$f":"IF(Table1[[#This Row],[Test and Tag]]=\"Yes\",Table1[[#This Row],[Cost per Unit (TT)]],0)","v":0},{"$f":"SUM(Table1[[#This Row],[Parts Costs]],Table1[[#This Row],[Travel KM Total ]],Table1[[#This Row],[Labour Hours Total ]],Table1[[#This Row],[Service Cost (Test and Tag)]],Table1[[#This Row],[Travel Hours Total]])","v":0},{"$f":"IF(Table1[[#This Row],[Charge type]]<>\"\",Company_Name,\"\")","v":""},{"$f":"IF(Table1[[#This Row],[Charge type]]<>\"\",ENZ_Reference_Num,\"\")","v":""},{"$f":"IF(Table1[[#This Row],[Charge type]]<>\"\",Invoice_date,\"\")","v":""},{"$f":"IF(Table1[[#This Row],[Charge type]]<>\"\",Invoice_Number,\"\")","v":""},{"$f":"85","v":85},{"$f":"85","v":85},0.64,{"$f":"15","v":15},{"$f":"IF(Table1[[#This Row],[TOTAL JOB COST]]>1999.99,\"OVER $2k - contact Enable\",\"\")","v":""},null,{"$f":"IFERROR(VLOOKUP(Table1[[#This Row],[Equipment Type]],'Ref sheet'!I$2:J$7,2,FALSE),\"\")","v":""},{"$f":"IF(AND(Table1[[#This Row],[Equipment Type]]= \"\", Table1[[#This Row],[TOTAL JOB COST]] <> 0), \"Please set equipment type\", IF(Table1[[#This Row],[Limit]]<Table1[[#This Row],[TOTAL JOB COST]],\"Over equipment type limit\",\"\"))","v":""}]
[null,null,null,null,null,null,null,null,null,null,null,null,null,null,null,null,null,null,null,null,null,null,{"$f":"IFERROR(Table1[[#This Row],[Labour Hours]]*Table1[[#This Row],[Cost  per unit (LH)]],0)","v":0},{"$f":"IFERROR(Table1[[#This Row],[Travel Hours]]*Table1[[#This Row],[Cost  per unit (TH)]],0)","v":0},{"$f":"IFERROR(Table1[[#This Row],[Travel Distance (km)]]*Table1[[#This Row],[Cost  per unit (TD)]],0)","v":0},{"$f":"IF(Table1[[#This Row],[Test and Tag]]=\"Yes\",Table1[[#This Row],[Cost per Unit (TT)]],0)","v":0},{"$f":"SUM(Table1[[#This Row],[Parts Costs]],Table1[[#This Row],[Travel KM Total ]],Table1[[#This Row],[Labour Hours Total ]],Table1[[#This Row],[Service Cost (Test and Tag)]],Table1[[#This Row],[Travel Hours Total]])","v":0},{"$f":"IF(Table1[[#This Row],[Charge type]]<>\"\",Company_Name,\"\")","v":""},{"$f":"IF(Table1[[#This Row],[Charge type]]<>\"\",ENZ_Reference_Num,\"\")","v":""},{"$f":"IF(Table1[[#This Row],[Charge type]]<>\"\",Invoice_date,\"\")","v":""},{"$f":"IF(Table1[[#This Row],[Charge type]]<>\"\",Invoice_Number,\"\")","v":""},{"$f":"85","v":85},{"$f":"85","v":85},0.64,{"$f":"15","v":15},{"$f":"IF(Table1[[#This Row],[TOTAL JOB COST]]>1999.99,\"OVER $2k - contact Enable\",\"\")","v":""},null,{"$f":"IFERROR(VLOOKUP(Table1[[#This Row],[Equipment Type]],'Ref sheet'!I$2:J$7,2,FALSE),\"\")","v":""},{"$f":"IF(AND(Table1[[#This Row],[Equipment Type]]= \"\", Table1[[#This Row],[TOTAL JOB COST]] <> 0), \"Please set equipment type\", IF(Table1[[#This Row],[Limit]]<Table1[[#This Row],[TOTAL JOB COST]],\"Over equipment type limit\",\"\"))","v":""}]
[null,null,null,null,null,null,null,null,null,null,null,null,null,null,null,null,null,null,null,null,null,null,{"$f":"IFERROR(Table1[[#This Row],[Labour Hours]]*Table1[[#This Row],[Cost  per unit (LH)]],0)","v":0},{"$f":"IFERROR(Table1[[#This Row],[Travel Hours]]*Table1[[#This Row],[Cost  per unit (TH)]],0)","v":0},{"$f":"IFERROR(Table1[[#This Row],[Travel Distance (km)]]*Table1[[#This Row],[Cost  per unit (TD)]],0)","v":0},{"$f":"IF(Table1[[#This Row],[Test and Tag]]=\"Yes\",Table1[[#This Row],[Cost per Unit (TT)]],0)","v":0},{"$f":"SUM(Table1[[#This Row],[Parts Costs]],Table1[[#This Row],[Travel KM Total ]],Table1[[#This Row],[Labour Hours Total ]],Table1[[#This Row],[Service Cost (Test and Tag)]],Table1[[#This Row],[Travel Hours Total]])","v":0},{"$f":"IF(Table1[[#This Row],[Charge type]]<>\"\",Company_Name,\"\")","v":""},{"$f":"IF(Table1[[#This Row],[Charge type]]<>\"\",ENZ_Reference_Num,\"\")","v":""},{"$f":"IF(Table1[[#This Row],[Charge type]]<>\"\",Invoice_date,\"\")","v":""},{"$f":"IF(Table1[[#This Row],[Charge type]]<>\"\",Invoice_Number,\"\")","v":""},{"$f":"85","v":85},{"$f":"85","v":85},0.64,{"$f":"15","v":15},{"$f":"IF(Table1[[#This Row],[TOTAL JOB COST]]>1999.99,\"OVER $2k - contact Enable\",\"\")","v":""},null,{"$f":"IFERROR(VLOOKUP(Table1[[#This Row],[Equipment Type]],'Ref sheet'!I$2:J$7,2,FALSE),\"\")","v":""},{"$f":"IF(AND(Table1[[#This Row],[Equipment Type]]= \"\", Table1[[#This Row],[TOTAL JOB COST]] <> 0), \"Please set equipment type\", IF(Table1[[#This Row],[Limit]]<Table1[[#This Row],[TOTAL JOB COST]],\"Over equipment type limit\",\"\"))","v":""}]
[null,null,null,null,null,null,null,null,null,null,null,null,null,null,null,null,null,null,null,null,null,null,{"$f":"IFERROR(Table1[[#This Row],[Labour Hours]]*Table1[[#This Row],[Cost  per unit (LH)]],0)","v":0},{"$f":"IFERROR(Table1[[#This Row],[Travel Hours]]*Table1[[#This Row],[Cost  per unit (TH)]],0)","v":0},{"$f":"IFERROR(Table1[[#This Row],[Travel Distance (km)]]*Table1[[#This Row],[Cost  per unit (TD)]],0)","v":0},{"$f":"IF(Table1[[#This Row],[Test and Tag]]=\"Yes\",Table1[[#This Row],[Cost per Unit (TT)]],0)","v":0},{"$f":"SUM(Table1[[#This Row],[Parts Costs]],Table1[[#This Row],[Travel KM Total ]],Table1[[#This Row],[Labour Hours Total ]],Table1[[#This Row],[Service Cost (Test and Tag)]],Table1[[#This Row],[Travel Hours Total]])","v":0},{"$f":"IF(Table1[[#This Row],[Charge type]]<>\"\",Company_Name,\"\")","v":""},{"$f":"IF(Table1[[#This Row],[Charge type]]<>\"\",ENZ_Reference_Num,\"\")","v":""},{"$f":"IF(Table1[[#This Row],[Charge type]]<>\"\",Invoice_date,\"\")","v":""},{"$f":"IF(Table1[[#This Row],[Charge type]]<>\"\",Invoice_Number,\"\")","v":""},{"$f":"85","v":85},{"$f":"85","v":85},0.64,{"$f":"15","v":15},{"$f":"IF(Table1[[#This Row],[TOTAL JOB COST]]>1999.99,\"OVER $2k - contact Enable\",\"\")","v":""},null,{"$f":"IFERROR(VLOOKUP(Table1[[#This Row],[Equipment Type]],'Ref sheet'!I$2:J$7,2,FALSE),\"\")","v":""},{"$f":"IF(AND(Table1[[#This Row],[Equipment Type]]= \"\", Table1[[#This Row],[TOTAL JOB COST]] <> 0), \"Please set equipment type\", IF(Table1[[#This Row],[Limit]]<Table1[[#This Row],[TOTAL JOB COST]],\"Over equipment type limit\",\"\"))","v":""}]
[null,null,null,null,null,null,null,null,null,null,null,null,null,null,null,null,null,null,null,null,null,null,{"$f":"IFERROR(Table1[[#This Row],[Labour Hours]]*Table1[[#This Row],[Cost  per unit (LH)]],0)","v":0},{"$f":"IFERROR(Table1[[#This Row],[Travel Hours]]*Table1[[#This Row],[Cost  per unit (TH)]],0)","v":0},{"$f":"IFERROR(Table1[[#This Row],[Travel Distance (km)]]*Table1[[#This Row],[Cost  per unit (TD)]],0)","v":0},{"$f":"IF(Table1[[#This Row],[Test and Tag]]=\"Yes\",Table1[[#This Row],[Cost per Unit (TT)]],0)","v":0},{"$f":"SUM(Table1[[#This Row],[Parts Costs]],Table1[[#This Row],[Travel KM Total ]],Table1[[#This Row],[Labour Hours Total ]],Table1[[#This Row],[Service Cost (Test and Tag)]],Table1[[#This Row],[Travel Hours Total]])","v":0},{"$f":"IF(Table1[[#This Row],[Charge type]]<>\"\",Company_Name,\"\")","v":""},{"$f":"IF(Table1[[#This Row],[Charge type]]<>\"\",ENZ_Reference_Num,\"\")","v":""},{"$f":"IF(Table1[[#This Row],[Charge type]]<>\"\",Invoice_date,\"\")","v":""},{"$f":"IF(Table1[[#This Row],[Charge type]]<>\"\",Invoice_Number,\"\")","v":""},{"$f":"85","v":85},{"$f":"85","v":85},0.64,{"$f":"15","v":15},{"$f":"IF(Table1[[#This Row],[TOTAL JOB COST]]>1999.99,\"OVER $2k - contact Enable\",\"\")","v":""},null,{"$f":"IFERROR(VLOOKUP(Table1[[#This Row],[Equipment Type]],'Ref sheet'!I$2:J$7,2,FALSE),\"\")","v":""},{"$f":"IF(AND(Table1[[#This Row],[Equipment Type]]= \"\", Table1[[#This Row],[TOTAL JOB COST]] <> 0), \"Please set equipment type\", IF(Table1[[#This Row],[Limit]]<Table1[[#This Row],[TOTAL JOB COST]],\"Over equipment type limit\",\"\"))","v":""}]
[null,null,null,null,null,null,null,null,null,null,null,null,null,null,null,null,null,null,null,null,null,null,{"$f":"IFERROR(Table1[[#This Row],[Labour Hours]]*Table1[[#This Row],[Cost  per unit (LH)]],0)","v":0},{"$f":"IFERROR(Table1[[#This Row],[Travel Hours]]*Table1[[#This Row],[Cost  per unit (TH)]],0)","v":0},{"$f":"IFERROR(Table1[[#This Row],[Travel Distance (km)]]*Table1[[#This Row],[Cost  per unit (TD)]],0)","v":0},{"$f":"IF(Table1[[#This Row],[Test and Tag]]=\"Yes\",Table1[[#This Row],[Cost per Unit (TT)]],0)","v":0},{"$f":"SUM(Table1[[#This Row],[Parts Costs]],Table1[[#This Row],[Travel KM Total ]],Table1[[#This Row],[Labour Hours Total ]],Table1[[#This Row],[Service Cost (Test and Tag)]],Table1[[#This Row],[Travel Hours Total]])","v":0},{"$f":"IF(Table1[[#This Row],[Charge type]]<>\"\",Company_Name,\"\")","v":""},{"$f":"IF(Table1[[#This Row],[Charge type]]<>\"\",ENZ_Reference_Num,\"\")","v":""},{"$f":"IF(Table1[[#This Row],[Charge type]]<>\"\",Invoice_date,\"\")","v":""},{"$f":"IF(Table1[[#This Row],[Charge type]]<>\"\",Invoice_Number,\"\")","v":""},{"$f":"85","v":85},{"$f":"85","v":85},0.64,{"$f":"15","v":15},{"$f":"IF(Table1[[#This Row],[TOTAL JOB COST]]>1999.99,\"OVER $2k - contact Enable\",\"\")","v":""},null,{"$f":"IFERROR(VLOOKUP(Table1[[#This Row],[Equipment Type]],'Ref sheet'!I$2:J$7,2,FALSE),\"\")","v":""},{"$f":"IF(AND(Table1[[#This Row],[Equipment Type]]= \"\", Table1[[#This Row],[TOTAL JOB COST]] <> 0), \"Please set equipment type\", IF(Table1[[#This Row],[Limit]]<Table1[[#This Row],[TOTAL JOB COST]],\"Over equipment type limit\",\"\"))","v":""}]
[null,null,null,null,null,null,null,null,null,null,null,null,null,null,null,null,null,null,null,null,null,null,{"$f":"IFERROR(Table1[[#This Row],[Labour Hours]]*Table1[[#This Row],[Cost  per unit (LH)]],0)","v":0},{"$f":"IFERROR(Table1[[#This Row],[Travel Hours]]*Table1[[#This Row],[Cost  per unit (TH)]],0)","v":0},{"$f":"IFERROR(Table1[[#This Row],[Travel Distance (km)]]*Table1[[#This Row],[Cost  per unit (TD)]],0)","v":0},{"$f":"IF(Table1[[#This Row],[Test and Tag]]=\"Yes\",Table1[[#This Row],[Cost per Unit (TT)]],0)","v":0},{"$f":"SUM(Table1[[#This Row],[Parts Costs]],Table1[[#This Row],[Travel KM Total ]],Table1[[#This Row],[Labour Hours Total ]],Table1[[#This Row],[Service Cost (Test and Tag)]],Table1[[#This Row],[Travel Hours Total]])","v":0},{"$f":"IF(Table1[[#This Row],[Charge type]]<>\"\",Company_Name,\"\")","v":""},{"$f":"IF(Table1[[#This Row],[Charge type]]<>\"\",ENZ_Reference_Num,\"\")","v":""},{"$f":"IF(Table1[[#This Row],[Charge type]]<>\"\",Invoice_date,\"\")","v":""},{"$f":"IF(Table1[[#This Row],[Charge type]]<>\"\",Invoice_Number,\"\")","v":""},{"$f":"85","v":85},{"$f":"85","v":85},0.64,{"$f":"15","v":15},{"$f":"IF(Table1[[#This Row],[TOTAL JOB COST]]>1999.99,\"OVER $2k - contact Enable\",\"\")","v":""},null,{"$f":"IFERROR(VLOOKUP(Table1[[#This Row],[Equipment Type]],'Ref sheet'!I$2:J$7,2,FALSE),\"\")","v":""},{"$f":"IF(AND(Table1[[#This Row],[Equipment Type]]= \"\", Table1[[#This Row],[TOTAL JOB COST]] <> 0), \"Please set equipment type\", IF(Table1[[#This Row],[Limit]]<Table1[[#This Row],[TOTAL JOB COST]],\"Over equipment type limit\",\"\"))","v":""}]
[null,null,null,null,null,null,null,null,null,null,null,null,null,null,null,null,null,null,null,null,null,null,{"$f":"IFERROR(Table1[[#This Row],[Labour Hours]]*Table1[[#This Row],[Cost  per unit (LH)]],0)","v":0},{"$f":"IFERROR(Table1[[#This Row],[Travel Hours]]*Table1[[#This Row],[Cost  per unit (TH)]],0)","v":0},{"$f":"IFERROR(Table1[[#This Row],[Travel Distance (km)]]*Table1[[#This Row],[Cost  per unit (TD)]],0)","v":0},{"$f":"IF(Table1[[#This Row],[Test and Tag]]=\"Yes\",Table1[[#This Row],[Cost per Unit (TT)]],0)","v":0},{"$f":"SUM(Table1[[#This Row],[Parts Costs]],Table1[[#This Row],[Travel KM Total ]],Table1[[#This Row],[Labour Hours Total ]],Table1[[#This Row],[Service Cost (Test and Tag)]],Table1[[#This Row],[Travel Hours Total]])","v":0},{"$f":"IF(Table1[[#This Row],[Charge type]]<>\"\",Company_Name,\"\")","v":""},{"$f":"IF(Table1[[#This Row],[Charge type]]<>\"\",ENZ_Reference_Num,\"\")","v":""},{"$f":"IF(Table1[[#This Row],[Charge type]]<>\"\",Invoice_date,\"\")","v":""},{"$f":"IF(Table1[[#This Row],[Charge type]]<>\"\",Invoice_Number,\"\")","v":""},{"$f":"85","v":85},{"$f":"85","v":85},0.64,{"$f":"15","v":15},{"$f":"IF(Table1[[#This Row],[TOTAL JOB COST]]>1999.99,\"OVER $2k - contact Enable\",\"\")","v":""},null,{"$f":"IFERROR(VLOOKUP(Table1[[#This Row],[Equipment Type]],'Ref sheet'!I$2:J$7,2,FALSE),\"\")","v":""},{"$f":"IF(AND(Table1[[#This Row],[Equipment Type]]= \"\", Table1[[#This Row],[TOTAL JOB COST]] <> 0), \"Please set equipment type\", IF(Table1[[#This Row],[Limit]]<Table1[[#This Row],[TOTAL JOB COST]],\"Over equipment type limit\",\"\"))","v":""}]
[null,null,null,null,null,null,null,null,null,null,null,null,null,null,null,null,null,null,null,null,null,null,{"$f":"IFERROR(Table1[[#This Row],[Labour Hours]]*Table1[[#This Row],[Cost  per unit (LH)]],0)","v":0},{"$f":"IFERROR(Table1[[#This Row],[Travel Hours]]*Table1[[#This Row],[Cost  per unit (TH)]],0)","v":0},{"$f":"IFERROR(Table1[[#This Row],[Travel Distance (km)]]*Table1[[#This Row],[Cost  per unit (TD)]],0)","v":0},{"$f":"IF(Table1[[#This Row],[Test and Tag]]=\"Yes\",Table1[[#This Row],[Cost per Unit (TT)]],0)","v":0},{"$f":"SUM(Table1[[#This Row],[Parts Costs]],Table1[[#This Row],[Travel KM Total ]],Table1[[#This Row],[Labour Hours Total ]],Table1[[#This Row],[Service Cost (Test and Tag)]],Table1[[#This Row],[Travel Hours Total]])","v":0},{"$f":"IF(Table1[[#This Row],[Charge type]]<>\"\",Company_Name,\"\")","v":""},{"$f":"IF(Table1[[#This Row],[Charge type]]<>\"\",ENZ_Reference_Num,\"\")","v":""},{"$f":"IF(Table1[[#This Row],[Charge type]]<>\"\",Invoice_date,\"\")","v":""},{"$f":"IF(Table1[[#This Row],[Charge type]]<>\"\",Invoice_Number,\"\")","v":""},{"$f":"85","v":85},{"$f":"85","v":85},0.64,{"$f":"15","v":15},{"$f":"IF(Table1[[#This Row],[TOTAL JOB COST]]>1999.99,\"OVER $2k - contact Enable\",\"\")","v":""},null,{"$f":"IFERROR(VLOOKUP(Table1[[#This Row],[Equipment Type]],'Ref sheet'!I$2:J$7,2,FALSE),\"\")","v":""},{"$f":"IF(AND(Table1[[#This Row],[Equipment Type]]= \"\", Table1[[#This Row],[TOTAL JOB COST]] <> 0), \"Please set equipment type\", IF(Table1[[#This Row],[Limit]]<Table1[[#This Row],[TOTAL JOB COST]],\"Over equipment type limit\",\"\"))","v":""}]
[null,null,null,null,null,null,null,null,null,null,null,null,null,null,null,null,null,null,null,null,null,null,{"$f":"IFERROR(Table1[[#This Row],[Labour Hours]]*Table1[[#This Row],[Cost  per unit (LH)]],0)","v":0},{"$f":"IFERROR(Table1[[#This Row],[Travel Hours]]*Table1[[#This Row],[Cost  per unit (TH)]],0)","v":0},{"$f":"IFERROR(Table1[[#This Row],[Travel Distance (km)]]*Table1[[#This Row],[Cost  per unit (TD)]],0)","v":0},{"$f":"IF(Table1[[#This Row],[Test and Tag]]=\"Yes\",Table1[[#This Row],[Cost per Unit (TT)]],0)","v":0},{"$f":"SUM(Table1[[#This Row],[Parts Costs]],Table1[[#This Row],[Travel KM Total ]],Table1[[#This Row],[Labour Hours Total ]],Table1[[#This Row],[Service Cost (Test and Tag)]],Table1[[#This Row],[Travel Hours Total]])","v":0},{"$f":"IF(Table1[[#This Row],[Charge type]]<>\"\",Company_Name,\"\")","v":""},{"$f":"IF(Table1[[#This Row],[Charge type]]<>\"\",ENZ_Reference_Num,\"\")","v":""},{"$f":"IF(Table1[[#This Row],[Charge type]]<>\"\",Invoice_date,\"\")","v":""},{"$f":"IF(Table1[[#This Row],[Charge type]]<>\"\",Invoice_Number,\"\")","v":""},{"$f":"85","v":85},{"$f":"85","v":85},0.64,{"$f":"15","v":15},{"$f":"IF(Table1[[#This Row],[TOTAL JOB COST]]>1999.99,\"OVER $2k - contact Enable\",\"\")","v":""},null,{"$f":"IFERROR(VLOOKUP(Table1[[#This Row],[Equipment Type]],'Ref sheet'!I$2:J$7,2,FALSE),\"\")","v":""},{"$f":"IF(AND(Table1[[#This Row],[Equipment Type]]= \"\", Table1[[#This Row],[TOTAL JOB COST]] <> 0), \"Please set equipment type\", IF(Table1[[#This Row],[Limit]]<Table1[[#This Row],[TOTAL JOB COST]],\"Over equipment type limit\",\"\"))","v":""}]
[null,null,null,null,null,null,null,null,null,null,null,null,null,null,null,null,null,null,null,null,null,null,{"$f":"IFERROR(Table1[[#This Row],[Labour Hours]]*Table1[[#This Row],[Cost  per unit (LH)]],0)","v":0},{"$f":"IFERROR(Table1[[#This Row],[Travel Hours]]*Table1[[#This Row],[Cost  per unit (TH)]],0)","v":0},{"$f":"IFERROR(Table1[[#This Row],[Travel Distance (km)]]*Table1[[#This Row],[Cost  per unit (TD)]],0)","v":0},{"$f":"IF(Table1[[#This Row],[Test and Tag]]=\"Yes\",Table1[[#This Row],[Cost per Unit (TT)]],0)","v":0},{"$f":"SUM(Table1[[#This Row],[Parts Costs]],Table1[[#This Row],[Travel KM Total ]],Table1[[#This Row],[Labour Hours Total ]],Table1[[#This Row],[Service Cost (Test and Tag)]],Table1[[#This Row],[Travel Hours Total]])","v":0},{"$f":"IF(Table1[[#This Row],[Charge type]]<>\"\",Company_Name,\"\")","v":""},{"$f":"IF(Table1[[#This Row],[Charge type]]<>\"\",ENZ_Reference_Num,\"\")","v":""},{"$f":"IF(Table1[[#This Row],[Charge type]]<>\"\",Invoice_date,\"\")","v":""},{"$f":"IF(Table1[[#This Row],[Charge type]]<>\"\",Invoice_Number,\"\")","v":""},{"$f":"85","v":85},{"$f":"85","v":85},0.64,{"$f":"15","v":15},{"$f":"IF(Table1[[#This Row],[TOTAL JOB COST]]>1999.99,\"OVER $2k - contact Enable\",\"\")","v":""},null,{"$f":"IFERROR(VLOOKUP(Table1[[#This Row],[Equipment Type]],'Ref sheet'!I$2:J$7,2,FALSE),\"\")","v":""},{"$f":"IF(AND(Table1[[#This Row],[Equipment Type]]= \"\", Table1[[#This Row],[TOTAL JOB COST]] <> 0), \"Please set equipment type\", IF(Table1[[#This Row],[Limit]]<Table1[[#This Row],[TOTAL JOB COST]],\"Over equipment type limit\",\"\"))","v":""}]
[null,null,null,null,null,null,null,null,null,null,null,null,null,null,null,null,null,null,null,null,null,null,{"$f":"IFERROR(Table1[[#This Row],[Labour Hours]]*Table1[[#This Row],[Cost  per unit (LH)]],0)","v":0},{"$f":"IFERROR(Table1[[#This Row],[Travel Hours]]*Table1[[#This Row],[Cost  per unit (TH)]],0)","v":0},{"$f":"IFERROR(Table1[[#This Row],[Travel Distance (km)]]*Table1[[#This Row],[Cost  per unit (TD)]],0)","v":0},{"$f":"IF(Table1[[#This Row],[Test and Tag]]=\"Yes\",Table1[[#This Row],[Cost per Unit (TT)]],0)","v":0},{"$f":"SUM(Table1[[#This Row],[Parts Costs]],Table1[[#This Row],[Travel KM Total ]],Table1[[#This Row],[Labour Hours Total ]],Table1[[#This Row],[Service Cost (Test and Tag)]],Table1[[#This Row],[Travel Hours Total]])","v":0},{"$f":"IF(Table1[[#This Row],[Charge type]]<>\"\",Company_Name,\"\")","v":""},{"$f":"IF(Table1[[#This Row],[Charge type]]<>\"\",ENZ_Reference_Num,\"\")","v":""},{"$f":"IF(Table1[[#This Row],[Charge type]]<>\"\",Invoice_date,\"\")","v":""},{"$f":"IF(Table1[[#This Row],[Charge type]]<>\"\",Invoice_Number,\"\")","v":""},{"$f":"85","v":85},{"$f":"85","v":85},0.64,{"$f":"15","v":15},{"$f":"IF(Table1[[#This Row],[TOTAL JOB COST]]>1999.99,\"OVER $2k - contact Enable\",\"\")","v":""},null,{"$f":"IFERROR(VLOOKUP(Table1[[#This Row],[Equipment Type]],'Ref sheet'!I$2:J$7,2,FALSE),\"\")","v":""},{"$f":"IF(AND(Table1[[#This Row],[Equipment Type]]= \"\", Table1[[#This Row],[TOTAL JOB COST]] <> 0), \"Please set equipment type\", IF(Table1[[#This Row],[Limit]]<Table1[[#This Row],[TOTAL JOB COST]],\"Over equipment type limit\",\"\"))","v":""}]
[null,null,null,null,null,null,null,null,null,null,null,null,null,null,null,null,null,null,null,null,null,null,{"$f":"IFERROR(Table1[[#This Row],[Labour Hours]]*Table1[[#This Row],[Cost  per unit (LH)]],0)","v":0},{"$f":"IFERROR(Table1[[#This Row],[Travel Hours]]*Table1[[#This Row],[Cost  per unit (TH)]],0)","v":0},{"$f":"IFERROR(Table1[[#This Row],[Travel Distance (km)]]*Table1[[#This Row],[Cost  per unit (TD)]],0)","v":0},{"$f":"IF(Table1[[#This Row],[Test and Tag]]=\"Yes\",Table1[[#This Row],[Cost per Unit (TT)]],0)","v":0},{"$f":"SUM(Table1[[#This Row],[Parts Costs]],Table1[[#This Row],[Travel KM Total ]],Table1[[#This Row],[Labour Hours Total ]],Table1[[#This Row],[Service Cost (Test and Tag)]],Table1[[#This Row],[Travel Hours Total]])","v":0},{"$f":"IF(Table1[[#This Row],[Charge type]]<>\"\",Company_Name,\"\")","v":""},{"$f":"IF(Table1[[#This Row],[Charge type]]<>\"\",ENZ_Reference_Num,\"\")","v":""},{"$f":"IF(Table1[[#This Row],[Charge type]]<>\"\",Invoice_date,\"\")","v":""},{"$f":"IF(Table1[[#This Row],[Charge type]]<>\"\",Invoice_Number,\"\")","v":""},{"$f":"85","v":85},{"$f":"85","v":85},0.64,{"$f":"15","v":15},{"$f":"IF(Table1[[#This Row],[TOTAL JOB COST]]>1999.99,\"OVER $2k - contact Enable\",\"\")","v":""},null,{"$f":"IFERROR(VLOOKUP(Table1[[#This Row],[Equipment Type]],'Ref sheet'!I$2:J$7,2,FALSE),\"\")","v":""},{"$f":"IF(AND(Table1[[#This Row],[Equipment Type]]= \"\", Table1[[#This Row],[TOTAL JOB COST]] <> 0), \"Please set equipment type\", IF(Table1[[#This Row],[Limit]]<Table1[[#This Row],[TOTAL JOB COST]],\"Over equipment type limit\",\"\"))","v":""}]
[null,null,null,null,null,null,null,null,null,null,null,null,null,null,null,null,null,null,null,null,null,null,{"$f":"IFERROR(Table1[[#This Row],[Labour Hours]]*Table1[[#This Row],[Cost  per unit (LH)]],0)","v":0},{"$f":"IFERROR(Table1[[#This Row],[Travel Hours]]*Table1[[#This Row],[Cost  per unit (TH)]],0)","v":0},{"$f":"IFERROR(Table1[[#This Row],[Travel Distance (km)]]*Table1[[#This Row],[Cost  per unit (TD)]],0)","v":0},{"$f":"IF(Table1[[#This Row],[Test and Tag]]=\"Yes\",Table1[[#This Row],[Cost per Unit (TT)]],0)","v":0},{"$f":"SUM(Table1[[#This Row],[Parts Costs]],Table1[[#This Row],[Travel KM Total ]],Table1[[#This Row],[Labour Hours Total ]],Table1[[#This Row],[Service Cost (Test and Tag)]],Table1[[#This Row],[Travel Hours Total]])","v":0},{"$f":"IF(Table1[[#This Row],[Charge type]]<>\"\",Company_Name,\"\")","v":""},{"$f":"IF(Table1[[#This Row],[Charge type]]<>\"\",ENZ_Reference_Num,\"\")","v":""},{"$f":"IF(Table1[[#This Row],[Charge type]]<>\"\",Invoice_date,\"\")","v":""},{"$f":"IF(Table1[[#This Row],[Charge type]]<>\"\",Invoice_Number,\"\")","v":""},{"$f":"85","v":85},{"$f":"85","v":85},0.64,{"$f":"15","v":15},{"$f":"IF(Table1[[#This Row],[TOTAL JOB COST]]>1999.99,\"OVER $2k - contact Enable\",\"\")","v":""},null,{"$f":"IFERROR(VLOOKUP(Table1[[#This Row],[Equipment Type]],'Ref sheet'!I$2:J$7,2,FALSE),\"\")","v":""},{"$f":"IF(AND(Table1[[#This Row],[Equipment Type]]= \"\", Table1[[#This Row],[TOTAL JOB COST]] <> 0), \"Please set equipment type\", IF(Table1[[#This Row],[Limit]]<Table1[[#This Row],[TOTAL JOB COST]],\"Over equipment type limit\",\"\"))","v":""}]
[null,null,null,null,null,null,null,null,null,null,null,null,null,null,null,null,null,null,null,null,null,null,{"$f":"IFERROR(Table1[[#This Row],[Labour Hours]]*Table1[[#This Row],[Cost  per unit (LH)]],0)","v":0},{"$f":"IFERROR(Table1[[#This Row],[Travel Hours]]*Table1[[#This Row],[Cost  per unit (TH)]],0)","v":0},{"$f":"IFERROR(Table1[[#This Row],[Travel Distance (km)]]*Table1[[#This Row],[Cost  per unit (TD)]],0)","v":0},{"$f":"IF(Table1[[#This Row],[Test and Tag]]=\"Yes\",Table1[[#This Row],[Cost per Unit (TT)]],0)","v":0},{"$f":"SUM(Table1[[#This Row],[Parts Costs]],Table1[[#This Row],[Travel KM Total ]],Table1[[#This Row],[Labour Hours Total ]],Table1[[#This Row],[Service Cost (Test and Tag)]],Table1[[#This Row],[Travel Hours Total]])","v":0},{"$f":"IF(Table1[[#This Row],[Charge type]]<>\"\",Company_Name,\"\")","v":""},{"$f":"IF(Table1[[#This Row],[Charge type]]<>\"\",ENZ_Reference_Num,\"\")","v":""},{"$f":"IF(Table1[[#This Row],[Charge type]]<>\"\",Invoice_date,\"\")","v":""},{"$f":"IF(Table1[[#This Row],[Charge type]]<>\"\",Invoice_Number,\"\")","v":""},{"$f":"85","v":85},{"$f":"85","v":85},0.64,{"$f":"15","v":15},{"$f":"IF(Table1[[#This Row],[TOTAL JOB COST]]>1999.99,\"OVER $2k - contact Enable\",\"\")","v":""},null,{"$f":"IFERROR(VLOOKUP(Table1[[#This Row],[Equipment Type]],'Ref sheet'!I$2:J$7,2,FALSE),\"\")","v":""},{"$f":"IF(AND(Table1[[#This Row],[Equipment Type]]= \"\", Table1[[#This Row],[TOTAL JOB COST]] <> 0), \"Please set equipment type\", IF(Table1[[#This Row],[Limit]]<Table1[[#This Row],[TOTAL JOB COST]],\"Over equipment type limit\",\"\"))","v":""}]
[null,null,null,null,null,null,null,null,null,null,null,null,null,null,null,null,null,null,null,null,null,null,{"$f":"IFERROR(Table1[[#This Row],[Labour Hours]]*Table1[[#This Row],[Cost  per unit (LH)]],0)","v":0},{"$f":"IFERROR(Table1[[#This Row],[Travel Hours]]*Table1[[#This Row],[Cost  per unit (TH)]],0)","v":0},{"$f":"IFERROR(Table1[[#This Row],[Travel Distance (km)]]*Table1[[#This Row],[Cost  per unit (TD)]],0)","v":0},{"$f":"IF(Table1[[#This Row],[Test and Tag]]=\"Yes\",Table1[[#This Row],[Cost per Unit (TT)]],0)","v":0},{"$f":"SUM(Table1[[#This Row],[Parts Costs]],Table1[[#This Row],[Travel KM Total ]],Table1[[#This Row],[Labour Hours Total ]],Table1[[#This Row],[Service Cost (Test and Tag)]],Table1[[#This Row],[Travel Hours Total]])","v":0},{"$f":"IF(Table1[[#This Row],[Charge type]]<>\"\",Company_Name,\"\")","v":""},{"$f":"IF(Table1[[#This Row],[Charge type]]<>\"\",ENZ_Reference_Num,\"\")","v":""},{"$f":"IF(Table1[[#This Row],[Charge type]]<>\"\",Invoice_date,\"\")","v":""},{"$f":"IF(Table1[[#This Row],[Charge type]]<>\"\",Invoice_Number,\"\")","v":""},{"$f":"85","v":85},{"$f":"85","v":85},0.64,{"$f":"15","v":15},{"$f":"IF(Table1[[#This Row],[TOTAL JOB COST]]>1999.99,\"OVER $2k - contact Enable\",\"\")","v":""},null,{"$f":"IFERROR(VLOOKUP(Table1[[#This Row],[Equipment Type]],'Ref sheet'!I$2:J$7,2,FALSE),\"\")","v":""},{"$f":"IF(AND(Table1[[#This Row],[Equipment Type]]= \"\", Table1[[#This Row],[TOTAL JOB COST]] <> 0), \"Please set equipment type\", IF(Table1[[#This Row],[Limit]]<Table1[[#This Row],[TOTAL JOB COST]],\"Over equipment type limit\",\"\"))","v":""}]
[null,null,null,null,null,null,null,null,null,null,null,null,null,null,null,null,null,null,null,null,null,null,{"$f":"IFERROR(Table1[[#This Row],[Labour Hours]]*Table1[[#This Row],[Cost  per unit (LH)]],0)","v":0},{"$f":"IFERROR(Table1[[#This Row],[Travel Hours]]*Table1[[#This Row],[Cost  per unit (TH)]],0)","v":0},{"$f":"IFERROR(Table1[[#This Row],[Travel Distance (km)]]*Table1[[#This Row],[Cost  per unit (TD)]],0)","v":0},{"$f":"IF(Table1[[#This Row],[Test and Tag]]=\"Yes\",Table1[[#This Row],[Cost per Unit (TT)]],0)","v":0},{"$f":"SUM(Table1[[#This Row],[Parts Costs]],Table1[[#This Row],[Travel KM Total ]],Table1[[#This Row],[Labour Hours Total ]],Table1[[#This Row],[Service Cost (Test and Tag)]],Table1[[#This Row],[Travel Hours Total]])","v":0},{"$f":"IF(Table1[[#This Row],[Charge type]]<>\"\",Company_Name,\"\")","v":""},{"$f":"IF(Table1[[#This Row],[Charge type]]<>\"\",ENZ_Reference_Num,\"\")","v":""},{"$f":"IF(Table1[[#This Row],[Charge type]]<>\"\",Invoice_date,\"\")","v":""},{"$f":"IF(Table1[[#This Row],[Charge type]]<>\"\",Invoice_Number,\"\")","v":""},{"$f":"85","v":85},{"$f":"85","v":85},0.64,{"$f":"15","v":15},{"$f":"IF(Table1[[#This Row],[TOTAL JOB COST]]>1999.99,\"OVER $2k - contact Enable\",\"\")","v":""},null,{"$f":"IFERROR(VLOOKUP(Table1[[#This Row],[Equipment Type]],'Ref sheet'!I$2:J$7,2,FALSE),\"\")","v":""},{"$f":"IF(AND(Table1[[#This Row],[Equipment Type]]= \"\", Table1[[#This Row],[TOTAL JOB COST]] <> 0), \"Please set equipment type\", IF(Table1[[#This Row],[Limit]]<Table1[[#This Row],[TOTAL JOB COST]],\"Over equipment type limit\",\"\"))","v":""}]
[null,null,null,null,null,null,null,null,null,null,null,null,null,null,null,null,null,null,null,null,null,null,{"$f":"IFERROR(Table1[[#This Row],[Labour Hours]]*Table1[[#This Row],[Cost  per unit (LH)]],0)","v":0},{"$f":"IFERROR(Table1[[#This Row],[Travel Hours]]*Table1[[#This Row],[Cost  per unit (TH)]],0)","v":0},{"$f":"IFERROR(Table1[[#This Row],[Travel Distance (km)]]*Table1[[#This Row],[Cost  per unit (TD)]],0)","v":0},{"$f":"IF(Table1[[#This Row],[Test and Tag]]=\"Yes\",Table1[[#This Row],[Cost per Unit (TT)]],0)","v":0},{"$f":"SUM(Table1[[#This Row],[Parts Costs]],Table1[[#This Row],[Travel KM Total ]],Table1[[#This Row],[Labour Hours Total ]],Table1[[#This Row],[Service Cost (Test and Tag)]],Table1[[#This Row],[Travel Hours Total]])","v":0},{"$f":"IF(Table1[[#This Row],[Charge type]]<>\"\",Company_Name,\"\")","v":""},{"$f":"IF(Table1[[#This Row],[Charge type]]<>\"\",ENZ_Reference_Num,\"\")","v":""},{"$f":"IF(Table1[[#This Row],[Charge type]]<>\"\",Invoice_date,\"\")","v":""},{"$f":"IF(Table1[[#This Row],[Charge type]]<>\"\",Invoice_Number,\"\")","v":""},{"$f":"85","v":85},{"$f":"85","v":85},0.64,{"$f":"15","v":15},{"$f":"IF(Table1[[#This Row],[TOTAL JOB COST]]>1999.99,\"OVER $2k - contact Enable\",\"\")","v":""},null,{"$f":"IFERROR(VLOOKUP(Table1[[#This Row],[Equipment Type]],'Ref sheet'!I$2:J$7,2,FALSE),\"\")","v":""},{"$f":"IF(AND(Table1[[#This Row],[Equipment Type]]= \"\", Table1[[#This Row],[TOTAL JOB COST]] <> 0), \"Please set equipment type\", IF(Table1[[#This Row],[Limit]]<Table1[[#This Row],[TOTAL JOB COST]],\"Over equipment type limit\",\"\"))","v":""}]
[null,null,null,null,null,null,null,null,null,null,null,null,null,null,null,null,null,null,null,null,null,null,{"$f":"IFERROR(Table1[[#This Row],[Labour Hours]]*Table1[[#This Row],[Cost  per unit (LH)]],0)","v":0},{"$f":"IFERROR(Table1[[#This Row],[Travel Hours]]*Table1[[#This Row],[Cost  per unit (TH)]],0)","v":0},{"$f":"IFERROR(Table1[[#This Row],[Travel Distance (km)]]*Table1[[#This Row],[Cost  per unit (TD)]],0)","v":0},{"$f":"IF(Table1[[#This Row],[Test and Tag]]=\"Yes\",Table1[[#This Row],[Cost per Unit (TT)]],0)","v":0},{"$f":"SUM(Table1[[#This Row],[Parts Costs]],Table1[[#This Row],[Travel KM Total ]],Table1[[#This Row],[Labour Hours Total ]],Table1[[#This Row],[Service Cost (Test and Tag)]],Table1[[#This Row],[Travel Hours Total]])","v":0},{"$f":"IF(Table1[[#This Row],[Charge type]]<>\"\",Company_Name,\"\")","v":""},{"$f":"IF(Table1[[#This Row],[Charge type]]<>\"\",ENZ_Reference_Num,\"\")","v":""},{"$f":"IF(Table1[[#This Row],[Charge type]]<>\"\",Invoice_date,\"\")","v":""},{"$f":"IF(Table1[[#This Row],[Charge type]]<>\"\",Invoice_Number,\"\")","v":""},{"$f":"85","v":85},{"$f":"85","v":85},0.64,{"$f":"15","v":15},{"$f":"IF(Table1[[#This Row],[TOTAL JOB COST]]>1999.99,\"OVER $2k - contact Enable\",\"\")","v":""},null,{"$f":"IFERROR(VLOOKUP(Table1[[#This Row],[Equipment Type]],'Ref sheet'!I$2:J$7,2,FALSE),\"\")","v":""},{"$f":"IF(AND(Table1[[#This Row],[Equipment Type]]= \"\", Table1[[#This Row],[TOTAL JOB COST]] <> 0), \"Please set equipment type\", IF(Table1[[#This Row],[Limit]]<Table1[[#This Row],[TOTAL JOB COST]],\"Over equipment type limit\",\"\"))","v":""}]
[null,null,null,null,null,null,null,null,null,null,null,null,null,null,null,null,null,null,null,null,null,null,{"$f":"IFERROR(Table1[[#This Row],[Labour Hours]]*Table1[[#This Row],[Cost  per unit (LH)]],0)","v":0},{"$f":"IFERROR(Table1[[#This Row],[Travel Hours]]*Table1[[#This Row],[Cost  per unit (TH)]],0)","v":0},{"$f":"IFERROR(Table1[[#This Row],[Travel Distance (km)]]*Table1[[#This Row],[Cost  per unit (TD)]],0)","v":0},{"$f":"IF(Table1[[#This Row],[Test and Tag]]=\"Yes\",Table1[[#This Row],[Cost per Unit (TT)]],0)","v":0},{"$f":"SUM(Table1[[#This Row],[Parts Costs]],Table1[[#This Row],[Travel KM Total ]],Table1[[#This Row],[Labour Hours Total ]],Table1[[#This Row],[Service Cost (Test and Tag)]],Table1[[#This Row],[Travel Hours Total]])","v":0},{"$f":"IF(Table1[[#This Row],[Charge type]]<>\"\",Company_Name,\"\")","v":""},{"$f":"IF(Table1[[#This Row],[Charge type]]<>\"\",ENZ_Reference_Num,\"\")","v":""},{"$f":"IF(Table1[[#This Row],[Charge type]]<>\"\",Invoice_date,\"\")","v":""},{"$f":"IF(Table1[[#This Row],[Charge type]]<>\"\",Invoice_Number,\"\")","v":""},{"$f":"85","v":85},{"$f":"85","v":85},0.64,{"$f":"15","v":15},{"$f":"IF(Table1[[#This Row],[TOTAL JOB COST]]>1999.99,\"OVER $2k - contact Enable\",\"\")","v":""},null,{"$f":"IFERROR(VLOOKUP(Table1[[#This Row],[Equipment Type]],'Ref sheet'!I$2:J$7,2,FALSE),\"\")","v":""},{"$f":"IF(AND(Table1[[#This Row],[Equipment Type]]= \"\", Table1[[#This Row],[TOTAL JOB COST]] <> 0), \"Please set equipment type\", IF(Table1[[#This Row],[Limit]]<Table1[[#This Row],[TOTAL JOB COST]],\"Over equipment type limit\",\"\"))","v":""}]
[null,null,null,null,null,null,null,null,null,null,null,null,null,null,null,null,null,null,null,null,null,null,{"$f":"IFERROR(Table1[[#This Row],[Labour Hours]]*Table1[[#This Row],[Cost  per unit (LH)]],0)","v":0},{"$f":"IFERROR(Table1[[#This Row],[Travel Hours]]*Table1[[#This Row],[Cost  per unit (TH)]],0)","v":0},{"$f":"IFERROR(Table1[[#This Row],[Travel Distance (km)]]*Table1[[#This Row],[Cost  per unit (TD)]],0)","v":0},{"$f":"IF(Table1[[#This Row],[Test and Tag]]=\"Yes\",Table1[[#This Row],[Cost per Unit (TT)]],0)","v":0},{"$f":"SUM(Table1[[#This Row],[Parts Costs]],Table1[[#This Row],[Travel KM Total ]],Table1[[#This Row],[Labour Hours Total ]],Table1[[#This Row],[Service Cost (Test and Tag)]],Table1[[#This Row],[Travel Hours Total]])","v":0},{"$f":"IF(Table1[[#This Row],[Charge type]]<>\"\",Company_Name,\"\")","v":""},{"$f":"IF(Table1[[#This Row],[Charge type]]<>\"\",ENZ_Reference_Num,\"\")","v":""},{"$f":"IF(Table1[[#This Row],[Charge type]]<>\"\",Invoice_date,\"\")","v":""},{"$f":"IF(Table1[[#This Row],[Charge type]]<>\"\",Invoice_Number,\"\")","v":""},{"$f":"85","v":85},{"$f":"85","v":85},0.64,{"$f":"15","v":15},{"$f":"IF(Table1[[#This Row],[TOTAL JOB COST]]>1999.99,\"OVER $2k - contact Enable\",\"\")","v":""},null,{"$f":"IFERROR(VLOOKUP(Table1[[#This Row],[Equipment Type]],'Ref sheet'!I$2:J$7,2,FALSE),\"\")","v":""},{"$f":"IF(AND(Table1[[#This Row],[Equipment Type]]= \"\", Table1[[#This Row],[TOTAL JOB COST]] <> 0), \"Please set equipment type\", IF(Table1[[#This Row],[Limit]]<Table1[[#This Row],[TOTAL JOB COST]],\"Over equipment type limit\",\"\"))","v":""}]
[null,null,null,null,null,null,null,null,null,null,null,null,null,null,null,null,null,null,null,null,null,null,{"$f":"IFERROR(Table1[[#This Row],[Labour Hours]]*Table1[[#This Row],[Cost  per unit (LH)]],0)","v":0},{"$f":"IFERROR(Table1[[#This Row],[Travel Hours]]*Table1[[#This Row],[Cost  per unit (TH)]],0)","v":0},{"$f":"IFERROR(Table1[[#This Row],[Travel Distance (km)]]*Table1[[#This Row],[Cost  per unit (TD)]],0)","v":0},{"$f":"IF(Table1[[#This Row],[Test and Tag]]=\"Yes\",Table1[[#This Row],[Cost per Unit (TT)]],0)","v":0},{"$f":"SUM(Table1[[#This Row],[Parts Costs]],Table1[[#This Row],[Travel KM Total ]],Table1[[#This Row],[Labour Hours Total ]],Table1[[#This Row],[Service Cost (Test and Tag)]],Table1[[#This Row],[Travel Hours Total]])","v":0},{"$f":"IF(Table1[[#This Row],[Charge type]]<>\"\",Company_Name,\"\")","v":""},{"$f":"IF(Table1[[#This Row],[Charge type]]<>\"\",ENZ_Reference_Num,\"\")","v":""},{"$f":"IF(Table1[[#This Row],[Charge type]]<>\"\",Invoice_date,\"\")","v":""},{"$f":"IF(Table1[[#This Row],[Charge type]]<>\"\",Invoice_Number,\"\")","v":""},{"$f":"85","v":85},{"$f":"85","v":85},0.64,{"$f":"15","v":15},{"$f":"IF(Table1[[#This Row],[TOTAL JOB COST]]>1999.99,\"OVER $2k - contact Enable\",\"\")","v":""},null,{"$f":"IFERROR(VLOOKUP(Table1[[#This Row],[Equipment Type]],'Ref sheet'!I$2:J$7,2,FALSE),\"\")","v":""},{"$f":"IF(AND(Table1[[#This Row],[Equipment Type]]= \"\", Table1[[#This Row],[TOTAL JOB COST]] <> 0), \"Please set equipment type\", IF(Table1[[#This Row],[Limit]]<Table1[[#This Row],[TOTAL JOB COST]],\"Over equipment type limit\",\"\"))","v":""}]
[null,null,null,null,null,null,null,null,null,null,null,null,null,null,null,null,null,null,null,null,null,null,{"$f":"IFERROR(Table1[[#This Row],[Labour Hours]]*Table1[[#This Row],[Cost  per unit (LH)]],0)","v":0},{"$f":"IFERROR(Table1[[#This Row],[Travel Hours]]*Table1[[#This Row],[Cost  per unit (TH)]],0)","v":0},{"$f":"IFERROR(Table1[[#This Row],[Travel Distance (km)]]*Table1[[#This Row],[Cost  per unit (TD)]],0)","v":0},{"$f":"IF(Table1[[#This Row],[Test and Tag]]=\"Yes\",Table1[[#This Row],[Cost per Unit (TT)]],0)","v":0},{"$f":"SUM(Table1[[#This Row],[Parts Costs]],Table1[[#This Row],[Travel KM Total ]],Table1[[#This Row],[Labour Hours Total ]],Table1[[#This Row],[Service Cost (Test and Tag)]],Table1[[#This Row],[Travel Hours Total]])","v":0},{"$f":"IF(Table1[[#This Row],[Charge type]]<>\"\",Company_Name,\"\")","v":""},{"$f":"IF(Table1[[#This Row],[Charge type]]<>\"\",ENZ_Reference_Num,\"\")","v":""},{"$f":"IF(Table1[[#This Row],[Charge type]]<>\"\",Invoice_date,\"\")","v":""},{"$f":"IF(Table1[[#This Row],[Charge type]]<>\"\",Invoice_Number,\"\")","v":""},{"$f":"85","v":85},{"$f":"85","v":85},0.64,{"$f":"15","v":15},{"$f":"IF(Table1[[#This Row],[TOTAL JOB COST]]>1999.99,\"OVER $2k - contact Enable\",\"\")","v":""},null,{"$f":"IFERROR(VLOOKUP(Table1[[#This Row],[Equipment Type]],'Ref sheet'!I$2:J$7,2,FALSE),\"\")","v":""},{"$f":"IF(AND(Table1[[#This Row],[Equipment Type]]= \"\", Table1[[#This Row],[TOTAL JOB COST]] <> 0), \"Please set equipment type\", IF(Table1[[#This Row],[Limit]]<Table1[[#This Row],[TOTAL JOB COST]],\"Over equipment type limit\",\"\"))","v":""}]
[null,null,null,null,null,null,null,null,null,null,null,null,null,null,null,null,null,null,null,null,null,null,{"$f":"IFERROR(Table1[[#This Row],[Labour Hours]]*Table1[[#This Row],[Cost  per unit (LH)]],0)","v":0},{"$f":"IFERROR(Table1[[#This Row],[Travel Hours]]*Table1[[#This Row],[Cost  per unit (TH)]],0)","v":0},{"$f":"IFERROR(Table1[[#This Row],[Travel Distance (km)]]*Table1[[#This Row],[Cost  per unit (TD)]],0)","v":0},{"$f":"IF(Table1[[#This Row],[Test and Tag]]=\"Yes\",Table1[[#This Row],[Cost per Unit (TT)]],0)","v":0},{"$f":"SUM(Table1[[#This Row],[Parts Costs]],Table1[[#This Row],[Travel KM Total ]],Table1[[#This Row],[Labour Hours Total ]],Table1[[#This Row],[Service Cost (Test and Tag)]],Table1[[#This Row],[Travel Hours Total]])","v":0},{"$f":"IF(Table1[[#This Row],[Charge type]]<>\"\",Company_Name,\"\")","v":""},{"$f":"IF(Table1[[#This Row],[Charge type]]<>\"\",ENZ_Reference_Num,\"\")","v":""},{"$f":"IF(Table1[[#This Row],[Charge type]]<>\"\",Invoice_date,\"\")","v":""},{"$f":"IF(Table1[[#This Row],[Charge type]]<>\"\",Invoice_Number,\"\")","v":""},{"$f":"85","v":85},{"$f":"85","v":85},0.64,{"$f":"15","v":15},{"$f":"IF(Table1[[#This Row],[TOTAL JOB COST]]>1999.99,\"OVER $2k - contact Enable\",\"\")","v":""},null,{"$f":"IFERROR(VLOOKUP(Table1[[#This Row],[Equipment Type]],'Ref sheet'!I$2:J$7,2,FALSE),\"\")","v":""},{"$f":"IF(AND(Table1[[#This Row],[Equipment Type]]= \"\", Table1[[#This Row],[TOTAL JOB COST]] <> 0), \"Please set equipment type\", IF(Table1[[#This Row],[Limit]]<Table1[[#This Row],[TOTAL JOB COST]],\"Over equipment type limit\",\"\"))","v":""}]
[null,null,null,null,null,null,null,null,null,null,null,null,null,null,null,null,null,null,null,null,null,null,{"$f":"IFERROR(Table1[[#This Row],[Labour Hours]]*Table1[[#This Row],[Cost  per unit (LH)]],0)","v":0},{"$f":"IFERROR(Table1[[#This Row],[Travel Hours]]*Table1[[#This Row],[Cost  per unit (TH)]],0)","v":0},{"$f":"IFERROR(Table1[[#This Row],[Travel Distance (km)]]*Table1[[#This Row],[Cost  per unit (TD)]],0)","v":0},{"$f":"IF(Table1[[#This Row],[Test and Tag]]=\"Yes\",Table1[[#This Row],[Cost per Unit (TT)]],0)","v":0},{"$f":"SUM(Table1[[#This Row],[Parts Costs]],Table1[[#This Row],[Travel KM Total ]],Table1[[#This Row],[Labour Hours Total ]],Table1[[#This Row],[Service Cost (Test and Tag)]],Table1[[#This Row],[Travel Hours Total]])","v":0},{"$f":"IF(Table1[[#This Row],[Charge type]]<>\"\",Company_Name,\"\")","v":""},{"$f":"IF(Table1[[#This Row],[Charge type]]<>\"\",ENZ_Reference_Num,\"\")","v":""},{"$f":"IF(Table1[[#This Row],[Charge type]]<>\"\",Invoice_date,\"\")","v":""},{"$f":"IF(Table1[[#This Row],[Charge type]]<>\"\",Invoice_Number,\"\")","v":""},{"$f":"85","v":85},{"$f":"85","v":85},0.64,{"$f":"15","v":15},{"$f":"IF(Table1[[#This Row],[TOTAL JOB COST]]>1999.99,\"OVER $2k - contact Enable\",\"\")","v":""},null,{"$f":"IFERROR(VLOOKUP(Table1[[#This Row],[Equipment Type]],'Ref sheet'!I$2:J$7,2,FALSE),\"\")","v":""},{"$f":"IF(AND(Table1[[#This Row],[Equipment Type]]= \"\", Table1[[#This Row],[TOTAL JOB COST]] <> 0), \"Please set equipment type\", IF(Table1[[#This Row],[Limit]]<Table1[[#This Row],[TOTAL JOB COST]],\"Over equipment type limit\",\"\"))","v":""}]
[null,null,null,null,null,null,null,null,null,null,null,null,null,null,null,null,null,null,null,null,null,null,{"$f":"IFERROR(Table1[[#This Row],[Labour Hours]]*Table1[[#This Row],[Cost  per unit (LH)]],0)","v":0},{"$f":"IFERROR(Table1[[#This Row],[Travel Hours]]*Table1[[#This Row],[Cost  per unit (TH)]],0)","v":0},{"$f":"IFERROR(Table1[[#This Row],[Travel Distance (km)]]*Table1[[#This Row],[Cost  per unit (TD)]],0)","v":0},{"$f":"IF(Table1[[#This Row],[Test and Tag]]=\"Yes\",Table1[[#This Row],[Cost per Unit (TT)]],0)","v":0},{"$f":"SUM(Table1[[#This Row],[Parts Costs]],Table1[[#This Row],[Travel KM Total ]],Table1[[#This Row],[Labour Hours Total ]],Table1[[#This Row],[Service Cost (Test and Tag)]],Table1[[#This Row],[Travel Hours Total]])","v":0},{"$f":"IF(Table1[[#This Row],[Charge type]]<>\"\",Company_Name,\"\")","v":""},{"$f":"IF(Table1[[#This Row],[Charge type]]<>\"\",ENZ_Reference_Num,\"\")","v":""},{"$f":"IF(Table1[[#This Row],[Charge type]]<>\"\",Invoice_date,\"\")","v":""},{"$f":"IF(Table1[[#This Row],[Charge type]]<>\"\",Invoice_Number,\"\")","v":""},{"$f":"85","v":85},{"$f":"85","v":85},0.64,{"$f":"15","v":15},{"$f":"IF(Table1[[#This Row],[TOTAL JOB COST]]>1999.99,\"OVER $2k - contact Enable\",\"\")","v":""},null,{"$f":"IFERROR(VLOOKUP(Table1[[#This Row],[Equipment Type]],'Ref sheet'!I$2:J$7,2,FALSE),\"\")","v":""},{"$f":"IF(AND(Table1[[#This Row],[Equipment Type]]= \"\", Table1[[#This Row],[TOTAL JOB COST]] <> 0), \"Please set equipment type\", IF(Table1[[#This Row],[Limit]]<Table1[[#This Row],[TOTAL JOB COST]],\"Over equipment type limit\",\"\"))","v":""}]
[null,null,null,null,null,null,null,null,null,null,null,null,null,null,null,null,null,null,null,null,null,null,{"$f":"IFERROR(Table1[[#This Row],[Labour Hours]]*Table1[[#This Row],[Cost  per unit (LH)]],0)","v":0},{"$f":"IFERROR(Table1[[#This Row],[Travel Hours]]*Table1[[#This Row],[Cost  per unit (TH)]],0)","v":0},{"$f":"IFERROR(Table1[[#This Row],[Travel Distance (km)]]*Table1[[#This Row],[Cost  per unit (TD)]],0)","v":0},{"$f":"IF(Table1[[#This Row],[Test and Tag]]=\"Yes\",Table1[[#This Row],[Cost per Unit (TT)]],0)","v":0},{"$f":"SUM(Table1[[#This Row],[Parts Costs]],Table1[[#This Row],[Travel KM Total ]],Table1[[#This Row],[Labour Hours Total ]],Table1[[#This Row],[Service Cost (Test and Tag)]],Table1[[#This Row],[Travel Hours Total]])","v":0},{"$f":"IF(Table1[[#This Row],[Charge type]]<>\"\",Company_Name,\"\")","v":""},{"$f":"IF(Table1[[#This Row],[Charge type]]<>\"\",ENZ_Reference_Num,\"\")","v":""},{"$f":"IF(Table1[[#This Row],[Charge type]]<>\"\",Invoice_date,\"\")","v":""},{"$f":"IF(Table1[[#This Row],[Charge type]]<>\"\",Invoice_Number,\"\")","v":""},{"$f":"85","v":85},{"$f":"85","v":85},0.64,{"$f":"15","v":15},{"$f":"IF(Table1[[#This Row],[TOTAL JOB COST]]>1999.99,\"OVER $2k - contact Enable\",\"\")","v":""},null,{"$f":"IFERROR(VLOOKUP(Table1[[#This Row],[Equipment Type]],'Ref sheet'!I$2:J$7,2,FALSE),\"\")","v":""},{"$f":"IF(AND(Table1[[#This Row],[Equipment Type]]= \"\", Table1[[#This Row],[TOTAL JOB COST]] <> 0), \"Please set equipment type\", IF(Table1[[#This Row],[Limit]]<Table1[[#This Row],[TOTAL JOB COST]],\"Over equipment type limit\",\"\"))","v":""}]
[null,null,null,null,null,null,null,null,null,null,null,null,null,null,null,null,null,null,null,null,null,null,{"$f":"IFERROR(Table1[[#This Row],[Labour Hours]]*Table1[[#This Row],[Cost  per unit (LH)]],0)","v":0},{"$f":"IFERROR(Table1[[#This Row],[Travel Hours]]*Table1[[#This Row],[Cost  per unit (TH)]],0)","v":0},{"$f":"IFERROR(Table1[[#This Row],[Travel Distance (km)]]*Table1[[#This Row],[Cost  per unit (TD)]],0)","v":0},{"$f":"IF(Table1[[#This Row],[Test and Tag]]=\"Yes\",Table1[[#This Row],[Cost per Unit (TT)]],0)","v":0},{"$f":"SUM(Table1[[#This Row],[Parts Costs]],Table1[[#This Row],[Travel KM Total ]],Table1[[#This Row],[Labour Hours Total ]],Table1[[#This Row],[Service Cost (Test and Tag)]],Table1[[#This Row],[Travel Hours Total]])","v":0},{"$f":"IF(Table1[[#This Row],[Charge type]]<>\"\",Company_Name,\"\")","v":""},{"$f":"IF(Table1[[#This Row],[Charge type]]<>\"\",ENZ_Reference_Num,\"\")","v":""},{"$f":"IF(Table1[[#This Row],[Charge type]]<>\"\",Invoice_date,\"\")","v":""},{"$f":"IF(Table1[[#This Row],[Charge type]]<>\"\",Invoice_Number,\"\")","v":""},{"$f":"85","v":85},{"$f":"85","v":85},0.64,{"$f":"15","v":15},{"$f":"IF(Table1[[#This Row],[TOTAL JOB COST]]>1999.99,\"OVER $2k - contact Enable\",\"\")","v":""},null,{"$f":"IFERROR(VLOOKUP(Table1[[#This Row],[Equipment Type]],'Ref sheet'!I$2:J$7,2,FALSE),\"\")","v":""},{"$f":"IF(AND(Table1[[#This Row],[Equipment Type]]= \"\", Table1[[#This Row],[TOTAL JOB COST]] <> 0), \"Please set equipment type\", IF(Table1[[#This Row],[Limit]]<Table1[[#This Row],[TOTAL JOB COST]],\"Over equipment type limit\",\"\"))","v":""}]
[null,null,null,null,null,null,null,null,null,null,null,null,null,null,null,null,null,null,null,null,null,null,{"$f":"IFERROR(Table1[[#This Row],[Labour Hours]]*Table1[[#This Row],[Cost  per unit (LH)]],0)","v":0},{"$f":"IFERROR(Table1[[#This Row],[Travel Hours]]*Table1[[#This Row],[Cost  per unit (TH)]],0)","v":0},{"$f":"IFERROR(Table1[[#This Row],[Travel Distance (km)]]*Table1[[#This Row],[Cost  per unit (TD)]],0)","v":0},{"$f":"IF(Table1[[#This Row],[Test and Tag]]=\"Yes\",Table1[[#This Row],[Cost per Unit (TT)]],0)","v":0},{"$f":"SUM(Table1[[#This Row],[Parts Costs]],Table1[[#This Row],[Travel KM Total ]],Table1[[#This Row],[Labour Hours Total ]],Table1[[#This Row],[Service Cost (Test and Tag)]],Table1[[#This Row],[Travel Hours Total]])","v":0},{"$f":"IF(Table1[[#This Row],[Charge type]]<>\"\",Company_Name,\"\")","v":""},{"$f":"IF(Table1[[#This Row],[Charge type]]<>\"\",ENZ_Reference_Num,\"\")","v":""},{"$f":"IF(Table1[[#This Row],[Charge type]]<>\"\",Invoice_date,\"\")","v":""},{"$f":"IF(Table1[[#This Row],[Charge type]]<>\"\",Invoice_Number,\"\")","v":""},{"$f":"85","v":85},{"$f":"85","v":85},0.64,{"$f":"15","v":15},{"$f":"IF(Table1[[#This Row],[TOTAL JOB COST]]>1999.99,\"OVER $2k - contact Enable\",\"\")","v":""},null,{"$f":"IFERROR(VLOOKUP(Table1[[#This Row],[Equipment Type]],'Ref sheet'!I$2:J$7,2,FALSE),\"\")","v":""},{"$f":"IF(AND(Table1[[#This Row],[Equipment Type]]= \"\", Table1[[#This Row],[TOTAL JOB COST]] <> 0), \"Please set equipment type\", IF(Table1[[#This Row],[Limit]]<Table1[[#This Row],[TOTAL JOB COST]],\"Over equipment type limit\",\"\"))","v":""}]
[null,null,null,null,null,null,null,null,null,null,null,null,null,null,null,null,null,null,null,null,null,null,{"$f":"IFERROR(Table1[[#This Row],[Labour Hours]]*Table1[[#This Row],[Cost  per unit (LH)]],0)","v":0},{"$f":"IFERROR(Table1[[#This Row],[Travel Hours]]*Table1[[#This Row],[Cost  per unit (TH)]],0)","v":0},{"$f":"IFERROR(Table1[[#This Row],[Travel Distance (km)]]*Table1[[#This Row],[Cost  per unit (TD)]],0)","v":0},{"$f":"IF(Table1[[#This Row],[Test and Tag]]=\"Yes\",Table1[[#This Row],[Cost per Unit (TT)]],0)","v":0},{"$f":"SUM(Table1[[#This Row],[Parts Costs]],Table1[[#This Row],[Travel KM Total ]],Table1[[#This Row],[Labour Hours Total ]],Table1[[#This Row],[Service Cost (Test and Tag)]],Table1[[#This Row],[Travel Hours Total]])","v":0},{"$f":"IF(Table1[[#This Row],[Charge type]]<>\"\",Company_Name,\"\")","v":""},{"$f":"IF(Table1[[#This Row],[Charge type]]<>\"\",ENZ_Reference_Num,\"\")","v":""},{"$f":"IF(Table1[[#This Row],[Charge type]]<>\"\",Invoice_date,\"\")","v":""},{"$f":"IF(Table1[[#This Row],[Charge type]]<>\"\",Invoice_Number,\"\")","v":""},{"$f":"85","v":85},{"$f":"85","v":85},0.64,{"$f":"15","v":15},{"$f":"IF(Table1[[#This Row],[TOTAL JOB COST]]>1999.99,\"OVER $2k - contact Enable\",\"\")","v":""},null,{"$f":"IFERROR(VLOOKUP(Table1[[#This Row],[Equipment Type]],'Ref sheet'!I$2:J$7,2,FALSE),\"\")","v":""},{"$f":"IF(AND(Table1[[#This Row],[Equipment Type]]= \"\", Table1[[#This Row],[TOTAL JOB COST]] <> 0), \"Please set equipment type\", IF(Table1[[#This Row],[Limit]]<Table1[[#This Row],[TOTAL JOB COST]],\"Over equipment type limit\",\"\"))","v":""}]
[null,null,null,null,null,null,null,null,null,null,null,null,null,null,null,null,null,null,null,null,null,null,{"$f":"IFERROR(Table1[[#This Row],[Labour Hours]]*Table1[[#This Row],[Cost  per unit (LH)]],0)","v":0},{"$f":"IFERROR(Table1[[#This Row],[Travel Hours]]*Table1[[#This Row],[Cost  per unit (TH)]],0)","v":0},{"$f":"IFERROR(Table1[[#This Row],[Travel Distance (km)]]*Table1[[#This Row],[Cost  per unit (TD)]],0)","v":0},{"$f":"IF(Table1[[#This Row],[Test and Tag]]=\"Yes\",Table1[[#This Row],[Cost per Unit (TT)]],0)","v":0},{"$f":"SUM(Table1[[#This Row],[Parts Costs]],Table1[[#This Row],[Travel KM Total ]],Table1[[#This Row],[Labour Hours Total ]],Table1[[#This Row],[Service Cost (Test and Tag)]],Table1[[#This Row],[Travel Hours Total]])","v":0},{"$f":"IF(Table1[[#This Row],[Charge type]]<>\"\",Company_Name,\"\")","v":""},{"$f":"IF(Table1[[#This Row],[Charge type]]<>\"\",ENZ_Reference_Num,\"\")","v":""},{"$f":"IF(Table1[[#This Row],[Charge type]]<>\"\",Invoice_date,\"\")","v":""},{"$f":"IF(Table1[[#This Row],[Charge type]]<>\"\",Invoice_Number,\"\")","v":""},{"$f":"85","v":85},{"$f":"85","v":85},{"$f":"0.64","v":0.64},{"$f":"15","v":15},{"$f":"IF(Table1[[#This Row],[TOTAL JOB COST]]>1999.99,\"OVER $2k - contact Enable\",\"\")","v":""},null,{"$f":"IFERROR(VLOOKUP(Table1[[#This Row],[Equipment Type]],'Ref sheet'!I$2:J$7,2,FALSE),\"\")","v":""},{"$f":"IF(AND(Table1[[#This Row],[Equipment Type]]= \"\", Table1[[#This Row],[TOTAL JOB COST]] <> 0), \"Please set equipment type\", IF(Table1[[#This Row],[Limit]]<Table1[[#This Row],[TOTAL JOB COST]],\"Over equipment type limit\",\"\"))","v":""}]
[null,null,null,null,null,null,null,null,null,null,null,null,null,null,null,null,null,null,null,null,null,null,{"$f":"IFERROR(Table1[[#This Row],[Labour Hours]]*Table1[[#This Row],[Cost  per unit (LH)]],0)","v":0},{"$f":"IFERROR(Table1[[#This Row],[Travel Hours]]*Table1[[#This Row],[Cost  per unit (TH)]],0)","v":0},{"$f":"IFERROR(Table1[[#This Row],[Travel Distance (km)]]*Table1[[#This Row],[Cost  per unit (TD)]],0)","v":0},{"$f":"IF(Table1[[#This Row],[Test and Tag]]=\"Yes\",Table1[[#This Row],[Cost per Unit (TT)]],0)","v":0},{"$f":"SUM(Table1[[#This Row],[Parts Costs]],Table1[[#This Row],[Travel KM Total ]],Table1[[#This Row],[Labour Hours Total ]],Table1[[#This Row],[Service Cost (Test and Tag)]],Table1[[#This Row],[Travel Hours Total]])","v":0},{"$f":"IF(Table1[[#This Row],[Charge type]]<>\"\",Company_Name,\"\")","v":""},{"$f":"IF(Table1[[#This Row],[Charge type]]<>\"\",ENZ_Reference_Num,\"\")","v":""},{"$f":"IF(Table1[[#This Row],[Charge type]]<>\"\",Invoice_date,\"\")","v":""},{"$f":"IF(Table1[[#This Row],[Charge type]]<>\"\",Invoice_Number,\"\")","v":""},{"$f":"85","v":85},{"$f":"85","v":85},0.64,{"$f":"15","v":15},{"$f":"IF(Table1[[#This Row],[TOTAL JOB COST]]>1999.99,\"OVER $2k - contact Enable\",\"\")","v":""},null,{"$f":"IFERROR(VLOOKUP(Table1[[#This Row],[Equipment Type]],'Ref sheet'!I$2:J$7,2,FALSE),\"\")","v":""},{"$f":"IF(AND(Table1[[#This Row],[Equipment Type]]= \"\", Table1[[#This Row],[TOTAL JOB COST]] <> 0), \"Please set equipment type\", IF(Table1[[#This Row],[Limit]]<Table1[[#This Row],[TOTAL JOB COST]],\"Over equipment type limit\",\"\"))","v":""}]
[null,null,null,null,null,null,null,null,null,null,null,null,null,null,null,null,null,null,null,null,null,null,{"$f":"IFERROR(Table1[[#This Row],[Labour Hours]]*Table1[[#This Row],[Cost  per unit (LH)]],0)","v":0},{"$f":"IFERROR(Table1[[#This Row],[Travel Hours]]*Table1[[#This Row],[Cost  per unit (TH)]],0)","v":0},{"$f":"IFERROR(Table1[[#This Row],[Travel Distance (km)]]*Table1[[#This Row],[Cost  per unit (TD)]],0)","v":0},{"$f":"IF(Table1[[#This Row],[Test and Tag]]=\"Yes\",Table1[[#This Row],[Cost per Unit (TT)]],0)","v":0},{"$f":"SUM(Table1[[#This Row],[Parts Costs]],Table1[[#This Row],[Travel KM Total ]],Table1[[#This Row],[Labour Hours Total ]],Table1[[#This Row],[Service Cost (Test and Tag)]],Table1[[#This Row],[Travel Hours Total]])","v":0},{"$f":"IF(Table1[[#This Row],[Charge type]]<>\"\",Company_Name,\"\")","v":""},{"$f":"IF(Table1[[#This Row],[Charge type]]<>\"\",ENZ_Reference_Num,\"\")","v":""},{"$f":"IF(Table1[[#This Row],[Charge type]]<>\"\",Invoice_date,\"\")","v":""},{"$f":"IF(Table1[[#This Row],[Charge type]]<>\"\",Invoice_Number,\"\")","v":""},{"$f":"85","v":85},{"$f":"85","v":85},0.64,{"$f":"15","v":15},{"$f":"IF(Table1[[#This Row],[TOTAL JOB COST]]>1999.99,\"OVER $2k - contact Enable\",\"\")","v":""},null,{"$f":"IFERROR(VLOOKUP(Table1[[#This Row],[Equipment Type]],'Ref sheet'!I$2:J$7,2,FALSE),\"\")","v":""},{"$f":"IF(AND(Table1[[#This Row],[Equipment Type]]= \"\", Table1[[#This Row],[TOTAL JOB COST]] <> 0), \"Please set equipment type\", IF(Table1[[#This Row],[Limit]]<Table1[[#This Row],[TOTAL JOB COST]],\"Over equipment type limit\",\"\"))","v":""}]
[null,null,null,null,null,null,null,null,null,null,null,null,null,null,null,null,null,null,null,null,null,null,{"$f":"IFERROR(Table1[[#This Row],[Labour Hours]]*Table1[[#This Row],[Cost  per unit (LH)]],0)","v":0},{"$f":"IFERROR(Table1[[#This Row],[Travel Hours]]*Table1[[#This Row],[Cost  per unit (TH)]],0)","v":0},{"$f":"IFERROR(Table1[[#This Row],[Travel Distance (km)]]*Table1[[#This Row],[Cost  per unit (TD)]],0)","v":0},{"$f":"IF(Table1[[#This Row],[Test and Tag]]=\"Yes\",Table1[[#This Row],[Cost per Unit (TT)]],0)","v":0},{"$f":"SUM(Table1[[#This Row],[Parts Costs]],Table1[[#This Row],[Travel KM Total ]],Table1[[#This Row],[Labour Hours Total ]],Table1[[#This Row],[Service Cost (Test and Tag)]],Table1[[#This Row],[Travel Hours Total]])","v":0},{"$f":"IF(Table1[[#This Row],[Charge type]]<>\"\",Company_Name,\"\")","v":""},{"$f":"IF(Table1[[#This Row],[Charge type]]<>\"\",ENZ_Reference_Num,\"\")","v":""},{"$f":"IF(Table1[[#This Row],[Charge type]]<>\"\",Invoice_date,\"\")","v":""},{"$f":"IF(Table1[[#This Row],[Charge type]]<>\"\",Invoice_Number,\"\")","v":""},{"$f":"85","v":85},{"$f":"85","v":85},0.64,{"$f":"15","v":15},{"$f":"IF(Table1[[#This Row],[TOTAL JOB COST]]>1999.99,\"OVER $2k - contact Enable\",\"\")","v":""},null,{"$f":"IFERROR(VLOOKUP(Table1[[#This Row],[Equipment Type]],'Ref sheet'!I$2:J$7,2,FALSE),\"\")","v":""},{"$f":"IF(AND(Table1[[#This Row],[Equipment Type]]= \"\", Table1[[#This Row],[TOTAL JOB COST]] <> 0), \"Please set equipment type\", IF(Table1[[#This Row],[Limit]]<Table1[[#This Row],[TOTAL JOB COST]],\"Over equipment type limit\",\"\"))","v":""}]
[null,null,null,null,null,null,null,null,null,null,null,null,null,null,null,null,null,null,null,null,null,null,{"$f":"IFERROR(Table1[[#This Row],[Labour Hours]]*Table1[[#This Row],[Cost  per unit (LH)]],0)","v":0},{"$f":"IFERROR(Table1[[#This Row],[Travel Hours]]*Table1[[#This Row],[Cost  per unit (TH)]],0)","v":0},{"$f":"IFERROR(Table1[[#This Row],[Travel Distance (km)]]*Table1[[#This Row],[Cost  per unit (TD)]],0)","v":0},{"$f":"IF(Table1[[#This Row],[Test and Tag]]=\"Yes\",Table1[[#This Row],[Cost per Unit (TT)]],0)","v":0},{"$f":"SUM(Table1[[#This Row],[Parts Costs]],Table1[[#This Row],[Travel KM Total ]],Table1[[#This Row],[Labour Hours Total ]],Table1[[#This Row],[Service Cost (Test and Tag)]],Table1[[#This Row],[Travel Hours Total]])","v":0},{"$f":"IF(Table1[[#This Row],[Charge type]]<>\"\",Company_Name,\"\")","v":""},{"$f":"IF(Table1[[#This Row],[Charge type]]<>\"\",ENZ_Reference_Num,\"\")","v":""},{"$f":"IF(Table1[[#This Row],[Charge type]]<>\"\",Invoice_date,\"\")","v":""},{"$f":"IF(Table1[[#This Row],[Charge type]]<>\"\",Invoice_Number,\"\")","v":""},{"$f":"85","v":85},{"$f":"85","v":85},0.64,{"$f":"15","v":15},{"$f":"IF(Table1[[#This Row],[TOTAL JOB COST]]>1999.99,\"OVER $2k - contact Enable\",\"\")","v":""},null,{"$f":"IFERROR(VLOOKUP(Table1[[#This Row],[Equipment Type]],'Ref sheet'!I$2:J$7,2,FALSE),\"\")","v":""},{"$f":"IF(AND(Table1[[#This Row],[Equipment Type]]= \"\", Table1[[#This Row],[TOTAL JOB COST]] <> 0), \"Please set equipment type\", IF(Table1[[#This Row],[Limit]]<Table1[[#This Row],[TOTAL JOB COST]],\"Over equipment type limit\",\"\"))","v":""}]
[null,null,null,null,null,null,null,null,null,null,null,null,null,null,null,null,null,null,null,null,null,null,{"$f":"IFERROR(Table1[[#This Row],[Labour Hours]]*Table1[[#This Row],[Cost  per unit (LH)]],0)","v":0},{"$f":"IFERROR(Table1[[#This Row],[Travel Hours]]*Table1[[#This Row],[Cost  per unit (TH)]],0)","v":0},{"$f":"IFERROR(Table1[[#This Row],[Travel Distance (km)]]*Table1[[#This Row],[Cost  per unit (TD)]],0)","v":0},{"$f":"IF(Table1[[#This Row],[Test and Tag]]=\"Yes\",Table1[[#This Row],[Cost per Unit (TT)]],0)","v":0},{"$f":"SUM(Table1[[#This Row],[Parts Costs]],Table1[[#This Row],[Travel KM Total ]],Table1[[#This Row],[Labour Hours Total ]],Table1[[#This Row],[Service Cost (Test and Tag)]],Table1[[#This Row],[Travel Hours Total]])","v":0},{"$f":"IF(Table1[[#This Row],[Charge type]]<>\"\",Company_Name,\"\")","v":""},{"$f":"IF(Table1[[#This Row],[Charge type]]<>\"\",ENZ_Reference_Num,\"\")","v":""},{"$f":"IF(Table1[[#This Row],[Charge type]]<>\"\",Invoice_date,\"\")","v":""},{"$f":"IF(Table1[[#This Row],[Charge type]]<>\"\",Invoice_Number,\"\")","v":""},{"$f":"85","v":85},{"$f":"85","v":85},0.64,{"$f":"15","v":15},{"$f":"IF(Table1[[#This Row],[TOTAL JOB COST]]>1999.99,\"OVER $2k - contact Enable\",\"\")","v":""},null,{"$f":"IFERROR(VLOOKUP(Table1[[#This Row],[Equipment Type]],'Ref sheet'!I$2:J$7,2,FALSE),\"\")","v":""},{"$f":"IF(AND(Table1[[#This Row],[Equipment Type]]= \"\", Table1[[#This Row],[TOTAL JOB COST]] <> 0), \"Please set equipment type\", IF(Table1[[#This Row],[Limit]]<Table1[[#This Row],[TOTAL JOB COST]],\"Over equipment type limit\",\"\"))","v":""}]
[null,null,null,null,null,null,null,null,null,null,null,null,null,null,null,null,null,null,null,null,null,null,{"$f":"IFERROR(Table1[[#This Row],[Labour Hours]]*Table1[[#This Row],[Cost  per unit (LH)]],0)","v":0},{"$f":"IFERROR(Table1[[#This Row],[Travel Hours]]*Table1[[#This Row],[Cost  per unit (TH)]],0)","v":0},{"$f":"IFERROR(Table1[[#This Row],[Travel Distance (km)]]*Table1[[#This Row],[Cost  per unit (TD)]],0)","v":0},{"$f":"IF(Table1[[#This Row],[Test and Tag]]=\"Yes\",Table1[[#This Row],[Cost per Unit (TT)]],0)","v":0},{"$f":"SUM(Table1[[#This Row],[Parts Costs]],Table1[[#This Row],[Travel KM Total ]],Table1[[#This Row],[Labour Hours Total ]],Table1[[#This Row],[Service Cost (Test and Tag)]],Table1[[#This Row],[Travel Hours Total]])","v":0},{"$f":"IF(Table1[[#This Row],[Charge type]]<>\"\",Company_Name,\"\")","v":""},{"$f":"IF(Table1[[#This Row],[Charge type]]<>\"\",ENZ_Reference_Num,\"\")","v":""},{"$f":"IF(Table1[[#This Row],[Charge type]]<>\"\",Invoice_date,\"\")","v":""},{"$f":"IF(Table1[[#This Row],[Charge type]]<>\"\",Invoice_Number,\"\")","v":""},{"$f":"85","v":85},{"$f":"85","v":85},0.64,{"$f":"15","v":15},{"$f":"IF(Table1[[#This Row],[TOTAL JOB COST]]>1999.99,\"OVER $2k - contact Enable\",\"\")","v":""},null,{"$f":"IFERROR(VLOOKUP(Table1[[#This Row],[Equipment Type]],'Ref sheet'!I$2:J$7,2,FALSE),\"\")","v":""},{"$f":"IF(AND(Table1[[#This Row],[Equipment Type]]= \"\", Table1[[#This Row],[TOTAL JOB COST]] <> 0), \"Please set equipment type\", IF(Table1[[#This Row],[Limit]]<Table1[[#This Row],[TOTAL JOB COST]],\"Over equipment type limit\",\"\"))","v":""}]
[null,null,null,null,null,null,null,null,null,null,null,null,null,null,null,null,null,null,null,null,null,null,{"$f":"IFERROR(Table1[[#This Row],[Labour Hours]]*Table1[[#This Row],[Cost  per unit (LH)]],0)","v":0},{"$f":"IFERROR(Table1[[#This Row],[Travel Hours]]*Table1[[#This Row],[Cost  per unit (TH)]],0)","v":0},{"$f":"IFERROR(Table1[[#This Row],[Travel Distance (km)]]*Table1[[#This Row],[Cost  per unit (TD)]],0)","v":0},{"$f":"IF(Table1[[#This Row],[Test and Tag]]=\"Yes\",Table1[[#This Row],[Cost per Unit (TT)]],0)","v":0},{"$f":"SUM(Table1[[#This Row],[Parts Costs]],Table1[[#This Row],[Travel KM Total ]],Table1[[#This Row],[Labour Hours Total ]],Table1[[#This Row],[Service Cost (Test and Tag)]],Table1[[#This Row],[Travel Hours Total]])","v":0},{"$f":"IF(Table1[[#This Row],[Charge type]]<>\"\",Company_Name,\"\")","v":""},{"$f":"IF(Table1[[#This Row],[Charge type]]<>\"\",ENZ_Reference_Num,\"\")","v":""},{"$f":"IF(Table1[[#This Row],[Charge type]]<>\"\",Invoice_date,\"\")","v":""},{"$f":"IF(Table1[[#This Row],[Charge type]]<>\"\",Invoice_Number,\"\")","v":""},{"$f":"85","v":85},{"$f":"85","v":85},0.64,{"$f":"15","v":15},{"$f":"IF(Table1[[#This Row],[TOTAL JOB COST]]>1999.99,\"OVER $2k - contact Enable\",\"\")","v":""},null,{"$f":"IFERROR(VLOOKUP(Table1[[#This Row],[Equipment Type]],'Ref sheet'!I$2:J$7,2,FALSE),\"\")","v":""},{"$f":"IF(AND(Table1[[#This Row],[Equipment Type]]= \"\", Table1[[#This Row],[TOTAL JOB COST]] <> 0), \"Please set equipment type\", IF(Table1[[#This Row],[Limit]]<Table1[[#This Row],[TOTAL JOB COST]],\"Over equipment type limit\",\"\"))","v":""}]
[null,null,null,null,null,null,null,null,null,null,null,null,null,null,null,null,null,null,null,null,null,null,{"$f":"IFERROR(Table1[[#This Row],[Labour Hours]]*Table1[[#This Row],[Cost  per unit (LH)]],0)","v":0},{"$f":"IFERROR(Table1[[#This Row],[Travel Hours]]*Table1[[#This Row],[Cost  per unit (TH)]],0)","v":0},{"$f":"IFERROR(Table1[[#This Row],[Travel Distance (km)]]*Table1[[#This Row],[Cost  per unit (TD)]],0)","v":0},{"$f":"IF(Table1[[#This Row],[Test and Tag]]=\"Yes\",Table1[[#This Row],[Cost per Unit (TT)]],0)","v":0},{"$f":"SUM(Table1[[#This Row],[Parts Costs]],Table1[[#This Row],[Travel KM Total ]],Table1[[#This Row],[Labour Hours Total ]],Table1[[#This Row],[Service Cost (Test and Tag)]],Table1[[#This Row],[Travel Hours Total]])","v":0},{"$f":"IF(Table1[[#This Row],[Charge type]]<>\"\",Company_Name,\"\")","v":""},{"$f":"IF(Table1[[#This Row],[Charge type]]<>\"\",ENZ_Reference_Num,\"\")","v":""},{"$f":"IF(Table1[[#This Row],[Charge type]]<>\"\",Invoice_date,\"\")","v":""},{"$f":"IF(Table1[[#This Row],[Charge type]]<>\"\",Invoice_Number,\"\")","v":""},{"$f":"85","v":85},{"$f":"85","v":85},0.64,{"$f":"15","v":15},{"$f":"IF(Table1[[#This Row],[TOTAL JOB COST]]>1999.99,\"OVER $2k - contact Enable\",\"\")","v":""},null,{"$f":"IFERROR(VLOOKUP(Table1[[#This Row],[Equipment Type]],'Ref sheet'!I$2:J$7,2,FALSE),\"\")","v":""},{"$f":"IF(AND(Table1[[#This Row],[Equipment Type]]= \"\", Table1[[#This Row],[TOTAL JOB COST]] <> 0), \"Please set equipment type\", IF(Table1[[#This Row],[Limit]]<Table1[[#This Row],[TOTAL JOB COST]],\"Over equipment type limit\",\"\"))","v":""}]
[null,null,null,null,null,null,null,null,null,null,null,null,null,null,null,null,null,null,null,null,null,null,{"$f":"IFERROR(Table1[[#This Row],[Labour Hours]]*Table1[[#This Row],[Cost  per unit (LH)]],0)","v":0},{"$f":"IFERROR(Table1[[#This Row],[Travel Hours]]*Table1[[#This Row],[Cost  per unit (TH)]],0)","v":0},{"$f":"IFERROR(Table1[[#This Row],[Travel Distance (km)]]*Table1[[#This Row],[Cost  per unit (TD)]],0)","v":0},{"$f":"IF(Table1[[#This Row],[Test and Tag]]=\"Yes\",Table1[[#This Row],[Cost per Unit (TT)]],0)","v":0},{"$f":"SUM(Table1[[#This Row],[Parts Costs]],Table1[[#This Row],[Travel KM Total ]],Table1[[#This Row],[Labour Hours Total ]],Table1[[#This Row],[Service Cost (Test and Tag)]],Table1[[#This Row],[Travel Hours Total]])","v":0},{"$f":"IF(Table1[[#This Row],[Charge type]]<>\"\",Company_Name,\"\")","v":""},{"$f":"IF(Table1[[#This Row],[Charge type]]<>\"\",ENZ_Reference_Num,\"\")","v":""},{"$f":"IF(Table1[[#This Row],[Charge type]]<>\"\",Invoice_date,\"\")","v":""},{"$f":"IF(Table1[[#This Row],[Charge type]]<>\"\",Invoice_Number,\"\")","v":""},{"$f":"85","v":85},{"$f":"85","v":85},0.64,{"$f":"15","v":15},{"$f":"IF(Table1[[#This Row],[TOTAL JOB COST]]>1999.99,\"OVER $2k - contact Enable\",\"\")","v":""},null,{"$f":"IFERROR(VLOOKUP(Table1[[#This Row],[Equipment Type]],'Ref sheet'!I$2:J$7,2,FALSE),\"\")","v":""},{"$f":"IF(AND(Table1[[#This Row],[Equipment Type]]= \"\", Table1[[#This Row],[TOTAL JOB COST]] <> 0), \"Please set equipment type\", IF(Table1[[#This Row],[Limit]]<Table1[[#This Row],[TOTAL JOB COST]],\"Over equipment type limit\",\"\"))","v":""}]
[null,null,null,null,null,null,null,null,null,null,null,null,null,null,null,null,null,null,null,null,null,null,{"$f":"IFERROR(Table1[[#This Row],[Labour Hours]]*Table1[[#This Row],[Cost  per unit (LH)]],0)","v":0},{"$f":"IFERROR(Table1[[#This Row],[Travel Hours]]*Table1[[#This Row],[Cost  per unit (TH)]],0)","v":0},{"$f":"IFERROR(Table1[[#This Row],[Travel Distance (km)]]*Table1[[#This Row],[Cost  per unit (TD)]],0)","v":0},{"$f":"IF(Table1[[#This Row],[Test and Tag]]=\"Yes\",Table1[[#This Row],[Cost per Unit (TT)]],0)","v":0},{"$f":"SUM(Table1[[#This Row],[Parts Costs]],Table1[[#This Row],[Travel KM Total ]],Table1[[#This Row],[Labour Hours Total ]],Table1[[#This Row],[Service Cost (Test and Tag)]],Table1[[#This Row],[Travel Hours Total]])","v":0},{"$f":"IF(Table1[[#This Row],[Charge type]]<>\"\",Company_Name,\"\")","v":""},{"$f":"IF(Table1[[#This Row],[Charge type]]<>\"\",ENZ_Reference_Num,\"\")","v":""},{"$f":"IF(Table1[[#This Row],[Charge type]]<>\"\",Invoice_date,\"\")","v":""},{"$f":"IF(Table1[[#This Row],[Charge type]]<>\"\",Invoice_Number,\"\")","v":""},{"$f":"85","v":85},{"$f":"85","v":85},0.64,{"$f":"15","v":15},{"$f":"IF(Table1[[#This Row],[TOTAL JOB COST]]>1999.99,\"OVER $2k - contact Enable\",\"\")","v":""},null,{"$f":"IFERROR(VLOOKUP(Table1[[#This Row],[Equipment Type]],'Ref sheet'!I$2:J$7,2,FALSE),\"\")","v":""},{"$f":"IF(AND(Table1[[#This Row],[Equipment Type]]= \"\", Table1[[#This Row],[TOTAL JOB COST]] <> 0), \"Please set equipment type\", IF(Table1[[#This Row],[Limit]]<Table1[[#This Row],[TOTAL JOB COST]],\"Over equipment type limit\",\"\"))","v":""}]
[null,null,null,null,null,null,null,null,null,null,null,null,null,null,null,null,null,null,null,null,null,null,{"$f":"IFERROR(Table1[[#This Row],[Labour Hours]]*Table1[[#This Row],[Cost  per unit (LH)]],0)","v":0},{"$f":"IFERROR(Table1[[#This Row],[Travel Hours]]*Table1[[#This Row],[Cost  per unit (TH)]],0)","v":0},{"$f":"IFERROR(Table1[[#This Row],[Travel Distance (km)]]*Table1[[#This Row],[Cost  per unit (TD)]],0)","v":0},{"$f":"IF(Table1[[#This Row],[Test and Tag]]=\"Yes\",Table1[[#This Row],[Cost per Unit (TT)]],0)","v":0},{"$f":"SUM(Table1[[#This Row],[Parts Costs]],Table1[[#This Row],[Travel KM Total ]],Table1[[#This Row],[Labour Hours Total ]],Table1[[#This Row],[Service Cost (Test and Tag)]],Table1[[#This Row],[Travel Hours Total]])","v":0},{"$f":"IF(Table1[[#This Row],[Charge type]]<>\"\",Company_Name,\"\")","v":""},{"$f":"IF(Table1[[#This Row],[Charge type]]<>\"\",ENZ_Reference_Num,\"\")","v":""},{"$f":"IF(Table1[[#This Row],[Charge type]]<>\"\",Invoice_date,\"\")","v":""},{"$f":"IF(Table1[[#This Row],[Charge type]]<>\"\",Invoice_Number,\"\")","v":""},{"$f":"85","v":85},{"$f":"85","v":85},0.64,{"$f":"15","v":15},{"$f":"IF(Table1[[#This Row],[TOTAL JOB COST]]>1999.99,\"OVER $2k - contact Enable\",\"\")","v":""},null,{"$f":"IFERROR(VLOOKUP(Table1[[#This Row],[Equipment Type]],'Ref sheet'!I$2:J$7,2,FALSE),\"\")","v":""},{"$f":"IF(AND(Table1[[#This Row],[Equipment Type]]= \"\", Table1[[#This Row],[TOTAL JOB COST]] <> 0), \"Please set equipment type\", IF(Table1[[#This Row],[Limit]]<Table1[[#This Row],[TOTAL JOB COST]],\"Over equipment type limit\",\"\"))","v":""}]
[null,null,null,null,null,null,null,null,null,null,null,null,null,null,null,null,null,null,null,null,null,null,{"$f":"IFERROR(Table1[[#This Row],[Labour Hours]]*Table1[[#This Row],[Cost  per unit (LH)]],0)","v":0},{"$f":"IFERROR(Table1[[#This Row],[Travel Hours]]*Table1[[#This Row],[Cost  per unit (TH)]],0)","v":0},{"$f":"IFERROR(Table1[[#This Row],[Travel Distance (km)]]*Table1[[#This Row],[Cost  per unit (TD)]],0)","v":0},{"$f":"IF(Table1[[#This Row],[Test and Tag]]=\"Yes\",Table1[[#This Row],[Cost per Unit (TT)]],0)","v":0},{"$f":"SUM(Table1[[#This Row],[Parts Costs]],Table1[[#This Row],[Travel KM Total ]],Table1[[#This Row],[Labour Hours Total ]],Table1[[#This Row],[Service Cost (Test and Tag)]],Table1[[#This Row],[Travel Hours Total]])","v":0},{"$f":"IF(Table1[[#This Row],[Charge type]]<>\"\",Company_Name,\"\")","v":""},{"$f":"IF(Table1[[#This Row],[Charge type]]<>\"\",ENZ_Reference_Num,\"\")","v":""},{"$f":"IF(Table1[[#This Row],[Charge type]]<>\"\",Invoice_date,\"\")","v":""},{"$f":"IF(Table1[[#This Row],[Charge type]]<>\"\",Invoice_Number,\"\")","v":""},{"$f":"85","v":85},{"$f":"85","v":85},0.64,{"$f":"15","v":15},{"$f":"IF(Table1[[#This Row],[TOTAL JOB COST]]>1999.99,\"OVER $2k - contact Enable\",\"\")","v":""},null,{"$f":"IFERROR(VLOOKUP(Table1[[#This Row],[Equipment Type]],'Ref sheet'!I$2:J$7,2,FALSE),\"\")","v":""},{"$f":"IF(AND(Table1[[#This Row],[Equipment Type]]= \"\", Table1[[#This Row],[TOTAL JOB COST]] <> 0), \"Please set equipment type\", IF(Table1[[#This Row],[Limit]]<Table1[[#This Row],[TOTAL JOB COST]],\"Over equipment type limit\",\"\"))","v":""}]
[null,null,null,null,null,null,null,null,null,null,null,null,null,null,null,null,null,null,null,null,null,null,{"$f":"IFERROR(Table1[[#This Row],[Labour Hours]]*Table1[[#This Row],[Cost  per unit (LH)]],0)","v":0},{"$f":"IFERROR(Table1[[#This Row],[Travel Hours]]*Table1[[#This Row],[Cost  per unit (TH)]],0)","v":0},{"$f":"IFERROR(Table1[[#This Row],[Travel Distance (km)]]*Table1[[#This Row],[Cost  per unit (TD)]],0)","v":0},{"$f":"IF(Table1[[#This Row],[Test and Tag]]=\"Yes\",Table1[[#This Row],[Cost per Unit (TT)]],0)","v":0},{"$f":"SUM(Table1[[#This Row],[Parts Costs]],Table1[[#This Row],[Travel KM Total ]],Table1[[#This Row],[Labour Hours Total ]],Table1[[#This Row],[Service Cost (Test and Tag)]],Table1[[#This Row],[Travel Hours Total]])","v":0},{"$f":"IF(Table1[[#This Row],[Charge type]]<>\"\",Company_Name,\"\")","v":""},{"$f":"IF(Table1[[#This Row],[Charge type]]<>\"\",ENZ_Reference_Num,\"\")","v":""},{"$f":"IF(Table1[[#This Row],[Charge type]]<>\"\",Invoice_date,\"\")","v":""},{"$f":"IF(Table1[[#This Row],[Charge type]]<>\"\",Invoice_Number,\"\")","v":""},{"$f":"85","v":85},{"$f":"85","v":85},0.64,{"$f":"15","v":15},{"$f":"IF(Table1[[#This Row],[TOTAL JOB COST]]>1999.99,\"OVER $2k - contact Enable\",\"\")","v":""},null,{"$f":"IFERROR(VLOOKUP(Table1[[#This Row],[Equipment Type]],'Ref sheet'!I$2:J$7,2,FALSE),\"\")","v":""},{"$f":"IF(AND(Table1[[#This Row],[Equipment Type]]= \"\", Table1[[#This Row],[TOTAL JOB COST]] <> 0), \"Please set equipment type\", IF(Table1[[#This Row],[Limit]]<Table1[[#This Row],[TOTAL JOB COST]],\"Over equipment type limit\",\"\"))","v":""}]
[null,null,null,null,null,null,null,null,null,null,null,null,null,null,null,null,null,null,null,null,null,null,{"$f":"IFERROR(Table1[[#This Row],[Labour Hours]]*Table1[[#This Row],[Cost  per unit (LH)]],0)","v":0},{"$f":"IFERROR(Table1[[#This Row],[Travel Hours]]*Table1[[#This Row],[Cost  per unit (TH)]],0)","v":0},{"$f":"IFERROR(Table1[[#This Row],[Travel Distance (km)]]*Table1[[#This Row],[Cost  per unit (TD)]],0)","v":0},{"$f":"IF(Table1[[#This Row],[Test and Tag]]=\"Yes\",Table1[[#This Row],[Cost per Unit (TT)]],0)","v":0},{"$f":"SUM(Table1[[#This Row],[Parts Costs]],Table1[[#This Row],[Travel KM Total ]],Table1[[#This Row],[Labour Hours Total ]],Table1[[#This Row],[Service Cost (Test and Tag)]],Table1[[#This Row],[Travel Hours Total]])","v":0},{"$f":"IF(Table1[[#This Row],[Charge type]]<>\"\",Company_Name,\"\")","v":""},{"$f":"IF(Table1[[#This Row],[Charge type]]<>\"\",ENZ_Reference_Num,\"\")","v":""},{"$f":"IF(Table1[[#This Row],[Charge type]]<>\"\",Invoice_date,\"\")","v":""},{"$f":"IF(Table1[[#This Row],[Charge type]]<>\"\",Invoice_Number,\"\")","v":""},{"$f":"85","v":85},{"$f":"85","v":85},0.64,{"$f":"15","v":15},{"$f":"IF(Table1[[#This Row],[TOTAL JOB COST]]>1999.99,\"OVER $2k - contact Enable\",\"\")","v":""},null,{"$f":"IFERROR(VLOOKUP(Table1[[#This Row],[Equipment Type]],'Ref sheet'!I$2:J$7,2,FALSE),\"\")","v":""},{"$f":"IF(AND(Table1[[#This Row],[Equipment Type]]= \"\", Table1[[#This Row],[TOTAL JOB COST]] <> 0), \"Please set equipment type\", IF(Table1[[#This Row],[Limit]]<Table1[[#This Row],[TOTAL JOB COST]],\"Over equipment type limit\",\"\"))","v":""}]
[null,null,null,null,null,null,null,null,null,null,null,null,null,null,null,null,null,null,null,null,null,null,{"$f":"IFERROR(Table1[[#This Row],[Labour Hours]]*Table1[[#This Row],[Cost  per unit (LH)]],0)","v":0},{"$f":"IFERROR(Table1[[#This Row],[Travel Hours]]*Table1[[#This Row],[Cost  per unit (TH)]],0)","v":0},{"$f":"IFERROR(Table1[[#This Row],[Travel Distance (km)]]*Table1[[#This Row],[Cost  per unit (TD)]],0)","v":0},{"$f":"IF(Table1[[#This Row],[Test and Tag]]=\"Yes\",Table1[[#This Row],[Cost per Unit (TT)]],0)","v":0},{"$f":"SUM(Table1[[#This Row],[Parts Costs]],Table1[[#This Row],[Travel KM Total ]],Table1[[#This Row],[Labour Hours Total ]],Table1[[#This Row],[Service Cost (Test and Tag)]],Table1[[#This Row],[Travel Hours Total]])","v":0},{"$f":"IF(Table1[[#This Row],[Charge type]]<>\"\",Company_Name,\"\")","v":""},{"$f":"IF(Table1[[#This Row],[Charge type]]<>\"\",ENZ_Reference_Num,\"\")","v":""},{"$f":"IF(Table1[[#This Row],[Charge type]]<>\"\",Invoice_date,\"\")","v":""},{"$f":"IF(Table1[[#This Row],[Charge type]]<>\"\",Invoice_Number,\"\")","v":""},{"$f":"85","v":85},{"$f":"85","v":85},0.64,{"$f":"15","v":15},{"$f":"IF(Table1[[#This Row],[TOTAL JOB COST]]>1999.99,\"OVER $2k - contact Enable\",\"\")","v":""},null,{"$f":"IFERROR(VLOOKUP(Table1[[#This Row],[Equipment Type]],'Ref sheet'!I$2:J$7,2,FALSE),\"\")","v":""},{"$f":"IF(AND(Table1[[#This Row],[Equipment Type]]= \"\", Table1[[#This Row],[TOTAL JOB COST]] <> 0), \"Please set equipment type\", IF(Table1[[#This Row],[Limit]]<Table1[[#This Row],[TOTAL JOB COST]],\"Over equipment type limit\",\"\"))","v":""}]
[null,null,null,null,null,null,null,null,null,null,null,null,null,null,null,null,null,null,null,null,null,null,{"$f":"IFERROR(Table1[[#This Row],[Labour Hours]]*Table1[[#This Row],[Cost  per unit (LH)]],0)","v":0},{"$f":"IFERROR(Table1[[#This Row],[Travel Hours]]*Table1[[#This Row],[Cost  per unit (TH)]],0)","v":0},{"$f":"IFERROR(Table1[[#This Row],[Travel Distance (km)]]*Table1[[#This Row],[Cost  per unit (TD)]],0)","v":0},{"$f":"IF(Table1[[#This Row],[Test and Tag]]=\"Yes\",Table1[[#This Row],[Cost per Unit (TT)]],0)","v":0},{"$f":"SUM(Table1[[#This Row],[Parts Costs]],Table1[[#This Row],[Travel KM Total ]],Table1[[#This Row],[Labour Hours Total ]],Table1[[#This Row],[Service Cost (Test and Tag)]],Table1[[#This Row],[Travel Hours Total]])","v":0},{"$f":"IF(Table1[[#This Row],[Charge type]]<>\"\",Company_Name,\"\")","v":""},{"$f":"IF(Table1[[#This Row],[Charge type]]<>\"\",ENZ_Reference_Num,\"\")","v":""},{"$f":"IF(Table1[[#This Row],[Charge type]]<>\"\",Invoice_date,\"\")","v":""},{"$f":"IF(Table1[[#This Row],[Charge type]]<>\"\",Invoice_Number,\"\")","v":""},{"$f":"85","v":85},{"$f":"85","v":85},0.64,{"$f":"15","v":15},{"$f":"IF(Table1[[#This Row],[TOTAL JOB COST]]>1999.99,\"OVER $2k - contact Enable\",\"\")","v":""},null,{"$f":"IFERROR(VLOOKUP(Table1[[#This Row],[Equipment Type]],'Ref sheet'!I$2:J$7,2,FALSE),\"\")","v":""},{"$f":"IF(AND(Table1[[#This Row],[Equipment Type]]= \"\", Table1[[#This Row],[TOTAL JOB COST]] <> 0), \"Please set equipment type\", IF(Table1[[#This Row],[Limit]]<Table1[[#This Row],[TOTAL JOB COST]],\"Over equipment type limit\",\"\"))","v":""}]
[null,null,null,null,null,null,null,null,null,null,null,null,null,null,null,null,null,null,null,null,null,null,{"$f":"IFERROR(Table1[[#This Row],[Labour Hours]]*Table1[[#This Row],[Cost  per unit (LH)]],0)","v":0},{"$f":"IFERROR(Table1[[#This Row],[Travel Hours]]*Table1[[#This Row],[Cost  per unit (TH)]],0)","v":0},{"$f":"IFERROR(Table1[[#This Row],[Travel Distance (km)]]*Table1[[#This Row],[Cost  per unit (TD)]],0)","v":0},{"$f":"IF(Table1[[#This Row],[Test and Tag]]=\"Yes\",Table1[[#This Row],[Cost per Unit (TT)]],0)","v":0},{"$f":"SUM(Table1[[#This Row],[Parts Costs]],Table1[[#This Row],[Travel KM Total ]],Table1[[#This Row],[Labour Hours Total ]],Table1[[#This Row],[Service Cost (Test and Tag)]],Table1[[#This Row],[Travel Hours Total]])","v":0},{"$f":"IF(Table1[[#This Row],[Charge type]]<>\"\",Company_Name,\"\")","v":""},{"$f":"IF(Table1[[#This Row],[Charge type]]<>\"\",ENZ_Reference_Num,\"\")","v":""},{"$f":"IF(Table1[[#This Row],[Charge type]]<>\"\",Invoice_date,\"\")","v":""},{"$f":"IF(Table1[[#This Row],[Charge type]]<>\"\",Invoice_Number,\"\")","v":""},{"$f":"85","v":85},{"$f":"85","v":85},0.64,{"$f":"15","v":15},{"$f":"IF(Table1[[#This Row],[TOTAL JOB COST]]>1999.99,\"OVER $2k - contact Enable\",\"\")","v":""},null,{"$f":"IFERROR(VLOOKUP(Table1[[#This Row],[Equipment Type]],'Ref sheet'!I$2:J$7,2,FALSE),\"\")","v":""},{"$f":"IF(AND(Table1[[#This Row],[Equipment Type]]= \"\", Table1[[#This Row],[TOTAL JOB COST]] <> 0), \"Please set equipment type\", IF(Table1[[#This Row],[Limit]]<Table1[[#This Row],[TOTAL JOB COST]],\"Over equipment type limit\",\"\"))","v":""}]
[null,null,null,null,null,null,null,null,null,null,null,null,null,null,null,null,null,null,null,null,null,null,{"$f":"IFERROR(Table1[[#This Row],[Labour Hours]]*Table1[[#This Row],[Cost  per unit (LH)]],0)","v":0},{"$f":"IFERROR(Table1[[#This Row],[Travel Hours]]*Table1[[#This Row],[Cost  per unit (TH)]],0)","v":0},{"$f":"IFERROR(Table1[[#This Row],[Travel Distance (km)]]*Table1[[#This Row],[Cost  per unit (TD)]],0)","v":0},{"$f":"IF(Table1[[#This Row],[Test and Tag]]=\"Yes\",Table1[[#This Row],[Cost per Unit (TT)]],0)","v":0},{"$f":"SUM(Table1[[#This Row],[Parts Costs]],Table1[[#This Row],[Travel KM Total ]],Table1[[#This Row],[Labour Hours Total ]],Table1[[#This Row],[Service Cost (Test and Tag)]],Table1[[#This Row],[Travel Hours Total]])","v":0},{"$f":"IF(Table1[[#This Row],[Charge type]]<>\"\",Company_Name,\"\")","v":""},{"$f":"IF(Table1[[#This Row],[Charge type]]<>\"\",ENZ_Reference_Num,\"\")","v":""},{"$f":"IF(Table1[[#This Row],[Charge type]]<>\"\",Invoice_date,\"\")","v":""},{"$f":"IF(Table1[[#This Row],[Charge type]]<>\"\",Invoice_Number,\"\")","v":""},{"$f":"85","v":85},{"$f":"85","v":85},0.64,{"$f":"15","v":15},{"$f":"IF(Table1[[#This Row],[TOTAL JOB COST]]>1999.99,\"OVER $2k - contact Enable\",\"\")","v":""},null,{"$f":"IFERROR(VLOOKUP(Table1[[#This Row],[Equipment Type]],'Ref sheet'!I$2:J$7,2,FALSE),\"\")","v":""},{"$f":"IF(AND(Table1[[#This Row],[Equipment Type]]= \"\", Table1[[#This Row],[TOTAL JOB COST]] <> 0), \"Please set equipment type\", IF(Table1[[#This Row],[Limit]]<Table1[[#This Row],[TOTAL JOB COST]],\"Over equipment type limit\",\"\"))","v":""}]
[null,null,null,null,null,null,null,null,null,null,null,null,null,null,null,null,null,null,null,null,null,null,{"$f":"IFERROR(Table1[[#This Row],[Labour Hours]]*Table1[[#This Row],[Cost  per unit (LH)]],0)","v":0},{"$f":"IFERROR(Table1[[#This Row],[Travel Hours]]*Table1[[#This Row],[Cost  per unit (TH)]],0)","v":0},{"$f":"IFERROR(Table1[[#This Row],[Travel Distance (km)]]*Table1[[#This Row],[Cost  per unit (TD)]],0)","v":0},{"$f":"IF(Table1[[#This Row],[Test and Tag]]=\"Yes\",Table1[[#This Row],[Cost per Unit (TT)]],0)","v":0},{"$f":"SUM(Table1[[#This Row],[Parts Costs]],Table1[[#This Row],[Travel KM Total ]],Table1[[#This Row],[Labour Hours Total ]],Table1[[#This Row],[Service Cost (Test and Tag)]],Table1[[#This Row],[Travel Hours Total]])","v":0},{"$f":"IF(Table1[[#This Row],[Charge type]]<>\"\",Company_Name,\"\")","v":""},{"$f":"IF(Table1[[#This Row],[Charge type]]<>\"\",ENZ_Reference_Num,\"\")","v":""},{"$f":"IF(Table1[[#This Row],[Charge type]]<>\"\",Invoice_date,\"\")","v":""},{"$f":"IF(Table1[[#This Row],[Charge type]]<>\"\",Invoice_Number,\"\")","v":""},{"$f":"85","v":85},{"$f":"85","v":85},0.64,{"$f":"15","v":15},{"$f":"IF(Table1[[#This Row],[TOTAL JOB COST]]>1999.99,\"OVER $2k - contact Enable\",\"\")","v":""},null,{"$f":"IFERROR(VLOOKUP(Table1[[#This Row],[Equipment Type]],'Ref sheet'!I$2:J$7,2,FALSE),\"\")","v":""},{"$f":"IF(AND(Table1[[#This Row],[Equipment Type]]= \"\", Table1[[#This Row],[TOTAL JOB COST]] <> 0), \"Please set equipment type\", IF(Table1[[#This Row],[Limit]]<Table1[[#This Row],[TOTAL JOB COST]],\"Over equipment type limit\",\"\"))","v":""}]
[null,null,null,null,null,null,null,null,null,null,null,null,null,null,null,null,null,null,null,null,null,null,{"$f":"IFERROR(Table1[[#This Row],[Labour Hours]]*Table1[[#This Row],[Cost  per unit (LH)]],0)","v":0},{"$f":"IFERROR(Table1[[#This Row],[Travel Hours]]*Table1[[#This Row],[Cost  per unit (TH)]],0)","v":0},{"$f":"IFERROR(Table1[[#This Row],[Travel Distance (km)]]*Table1[[#This Row],[Cost  per unit (TD)]],0)","v":0},{"$f":"IF(Table1[[#This Row],[Test and Tag]]=\"Yes\",Table1[[#This Row],[Cost per Unit (TT)]],0)","v":0},{"$f":"SUM(Table1[[#This Row],[Parts Costs]],Table1[[#This Row],[Travel KM Total ]],Table1[[#This Row],[Labour Hours Total ]],Table1[[#This Row],[Service Cost (Test and Tag)]],Table1[[#This Row],[Travel Hours Total]])","v":0},{"$f":"IF(Table1[[#This Row],[Charge type]]<>\"\",Company_Name,\"\")","v":""},{"$f":"IF(Table1[[#This Row],[Charge type]]<>\"\",ENZ_Reference_Num,\"\")","v":""},{"$f":"IF(Table1[[#This Row],[Charge type]]<>\"\",Invoice_date,\"\")","v":""},{"$f":"IF(Table1[[#This Row],[Charge type]]<>\"\",Invoice_Number,\"\")","v":""},{"$f":"85","v":85},{"$f":"85","v":85},0.64,{"$f":"15","v":15},{"$f":"IF(Table1[[#This Row],[TOTAL JOB COST]]>1999.99,\"OVER $2k - contact Enable\",\"\")","v":""},null,{"$f":"IFERROR(VLOOKUP(Table1[[#This Row],[Equipment Type]],'Ref sheet'!I$2:J$7,2,FALSE),\"\")","v":""},{"$f":"IF(AND(Table1[[#This Row],[Equipment Type]]= \"\", Table1[[#This Row],[TOTAL JOB COST]] <> 0), \"Please set equipment type\", IF(Table1[[#This Row],[Limit]]<Table1[[#This Row],[TOTAL JOB COST]],\"Over equipment type limit\",\"\"))","v":""}]
[null,null,null,null,null,null,null,null,null,null,null,null,null,null,null,null,null,null,null,null,null,null,{"$f":"IFERROR(Table1[[#This Row],[Labour Hours]]*Table1[[#This Row],[Cost  per unit (LH)]],0)","v":0},{"$f":"IFERROR(Table1[[#This Row],[Travel Hours]]*Table1[[#This Row],[Cost  per unit (TH)]],0)","v":0},{"$f":"IFERROR(Table1[[#This Row],[Travel Distance (km)]]*Table1[[#This Row],[Cost  per unit (TD)]],0)","v":0},{"$f":"IF(Table1[[#This Row],[Test and Tag]]=\"Yes\",Table1[[#This Row],[Cost per Unit (TT)]],0)","v":0},{"$f":"SUM(Table1[[#This Row],[Parts Costs]],Table1[[#This Row],[Travel KM Total ]],Table1[[#This Row],[Labour Hours Total ]],Table1[[#This Row],[Service Cost (Test and Tag)]],Table1[[#This Row],[Travel Hours Total]])","v":0},{"$f":"IF(Table1[[#This Row],[Charge type]]<>\"\",Company_Name,\"\")","v":""},{"$f":"IF(Table1[[#This Row],[Charge type]]<>\"\",ENZ_Reference_Num,\"\")","v":""},{"$f":"IF(Table1[[#This Row],[Charge type]]<>\"\",Invoice_date,\"\")","v":""},{"$f":"IF(Table1[[#This Row],[Charge type]]<>\"\",Invoice_Number,\"\")","v":""},{"$f":"85","v":85},{"$f":"85","v":85},0.64,{"$f":"15","v":15},{"$f":"IF(Table1[[#This Row],[TOTAL JOB COST]]>1999.99,\"OVER $2k - contact Enable\",\"\")","v":""},null,{"$f":"IFERROR(VLOOKUP(Table1[[#This Row],[Equipment Type]],'Ref sheet'!I$2:J$7,2,FALSE),\"\")","v":""},{"$f":"IF(AND(Table1[[#This Row],[Equipment Type]]= \"\", Table1[[#This Row],[TOTAL JOB COST]] <> 0), \"Please set equipment type\", IF(Table1[[#This Row],[Limit]]<Table1[[#This Row],[TOTAL JOB COST]],\"Over equipment type limit\",\"\"))","v":""}]
[null,null,null,null,null,null,null,null,null,null,null,null,null,null,null,null,null,null,null,null,null,null,{"$f":"IFERROR(Table1[[#This Row],[Labour Hours]]*Table1[[#This Row],[Cost  per unit (LH)]],0)","v":0},{"$f":"IFERROR(Table1[[#This Row],[Travel Hours]]*Table1[[#This Row],[Cost  per unit (TH)]],0)","v":0},{"$f":"IFERROR(Table1[[#This Row],[Travel Distance (km)]]*Table1[[#This Row],[Cost  per unit (TD)]],0)","v":0},{"$f":"IF(Table1[[#This Row],[Test and Tag]]=\"Yes\",Table1[[#This Row],[Cost per Unit (TT)]],0)","v":0},{"$f":"SUM(Table1[[#This Row],[Parts Costs]],Table1[[#This Row],[Travel KM Total ]],Table1[[#This Row],[Labour Hours Total ]],Table1[[#This Row],[Service Cost (Test and Tag)]],Table1[[#This Row],[Travel Hours Total]])","v":0},{"$f":"IF(Table1[[#This Row],[Charge type]]<>\"\",Company_Name,\"\")","v":""},{"$f":"IF(Table1[[#This Row],[Charge type]]<>\"\",ENZ_Reference_Num,\"\")","v":""},{"$f":"IF(Table1[[#This Row],[Charge type]]<>\"\",Invoice_date,\"\")","v":""},{"$f":"IF(Table1[[#This Row],[Charge type]]<>\"\",Invoice_Number,\"\")","v":""},{"$f":"85","v":85},{"$f":"85","v":85},0.64,{"$f":"15","v":15},{"$f":"IF(Table1[[#This Row],[TOTAL JOB COST]]>1999.99,\"OVER $2k - contact Enable\",\"\")","v":""},null,{"$f":"IFERROR(VLOOKUP(Table1[[#This Row],[Equipment Type]],'Ref sheet'!I$2:J$7,2,FALSE),\"\")","v":""},{"$f":"IF(AND(Table1[[#This Row],[Equipment Type]]= \"\", Table1[[#This Row],[TOTAL JOB COST]] <> 0), \"Please set equipment type\", IF(Table1[[#This Row],[Limit]]<Table1[[#This Row],[TOTAL JOB COST]],\"Over equipment type limit\",\"\"))","v":""}]
[null,null,null,null,null,null,null,null,null,null,null,null,null,null,null,null,null,null,null,null,null,null,{"$f":"IFERROR(Table1[[#This Row],[Labour Hours]]*Table1[[#This Row],[Cost  per unit (LH)]],0)","v":0},{"$f":"IFERROR(Table1[[#This Row],[Travel Hours]]*Table1[[#This Row],[Cost  per unit (TH)]],0)","v":0},{"$f":"IFERROR(Table1[[#This Row],[Travel Distance (km)]]*Table1[[#This Row],[Cost  per unit (TD)]],0)","v":0},{"$f":"IF(Table1[[#This Row],[Test and Tag]]=\"Yes\",Table1[[#This Row],[Cost per Unit (TT)]],0)","v":0},{"$f":"SUM(Table1[[#This Row],[Parts Costs]],Table1[[#This Row],[Travel KM Total ]],Table1[[#This Row],[Labour Hours Total ]],Table1[[#This Row],[Service Cost (Test and Tag)]],Table1[[#This Row],[Travel Hours Total]])","v":0},{"$f":"IF(Table1[[#This Row],[Charge type]]<>\"\",Company_Name,\"\")","v":""},{"$f":"IF(Table1[[#This Row],[Charge type]]<>\"\",ENZ_Reference_Num,\"\")","v":""},{"$f":"IF(Table1[[#This Row],[Charge type]]<>\"\",Invoice_date,\"\")","v":""},{"$f":"IF(Table1[[#This Row],[Charge type]]<>\"\",Invoice_Number,\"\")","v":""},{"$f":"85","v":85},{"$f":"85","v":85},0.64,{"$f":"15","v":15},{"$f":"IF(Table1[[#This Row],[TOTAL JOB COST]]>1999.99,\"OVER $2k - contact Enable\",\"\")","v":""},null,{"$f":"IFERROR(VLOOKUP(Table1[[#This Row],[Equipment Type]],'Ref sheet'!I$2:J$7,2,FALSE),\"\")","v":""},{"$f":"IF(AND(Table1[[#This Row],[Equipment Type]]= \"\", Table1[[#This Row],[TOTAL JOB COST]] <> 0), \"Please set equipment type\", IF(Table1[[#This Row],[Limit]]<Table1[[#This Row],[TOTAL JOB COST]],\"Over equipment type limit\",\"\"))","v":""}]
[null,null,null,null,null,null,null,null,null,null,null,null,null,null,null,null,null,null,null,null,null,null,{"$f":"IFERROR(Table1[[#This Row],[Labour Hours]]*Table1[[#This Row],[Cost  per unit (LH)]],0)","v":0},{"$f":"IFERROR(Table1[[#This Row],[Travel Hours]]*Table1[[#This Row],[Cost  per unit (TH)]],0)","v":0},{"$f":"IFERROR(Table1[[#This Row],[Travel Distance (km)]]*Table1[[#This Row],[Cost  per unit (TD)]],0)","v":0},{"$f":"IF(Table1[[#This Row],[Test and Tag]]=\"Yes\",Table1[[#This Row],[Cost per Unit (TT)]],0)","v":0},{"$f":"SUM(Table1[[#This Row],[Parts Costs]],Table1[[#This Row],[Travel KM Total ]],Table1[[#This Row],[Labour Hours Total ]],Table1[[#This Row],[Service Cost (Test and Tag)]],Table1[[#This Row],[Travel Hours Total]])","v":0},{"$f":"IF(Table1[[#This Row],[Charge type]]<>\"\",Company_Name,\"\")","v":""},{"$f":"IF(Table1[[#This Row],[Charge type]]<>\"\",ENZ_Reference_Num,\"\")","v":""},{"$f":"IF(Table1[[#This Row],[Charge type]]<>\"\",Invoice_date,\"\")","v":""},{"$f":"IF(Table1[[#This Row],[Charge type]]<>\"\",Invoice_Number,\"\")","v":""},{"$f":"85","v":85},{"$f":"85","v":85},0.64,{"$f":"15","v":15},{"$f":"IF(Table1[[#This Row],[TOTAL JOB COST]]>1999.99,\"OVER $2k - contact Enable\",\"\")","v":""},null,{"$f":"IFERROR(VLOOKUP(Table1[[#This Row],[Equipment Type]],'Ref sheet'!I$2:J$7,2,FALSE),\"\")","v":""},{"$f":"IF(AND(Table1[[#This Row],[Equipment Type]]= \"\", Table1[[#This Row],[TOTAL JOB COST]] <> 0), \"Please set equipment type\", IF(Table1[[#This Row],[Limit]]<Table1[[#This Row],[TOTAL JOB COST]],\"Over equipment type limit\",\"\"))","v":""}]
[null,null,null,null,null,null,null,null,null,null,null,null,null,null,null,null,null,null,null,null,null,null,{"$f":"IFERROR(Table1[[#This Row],[Labour Hours]]*Table1[[#This Row],[Cost  per unit (LH)]],0)","v":0},{"$f":"IFERROR(Table1[[#This Row],[Travel Hours]]*Table1[[#This Row],[Cost  per unit (TH)]],0)","v":0},{"$f":"IFERROR(Table1[[#This Row],[Travel Distance (km)]]*Table1[[#This Row],[Cost  per unit (TD)]],0)","v":0},{"$f":"IF(Table1[[#This Row],[Test and Tag]]=\"Yes\",Table1[[#This Row],[Cost per Unit (TT)]],0)","v":0},{"$f":"SUM(Table1[[#This Row],[Parts Costs]],Table1[[#This Row],[Travel KM Total ]],Table1[[#This Row],[Labour Hours Total ]],Table1[[#This Row],[Service Cost (Test and Tag)]],Table1[[#This Row],[Travel Hours Total]])","v":0},{"$f":"IF(Table1[[#This Row],[Charge type]]<>\"\",Company_Name,\"\")","v":""},{"$f":"IF(Table1[[#This Row],[Charge type]]<>\"\",ENZ_Reference_Num,\"\")","v":""},{"$f":"IF(Table1[[#This Row],[Charge type]]<>\"\",Invoice_date,\"\")","v":""},{"$f":"IF(Table1[[#This Row],[Charge type]]<>\"\",Invoice_Number,\"\")","v":""},{"$f":"85","v":85},{"$f":"85","v":85},0.64,{"$f":"15","v":15},{"$f":"IF(Table1[[#This Row],[TOTAL JOB COST]]>1999.99,\"OVER $2k - contact Enable\",\"\")","v":""},null,{"$f":"IFERROR(VLOOKUP(Table1[[#This Row],[Equipment Type]],'Ref sheet'!I$2:J$7,2,FALSE),\"\")","v":""},{"$f":"IF(AND(Table1[[#This Row],[Equipment Type]]= \"\", Table1[[#This Row],[TOTAL JOB COST]] <> 0), \"Please set equipment type\", IF(Table1[[#This Row],[Limit]]<Table1[[#This Row],[TOTAL JOB COST]],\"Over equipment type limit\",\"\"))","v":""}]
[null,null,null,null,null,null,null,null,null,null,null,null,null,null,null,null,null,null,null,null,null,null,{"$f":"IFERROR(Table1[[#This Row],[Labour Hours]]*Table1[[#This Row],[Cost  per unit (LH)]],0)","v":0},{"$f":"IFERROR(Table1[[#This Row],[Travel Hours]]*Table1[[#This Row],[Cost  per unit (TH)]],0)","v":0},{"$f":"IFERROR(Table1[[#This Row],[Travel Distance (km)]]*Table1[[#This Row],[Cost  per unit (TD)]],0)","v":0},{"$f":"IF(Table1[[#This Row],[Test and Tag]]=\"Yes\",Table1[[#This Row],[Cost per Unit (TT)]],0)","v":0},{"$f":"SUM(Table1[[#This Row],[Parts Costs]],Table1[[#This Row],[Travel KM Total ]],Table1[[#This Row],[Labour Hours Total ]],Table1[[#This Row],[Service Cost (Test and Tag)]],Table1[[#This Row],[Travel Hours Total]])","v":0},{"$f":"IF(Table1[[#This Row],[Charge type]]<>\"\",Company_Name,\"\")","v":""},{"$f":"IF(Table1[[#This Row],[Charge type]]<>\"\",ENZ_Reference_Num,\"\")","v":""},{"$f":"IF(Table1[[#This Row],[Charge type]]<>\"\",Invoice_date,\"\")","v":""},{"$f":"IF(Table1[[#This Row],[Charge type]]<>\"\",Invoice_Number,\"\")","v":""},{"$f":"85","v":85},{"$f":"85","v":85},0.64,{"$f":"15","v":15},{"$f":"IF(Table1[[#This Row],[TOTAL JOB COST]]>1999.99,\"OVER $2k - contact Enable\",\"\")","v":""},null,{"$f":"IFERROR(VLOOKUP(Table1[[#This Row],[Equipment Type]],'Ref sheet'!I$2:J$7,2,FALSE),\"\")","v":""},{"$f":"IF(AND(Table1[[#This Row],[Equipment Type]]= \"\", Table1[[#This Row],[TOTAL JOB COST]] <> 0), \"Please set equipment type\", IF(Table1[[#This Row],[Limit]]<Table1[[#This Row],[TOTAL JOB COST]],\"Over equipment type limit\",\"\"))","v":""}]
[null,null,null,null,null,null,null,null,null,null,null,null,null,null,null,null,null,null,null,null,null,null,{"$f":"IFERROR(Table1[[#This Row],[Labour Hours]]*Table1[[#This Row],[Cost  per unit (LH)]],0)","v":0},{"$f":"IFERROR(Table1[[#This Row],[Travel Hours]]*Table1[[#This Row],[Cost  per unit (TH)]],0)","v":0},{"$f":"IFERROR(Table1[[#This Row],[Travel Distance (km)]]*Table1[[#This Row],[Cost  per unit (TD)]],0)","v":0},{"$f":"IF(Table1[[#This Row],[Test and Tag]]=\"Yes\",Table1[[#This Row],[Cost per Unit (TT)]],0)","v":0},{"$f":"SUM(Table1[[#This Row],[Parts Costs]],Table1[[#This Row],[Travel KM Total ]],Table1[[#This Row],[Labour Hours Total ]],Table1[[#This Row],[Service Cost (Test and Tag)]],Table1[[#This Row],[Travel Hours Total]])","v":0},{"$f":"IF(Table1[[#This Row],[Charge type]]<>\"\",Company_Name,\"\")","v":""},{"$f":"IF(Table1[[#This Row],[Charge type]]<>\"\",ENZ_Reference_Num,\"\")","v":""},{"$f":"IF(Table1[[#This Row],[Charge type]]<>\"\",Invoice_date,\"\")","v":""},{"$f":"IF(Table1[[#This Row],[Charge type]]<>\"\",Invoice_Number,\"\")","v":""},{"$f":"85","v":85},{"$f":"85","v":85},0.64,{"$f":"15","v":15},{"$f":"IF(Table1[[#This Row],[TOTAL JOB COST]]>1999.99,\"OVER $2k - contact Enable\",\"\")","v":""},null,{"$f":"IFERROR(VLOOKUP(Table1[[#This Row],[Equipment Type]],'Ref sheet'!I$2:J$7,2,FALSE),\"\")","v":""},{"$f":"IF(AND(Table1[[#This Row],[Equipment Type]]= \"\", Table1[[#This Row],[TOTAL JOB COST]] <> 0), \"Please set equipment type\", IF(Table1[[#This Row],[Limit]]<Table1[[#This Row],[TOTAL JOB COST]],\"Over equipment type limit\",\"\"))","v":""}]
[null,null,null,null,null,null,null,null,null,null,null,null,null,null,null,null,null,null,null,null,null,null,{"$f":"IFERROR(Table1[[#This Row],[Labour Hours]]*Table1[[#This Row],[Cost  per unit (LH)]],0)","v":0},{"$f":"IFERROR(Table1[[#This Row],[Travel Hours]]*Table1[[#This Row],[Cost  per unit (TH)]],0)","v":0},{"$f":"IFERROR(Table1[[#This Row],[Travel Distance (km)]]*Table1[[#This Row],[Cost  per unit (TD)]],0)","v":0},{"$f":"IF(Table1[[#This Row],[Test and Tag]]=\"Yes\",Table1[[#This Row],[Cost per Unit (TT)]],0)","v":0},{"$f":"SUM(Table1[[#This Row],[Parts Costs]],Table1[[#This Row],[Travel KM Total ]],Table1[[#This Row],[Labour Hours Total ]],Table1[[#This Row],[Service Cost (Test and Tag)]],Table1[[#This Row],[Travel Hours Total]])","v":0},{"$f":"IF(Table1[[#This Row],[Charge type]]<>\"\",Company_Name,\"\")","v":""},{"$f":"IF(Table1[[#This Row],[Charge type]]<>\"\",ENZ_Reference_Num,\"\")","v":""},{"$f":"IF(Table1[[#This Row],[Charge type]]<>\"\",Invoice_date,\"\")","v":""},{"$f":"IF(Table1[[#This Row],[Charge type]]<>\"\",Invoice_Number,\"\")","v":""},{"$f":"85","v":85},{"$f":"85","v":85},0.64,{"$f":"15","v":15},{"$f":"IF(Table1[[#This Row],[TOTAL JOB COST]]>1999.99,\"OVER $2k - contact Enable\",\"\")","v":""},null,{"$f":"IFERROR(VLOOKUP(Table1[[#This Row],[Equipment Type]],'Ref sheet'!I$2:J$7,2,FALSE),\"\")","v":""},{"$f":"IF(AND(Table1[[#This Row],[Equipment Type]]= \"\", Table1[[#This Row],[TOTAL JOB COST]] <> 0), \"Please set equipment type\", IF(Table1[[#This Row],[Limit]]<Table1[[#This Row],[TOTAL JOB COST]],\"Over equipment type limit\",\"\"))","v":""}]
[null,null,null,null,null,null,null,null,null,null,null,null,null,null,null,null,null,null,null,null,null,null,{"$f":"IFERROR(Table1[[#This Row],[Labour Hours]]*Table1[[#This Row],[Cost  per unit (LH)]],0)","v":0},{"$f":"IFERROR(Table1[[#This Row],[Travel Hours]]*Table1[[#This Row],[Cost  per unit (TH)]],0)","v":0},{"$f":"IFERROR(Table1[[#This Row],[Travel Distance (km)]]*Table1[[#This Row],[Cost  per unit (TD)]],0)","v":0},{"$f":"IF(Table1[[#This Row],[Test and Tag]]=\"Yes\",Table1[[#This Row],[Cost per Unit (TT)]],0)","v":0},{"$f":"SUM(Table1[[#This Row],[Parts Costs]],Table1[[#This Row],[Travel KM Total ]],Table1[[#This Row],[Labour Hours Total ]],Table1[[#This Row],[Service Cost (Test and Tag)]],Table1[[#This Row],[Travel Hours Total]])","v":0},{"$f":"IF(Table1[[#This Row],[Charge type]]<>\"\",Company_Name,\"\")","v":""},{"$f":"IF(Table1[[#This Row],[Charge type]]<>\"\",ENZ_Reference_Num,\"\")","v":""},{"$f":"IF(Table1[[#This Row],[Charge type]]<>\"\",Invoice_date,\"\")","v":""},{"$f":"IF(Table1[[#This Row],[Charge type]]<>\"\",Invoice_Number,\"\")","v":""},{"$f":"85","v":85},{"$f":"85","v":85},0.64,{"$f":"15","v":15},{"$f":"IF(Table1[[#This Row],[TOTAL JOB COST]]>1999.99,\"OVER $2k - contact Enable\",\"\")","v":""},null,{"$f":"IFERROR(VLOOKUP(Table1[[#This Row],[Equipment Type]],'Ref sheet'!I$2:J$7,2,FALSE),\"\")","v":""},{"$f":"IF(AND(Table1[[#This Row],[Equipment Type]]= \"\", Table1[[#This Row],[TOTAL JOB COST]] <> 0), \"Please set equipment type\", IF(Table1[[#This Row],[Limit]]<Table1[[#This Row],[TOTAL JOB COST]],\"Over equipment type limit\",\"\"))","v":""}]
[null,null,null,null,null,null,null,null,null,null,null,null,null,null,null,null,null,null,null,null,null,null,{"$f":"IFERROR(Table1[[#This Row],[Labour Hours]]*Table1[[#This Row],[Cost  per unit (LH)]],0)","v":0},{"$f":"IFERROR(Table1[[#This Row],[Travel Hours]]*Table1[[#This Row],[Cost  per unit (TH)]],0)","v":0},{"$f":"IFERROR(Table1[[#This Row],[Travel Distance (km)]]*Table1[[#This Row],[Cost  per unit (TD)]],0)","v":0},{"$f":"IF(Table1[[#This Row],[Test and Tag]]=\"Yes\",Table1[[#This Row],[Cost per Unit (TT)]],0)","v":0},{"$f":"SUM(Table1[[#This Row],[Parts Costs]],Table1[[#This Row],[Travel KM Total ]],Table1[[#This Row],[Labour Hours Total ]],Table1[[#This Row],[Service Cost (Test and Tag)]],Table1[[#This Row],[Travel Hours Total]])","v":0},{"$f":"IF(Table1[[#This Row],[Charge type]]<>\"\",Company_Name,\"\")","v":""},{"$f":"IF(Table1[[#This Row],[Charge type]]<>\"\",ENZ_Reference_Num,\"\")","v":""},{"$f":"IF(Table1[[#This Row],[Charge type]]<>\"\",Invoice_date,\"\")","v":""},{"$f":"IF(Table1[[#This Row],[Charge type]]<>\"\",Invoice_Number,\"\")","v":""},{"$f":"85","v":85},{"$f":"85","v":85},0.64,{"$f":"15","v":15},{"$f":"IF(Table1[[#This Row],[TOTAL JOB COST]]>1999.99,\"OVER $2k - contact Enable\",\"\")","v":""},null,{"$f":"IFERROR(VLOOKUP(Table1[[#This Row],[Equipment Type]],'Ref sheet'!I$2:J$7,2,FALSE),\"\")","v":""},{"$f":"IF(AND(Table1[[#This Row],[Equipment Type]]= \"\", Table1[[#This Row],[TOTAL JOB COST]] <> 0), \"Please set equipment type\", IF(Table1[[#This Row],[Limit]]<Table1[[#This Row],[TOTAL JOB COST]],\"Over equipment type limit\",\"\"))","v":""}]
[null,null,null,null,null,null,null,null,null,null,null,null,null,null,null,null,null,null,null,null,null,null,{"$f":"IFERROR(Table1[[#This Row],[Labour Hours]]*Table1[[#This Row],[Cost  per unit (LH)]],0)","v":0},{"$f":"IFERROR(Table1[[#This Row],[Travel Hours]]*Table1[[#This Row],[Cost  per unit (TH)]],0)","v":0},{"$f":"IFERROR(Table1[[#This Row],[Travel Distance (km)]]*Table1[[#This Row],[Cost  per unit (TD)]],0)","v":0},{"$f":"IF(Table1[[#This Row],[Test and Tag]]=\"Yes\",Table1[[#This Row],[Cost per Unit (TT)]],0)","v":0},{"$f":"SUM(Table1[[#This Row],[Parts Costs]],Table1[[#This Row],[Travel KM Total ]],Table1[[#This Row],[Labour Hours Total ]],Table1[[#This Row],[Service Cost (Test and Tag)]],Table1[[#This Row],[Travel Hours Total]])","v":0},{"$f":"IF(Table1[[#This Row],[Charge type]]<>\"\",Company_Name,\"\")","v":""},{"$f":"IF(Table1[[#This Row],[Charge type]]<>\"\",ENZ_Reference_Num,\"\")","v":""},{"$f":"IF(Table1[[#This Row],[Charge type]]<>\"\",Invoice_date,\"\")","v":""},{"$f":"IF(Table1[[#This Row],[Charge type]]<>\"\",Invoice_Number,\"\")","v":""},{"$f":"85","v":85},{"$f":"85","v":85},0.64,{"$f":"15","v":15},{"$f":"IF(Table1[[#This Row],[TOTAL JOB COST]]>1999.99,\"OVER $2k - contact Enable\",\"\")","v":""},null,{"$f":"IFERROR(VLOOKUP(Table1[[#This Row],[Equipment Type]],'Ref sheet'!I$2:J$7,2,FALSE),\"\")","v":""},{"$f":"IF(AND(Table1[[#This Row],[Equipment Type]]= \"\", Table1[[#This Row],[TOTAL JOB COST]] <> 0), \"Please set equipment type\", IF(Table1[[#This Row],[Limit]]<Table1[[#This Row],[TOTAL JOB COST]],\"Over equipment type limit\",\"\"))","v":""}]
[null,null,null,null,null,null,null,null,null,null,null,null,null,null,null,null,null,null,null,null,null,null,{"$f":"IFERROR(Table1[[#This Row],[Labour Hours]]*Table1[[#This Row],[Cost  per unit (LH)]],0)","v":0},{"$f":"IFERROR(Table1[[#This Row],[Travel Hours]]*Table1[[#This Row],[Cost  per unit (TH)]],0)","v":0},{"$f":"IFERROR(Table1[[#This Row],[Travel Distance (km)]]*Table1[[#This Row],[Cost  per unit (TD)]],0)","v":0},{"$f":"IF(Table1[[#This Row],[Test and Tag]]=\"Yes\",Table1[[#This Row],[Cost per Unit (TT)]],0)","v":0},{"$f":"SUM(Table1[[#This Row],[Parts Costs]],Table1[[#This Row],[Travel KM Total ]],Table1[[#This Row],[Labour Hours Total ]],Table1[[#This Row],[Service Cost (Test and Tag)]],Table1[[#This Row],[Travel Hours Total]])","v":0},{"$f":"IF(Table1[[#This Row],[Charge type]]<>\"\",Company_Name,\"\")","v":""},{"$f":"IF(Table1[[#This Row],[Charge type]]<>\"\",ENZ_Reference_Num,\"\")","v":""},{"$f":"IF(Table1[[#This Row],[Charge type]]<>\"\",Invoice_date,\"\")","v":""},{"$f":"IF(Table1[[#This Row],[Charge type]]<>\"\",Invoice_Number,\"\")","v":""},{"$f":"85","v":85},{"$f":"85","v":85},0.64,{"$f":"15","v":15},{"$f":"IF(Table1[[#This Row],[TOTAL JOB COST]]>1999.99,\"OVER $2k - contact Enable\",\"\")","v":""},null,{"$f":"IFERROR(VLOOKUP(Table1[[#This Row],[Equipment Type]],'Ref sheet'!I$2:J$7,2,FALSE),\"\")","v":""},{"$f":"IF(AND(Table1[[#This Row],[Equipment Type]]= \"\", Table1[[#This Row],[TOTAL JOB COST]] <> 0), \"Please set equipment type\", IF(Table1[[#This Row],[Limit]]<Table1[[#This Row],[TOTAL JOB COST]],\"Over equipment type limit\",\"\"))","v":""}]
[null,null,null,null,null,null,null,null,null,null,null,null,null,null,null,null,null,null,null,null,null,null,{"$f":"IFERROR(Table1[[#This Row],[Labour Hours]]*Table1[[#This Row],[Cost  per unit (LH)]],0)","v":0},{"$f":"IFERROR(Table1[[#This Row],[Travel Hours]]*Table1[[#This Row],[Cost  per unit (TH)]],0)","v":0},{"$f":"IFERROR(Table1[[#This Row],[Travel Distance (km)]]*Table1[[#This Row],[Cost  per unit (TD)]],0)","v":0},{"$f":"IF(Table1[[#This Row],[Test and Tag]]=\"Yes\",Table1[[#This Row],[Cost per Unit (TT)]],0)","v":0},{"$f":"SUM(Table1[[#This Row],[Parts Costs]],Table1[[#This Row],[Travel KM Total ]],Table1[[#This Row],[Labour Hours Total ]],Table1[[#This Row],[Service Cost (Test and Tag)]],Table1[[#This Row],[Travel Hours Total]])","v":0},{"$f":"IF(Table1[[#This Row],[Charge type]]<>\"\",Company_Name,\"\")","v":""},{"$f":"IF(Table1[[#This Row],[Charge type]]<>\"\",ENZ_Reference_Num,\"\")","v":""},{"$f":"IF(Table1[[#This Row],[Charge type]]<>\"\",Invoice_date,\"\")","v":""},{"$f":"IF(Table1[[#This Row],[Charge type]]<>\"\",Invoice_Number,\"\")","v":""},{"$f":"85","v":85},{"$f":"85","v":85},0.64,{"$f":"15","v":15},{"$f":"IF(Table1[[#This Row],[TOTAL JOB COST]]>1999.99,\"OVER $2k - contact Enable\",\"\")","v":""},null,{"$f":"IFERROR(VLOOKUP(Table1[[#This Row],[Equipment Type]],'Ref sheet'!I$2:J$7,2,FALSE),\"\")","v":""},{"$f":"IF(AND(Table1[[#This Row],[Equipment Type]]= \"\", Table1[[#This Row],[TOTAL JOB COST]] <> 0), \"Please set equipment type\", IF(Table1[[#This Row],[Limit]]<Table1[[#This Row],[TOTAL JOB COST]],\"Over equipment type limit\",\"\"))","v":""}]
[null,null,null,null,null,null,null,null,null,null,null,null,null,null,null,null,null,null,null,null,null,null,{"$f":"IFERROR(Table1[[#This Row],[Labour Hours]]*Table1[[#This Row],[Cost  per unit (LH)]],0)","v":0},{"$f":"IFERROR(Table1[[#This Row],[Travel Hours]]*Table1[[#This Row],[Cost  per unit (TH)]],0)","v":0},{"$f":"IFERROR(Table1[[#This Row],[Travel Distance (km)]]*Table1[[#This Row],[Cost  per unit (TD)]],0)","v":0},{"$f":"IF(Table1[[#This Row],[Test and Tag]]=\"Yes\",Table1[[#This Row],[Cost per Unit (TT)]],0)","v":0},{"$f":"SUM(Table1[[#This Row],[Parts Costs]],Table1[[#This Row],[Travel KM Total ]],Table1[[#This Row],[Labour Hours Total ]],Table1[[#This Row],[Service Cost (Test and Tag)]],Table1[[#This Row],[Travel Hours Total]])","v":0},{"$f":"IF(Table1[[#This Row],[Charge type]]<>\"\",Company_Name,\"\")","v":""},{"$f":"IF(Table1[[#This Row],[Charge type]]<>\"\",ENZ_Reference_Num,\"\")","v":""},{"$f":"IF(Table1[[#This Row],[Charge type]]<>\"\",Invoice_date,\"\")","v":""},{"$f":"IF(Table1[[#This Row],[Charge type]]<>\"\",Invoice_Number,\"\")","v":""},{"$f":"85","v":85},{"$f":"85","v":85},0.64,{"$f":"15","v":15},{"$f":"IF(Table1[[#This Row],[TOTAL JOB COST]]>1999.99,\"OVER $2k - contact Enable\",\"\")","v":""},null,{"$f":"IFERROR(VLOOKUP(Table1[[#This Row],[Equipment Type]],'Ref sheet'!I$2:J$7,2,FALSE),\"\")","v":""},{"$f":"IF(AND(Table1[[#This Row],[Equipment Type]]= \"\", Table1[[#This Row],[TOTAL JOB COST]] <> 0), \"Please set equipment type\", IF(Table1[[#This Row],[Limit]]<Table1[[#This Row],[TOTAL JOB COST]],\"Over equipment type limit\",\"\"))","v":""}]
[null,null,null,null,null,null,null,null,null,null,null,null,null,null,null,null,null,null,null,null,null,null,{"$f":"IFERROR(Table1[[#This Row],[Labour Hours]]*Table1[[#This Row],[Cost  per unit (LH)]],0)","v":0},{"$f":"IFERROR(Table1[[#This Row],[Travel Hours]]*Table1[[#This Row],[Cost  per unit (TH)]],0)","v":0},{"$f":"IFERROR(Table1[[#This Row],[Travel Distance (km)]]*Table1[[#This Row],[Cost  per unit (TD)]],0)","v":0},{"$f":"IF(Table1[[#This Row],[Test and Tag]]=\"Yes\",Table1[[#This Row],[Cost per Unit (TT)]],0)","v":0},{"$f":"SUM(Table1[[#This Row],[Parts Costs]],Table1[[#This Row],[Travel KM Total ]],Table1[[#This Row],[Labour Hours Total ]],Table1[[#This Row],[Service Cost (Test and Tag)]],Table1[[#This Row],[Travel Hours Total]])","v":0},{"$f":"IF(Table1[[#This Row],[Charge type]]<>\"\",Company_Name,\"\")","v":""},{"$f":"IF(Table1[[#This Row],[Charge type]]<>\"\",ENZ_Reference_Num,\"\")","v":""},{"$f":"IF(Table1[[#This Row],[Charge type]]<>\"\",Invoice_date,\"\")","v":""},{"$f":"IF(Table1[[#This Row],[Charge type]]<>\"\",Invoice_Number,\"\")","v":""},{"$f":"85","v":85},{"$f":"85","v":85},0.64,{"$f":"15","v":15},{"$f":"IF(Table1[[#This Row],[TOTAL JOB COST]]>1999.99,\"OVER $2k - contact Enable\",\"\")","v":""},null,{"$f":"IFERROR(VLOOKUP(Table1[[#This Row],[Equipment Type]],'Ref sheet'!I$2:J$7,2,FALSE),\"\")","v":""},{"$f":"IF(AND(Table1[[#This Row],[Equipment Type]]= \"\", Table1[[#This Row],[TOTAL JOB COST]] <> 0), \"Please set equipment type\", IF(Table1[[#This Row],[Limit]]<Table1[[#This Row],[TOTAL JOB COST]],\"Over equipment type limit\",\"\"))","v":""}]
[]
[null,null,null,null,null,null,null,null,null,null,null,null,null,null,null,null,null,null,null,null,null,null,null,null,null,null,null,null,null,null,null,{"$f":"IF(AVERAGE(AF9:AF108)=85,\"OK\",\"ERROR\")","v":"OK"},{"$f":"IF(MAX(AG9:AG108)=85,\"OK\",\"ERROR\")","v":"OK"},{"$f":"IF(MAX(AH9:AH108)=0.64,\"OK\",\"ERROR\")","v":"OK"},{"$f":"IF(MAX(AI9:AI108)=15,\"OK\",\"ERROR\")","v":"OK"}]

{"sheet":"Instructions","index":2,"n_rows":62,"n_cols":2,"rows_kept":62,"cut":false,"hidden":false,"merged":[]}
["INSTRUCTIONS:"]
["You can only enter a limited number of repairs/services per jobcard/file. Once full, create your invoice and send to Enable. "]
["It is recommended you send these weekly even if not full, and at end of month."]
["Need to send in as a excel workbook - ie email this file - with your invoice attached"]
["Email invoice and job card to acc.subcontractor@enable.co.nz "]
[]
[]
["Field ","Description"]
["Company Name","Your company name"]
["Job card period ","Start date of job card to end date  (could be a week/two weeks or month)"]
["Invoice date","Date of your invoice"]
[]
["Job Ref","Your own reference number"]
["Charge type","Use drop down list to choose service type"]
["ACC Claim Number","Must be provided in order to submit a claim"]
["Clients First Name","Clients First Name"]
["Clients Surname","Clients Surname"]
["Clients Address Street No","Clients Street Address (number)"]
["Clients Address Street ","Clients Street Name"]
["Clients Address Town/City","Clients Town/city"]
["Date repair/service requested","Date you received the service/repair/job"]
["Date of repair/service","Date job completed"]
["Asset Number","Asset Number per label on equipment (don’t include \"A\" at beginning of number)"]
["Asset Description","Description of equipment"]
["Asset Serial No.","Serial number of asset (if applicable)"]
["Repair description","Description of job undertaken"]
["Labour Hours","Time spent on repair (billable hours). Enter as decimal (eg 30mins = 0.5,  1 hr 15 mins = 1.25)"]
["Travel Distance (km)","Travel distance to site for this repair (or apportion if multiple jobs)"]
["Parts Description","Description of parts used"]
["Parts Costs","Cost of parts used"]
["Labour Total ","Calculation- ENZ only field"]
["Travel Total ","Calculation- ENZ only field"]
["TOTAL JOB COST","Calculation- ENZ only field"]
["Company Name","ENZ only field"]
["Cost  per unit","ENZ only field"]
["Cost  per unit","ENZ only field"]
["Total check","Shows error if job over $2k"]
[]
[]
[]
["Example below;"]
[]
[]
[]
[]
[]
[]
[]
[]
[]
[]
[]
[]
[]
[]
[]
[]
[]
["To clear and rest the spreadsheet please click the button"]
[]
["NOTE: THIS WILL DELETE ALL DATA SO EITHER SAVE"]
["A COPY FIRST OR SEND TO ENABLE BEFORE PRESSING"]

{"sheet":"Ref sheet","index":3,"n_rows":44,"n_cols":25,"rows_kept":44,"cut":false,"hidden":true,"merged":[]}
[null,"Charge Type","Charge Old","Charge New",null,"BER","Yes",null,"Charge limits"]
[null,null,"AS - Annual Service","AS - MOH Annual Serv",null,null,"No",null,"Powered Wheelchairs",2000]
[null,null,"FR - Freight","FR - MOH Freight",null,null,null,null,"Manual Wheelchairs",1600]
[null,null,"MD - Modification","MD - MOH Mods",null,null,null,null,"Hoists",800]
[null,null,"RF - Refurbishment","RF - MOH Refurb",null,null,null,null,"Beds",900]
[null,null,"RP - Repair","RP - MOH Repair",null,null,null,null,"Complex Bath/Toilets",2000]
[null,null,"SA - Setup/Adjust","SA - MOH Setup/Adj",null,null,null,null,"Other",1000]
[null,null,"DL - Deliver","CL - MOH Collect/Del"]
[null,null,"CL - Collect","CL - MOH Collect/Del"]
[]
[]
[]
[]
[]
[]
[null,null,null,null,"Enable New Zealand ACC Under $2,000 Job card record"]
[]
[null,null,"ABC Repairs Ltd"]
[null,"Company Name","Start Date","End date",null,null,"Invoice date","2021-11-26"]
[null,null,"2021-11-15","2021-11-26",null,null,"Invoice Number","ABC0001"]
[null,"Job card period",null,null,null,null,"Total Value (excl GST)",{"$f":"+SUM(U25:U44)","v":0},{"$f":"IF(COUNTBLANK(Y25:Y44)=20, \"\", \"Check Column Y - line item over $1k.\")","v":""}]
[]
[]
["Job Ref","Charge type","ACC Claim Number","Clients First Name","Clients Surname","Clients Address Street No","Clients Address Street ","Clients Address Town/City","Date repair/service requested","Date  repair/service completed","Asset Number","Asset Description","Asset Serial No.","Repair description","Labour Hours","Travel Distance (km)","Parts Description","Parts Costs","Labour Total ","Travel Total ","TOTAL JOB COST","Company Name","Cost  per unit","Cost  per unit","Total check"]
[null,null,null,null,null,null,null,null,null,null,null,null,null,null,null,null,null,null,{"$f":"IF(O25>0,O25*W25,)","v":0},{"$f":"IF(P25>0,P25*X25,)","v":0},{"$f":"R25+T25+S25","v":0},{"$f":"IF(B25<>\"\",$C$5,\"\")","v":""},75,0.63,{"$f":"IF(U25>999.99,\"OVER $1k - contact Enable\",\"\")","v":""}]
[null,null,null,null,null,null,null,null,null,null,null,null,null,null,null,null,null,null,0,0,0,"",75,0.63,""]
[null,null,null,null,null,null,null,null,null,null,null,null,null,null,null,null,null,null,0,0,0,"",75,0.63,""]
[null,null,null,null,null,null,null,null,null,null,null,null,null,null,null,null,null,null,0,0,0,"",75,0.63,""]
[null,null,null,null,null,null,null,null,null,null,null,null,null,null,null,null,null,null,0,0,0,"",75,0.63,""]
[null,null,null,null,null,null,null,null,null,null,null,null,null,null,null,null,null,null,0,0,0,"",75,0.63,""]
[null,null,null,null,null,null,null,null,null,null,null,null,null,null,null,null,null,null,0,0,0,"",75,0.63,""]
[null,null,null,null,null,null,null,null,null,null,null,null,null,null,null,null,null,null,0,0,0,"",75,0.63,""]
[null,null,null,null,null,null,null,null,null,null,null,null,null,null,null,null,null,null,0,0,0,"",75,0.63,""]
[null,null,null,null,null,null,null,null,null,null,null,null,null,null,null,null,null,null,0,0,0,"",75,0.63,""]
[null,null,null,null,null,null,null,null,null,null,null,null,null,null,null,null,null,null,0,0,0,"",75,0.63,""]
[null,null,null,null,null,null,null,null,null,null,null,null,null,null,null,null,null,null,0,0,0,"",75,0.63,""]
[null,null,null,null,null,null,null,null,null,null,null,null,null,null,null,null,null,null,0,0,0,"",75,0.63,""]
[null,null,null,null,null,null,null,null,null,null,null,null,null,null,null,null,null,null,0,0,0,"",75,0.63,""]
[null,null,null,null,null,null,null,null,null,null,null,null,null,null,null,null,null,null,0,0,0,"",75,0.63,""]
[null,null,null,null,null,null,null,null,null,null,null,null,null,null,null,null,null,null,0,0,0,"",75,0.63,""]
[null,null,null,null,null,null,null,null,null,null,null,null,null,null,null,null,null,null,0,0,0,"",75,0.63,""]
[null,null,null,null,null,null,null,null,null,null,null,null,null,null,null,null,null,null,0,0,0,"",75,0.63,""]
[null,null,null,null,null,null,null,null,null,null,null,null,null,null,null,null,null,null,0,0,0,"",75,0.63,""]
[null,null,null,null,null,null,null,null,null,null,null,null,null,null,null,null,null,null,0,0,0,"",75,0.63,""]